{"text_format":"1","workbook":"xlsx","n_sheets":3,"sheets":["Order Form","Search","PriceLevels"],"not_rendered":{"charts":0,"images":1,"macros":1,"external_links":0,"defined_names":57,"comments":0,"pivot_tables":0},"unopened":[],"bounds":{"document_bytes":16777216,"sheet_cells":100000,"rows_first":2000,"rows_last":500,"rows_between":2000,"halvings":0,"cell_chars":16384,"cell_head_chars":4096},"cells_cut":0,"cells_raw":0,"read":"whole","date_system":"1900"}

{"sheet":"Order Form","index":0,"n_rows":884,"n_cols":125,"rows_kept":884,"cut":false,"hidden":false,"merged":[[6,40,6,41],[8,43,8,46],[1,7,1,9],[2,7,2,9],[3,7,3,9]]}
[null,null,null,null,null,null,null,"Charge To Address",null,null,"Ship To Address","Customer No",null,null,null,null,null,null,null,null,null,null,null,null,null,null,null,null,null,null,null,null,null,null,null,null,"FAX To ","800-624-7110",null,null,null,null,null,null,null,null,null,null,null,null,null,null,null,null,null,null,null,null,null,null,null,null,null,null,null,null,null,null,null,null,null,null,null,null,null,null,null,null,null,null,null,"RecordType",null,"PrimarySeq","Sec Seq","PrimaryDesc","SecondaryDesc",null,null,null,null,null,null,null,null,null,null,null,null,null,null,null,null,null,null,null,null,null,null,"PrimarySeq","PrimaryDesc",null,null,null,null,null,null,null,null,null,null,"Product Number","Description",null,"CriteriaCount"]
[null,null,null,null,null,null,null,null,null,null,null,null,null,null,null,null,null,null,null,null,null,null,null,null,null,null,null,null,null,null,null,null,null,null,null,null,"Phone","866-587-6747",null,null,null,null,null,null,null,null,null,"Price Index",1,null,null,null,null,null,null,null,null,null,null,null,null,null,null,null,null,null,null,null,null,null,null,null,null,null,null,null,null,null,null,null,null,3,null,1,1,"MASTERY SERIES FLY LINES","MASTERY FRESHWATER FLOATING LINES - GPX",null,null,null,null,null,null,null,null,null,null,null,null,null,null,null,null,null,null,null,null,null,null,1,"MASTERY SERIES FLY LINES",null,null,null,null,null,null,null,null,null,null,123,null,null,{"$f":"COUNTA(DS2:DS11)","v":0}]
[null,null,null,null,null,null,null,null,null,null,null,"PO Number",null,null,null,null,null,null,null,null,null,null,null,null,null,null,null,null,null,null,null,null,null,null,null,null,"Email To ","dealersupport@scientificanglers.com",null,null,null,null,null,null,null,null,null,"Real Price Col",{"$f":"INDEX(RealPriceCol,AW2)","v":1},null,null,null,null,null,null,null,null,null,null,null,null,null,null,null,null,null,null,null,null,null,null,null,null,null,null,null,null,null,null,null,null,null,null,1,2,"MASTERY SERIES FLY LINES","MASTERY FRESHWATER FLOATING LINES - XPS",null,null,null,null,null,null,null,null,null,null,null,null,null,null,null,null,null,null,null,null,null,null,2,"PROFESSIONAL SERIES FLY LINES"]
[null,null,null,null,null,null,null,null,null,null,null,null,null,null,null,null,null,null,null,null,null,null,null,null,null,null,null,null,null,null,null,null,null,null,null,null,"Mail to ","Scientific Anglers",null,null,null,null,null,null,null,null,null,null,null,null,null,null,null,null,null,null,null,null,null,null,null,null,null,null,null,null,null,null,null,null,null,null,null,null,null,null,null,null,null,null,null,null,null,1,3,"MASTERY SERIES FLY LINES","MASTERY FRESHWATER FLOATING LINES - DISTANCE",null,null,null,null,null,null,null,null,null,null,null,null,null,null,null,null,null,null,null,null,null,null,3,"LEADERS, TIPPETS AND BACKING"]
[null,null,null,null,null,null,null,"Special Instructions",null,null,null,"Order Date",null,null,null,null,null,null,null,null,null,null,null,null,null,null,null,null,null,null,null,null,null,null,null,null,null,"4100 James Savage Rd.",null,null,null,null,null,null,null,null,null,null,null,null,null,null,null,null,null,null,null,null,null,null,null,null,null,null,null,null,null,null,null,null,null,null,null,null,null,null,null,null,null,null,null,null,null,1,4,"MASTERY SERIES FLY LINES","MASTERY FRESHWATER FLOATING LINES - HEADSTART™",null,null,null,null,null,null,null,null,null,null,null,null,null,null,null,null,null,null,null,null,null,null,4,"FLY REELS, SPOOLS AND OUTFITS"]
[null,null,null,null,null,null,null,"Contact",null,null,null,null,null,null,null,null,null,null,null,null,null,null,null,null,null,null,null,null,null,null,null,null,null,null,null,null,null,"Midland, MI   48642",null,null,null,null,null,null,null,null,null,null,null,null,null,null,null,null,null,null,null,null,null,null,null,null,null,null,null,null,null,null,null,null,null,null,null,null,null,null,null,null,null,null,null,null,null,1,5,"MASTERY SERIES FLY LINES","MASTERY FRESHWATER FLOATING LINES - NYMPH TAPER",null,null,null,null,null,null,null,null,null,null,null,null,null,null,null,null,null,null,null,null,null,null,5,"FLY BOXES AND FLY FISHING ACCESSORIES"]
[null,null,null,null,null,null,null,"Phone number",null,null,null,null,null,null,null,null,null,null,null,null,null,null,null,null,null,null,null,null,null,null,null,null,null,null,null,"Ship Date",null,null,null,null,"Total",null,null,null,null,null,null,null,null,null,null,null,null,null,null,null,null,null,null,null,null,null,null,null,null,null,null,null,null,null,null,null,null,null,null,null,null,null,null,null,null,null,null,1,6,"MASTERY SERIES FLY LINES","MASTERY FRESHWATER FLOATING LINES - BASS BUG TAPER",null,null,null,null,null,null,null,null,null,null,null,null,null,null,null,null,null,null,null,null,null,null,6,"CASES, PACKS, GEAR BAGS AND BOATS"]
[null,null,null,null,null,null,null,null,null,null,null,null,null,null,null,null,null,null,null,null,null,null,null,null,null,null,null,null,null,null,null,null,null,null,null,"PO Number",null,null,null,null,"Units","Purchase",null,null,null,null,null,null,null,null,null,null,null,null,null,null,null,null,null,null,null,null,null,null,null,null,null,null,null,null,null,null,null,null,null,null,null,null,null,null,null,null,null,1,7,"MASTERY SERIES FLY LINES","MASTERY FRESHWATER FLOATING LINES - PIKE TAPER",null,null,null,null,null,null,null,null,null,null,null,null,null,null,null,null,null,null,null,null,null,null,8,"FLY TYING TOOLS AND MATERIALS"]
[null,null,null,null,null,null,null,null,null,null,null,null,null,null,null,null,null,null,null,null,null,null,null,null,null,null,null,null,null,null,null,null,null,null,null,null,{"$f":"SUM(AR12:AR884)","v":0},{"$f":"SUM(AS12:AS884)","v":0},0,0,{"$f":"SUM(AO11:AO2101)","v":0},{"$f":"SUM(AP11:AP2101)","v":0},null,"Ship Date Dollars",null,null,null,null,null,null,"Calculation prototype for detail lines",null,null,null,null,null,null,null,null,null,null,null,null,null,null,null,null,null,null,null,null,null,null,null,null,null,null,null,null,null,null,null,null,1,8,"MASTERY SERIES FLY LINES","MASTERY FRESHWATER FLOATING LINES - STEELHEAD TAPER",null,null,null,null,null,null,null,null,null,null,null,null,null,null,null,null,null,null,null,null,null,null,9,"BOOKS AND VIDEOS"]
[null,null,null,null,null,null,null,null,null,null,null,null,null,null,null,null,null,null,null,null,null,null,null,null,null,null,null,null,null,null,null,null,null,null,null,null,null,null,null,null,null,null,null,null,null,null,null,null,null,null,null,null,null,null,null,null,null,null,null,null,null,null,null,null,null,null,null,null,null,null,null,null,null,null,null,null,null,null,null,null,null,null,null,1,9,"MASTERY SERIES FLY LINES","MASTERY FRESHWATER FLOATING LINES - WINDMASTER"]
["PrimarySeq","Sec Seq","SortSeqn","RecordType","SortKey","PrimaryDesc","SecondaryDesc","Order Number","Flag","Description","Product Number","UPC Number","Pkg Qty","Price Unit","Sugg Retail","Level 1","Level 2","Level 3","Tier 4","Tier 5","Tier 6","Tier 7","Tier 8","Tier 9","Tier 10","Tier 11","Tier 12","Tier 13","Tier 14","Tier 15","Tier 16","Tier 17","Tier 18","Tier 19","Tier 20",{"$f":"INDEX(PriceLevel,'Order Form'!AW2)","v":"Level 1"},"Shipment 1","Shipment 2","Shipment 3","Shipment 4","Qty","Total Purch","Dummy","Ship Date 1","Ship Date 2","Ship Date 3","Ship Date 4","Periods with data",null,null,{"$f":"IF(OR(ISBLANK($L11),$AW$3=0),\" - \",OFFSET(AD11,0,$AW$3,1,1))","v":"Tier 16"},null,null,null,null,{"$f":"IF($AV11=0,\"\",SUM(AZ11:BC11))","v":0},{"$f":"IF($AV11>0,SUM(BG11:BJ11),\"\")","v":{"$error":"#VALUE!"}},null,{"$f":"IF(LEN($AJ11)>0,$AJ11*AZ11,\"\")","v":{"$error":"#VALUE!"}},{"$f":"IF(LEN($AJ11)>0,$AJ11*BA11,\"\")","v":{"$error":"#VALUE!"}},{"$f":"IF(LEN($AJ11)>0,$AJ11*BB11,\"\")","v":{"$error":"#VALUE!"}},{"$f":"IF(LEN($AJ11)>0,$AJ11*BC11,\"\")","v":{"$error":"#VALUE!"}},{"$f":"COUNT(AZ11:BC11)","v":0},{"$f":"IF($AV11<>0,ROW($AV$11),\"\")","v":11},null,null,null,null,null,null,null,null,null,null,null,null,null,null,null,null,null,null,null,1,10,"MASTERY SERIES FLY LINES","MASTERY FRESHWATER FLOATING LINES - SPEY/SALMON TAPER"]
[1,0,null,1,"\u0001","MASTERY SERIES FLY LINES",null,"SHARKWAVE SERIES FLY LINES - Workbook pages 6-13"]
[1,1,null,2,"\u0001","MASTERY SERIES FLY LINES","SHARKWAVE ULTIMATE TROUT TAPER - MIST GREEN/WILLOW/DK WILLOW","SHARKWAVE ULTIMATE TROUT TAPER - MIST GREEN/WILLOW/DK WILLOW"]
[1,1,1,3,"Blue Heron WF- 3-F","MASTERY SERIES FLY LINES","SHARKWAVE ULTIMATE TROUT TAPER - MIST GREEN/WILLOW/DK WILLOW",102087,"*","WF- 3-F      ",null,"840309102087","1","EACH",99.95,49.98,44.98,39.979999999999997,null,null,null,null,null,null,null,null,null,null,null,null,null,null,null,null,null,{"$f":"IF(OR(ISBLANK($L14),$AW$3=0),\" - \",OFFSET(O14,0,$AW$3,1,1))","v":49.98},null,null,null,null,{"$f":"IF($AV14=0,\"\",SUM(AK14:AN14))","v":""},{"$f":"IF($AV14>0,SUM(AR14:AU14),\"\")","v":""},null,{"$f":"IF(LEN($AJ14)>0,$AJ14*AK14,\"\")","v":0},0,0,0,{"$f":"COUNT(AK14:AN14)","v":0},{"$f":"IF($AV14<>0,ROW($AV$11),\"\")","v":""}]
[1,1,1,3,"Blue Heron WF- 4-F","MASTERY SERIES FLY LINES","SHARKWAVE ULTIMATE TROUT TAPER - MIST GREEN/WILLOW/DK WILLOW",102094,"*","WF- 4-F      ",null,"840309102094","1","EACH",99.95,49.98,44.98,39.979999999999997,null,null,null,null,null,null,null,null,null,null,null,null,null,null,null,null,null,49.98,null,null,null,null,"","",null,0,0,0,0,0,""]
[1,1,1,3,"Blue Heron WF- 5-F","MASTERY SERIES FLY LINES","SHARKWAVE ULTIMATE TROUT TAPER - MIST GREEN/WILLOW/DK WILLOW",102100,"*","WF- 5-F      ",null,"840309102100","1","EACH",99.95,49.98,44.98,39.979999999999997,null,null,null,null,null,null,null,null,null,null,null,null,null,null,null,null,null,49.98,null,null,null,null,"","",null,0,0,0,0,0,""]
[1,1,1,3,"Blue Heron WF- 6-F","MASTERY SERIES FLY LINES","SHARKWAVE ULTIMATE TROUT TAPER - MIST GREEN/WILLOW/DK WILLOW",102117,"*","WF -6-F      ",null,"840309102117","1","EACH",99.95,49.98,44.98,39.979999999999997,null,null,null,null,null,null,null,null,null,null,null,null,null,null,null,null,null,49.98,null,null,null,null,"","",null,0,0,0,0,0,""]
[1,1,1,3,"Blue Heron WF- 7-F","MASTERY SERIES FLY LINES","SHARKWAVE ULTIMATE TROUT TAPER - MIST GREEN/WILLOW/DK WILLOW",102124,"*","WF- 7-F      ",null,"840309102124","1","EACH",99.95,49.98,44.98,39.979999999999997,null,null,null,null,null,null,null,null,null,null,null,null,null,null,null,null,null,49.98,null,null,null,null,"","",null,0,0,0,0,0,""]
[1,1,1,3,"Blue Heron WF- 8-F","MASTERY SERIES FLY LINES","SHARKWAVE ULTIMATE TROUT TAPER - MIST GREEN/WILLOW/DK WILLOW",119368,"*","WF- 8-F      ",null,"840309119368","1","EACH",99.95,49.98,44.98,39.979999999999997,null,null,null,null,null,null,null,null,null,null,null,null,null,null,null,null,null,49.98,null,null,null,null,"","",null,0,0,0,0,0,""]
[1,2,null,2,"\u0001","MASTERY SERIES FLY LINES","SHARKWAVE ULTIMATE TROUT TAPER - IVORY/OPTIC GREEN/WILLOW","SHARKWAVE ULTIMATE TROUT TAPER - IVORY/OPTIC GREEN/WILLOW"]
[1,2,1,3,"Chartruese WF- 3-F","MASTERY SERIES FLY LINES","SHARKWAVE ULTIMATE TROUT TAPER - IVORY/OPTIC GREEN/WILLOW",102032,"*","WF- 3-F      ",null,"840309102032","1","EACH",99.95,49.98,44.98,39.979999999999997,null,null,null,null,null,null,null,null,null,null,null,null,null,null,null,null,null,{"$f":"IF(OR(ISBLANK($L21),$AW$3=0),\" - \",OFFSET(O21,0,$AW$3,1,1))","v":49.98},null,null,null,null,{"$f":"IF($AV21=0,\"\",SUM(AK21:AN21))","v":""},{"$f":"IF($AV21>0,SUM(AR21:AU21),\"\")","v":""},null,{"$f":"IF(LEN($AJ21)>0,$AJ21*AK21,\"\")","v":0},0,0,0,{"$f":"COUNT(AK21:AN21)","v":0},{"$f":"IF($AV21<>0,ROW($AV$11),\"\")","v":""}]
[1,2,1,3,"Chartruese WF- 4-F","MASTERY SERIES FLY LINES","SHARKWAVE ULTIMATE TROUT TAPER - IVORY/OPTIC GREEN/WILLOW",102049,"*","WF- 4-F      ",null,"840309102049","1","EACH",99.95,49.98,44.98,39.979999999999997,null,null,null,null,null,null,null,null,null,null,null,null,null,null,null,null,null,49.98,null,null,null,null,"","",null,0,0,0,0,0,""]
[1,2,1,3,"Chartruese WF- 5-F","MASTERY SERIES FLY LINES","SHARKWAVE ULTIMATE TROUT TAPER - IVORY/OPTIC GREEN/WILLOW",102056,"*","WF- 5-F      ",null,"840309102056","1","EACH",99.95,49.98,44.98,39.979999999999997,null,null,null,null,null,null,null,null,null,null,null,null,null,null,null,null,null,49.98,null,null,null,null,"","",null,0,0,0,0,0,""]
[1,2,1,3,"Chartruese WF- 6-F","MASTERY SERIES FLY LINES","SHARKWAVE ULTIMATE TROUT TAPER - IVORY/OPTIC GREEN/WILLOW",102063,"*","WF- 6-F      ",null,"840309102063","1","EACH",99.95,49.98,44.98,39.979999999999997,null,null,null,null,null,null,null,null,null,null,null,null,null,null,null,null,null,49.98,null,null,null,null,"","",null,0,0,0,0,0,""]
[1,2,1,3,"Chartruese WF- 7-F","MASTERY SERIES FLY LINES","SHARKWAVE ULTIMATE TROUT TAPER - IVORY/OPTIC GREEN/WILLOW",102070,"*","WF- 7-F      ",null,"840309102070","1","EACH",99.95,49.98,44.98,39.979999999999997,null,null,null,null,null,null,null,null,null,null,null,null,null,null,null,null,null,49.98,null,null,null,null,{"$f":"IF($AV25=0,\"\",SUM(AK25:AN25))","v":""},{"$f":"IF($AV25>0,SUM(AR25:AU25),\"\")","v":""},null,0,0,0,0,0,""]
[1,2,1,3,"Chartruese WF- 8-F","MASTERY SERIES FLY LINES","SHARKWAVE ULTIMATE TROUT TAPER - IVORY/OPTIC GREEN/WILLOW",119375,"*","WF- 8-F      ",null,"840309119375","1","EACH",99.95,49.98,44.98,39.979999999999997,null,null,null,null,null,null,null,null,null,null,null,null,null,null,null,null,null,49.98,null,null,null,null,"","",null,0,0,0,0,0,""]
[1,4,null,2,"\u0001","MASTERY SERIES FLY LINES","SHARKWAVE GPX TAPER - BUCKSKIN/BLUE/OPTIC GREEN","SHARKWAVE GPX TAPER - BUCKSKIN/BLUE/OPTIC GREEN"]
[1,4,1,3,"Optic Green WF- 3-F","MASTERY SERIES FLY LINES","SHARKWAVE GPX TAPER - BUCKSKIN/BLUE/OPTIC GREEN",100526,"*","WF- 3-F      ",null,"840309100526","1","EACH",99.95,49.98,44.98,39.979999999999997,null,null,null,null,null,null,null,null,null,null,null,null,null,null,null,null,null,{"$f":"IF(OR(ISBLANK($L28),$AW$3=0),\" - \",OFFSET(O28,0,$AW$3,1,1))","v":49.98},null,null,null,null,{"$f":"IF($AV28=0,\"\",SUM(AK28:AN28))","v":""},{"$f":"IF($AV28>0,SUM(AR28:AU28),\"\")","v":""},null,{"$f":"IF(LEN($AJ28)>0,$AJ28*AK28,\"\")","v":0},0,0,0,{"$f":"COUNT(AK28:AN28)","v":0},{"$f":"IF($AV28<>0,ROW($AV$11),\"\")","v":""}]
[1,4,2,3,"Optic Green WF- 4-F","MASTERY SERIES FLY LINES","SHARKWAVE GPX TAPER - BUCKSKIN/BLUE/OPTIC GREEN",100533,"*","WF- 4-F      ",null,"840309100533","1","EACH",99.95,49.98,44.98,39.979999999999997,null,null,null,null,null,null,null,null,null,null,null,null,null,null,null,null,null,49.98,null,null,null,null,"","",null,0,0,0,0,0,""]
[1,4,3,3,"Optic Green WF- 5-F","MASTERY SERIES FLY LINES","SHARKWAVE GPX TAPER - BUCKSKIN/BLUE/OPTIC GREEN",100540,"*","WF- 5-F      ",null,"840309100540","1","EACH",99.95,49.98,44.98,39.979999999999997,null,null,null,null,null,null,null,null,null,null,null,null,null,null,null,null,null,49.98,null,null,null,null,"","",null,0,0,0,0,0,""]
[1,4,4,3,"Optic Green WF- 6-F","MASTERY SERIES FLY LINES","SHARKWAVE GPX TAPER - BUCKSKIN/BLUE/OPTIC GREEN",100557,"*","WF- 6-F      ",null,"840309100557","1","EACH",99.95,49.98,44.98,39.979999999999997,null,null,null,null,null,null,null,null,null,null,null,null,null,null,null,null,null,49.98,null,null,null,null,"","",null,0,0,0,0,0,""]
[1,4,5,3,"Optic Green WF- 7-F","MASTERY SERIES FLY LINES","SHARKWAVE GPX TAPER - BUCKSKIN/BLUE/OPTIC GREEN",100564,"*","WF- 7-F      ",null,"840309100564","1","EACH",99.95,49.98,44.98,39.979999999999997,null,null,null,null,null,null,null,null,null,null,null,null,null,null,null,null,null,49.98,null,null,null,null,"","",null,0,0,0,0,0,""]
[1,4,6,3,"Optic Green WF- 8-F","MASTERY SERIES FLY LINES","SHARKWAVE GPX TAPER - BUCKSKIN/BLUE/OPTIC GREEN",100571,"*","WF- 8-F      ",null,"840309100571","1","EACH",99.95,49.98,44.98,39.979999999999997,null,null,null,null,null,null,null,null,null,null,null,null,null,null,null,null,null,49.98,null,null,null,null,"","",null,0,0,0,0,0,""]
[1,4,7,3,"Optic Green WF- 9-F","MASTERY SERIES FLY LINES","SHARKWAVE GPX TAPER - BUCKSKIN/BLUE/OPTIC GREEN",100588,"*","WF- 9-F      ",null,"840309100588","1","EACH",99.95,49.98,44.98,39.979999999999997,null,null,null,null,null,null,null,null,null,null,null,null,null,null,null,null,null,49.98,null,null,null,null,"","",null,0,0,0,0,0,""]
[1,5,null,2,"\u0001","MASTERY SERIES FLY LINES","SHARKWAVE GPX TAPER - CHARTRUESE/DK WILLOW/WILLOW","SHARKWAVE GPX TAPER - CHARTRUESE/DK WILLOW/WILLOW"]
[1,5,1,3,"Willow WF- 3-F","MASTERY SERIES FLY LINES","SHARKWAVE GPX TAPER - CHARTRUESE/DK WILLOW/WILLOW",100595,"*","WF- 3-F      ",null,"840309100595","1","EACH",99.95,49.98,44.98,39.979999999999997,null,null,null,null,null,null,null,null,null,null,null,null,null,null,null,null,null,{"$f":"IF(OR(ISBLANK($L36),$AW$3=0),\" - \",OFFSET(O36,0,$AW$3,1,1))","v":49.98},null,null,null,null,{"$f":"IF($AV36=0,\"\",SUM(AK36:AN36))","v":""},{"$f":"IF($AV36>0,SUM(AR36:AU36),\"\")","v":""},null,{"$f":"IF(LEN($AJ36)>0,$AJ36*AK36,\"\")","v":0},0,0,0,{"$f":"COUNT(AK36:AN36)","v":0},{"$f":"IF($AV36<>0,ROW($AV$11),\"\")","v":""}]
[1,5,2,3,"Willow WF- 4-F","MASTERY SERIES FLY LINES","SHARKWAVE GPX TAPER - CHARTRUESE/DK WILLOW/WILLOW",100601,"*","WF- 4-F      ",null,"840309100601","1","EACH",99.95,49.98,44.98,39.979999999999997,null,null,null,null,null,null,null,null,null,null,null,null,null,null,null,null,null,49.98,null,null,null,null,"","",null,0,0,0,0,0,""]
[1,5,3,3,"Willow WF- 5-F","MASTERY SERIES FLY LINES","SHARKWAVE GPX TAPER - CHARTRUESE/DK WILLOW/WILLOW",100618,"*","WF- 5-F      ",null,"840309100618","1","EACH",99.95,49.98,44.98,39.979999999999997,null,null,null,null,null,null,null,null,null,null,null,null,null,null,null,null,null,49.98,null,null,null,null,"","",null,0,0,0,0,0,""]
[1,5,4,3,"Willow WF- 6-F","MASTERY SERIES FLY LINES","SHARKWAVE GPX TAPER - CHARTRUESE/DK WILLOW/WILLOW",100625,"*","WF- 6-F      ",null,"840309100625","1","EACH",99.95,49.98,44.98,39.979999999999997,null,null,null,null,null,null,null,null,null,null,null,null,null,null,null,null,null,49.98,null,null,null,null,"","",null,0,0,0,0,0,""]
[1,5,5,3,"Willow WF- 7-F","MASTERY SERIES FLY LINES","SHARKWAVE GPX TAPER - CHARTRUESE/DK WILLOW/WILLOW",100632,"*","WF- 7-F      ",null,"840309100632","1","EACH",99.95,49.98,44.98,39.979999999999997,null,null,null,null,null,null,null,null,null,null,null,null,null,null,null,null,null,49.98,null,null,null,null,"","",null,0,0,0,0,0,""]
[1,5,6,3,"Willow WF- 8-F","MASTERY SERIES FLY LINES","SHARKWAVE GPX TAPER - CHARTRUESE/DK WILLOW/WILLOW",100649,"*","WF- 8-F      ",null,"840309100649","1","EACH",99.95,49.98,44.98,39.979999999999997,null,null,null,null,null,null,null,null,null,null,null,null,null,null,null,null,null,49.98,null,null,null,null,"","",null,0,0,0,0,0,""]
[1,5,7,3,"Willow WF- 9-F","MASTERY SERIES FLY LINES","SHARKWAVE GPX TAPER - CHARTRUESE/DK WILLOW/WILLOW",100656,"*","WF- 9-F      ",null,"840309100656","1","EACH",99.95,49.98,44.98,39.979999999999997,null,null,null,null,null,null,null,null,null,null,null,null,null,null,null,null,null,49.98,null,null,null,null,"","",null,0,0,0,0,0,""]
[1,6,null,2,"\u0001","MASTERY SERIES FLY LINES","SHARKWAVE ANADRO TAPER - IVORY / GREEN / YELLOW","SHARKWAVE ANADRO TAPER - IVORY / GREEN / YELLOW    *NEW*"]
[1,6,3,3,"Willow WF- 5-F","MASTERY SERIES FLY LINES","SHARKWAVE ANADRO TAPER - IVORY / GREEN / YELLOW",120302,"*","WF- 5-F      ",null,840309120302,"1","EACH",99.95,49.98,44.98,39.979999999999997,null,null,null,null,null,null,null,null,null,null,null,null,null,null,null,null,null,{"$f":"IF(OR(ISBLANK($L44),$AW$3=0),\" - \",OFFSET(O44,0,$AW$3,1,1))","v":49.98},null,null,null,null,{"$f":"IF($AV44=0,\"\",SUM(AK44:AN44))","v":""},{"$f":"IF($AV44>0,SUM(AR44:AU44),\"\")","v":""},null,{"$f":"IF(LEN($AJ44)>0,$AJ44*AK44,\"\")","v":0},{"$f":"IF(LEN($AJ44)>0,$AJ44*AL44,\"\")","v":0},{"$f":"IF(LEN($AJ44)>0,$AJ44*AM44,\"\")","v":0},{"$f":"IF(LEN($AJ44)>0,$AJ44*AN44,\"\")","v":0},{"$f":"COUNT(AK44:AN44)","v":0},""]
[1,6,4,3,"Willow WF- 6-F","MASTERY SERIES FLY LINES","SHARKWAVE ANADRO TAPER - IVORY / GREEN / YELLOW",120319,"*","WF- 6-F      ",null,840309120319,"1","EACH",99.95,49.98,44.98,39.979999999999997,null,null,null,null,null,null,null,null,null,null,null,null,null,null,null,null,null,49.98,null,null,null,null,"","",null,0,0,0,0,0,""]
[1,6,5,3,"Willow WF- 7-F","MASTERY SERIES FLY LINES","SHARKWAVE ANADRO TAPER - IVORY / GREEN / YELLOW",120326,"*","WF- 7-F      ",null,840309120326,"1","EACH",99.95,49.98,44.98,39.979999999999997,null,null,null,null,null,null,null,null,null,null,null,null,null,null,null,null,null,49.98,null,null,null,null,"","",null,0,0,0,0,0,""]
[1,6,6,3,"Willow WF- 8-F","MASTERY SERIES FLY LINES","SHARKWAVE ANADRO TAPER - IVORY / GREEN / YELLOW",120333,"*","WF- 8-F      ",null,840309120333,"1","EACH",99.95,49.98,44.98,39.979999999999997,null,null,null,null,null,null,null,null,null,null,null,null,null,null,null,null,null,49.98,null,null,null,null,"","",null,0,0,0,0,0,""]
[1,6,7,3,"Willow WF- 9-F","MASTERY SERIES FLY LINES","SHARKWAVE ANADRO TAPER - IVORY / GREEN / YELLOW",120340,"*","WF- 9-F      ",null,840309120340,"1","EACH",99.95,49.98,44.98,39.979999999999997,null,null,null,null,null,null,null,null,null,null,null,null,null,null,null,null,null,49.98,null,null,null,null,"","",null,0,0,0,0,0,""]
[1,7,null,2,"\u0001","MASTERY SERIES FLY LINES","SHARKWAVE SALTWATER TAPER - YELLOW/TURTLEGRASS/HORIZON","SHARKWAVE SALTWATER TAPER - YELLOW/TURTLEGRASS/HORIZON"]
[1,7,1,3,"Willow/Dk Wlw WF-3-F","MASTERY SERIES FLY LINES","SHARKWAVE SALTWATER TAPER - YELLOW/TURTLEGRASS/HORIZON",102131,"*","WF- 6-F  WITH LOOP      ",null,"840309102131","1","EACH",99.95,49.98,44.98,39.979999999999997,null,null,null,null,null,null,null,null,null,null,null,null,null,null,null,null,null,{"$f":"IF(OR(ISBLANK($L50),$AW$3=0),\" - \",OFFSET(O50,0,$AW$3,1,1))","v":49.98},null,null,null,null,{"$f":"IF($AV50=0,\"\",SUM(AK50:AN50))","v":""},{"$f":"IF($AV50>0,SUM(AR50:AU50),\"\")","v":""},null,{"$f":"IF(LEN($AJ50)>0,$AJ50*AK50,\"\")","v":0},0,0,0,{"$f":"COUNT(AK50:AN50)","v":0},{"$f":"IF($AV50<>0,ROW($AV$11),\"\")","v":""}]
[1,7,2,3,"Willow WF-4-F","MASTERY SERIES FLY LINES","SHARKWAVE SALTWATER TAPER - YELLOW/TURTLEGRASS/HORIZON",102148,"*","WF- 7-F  WITH LOOP      ",null,"840309102148","1","EACH",99.95,49.98,44.98,39.979999999999997,null,null,null,null,null,null,null,null,null,null,null,null,null,null,null,null,null,49.98,null,null,null,null,"","",null,0,0,0,0,0,""]
[1,7,3,3,"Willow WF-5-F","MASTERY SERIES FLY LINES","SHARKWAVE SALTWATER TAPER - YELLOW/TURTLEGRASS/HORIZON",102155,"*","WF- 8-F  WITH LOOP      ",null,"840309102155","1","EACH",99.95,49.98,44.98,39.979999999999997,null,null,null,null,null,null,null,null,null,null,null,null,null,null,null,null,null,49.98,null,null,null,null,"","",null,0,0,0,0,0,""]
[1,7,4,3,"Willow WF-6-F","MASTERY SERIES FLY LINES","SHARKWAVE SALTWATER TAPER - YELLOW/TURTLEGRASS/HORIZON",102162,"*","WF- 9-F  WITH LOOP      ",null,"840309102162","1","EACH",99.95,49.98,44.98,39.979999999999997,null,null,null,null,null,null,null,null,null,null,null,null,null,null,null,null,null,49.98,null,null,null,null,"","",null,0,0,0,0,0,""]
[1,7,5,3,"Willow WF-7-F","MASTERY SERIES FLY LINES","SHARKWAVE SALTWATER TAPER - YELLOW/TURTLEGRASS/HORIZON",102179,"*","WF-10-F WITH LOOP   ",null,"840309102179","1","EACH",99.95,49.98,44.98,39.979999999999997,null,null,null,null,null,null,null,null,null,null,null,null,null,null,null,null,null,49.98,null,null,null,null,"","",null,0,0,0,0,0,""]
[1,7,6,3,"Willow WF-8-F","MASTERY SERIES FLY LINES","SHARKWAVE SALTWATER TAPER - YELLOW/TURTLEGRASS/HORIZON",102186,"*","WF-11-F WITH LOOP         ",null,"840309102186","1","EACH",99.95,49.98,44.98,39.979999999999997,null,null,null,null,null,null,null,null,null,null,null,null,null,null,null,null,null,49.98,null,null,null,null,"","",null,0,0,0,0,0,""]
[1,7,7,3,"Willow WF-9-F","MASTERY SERIES FLY LINES","SHARKWAVE SALTWATER TAPER - YELLOW/TURTLEGRASS/HORIZON",102193,"*","WF-12-F WITH LOOP         ",null,"840309102193","1","EACH",99.95,49.98,44.98,39.979999999999997,null,null,null,null,null,null,null,null,null,null,null,null,null,null,null,null,null,49.98,null,null,null,null,"","",null,0,0,0,0,0,""]
[1,9,null,2,"\u0001","MASTERY SERIES FLY LINES","  SHARKWAVE TITAN SALTWATER WITH LOOP -LT YELLOW/MIST GREEN/SKY BLUE ","SHARKWAVE TITAN SALTWATER WITH LOOP -LT YELLOW/MIST GREEN/SKY BLUE "]
[1,9,1,3,"Optic Green WF-3-F","MASTERY SERIES FLY LINES","  SHARKWAVE TITAN SALTWATER WITH LOOP -LT YELLOW/MIST GREEN/SKY BLUE ",119788,"*","WF- 6-F     ",null,"840309119788","1","EACH",99.95,49.98,44.98,39.979999999999997,null,null,null,null,null,null,null,null,null,null,null,null,null,null,null,null,null,{"$f":"IF(OR(ISBLANK($L58),$AW$3=0),\" - \",OFFSET(O58,0,$AW$3,1,1))","v":49.98},null,null,null,null,{"$f":"IF($AV58=0,\"\",SUM(AK58:AN58))","v":""},{"$f":"IF($AV58>0,SUM(AR58:AU58),\"\")","v":""},null,{"$f":"IF(LEN($AJ58)>0,$AJ58*AK58,\"\")","v":0},0,0,0,{"$f":"COUNT(AK58:AN58)","v":0},{"$f":"IF($AV58<>0,ROW($AV$11),\"\")","v":""}]
[1,9,2,3,"Optic Green WF-4-F","MASTERY SERIES FLY LINES","  SHARKWAVE TITAN SALTWATER WITH LOOP -LT YELLOW/MIST GREEN/SKY BLUE ",119795,"*","WF- 7-F     ",null,"840309119795","1","EACH",99.95,49.98,44.98,39.979999999999997,null,null,null,null,null,null,null,null,null,null,null,null,null,null,null,null,null,49.98,null,null,null,null,"","",null,0,0,0,0,0,""]
[1,9,3,3,"Optic Green WF-5-F","MASTERY SERIES FLY LINES","  SHARKWAVE TITAN SALTWATER WITH LOOP -LT YELLOW/MIST GREEN/SKY BLUE ",119733,"*","WF- 8-F      ",null,"840309119733","1","EACH",99.95,49.98,44.98,39.979999999999997,null,null,null,null,null,null,null,null,null,null,null,null,null,null,null,null,null,49.98,null,null,null,null,"","",null,0,0,0,0,0,""]
[1,9,4,3,"Optic Green WF-6-F","MASTERY SERIES FLY LINES","  SHARKWAVE TITAN SALTWATER WITH LOOP -LT YELLOW/MIST GREEN/SKY BLUE ",119740,"*","WF- 9-F      ",null,"840309119740","1","EACH",99.95,49.98,44.98,39.979999999999997,null,null,null,null,null,null,null,null,null,null,null,null,null,null,null,null,null,49.98,null,null,null,null,"","",null,0,0,0,0,0,""]
[1,9,5,3,"Optic Green WF-7-F","MASTERY SERIES FLY LINES","  SHARKWAVE TITAN SALTWATER WITH LOOP -LT YELLOW/MIST GREEN/SKY BLUE ",119757,"*","WF-10-F     ",null,"840309119757","1","EACH",99.95,49.98,44.98,39.979999999999997,null,null,null,null,null,null,null,null,null,null,null,null,null,null,null,null,null,49.98,null,null,null,null,"","",null,0,0,0,0,0,""]
[1,9,6,3,"Optic Green WF-8-F","MASTERY SERIES FLY LINES","  SHARKWAVE TITAN SALTWATER WITH LOOP -LT YELLOW/MIST GREEN/SKY BLUE ",119764,"*","WF-11-F  ",null,"840309119764","1","EACH",99.95,49.98,44.98,39.979999999999997,null,null,null,null,null,null,null,null,null,null,null,null,null,null,null,null,null,49.98,null,null,null,null,"","",null,0,0,0,0,0,""]
[1,9,7,3,"Optic Green WF-9-F","MASTERY SERIES FLY LINES","  SHARKWAVE TITAN SALTWATER WITH LOOP -LT YELLOW/MIST GREEN/SKY BLUE ",119771,"*","WF-12-F   ",null,"840309119771","1","EACH",99.95,49.98,44.98,39.979999999999997,null,null,null,null,null,null,null,null,null,null,null,null,null,null,null,null,null,49.98,null,null,null,null,"","",null,0,0,0,0,0,""]
[1,10,null,2,"\u0001","MASTERY SERIES FLY LINES","  SHARKWAVE SIEGE WITH LOOP - SUNRISE/HERON/LT WILLOW   ","SHARKWAVE SIEGE WITH LOOP - SUNRISE/HERON/LT WILLOW   "]
[1,10,1,3,"Willow/Dk Wilw WF- 3-F","MASTERY SERIES FLY LINES","  SHARKWAVE SIEGE WITH LOOP - SUNRISE/HERON/LT WILLOW   ",119801,"*","WF- 5-F  210 GRAIN   ",null,"840309119801","1","EACH",99.95,49.98,44.98,39.979999999999997,null,null,null,null,null,null,null,null,null,null,null,null,null,null,null,null,null,{"$f":"IF(OR(ISBLANK($L66),$AW$3=0),\" - \",OFFSET(O66,0,$AW$3,1,1))","v":49.98},null,null,null,null,{"$f":"IF($AV66=0,\"\",SUM(AK66:AN66))","v":""},{"$f":"IF($AV66>0,SUM(AR66:AU66),\"\")","v":""},null,{"$f":"IF(LEN($AJ66)>0,$AJ66*AK66,\"\")","v":0},0,0,0,{"$f":"COUNT(AK66:AN66)","v":0},{"$f":"IF($AV66<>0,ROW($AV$11),\"\")","v":""}]
[1,10,2,3,"Willow/Dk Wilw WF- 4-F","MASTERY SERIES FLY LINES","  SHARKWAVE SIEGE WITH LOOP - SUNRISE/HERON/LT WILLOW   ",119818,"*","WF- 6-F  240 GRAIN",null,"840309119818","1","EACH",99.95,49.98,44.98,39.979999999999997,null,null,null,null,null,null,null,null,null,null,null,null,null,null,null,null,null,{"$f":"IF(OR(ISBLANK($L67),$AW$3=0),\" - \",OFFSET(O67,0,$AW$3,1,1))","v":49.98},null,null,null,null,{"$f":"IF($AV67=0,\"\",SUM(AK67:AN67))","v":""},{"$f":"IF($AV67>0,SUM(AR67:AU67),\"\")","v":""},null,0,0,0,0,{"$f":"COUNT(AK67:AN67)","v":0},{"$f":"IF($AV67<>0,ROW($AV$11),\"\")","v":""}]
[1,10,3,3,"Willow/Dk Wilw WF- 5-F","MASTERY SERIES FLY LINES","  SHARKWAVE SIEGE WITH LOOP - SUNRISE/HERON/LT WILLOW   ",119825,"*","WF- 7-F  270 GRAIN  ",null,"840309119825","1","EACH",99.95,49.98,44.98,39.979999999999997,null,null,null,null,null,null,null,null,null,null,null,null,null,null,null,null,null,{"$f":"IF(OR(ISBLANK($L68),$AW$3=0),\" - \",OFFSET(O68,0,$AW$3,1,1))","v":49.98},null,null,null,null,{"$f":"IF($AV68=0,\"\",SUM(AK68:AN68))","v":""},{"$f":"IF($AV68>0,SUM(AR68:AU68),\"\")","v":""},null,0,0,0,0,{"$f":"COUNT(AK68:AN68)","v":0},{"$f":"IF($AV68<>0,ROW($AV$11),\"\")","v":""}]
[1,10,4,3,"Willow/Dk Wilw WF- 6-F","MASTERY SERIES FLY LINES","  SHARKWAVE SIEGE WITH LOOP - SUNRISE/HERON/LT WILLOW   ",119832,"*","WF- 8-F  300 GRAIN    ",null,"840309119832","1","EACH",99.95,49.98,44.98,39.979999999999997,null,null,null,null,null,null,null,null,null,null,null,null,null,null,null,null,null,{"$f":"IF(OR(ISBLANK($L69),$AW$3=0),\" - \",OFFSET(O69,0,$AW$3,1,1))","v":49.98},null,null,null,null,{"$f":"IF($AV69=0,\"\",SUM(AK69:AN69))","v":""},{"$f":"IF($AV69>0,SUM(AR69:AU69),\"\")","v":""},null,0,0,0,0,{"$f":"COUNT(AK69:AN69)","v":0},{"$f":"IF($AV69<>0,ROW($AV$11),\"\")","v":""}]
[1,0,null,1,null,"WAVELENGTH TEXTURED SERIES FLY LINES ",null,"WAVELENGTH TEXTURED SERIES FLY LINES - Workbook Pages 16-21",null,null,null,null,null,null,null,null,null,null,null,null,null,null,null,null,null,null,null,null,null,null,null,null,null,null,null,null,null,null,null,null,{"$f":"IF($AV70=0,\"\",SUM(AK70:AN70))","v":""},{"$f":"IF($AV70>0,SUM(AR70:AU70),\"\")","v":""}]
[1,11,null,2,"\u0001","MASTERY SERIES FLY LINES","WAVELENGTH MPX TAPER  - AMBER / OPTIC GREEN","WAVELENGTH MPX TAPER  - AMBER / OPTIC GREEN"]
[1,11,1,3,"Willow/Orange WF-4-F","MASTERY SERIES FLY LINES","WAVELENGTH MPX TAPER  - AMBER / OPTIC GREEN",123518,"*","WF- 3-F      ",null,840309123518,"1","EACH",84.95,42.48,38.229999999999997,33.979999999999997,null,null,null,null,null,null,null,null,null,null,null,null,null,null,null,null,null,{"$f":"IF(OR(ISBLANK($L72),$AW$3=0),\" - \",OFFSET(O72,0,$AW$3,1,1))","v":42.48},null,null,null,null,{"$f":"IF($AV72=0,\"\",SUM(AK72:AN72))","v":""},{"$f":"IF($AV72>0,SUM(AR72:AU72),\"\")","v":""},null,{"$f":"IF(LEN($AJ72)>0,$AJ72*AK72,\"\")","v":0},0,0,0,{"$f":"COUNT(AK72:AN72)","v":0},{"$f":"IF($AV72<>0,ROW($AV$11),\"\")","v":""}]
[1,11,2,3,"Willow/Orange WF-5-F","MASTERY SERIES FLY LINES","WAVELENGTH MPX TAPER  - AMBER / OPTIC GREEN",123525,"*","WF- 4-F      ",null,840309123525,"1","EACH",84.95,42.48,38.229999999999997,33.979999999999997,null,null,null,null,null,null,null,null,null,null,null,null,null,null,null,null,null,42.48,null,null,null,null,{"$f":"IF($AV73=0,\"\",SUM(AK73:AN73))","v":""},{"$f":"IF($AV73>0,SUM(AR73:AU73),\"\")","v":""},null,0,0,0,0,0,""]
[1,11,3,3,"Willow/Orange WF-6-F","MASTERY SERIES FLY LINES","WAVELENGTH MPX TAPER  - AMBER / OPTIC GREEN",123532,"*","WF- 5-F      ",null,840309123532,"1","EACH",84.95,42.48,38.229999999999997,33.979999999999997,null,null,null,null,null,null,null,null,null,null,null,null,null,null,null,null,null,42.48,null,null,null,null,{"$f":"IF($AV74=0,\"\",SUM(AK74:AN74))","v":""},{"$f":"IF($AV74>0,SUM(AR74:AU74),\"\")","v":""},null,0,0,0,0,0,""]
[1,11,4,3,"Willow/Orange WF-7-F","MASTERY SERIES FLY LINES","WAVELENGTH MPX TAPER  - AMBER / OPTIC GREEN",123549,"*","WF- 6-F      ",null,840309123549,"1","EACH",84.95,42.48,38.229999999999997,33.979999999999997,null,null,null,null,null,null,null,null,null,null,null,null,null,null,null,null,null,42.48,null,null,null,null,{"$f":"IF($AV75=0,\"\",SUM(AK75:AN75))","v":""},{"$f":"IF($AV75>0,SUM(AR75:AU75),\"\")","v":""},null,0,0,0,0,0,""]
[1,11,5,3,"Willow/Orange WF-8-F","MASTERY SERIES FLY LINES","WAVELENGTH MPX TAPER  - AMBER / OPTIC GREEN",123556,"*","WF- 7-F      ",null,840309123556,"1","EACH",84.95,42.48,38.229999999999997,33.979999999999997,null,null,null,null,null,null,null,null,null,null,null,null,null,null,null,null,null,42.48,null,null,null,null,{"$f":"IF($AV76=0,\"\",SUM(AK76:AN76))","v":""},{"$f":"IF($AV76>0,SUM(AR76:AU76),\"\")","v":""},null,0,0,0,0,0,""]
[1,11,6,3,"\u0001","MASTERY SERIES FLY LINES","WAVELENGTH MPX TAPER  - AMBER / OPTIC GREEN",123563,"*","WF- 8-F      ",null,840309123563,"1","EACH",84.95,42.48,38.229999999999997,33.979999999999997,null,null,null,null,null,null,null,null,null,null,null,null,null,null,null,null,null,42.48,null,null,null,null,{"$f":"IF($AV77=0,\"\",SUM(AK77:AN77))","v":""},{"$f":"IF($AV77>0,SUM(AR77:AU77),\"\")","v":""},null,0,0,0,0,0,""]
[1,11,7,3,"Mist Green WF-4-F","MASTERY SERIES FLY LINES","WAVELENGTH MPX TAPER  - AMBER / OPTIC GREEN",123570,"*","WF- 9-F      ",null,840309123570,"1","EACH",84.95,42.48,38.229999999999997,33.979999999999997,null,null,null,null,null,null,null,null,null,null,null,null,null,null,null,null,null,42.48,null,null,null,null,"","",null,0,0,0,0,{"$f":"COUNT(AK78:AN78)","v":0},{"$f":"IF($AV78<>0,ROW($AV$11),\"\")","v":""}]
[1,13,null,2,"Mist Green/Org WF- 7-F","MASTERY SERIES FLY LINES","WAVELENGTH TROUT TAPER - WILLOW / DK WILLOW","WAVELENGTH TROUT TAPER - WILLOW / DK WILLOW",null,null,null,null,null,null,null,null,null,null,null,null,null,null,null,null,null,null,null,null,null,null,null,null,null,null,null,null,null,null,null,null,"",""]
[1,13,3,3,"Mist Green/Org WF- 8-F","MASTERY SERIES FLY LINES","WAVELENGTH TROUT TAPER - WILLOW / DK WILLOW",112383,"*","WF- 3-F      ",null,840309112383,"1","EACH",84.95,42.48,38.229999999999997,33.979999999999997,null,null,null,null,null,null,null,null,null,null,null,null,null,null,null,null,null,{"$f":"IF(OR(ISBLANK($L80),$AW$3=0),\" - \",OFFSET(O80,0,$AW$3,1,1))","v":42.48},null,null,null,null,"","",null,{"$f":"IF(LEN($AJ80)>0,$AJ80*AK80,\"\")","v":0},0,0,0,{"$f":"COUNT(AK80:AN80)","v":0},{"$f":"IF($AV80<>0,ROW($AV$11),\"\")","v":""}]
[1,13,4,3,"Mist Green/Org WF- 9-F","MASTERY SERIES FLY LINES","WAVELENGTH TROUT TAPER - WILLOW / DK WILLOW",112390,"*","WF- 4-F      ",null,840309112390,"1","EACH",84.95,42.48,38.229999999999997,33.979999999999997,null,null,null,null,null,null,null,null,null,null,null,null,null,null,null,null,null,{"$f":"IF(OR(ISBLANK($L81),$AW$3=0),\" - \",OFFSET(O81,0,$AW$3,1,1))","v":42.48},null,null,null,null,"","",null,0,0,0,0,{"$f":"COUNT(AK81:AN81)","v":0},{"$f":"IF($AV81<>0,ROW($AV$11),\"\")","v":""}]
[1,13,5,3,"Mist Green/Org WF-10-F","MASTERY SERIES FLY LINES","WAVELENGTH TROUT TAPER - WILLOW / DK WILLOW",112406,"*","WF- 5-F      ",null,840309112406,"1","EACH",84.95,42.48,38.229999999999997,33.979999999999997,null,null,null,null,null,null,null,null,null,null,null,null,null,null,null,null,null,{"$f":"IF(OR(ISBLANK($L82),$AW$3=0),\" - \",OFFSET(O82,0,$AW$3,1,1))","v":42.48},null,null,null,null,"","",null,0,0,0,0,{"$f":"COUNT(AK82:AN82)","v":0},{"$f":"IF($AV82<>0,ROW($AV$11),\"\")","v":""}]
[1,13,6,3,"\u0001","MASTERY SERIES FLY LINES","WAVELENGTH TROUT TAPER - WILLOW / DK WILLOW",112413,"*","WF- 6-F      ",null,840309112413,"1","EACH",84.95,42.48,38.229999999999997,33.979999999999997,null,null,null,null,null,null,null,null,null,null,null,null,null,null,null,null,null,{"$f":"IF(OR(ISBLANK($L83),$AW$3=0),\" - \",OFFSET(O83,0,$AW$3,1,1))","v":42.48},null,null,null,null,"","",null,0,0,0,0,{"$f":"COUNT(AK83:AN83)","v":0},{"$f":"IF($AV83<>0,ROW($AV$11),\"\")","v":""}]
[1,14,null,2,"Sunset/Willow WF- 6-F","MASTERY SERIES FLY LINES","WAVELENGTH  NYMPH TAPER - WILLOW / ORANGE TIP","WAVELENGTH  NYMPH TAPER - WILLOW / ORANGE TIP",null,null,null,null,null,null,null,null,null,null,null,null,null,null,null,null,null,null,null,null,null,null,null,null,null,null,null,null,null,null,null,null,"",""]
[1,14,1,3,"Sunset/Willow WF- 7-F","MASTERY SERIES FLY LINES","WAVELENGTH  NYMPH TAPER - WILLOW / ORANGE TIP",112420,"*","WF- 4-F      ",null,840309112420,"1","EACH",84.95,42.48,38.229999999999997,33.979999999999997,null,null,null,null,null,null,null,null,null,null,null,null,null,null,null,null,null,{"$f":"IF(OR(ISBLANK($L85),$AW$3=0),\" - \",OFFSET(O85,0,$AW$3,1,1))","v":42.48},null,null,null,null,"","",null,{"$f":"IF(LEN($AJ85)>0,$AJ85*AK85,\"\")","v":0},0,0,0,{"$f":"COUNT(AK85:AN85)","v":0},{"$f":"IF($AV85<>0,ROW($AV$11),\"\")","v":""}]
[1,14,2,3,"Sunset/Willow WF- 8-F","MASTERY SERIES FLY LINES","WAVELENGTH  NYMPH TAPER - WILLOW / ORANGE TIP",112437,"*","WF- 5-F      ",null,840309112437,"1","EACH",84.95,42.48,38.229999999999997,33.979999999999997,null,null,null,null,null,null,null,null,null,null,null,null,null,null,null,null,null,{"$f":"IF(OR(ISBLANK($L86),$AW$3=0),\" - \",OFFSET(O86,0,$AW$3,1,1))","v":42.48},null,null,null,null,"","",null,0,0,0,0,{"$f":"COUNT(AK86:AN86)","v":0},{"$f":"IF($AV86<>0,ROW($AV$11),\"\")","v":""}]
[1,14,3,3,"Sunset/Willow WF- 9-F","MASTERY SERIES FLY LINES","WAVELENGTH  NYMPH TAPER - WILLOW / ORANGE TIP",112444,"*","WF- 6-F      ",null,840309112444,"1","EACH",84.95,42.48,38.229999999999997,33.979999999999997,null,null,null,null,null,null,null,null,null,null,null,null,null,null,null,null,null,{"$f":"IF(OR(ISBLANK($L87),$AW$3=0),\" - \",OFFSET(O87,0,$AW$3,1,1))","v":42.48},null,null,null,null,"","",null,0,0,0,0,{"$f":"COUNT(AK87:AN87)","v":0},{"$f":"IF($AV87<>0,ROW($AV$11),\"\")","v":""}]
[1,14,4,3,"Sunset/Willow WF-10-F","MASTERY SERIES FLY LINES","WAVELENGTH  NYMPH TAPER - WILLOW / ORANGE TIP",112451,"*","WF- 7-F      ",null,840309112451,"1","EACH",84.95,42.48,38.229999999999997,33.979999999999997,null,null,null,null,null,null,null,null,null,null,null,null,null,null,null,null,null,{"$f":"IF(OR(ISBLANK($L88),$AW$3=0),\" - \",OFFSET(O88,0,$AW$3,1,1))","v":42.48},null,null,null,null,"","",null,0,0,0,0,{"$f":"COUNT(AK88:AN88)","v":0},{"$f":"IF($AV88<>0,ROW($AV$11),\"\")","v":""}]
[1,14,5,3,"\u0001","MASTERY SERIES FLY LINES","WAVELENGTH  NYMPH TAPER - WILLOW / ORANGE TIP",112468,"*","WF- 8-F      ",null,840309112468,"1","EACH",84.95,42.48,38.229999999999997,33.979999999999997,null,null,null,null,null,null,null,null,null,null,null,null,null,null,null,null,null,{"$f":"IF(OR(ISBLANK($L89),$AW$3=0),\" - \",OFFSET(O89,0,$AW$3,1,1))","v":42.48},null,null,null,null,"","",null,0,0,0,0,{"$f":"COUNT(AK89:AN89)","v":0},{"$f":"IF($AV89<>0,ROW($AV$11),\"\")","v":""}]
[1,16,null,2,"Mist Green WF- 4-F DTT","MASTERY SERIES FLY LINES","WAVELENGTH TITAN TAPER - MIST GREEN / PALE YELLOW","WAVELENGTH TITAN TAPER - MIST GREEN / PALE YELLOW",null,null,null,null,null,null,null,null,null,null,null,null,null,null,null,null,null,null,null,null,null,null,null,null,null,null,null,null,null,null,null,null,"",""]
[1,16,1,3,"Mist Green WF- 5-F DTT","MASTERY SERIES FLY LINES","WAVELENGTH TITAN TAPER - MIST GREEN / PALE YELLOW",112475,"*","WF- 6-F ",null,840309112475,"1","EACH",84.95,42.48,38.229999999999997,33.979999999999997,null,null,null,null,null,null,null,null,null,null,null,null,null,null,null,null,null,{"$f":"IF(OR(ISBLANK($L91),$AW$3=0),\" - \",OFFSET(O91,0,$AW$3,1,1))","v":42.48},null,null,null,null,"","",null,{"$f":"IF(LEN($AJ91)>0,$AJ91*AK91,\"\")","v":0},0,0,0,{"$f":"COUNT(AK91:AN91)","v":0},{"$f":"IF($AV91<>0,ROW($AV$11),\"\")","v":""}]
[1,16,2,3,"Mist Green WF- 6-F DTT","MASTERY SERIES FLY LINES","WAVELENGTH TITAN TAPER - MIST GREEN / PALE YELLOW",112482,"*","WF- 7-F",null,840309112482,"1","EACH",84.95,42.48,38.229999999999997,33.979999999999997,null,null,null,null,null,null,null,null,null,null,null,null,null,null,null,null,null,42.48,null,null,null,null,"","",null,0,0,0,0,0,""]
[1,16,3,3,"\u0001","MASTERY SERIES FLY LINES","WAVELENGTH TITAN TAPER - MIST GREEN / PALE YELLOW",112499,"*","WF- 8-F",null,840309112499,"1","EACH",84.95,42.48,38.229999999999997,33.979999999999997,null,null,null,null,null,null,null,null,null,null,null,null,null,null,null,null,null,42.48,null,null,null,null,"","",null,0,0,0,0,0,""]
[1,16,4,3,"Dark Willow DT- 2-F DTT","MASTERY SERIES FLY LINES","WAVELENGTH TITAN TAPER - MIST GREEN / PALE YELLOW",112505,"*","WF- 9-F",null,840309112505,"1","EACH",84.95,42.48,38.229999999999997,33.979999999999997,null,null,null,null,null,null,null,null,null,null,null,null,null,null,null,null,null,42.48,null,null,null,null,"","",null,0,0,0,0,0,""]
[1,16,5,3,"Dark Willow DT- 3-F DTT","MASTERY SERIES FLY LINES","WAVELENGTH TITAN TAPER - MIST GREEN / PALE YELLOW",112512,"*","WF-10-F",null,840309112512,"1","EACH",84.95,42.48,38.229999999999997,33.979999999999997,null,null,null,null,null,null,null,null,null,null,null,null,null,null,null,null,null,42.48,null,null,null,null,"","",null,0,0,0,0,0,""]
[1,16,6,3,"Dark Willow DT- 3-F DTT","MASTERY SERIES FLY LINES","WAVELENGTH TITAN TAPER - MIST GREEN / PALE YELLOW",112529,"*","WF-11-F",null,840309112529,"1","EACH",84.95,42.48,38.229999999999997,33.979999999999997,null,null,null,null,null,null,null,null,null,null,null,null,null,null,null,null,null,42.48,null,null,null,null,{"$f":"IF($AV96=0,\"\",SUM(AK96:AN96))","v":""},{"$f":"IF($AV96>0,SUM(AR96:AU96),\"\")","v":""},null,{"$f":"IF(LEN($AJ96)>0,$AJ96*AK96,\"\")","v":0},{"$f":"IF(LEN($AJ96)>0,$AJ96*AL96,\"\")","v":0},{"$f":"IF(LEN($AJ96)>0,$AJ96*AM96,\"\")","v":0},{"$f":"IF(LEN($AJ96)>0,$AJ96*AN96,\"\")","v":0},0,""]
[1,19,null,2,"Willow WF- 4-F","MASTERY SERIES FLY LINES","WAVELENGTH GRAND SLAM TAPER- PALE YELLOW / HORIZON   *NEW*","WAVELENGTH GRAND SLAM TAPER- PALE YELLOW / HORIZON   *NEW*",null,null,null,null,null,null,null,null,null,null,null,null,null,null,null,null,null,null,null,null,null,null,null,null,null,null,null,null,null,null,null,null,"",""]
[1,19,1,3,"Willow WF- 5-F","MASTERY SERIES FLY LINES","WAVELENGTH GRAND SLAM TAPER- PALE YELLOW / HORIZON   *NEW*",112536,null,"WF- 6-F",null,840309112536,1,"EACH",84.95,44.975000000000001,40.477499999999999,35.980000000000004,null,null,null,null,null,null,null,null,null,null,null,null,null,null,null,null,null,{"$f":"IF(OR(ISBLANK($L98),$AW$3=0),\" - \",OFFSET(O98,0,$AW$3,1,1))","v":44.975000000000001},null,null,null,null,"","",null,{"$f":"IF(LEN($AJ98)>0,$AJ98*AK98,\"\")","v":0},0,0,0,{"$f":"COUNT(AK98:AN98)","v":0},{"$f":"IF($AV98<>0,ROW($AV$11),\"\")","v":""}]
[1,19,2,3,"Willow WF- 6-F","MASTERY SERIES FLY LINES","WAVELENGTH GRAND SLAM TAPER- PALE YELLOW / HORIZON   *NEW*",112598,"*","WF- 7-F      ",null,840309112598,"1","EACH",84.95,44.975000000000001,40.477499999999999,35.980000000000004,null,null,null,null,null,null,null,null,null,null,null,null,null,null,null,null,null,44.975000000000001,null,null,null,null,"","",null,0,0,0,0,{"$f":"COUNT(AK99:AN99)","v":0},{"$f":"IF($AV99<>0,ROW($AV$11),\"\")","v":""}]
[1,19,3,3,"\u0001","MASTERY SERIES FLY LINES","WAVELENGTH GRAND SLAM TAPER- PALE YELLOW / HORIZON   *NEW*",112543,"*","WF- 8-F      ",null,840309112543,"1","EACH",84.95,44.975000000000001,40.477499999999999,35.980000000000004,null,null,null,null,null,null,null,null,null,null,null,null,null,null,null,null,null,44.975000000000001,null,null,null,null,"","",null,0,0,0,0,{"$f":"COUNT(AK100:AN100)","v":0},{"$f":"IF($AV100<>0,ROW($AV$11),\"\")","v":""}]
[1,19,4,3,"Optic Green WF- 2-F","MASTERY SERIES FLY LINES","WAVELENGTH GRAND SLAM TAPER- PALE YELLOW / HORIZON   *NEW*",112550,"*","WF- 9-F      ",null,840309112550,"1","EACH",84.95,44.975000000000001,40.477499999999999,35.980000000000004,null,null,null,null,null,null,null,null,null,null,null,null,null,null,null,null,null,44.975000000000001,null,null,null,null,"","",null,0,0,0,0,{"$f":"COUNT(AK101:AN101)","v":0},{"$f":"IF($AV101<>0,ROW($AV$11),\"\")","v":""}]
[1,19,5,3,"Optic Green WF- 3-F","MASTERY SERIES FLY LINES","WAVELENGTH GRAND SLAM TAPER- PALE YELLOW / HORIZON   *NEW*",112567,"*","WF-10-F      ",null,840309112567,"1","EACH",84.95,44.975000000000001,40.477499999999999,35.980000000000004,null,null,null,null,null,null,null,null,null,null,null,null,null,null,null,null,null,44.975000000000001,null,null,null,null,"","",null,0,0,0,0,0,""]
[1,19,6,3,"Optic Green WF- 4-F","MASTERY SERIES FLY LINES","WAVELENGTH GRAND SLAM TAPER- PALE YELLOW / HORIZON   *NEW*",112574,"*","WF-11-F      ",null,840309112574,"1","EACH",84.95,44.975000000000001,40.477499999999999,35.980000000000004,null,null,null,null,null,null,null,null,null,null,null,null,null,null,null,null,null,44.975000000000001,null,null,null,null,"","",null,0,0,0,0,0,""]
[1,19,7,3,"Optic Green WF- 5-F","MASTERY SERIES FLY LINES","WAVELENGTH GRAND SLAM TAPER- PALE YELLOW / HORIZON   *NEW*",112581,"*","WF-12-F      ",null,840309112581,"1","EACH",84.95,44.975000000000001,40.477499999999999,35.980000000000004,null,null,null,null,null,null,null,null,null,null,null,null,null,null,null,null,null,44.975000000000001,null,null,null,null,"","",null,0,0,0,0,0,""]
[1,21,null,2,"Mist Green WF- 7-F","MASTERY SERIES FLY LINES","WAVELENGTH TARPON TAPER -  CONCH TAN / SUNRISE  ","WAVELENGTH TARPON TAPER -  CONCH TAN / SUNRISE   *NEW*",null,null,null,null,null,null,null,null,null,null,null,null,null,null,null,null,null,null,null,null,null,null,null,null,null,null,null,null,null,null,null,null,"",""]
[1,21,1,3,"Mist Green WF- 8-F","MASTERY SERIES FLY LINES","WAVELENGTH TARPON TAPER -  CONCH TAN / SUNRISE  ",123587,"*","WF-10-F      ",null,840309123587,"1","EACH",89.95,44.975000000000001,40.477499999999999,35.980000000000004,null,null,null,null,null,null,null,null,null,null,null,null,null,null,null,null,null,{"$f":"IF(OR(ISBLANK($L106),$AW$3=0),\" - \",OFFSET(O106,0,$AW$3,1,1))","v":44.975000000000001},null,null,null,null,"","",null,{"$f":"IF(LEN($AJ106)>0,$AJ106*AK106,\"\")","v":0},0,0,0,0,""]
[1,21,2,3,"Mist Green WF- 9-F","MASTERY SERIES FLY LINES","WAVELENGTH TARPON TAPER -  CONCH TAN / SUNRISE  ",123594,"*","WF-11-F      ",null,840309123594,"1","EACH",89.95,44.975000000000001,40.477499999999999,35.980000000000004,null,null,null,null,null,null,null,null,null,null,null,null,null,null,null,null,null,{"$f":"IF(OR(ISBLANK($L107),$AW$3=0),\" - \",OFFSET(O107,0,$AW$3,1,1))","v":44.975000000000001},null,null,null,null,{"$f":"IF($AV107=0,\"\",SUM(AK107:AN107))","v":""},{"$f":"IF($AV107>0,SUM(AR107:AU107),\"\")","v":""},null,0,0,0,0,0,""]
[1,21,3,3,"\u0001","MASTERY SERIES FLY LINES","WAVELENGTH TARPON TAPER -  CONCH TAN / SUNRISE  ",123600,"*","WF-12-F      ",null,840309123600,"1","EACH",89.95,44.975000000000001,40.477499999999999,35.980000000000004,null,null,null,null,null,null,null,null,null,null,null,null,null,null,null,null,null,{"$f":"IF(OR(ISBLANK($L108),$AW$3=0),\" - \",OFFSET(O108,0,$AW$3,1,1))","v":44.975000000000001},null,null,null,null,"","",null,0,0,0,0,0,""]
[1,22,null,2,"Mist Green WF- 7-F","MASTERY SERIES FLY LINES","WAVELENGTH TARPON TAPER -  CONCH TAN / SUNRISE  ","WAVELENGTH TITAN BIG WATER TAPER - LIGHT BLUE / SAND (100LB. CORE)   *NEW*",null,null,null,null,null,null,null,null,null,null,null,null,null,null,null,null,null,null,null,null,null,null,null,null,null,null,null,null,null,null,null,null,{"$f":"IF($AV109=0,\"\",SUM(AK109:AN109))","v":""},""]
[1,22,1,3,"Mist Green WF- 8-F","MASTERY SERIES FLY LINES","WAVELENGTH TARPON TAPER -  CONCH TAN / SUNRISE  ",125796,"*","WF-10-F      ",null,840309125796,"1","EACH",89.95,44.975000000000001,40.477499999999999,35.980000000000004,null,null,null,null,null,null,null,null,null,null,null,null,null,null,null,null,null,{"$f":"IF(OR(ISBLANK($L110),$AW$3=0),\" - \",OFFSET(O110,0,$AW$3,1,1))","v":44.975000000000001},null,null,null,null,"","",null,{"$f":"IF(LEN($AJ110)>0,$AJ110*AK110,\"\")","v":0},{"$f":"IF(LEN($AJ110)>0,$AJ110*AL110,\"\")","v":0},{"$f":"IF(LEN($AJ110)>0,$AJ110*AM110,\"\")","v":0},{"$f":"IF(LEN($AJ110)>0,$AJ110*AN110,\"\")","v":0},{"$f":"COUNT(AK110:AN110)","v":0},""]
[1,22,2,3,"Mist Green WF- 9-F","MASTERY SERIES FLY LINES","WAVELENGTH TARPON TAPER -  CONCH TAN / SUNRISE  ",125802,"*","WF-11-F      ",null,840309125802,"1","EACH",89.95,44.975000000000001,40.477499999999999,35.980000000000004,null,null,null,null,null,null,null,null,null,null,null,null,null,null,null,null,null,{"$f":"IF(OR(ISBLANK($L111),$AW$3=0),\" - \",OFFSET(O111,0,$AW$3,1,1))","v":44.975000000000001},null,null,null,null,{"$f":"IF($AV111=0,\"\",SUM(AK111:AN111))","v":""},{"$f":"IF($AV111>0,SUM(AR111:AU111),\"\")","v":""},null,0,0,0,0,0,""]
[1,22,3,3,"\u0001","MASTERY SERIES FLY LINES","WAVELENGTH TARPON TAPER -  CONCH TAN / SUNRISE  ",125819,"*","WF-12-F      ",null,840309125819,"1","EACH",89.95,44.975000000000001,40.477499999999999,35.980000000000004,null,null,null,null,null,null,null,null,null,null,null,null,null,null,null,null,null,{"$f":"IF(OR(ISBLANK($L112),$AW$3=0),\" - \",OFFSET(O112,0,$AW$3,1,1))","v":44.975000000000001},null,null,null,null,"","",null,0,0,0,0,0,""]
[1,0,null,1,null,"MASTERY SERIES FLY LINES",null,"MASTERY SERIES FLY LINES - Workbook Pages 24-34",null,null,null,null,null,null,null,null,null,null,null,null,null,null,null,null,null,null,null,null,null,null,null,null,null,null,null,null,null,null,null,null,"",""]
[1,26,null,2,"Mist Green WF- 7-F","MASTERY SERIES FLY LINES","  TROUT - DRY TIP TECHNOLOGY WITH LOOP - DARK WILLOW","TROUT TAPER - DRY TIP TECHNOLOGY WITH LOOP - OPTIC GREEN / GREEN   *NEW*",null,null,null,null,null,null,null,null,null,null,null,null,null,null,null,null,null,null,null,null,null,null,null,null,null,null,null,null,null,null,null,null,"",""]
[1,26,1,3,"Mist Green WF- 8-F","MASTERY SERIES FLY LINES","  TROUT - DRY TIP TECHNOLOGY WITH LOOP - DARK WILLOW",102827,"*","WF -2-F      ",null,840309102827,"1","EACH",74.95,37.479999999999997,33.729999999999997,29.98,null,null,null,null,null,null,null,null,null,null,null,null,null,null,null,null,null,{"$f":"IF(OR(ISBLANK($L115),$AW$3=0),\" - \",OFFSET(O115,0,$AW$3,1,1))","v":37.479999999999997},null,null,null,null,{"$f":"IF($AV115=0,\"\",SUM(AK115:AN115))","v":""},{"$f":"IF($AV115>0,SUM(AR115:AU115),\"\")","v":""},null,{"$f":"IF(LEN($AJ115)>0,$AJ115*AK115,\"\")","v":0},{"$f":"IF(LEN($AJ115)>0,$AJ115*AL115,\"\")","v":0},{"$f":"IF(LEN($AJ115)>0,$AJ115*AM115,\"\")","v":0},{"$f":"IF(LEN($AJ115)>0,$AJ115*AN115,\"\")","v":0},{"$f":"COUNT(AK115:AN115)","v":0},{"$f":"IF($AV115<>0,ROW($AV$11),\"\")","v":""}]
[1,26,2,3,"Mist Green WF- 8-F","MASTERY SERIES FLY LINES","  TROUT - DRY TIP TECHNOLOGY WITH LOOP - DARK WILLOW",120869,"*","WF -3-F      ",null,840309120869,"1","EACH",74.95,37.479999999999997,33.729999999999997,29.98,null,null,null,null,null,null,null,null,null,null,null,null,null,null,null,null,null,37.479999999999997,null,null,null,null,"","",null,{"$f":"IF(LEN($AJ116)>0,$AJ116*AK116,\"\")","v":0},0,0,0,0,""]
[1,26,3,3,"Mist Green WF- 9-F","MASTERY SERIES FLY LINES","  TROUT - DRY TIP TECHNOLOGY WITH LOOP - DARK WILLOW",120876,"*","WF- 4-F      ",null,840309120876,"1","EACH",74.95,37.479999999999997,33.729999999999997,29.98,null,null,null,null,null,null,null,null,null,null,null,null,null,null,null,null,null,37.479999999999997,null,null,null,null,"","",null,0,0,0,0,0,""]
[1,26,4,3,"Mist Green WF-10-F","MASTERY SERIES FLY LINES","  TROUT - DRY TIP TECHNOLOGY WITH LOOP - DARK WILLOW",120883,"*","WF -5-F      ",null,840309120883,"1","EACH",74.95,37.479999999999997,33.729999999999997,29.98,null,null,null,null,null,null,null,null,null,null,null,null,null,null,null,null,null,37.479999999999997,null,null,null,null,"","",null,0,0,0,0,0,""]
[1,26,5,3,"\u0001","MASTERY SERIES FLY LINES","  TROUT - DRY TIP TECHNOLOGY WITH LOOP - DARK WILLOW",120890,"*","WF- 6-F      ",null,840309120890,"1","EACH",74.95,37.479999999999997,33.729999999999997,29.98,null,null,null,null,null,null,null,null,null,null,null,null,null,null,null,null,null,37.479999999999997,null,null,null,null,"","",null,0,0,0,0,0,""]
[1,26,6,3,"\u0001","MASTERY SERIES FLY LINES","  TROUT - DRY TIP TECHNOLOGY WITH LOOP - DARK WILLOW",120906,"*","WF- 7-F      ",null,840309120906,"1","EACH",74.95,37.479999999999997,33.729999999999997,29.98,null,null,null,null,null,null,null,null,null,null,null,null,null,null,null,null,null,37.479999999999997,null,null,null,null,{"$f":"IF($AV120=0,\"\",SUM(AK120:AN120))","v":""},{"$f":"IF($AV120>0,SUM(AR120:AU120),\"\")","v":""},null,{"$f":"IF(LEN($AJ120)>0,$AJ120*AK120,\"\")","v":0},{"$f":"IF(LEN($AJ120)>0,$AJ120*AL120,\"\")","v":0},{"$f":"IF(LEN($AJ120)>0,$AJ120*AM120,\"\")","v":0},{"$f":"IF(LEN($AJ120)>0,$AJ120*AN120,\"\")","v":0},0,""]
[1,27,null,2,"Mist Grn/DkGrn WF- 8-F/S","MASTERY SERIES FLY LINES","DOUBLE TAPER - DRY TIP TECHNOLOGY - DT - DARK WILLOW","DOUBLE TAPER - DRY TIP TECHNOLOGY - DT - DARK WILLOW",null,null,null,null,null,null,null,null,null,null,null,null,null,null,null,null,null,null,null,null,null,null,null,null,null,null,null,null,null,null,null,null,"",""]
[1,27,1,3,"Mist Grn/DkGrn WF- 9-F/S","MASTERY SERIES FLY LINES","DOUBLE TAPER - DRY TIP TECHNOLOGY - DT - DARK WILLOW",112604,"*","DT- 2-F      ",null,840309112604,"1","EACH",74.95,37.479999999999997,33.729999999999997,29.98,null,null,null,null,null,null,null,null,null,null,null,null,null,null,null,null,null,{"$f":"IF(OR(ISBLANK($L122),$AW$3=0),\" - \",OFFSET(O122,0,$AW$3,1,1))","v":37.479999999999997},null,null,null,null,"","",null,{"$f":"IF(LEN($AJ122)>0,$AJ122*AK122,\"\")","v":0},0,0,0,{"$f":"COUNT(AK122:AN122)","v":0},{"$f":"IF($AV122<>0,ROW($AV$11),\"\")","v":""}]
[1,27,2,3,"\u0001","MASTERY SERIES FLY LINES","DOUBLE TAPER - DRY TIP TECHNOLOGY - DT - DARK WILLOW",112611,"*","DT- 3-F      ",null,840309112611,"1","EACH",74.95,37.479999999999997,33.729999999999997,29.98,null,null,null,null,null,null,null,null,null,null,null,null,null,null,null,null,null,{"$f":"IF(OR(ISBLANK($L123),$AW$3=0),\" - \",OFFSET(O123,0,$AW$3,1,1))","v":37.479999999999997},null,null,null,null,"","",null,0,0,0,0,0,""]
[1,27,3,3,"Mist Grn/Gray WF- 5-F/S","MASTERY SERIES FLY LINES","DOUBLE TAPER - DRY TIP TECHNOLOGY - DT - DARK WILLOW",112628,"*","DT- 4-F      ",null,840309112628,"1","EACH",74.95,37.479999999999997,33.729999999999997,29.98,null,null,null,null,null,null,null,null,null,null,null,null,null,null,null,null,null,{"$f":"IF(OR(ISBLANK($L124),$AW$3=0),\" - \",OFFSET(O124,0,$AW$3,1,1))","v":37.479999999999997},null,null,null,null,"","",null,0,0,0,0,{"$f":"COUNT(AK124:AN124)","v":0},{"$f":"IF($AV124<>0,ROW($AV$11),\"\")","v":""}]
[1,27,4,3,"Mist Grn/Gray WF- 6-F/S","MASTERY SERIES FLY LINES","DOUBLE TAPER - DRY TIP TECHNOLOGY - DT - DARK WILLOW",112635,"*","DT -5-F      ",null,840309112635,"1","EACH",74.95,37.479999999999997,33.729999999999997,29.98,null,null,null,null,null,null,null,null,null,null,null,null,null,null,null,null,null,{"$f":"IF(OR(ISBLANK($L125),$AW$3=0),\" - \",OFFSET(O125,0,$AW$3,1,1))","v":37.479999999999997},null,null,null,null,"","",null,0,0,0,0,{"$f":"COUNT(AK125:AN125)","v":0},{"$f":"IF($AV125<>0,ROW($AV$11),\"\")","v":""}]
[1,27,5,3,"Mist Grn/Gray WF- 7-F/S","MASTERY SERIES FLY LINES","DOUBLE TAPER - DRY TIP TECHNOLOGY - DT - DARK WILLOW",112642,"*","DT- 6-F      ",null,840309112642,"1","EACH",74.95,37.479999999999997,33.729999999999997,29.98,null,null,null,null,null,null,null,null,null,null,null,null,null,null,null,null,null,{"$f":"IF(OR(ISBLANK($L126),$AW$3=0),\" - \",OFFSET(O126,0,$AW$3,1,1))","v":37.479999999999997},null,null,null,null,"","",null,0,0,0,0,{"$f":"COUNT(AK126:AN126)","v":0},{"$f":"IF($AV126<>0,ROW($AV$11),\"\")","v":""}]
[1,28,null,2,"Mist Grn/Gray WF- 8-F/S","MASTERY SERIES FLY LINES","MPX TAPER - AMBER / WILLOW  ","MPX TAPER - AMBER / WILLOW   *NEW*",null,null,null,null,null,null,null,null,null,null,null,null,null,null,null,null,null,null,null,null,null,null,null,null,null,null,null,null,null,null,null,null,"",""]
[1,28,1,3,"\u0001","MASTERY SERIES FLY LINES","MPX TAPER - AMBER / WILLOW  ",120791,"*","WF- 3-F      ",null,840309120791,"1","EACH",74.95,37.479999999999997,33.729999999999997,29.98,null,null,null,null,null,null,null,null,null,null,null,null,null,null,null,null,null,{"$f":"IF(OR(ISBLANK($L128),$AW$3=0),\" - \",OFFSET(O128,0,$AW$3,1,1))","v":37.479999999999997},null,null,null,null,"","",null,0,0,0,0,{"$f":"COUNT(AK128:AN128)","v":0},{"$f":"IF($AV128<>0,ROW($AV$11),\"\")","v":""}]
[1,28,2,3,"Mist Grn/DkGry WF- 5-F/S","MASTERY SERIES FLY LINES","MPX TAPER - AMBER / WILLOW  ",120807,"*","WF- 4-F      ",null,840309120807,"1","EACH",74.95,37.479999999999997,33.729999999999997,29.98,null,null,null,null,null,null,null,null,null,null,null,null,null,null,null,null,null,37.479999999999997,null,null,null,null,"","",null,0,0,0,0,0,""]
[1,28,3,3,"Mist Grn/DkGry WF- 6-F/S","MASTERY SERIES FLY LINES","MPX TAPER - AMBER / WILLOW  ",120814,"*","WF- 5-F      ",null,840309120814,"1","EACH",74.95,37.479999999999997,33.729999999999997,29.98,null,null,null,null,null,null,null,null,null,null,null,null,null,null,null,null,null,37.479999999999997,null,null,null,null,"","",null,0,0,0,0,0,""]
[1,28,4,3,"Mist Grn/DkGry WF- 7-F/S","MASTERY SERIES FLY LINES","MPX TAPER - AMBER / WILLOW  ",120821,"*","WF- 6-F      ",null,840309120821,"1","EACH",74.95,37.479999999999997,33.729999999999997,29.98,null,null,null,null,null,null,null,null,null,null,null,null,null,null,null,null,null,37.479999999999997,null,null,null,null,"","",null,0,0,0,0,0,""]
[1,28,5,3,"Mist Grn/DkGry WF- 8-F/S","MASTERY SERIES FLY LINES","MPX TAPER - AMBER / WILLOW  ",120838,"*","WF- 7-F      ",null,840309120838,"1","EACH",74.95,37.479999999999997,33.729999999999997,29.98,null,null,null,null,null,null,null,null,null,null,null,null,null,null,null,null,null,37.479999999999997,null,null,null,null,"","",null,0,0,0,0,0,""]
[1,28,6,3,"Mist Grn/DkGry WF- 9-F/S","MASTERY SERIES FLY LINES","MPX TAPER - AMBER / WILLOW  ",120845,"*","WF- 8-F      ",null,840309120845,"1","EACH",74.95,37.479999999999997,33.729999999999997,29.98,null,null,null,null,null,null,null,null,null,null,null,null,null,null,null,null,null,37.479999999999997,null,null,null,null,"","",null,{"$f":"IF(LEN($AJ133)>0,$AJ133*AK133,\"\")","v":0},0,0,0,0,""]
[1,28,7,3,"\u0001","MASTERY SERIES FLY LINES","MPX TAPER - AMBER / WILLOW  ",120852,"*","WF- 9-F      ",null,840309120852,"1","EACH",74.95,37.479999999999997,33.729999999999997,29.98,null,null,null,null,null,null,null,null,null,null,null,null,null,null,null,null,null,37.479999999999997,null,null,null,null,"","",null,0,0,0,0,0,""]
[1,29,null,2,"Yellow/Dk Gray 200 Grain, 6-7 wt","MASTERY SERIES FLY LINES","MPX TAPER - BUCKSKIN / OPTIC GREEN   ","MPX TAPER - BUCKSKIN / OPTIC GREEN   *NEW*",null,null,null,null,null,null,null,null,null,null,null,null,null,null,null,null,null,null,null,null,null,null,null,null,null,null,null,null,null,null,null,null,"",""]
[1,29,1,3,"Green/Dk Gray 300 Grain, 8-9 wt","MASTERY SERIES FLY LINES","MPX TAPER - BUCKSKIN / OPTIC GREEN   ",120722,"*","WF- 3-F      ",null,840309120722,"1","EACH",74.95,37.479999999999997,33.729999999999997,29.98,null,null,null,null,null,null,null,null,null,null,null,null,null,null,null,null,null,{"$f":"IF(OR(ISBLANK($L136),$AW$3=0),\" - \",OFFSET(O136,0,$AW$3,1,1))","v":37.479999999999997},null,null,null,null,"","",null,{"$f":"IF(LEN($AJ136)>0,$AJ136*AK136,\"\")","v":0},0,0,0,{"$f":"COUNT(AK136:AN136)","v":0},{"$f":"IF($AV136<>0,ROW($AV$11),\"\")","v":""}]
[1,29,2,3,"Orange/ DkGray 350 Grain, 90 ft., 9-10 wt","MASTERY SERIES FLY LINES","MPX TAPER - BUCKSKIN / OPTIC GREEN   ",120739,"*","WF- 4-F      ",null,840309120739,"1","EACH",74.95,37.479999999999997,33.729999999999997,29.98,null,null,null,null,null,null,null,null,null,null,null,null,null,null,null,null,null,37.479999999999997,null,null,null,null,"","",null,0,0,0,0,0,""]
[1,29,3,3,"Red/Dark Gray 450 Grain, 90 ft., 10-13 wt","MASTERY SERIES FLY LINES","MPX TAPER - BUCKSKIN / OPTIC GREEN   ",120746,"*","WF- 5-F      ",null,840309120746,"1","EACH",74.95,37.479999999999997,33.729999999999997,29.98,null,null,null,null,null,null,null,null,null,null,null,null,null,null,null,null,null,37.479999999999997,null,null,null,null,"","",null,0,0,0,0,0,""]
[1,29,4,3,"Teal/Dk Gray 550 Grain, 90 ft., 12-14 wt","MASTERY SERIES FLY LINES","MPX TAPER - BUCKSKIN / OPTIC GREEN   ",120753,"*","WF- 6-F      ",null,840309120753,"1","EACH",74.95,37.479999999999997,33.729999999999997,29.98,null,null,null,null,null,null,null,null,null,null,null,null,null,null,null,null,null,37.479999999999997,null,null,null,null,"","",null,0,0,0,0,0,""]
[1,29,5,3,"\u0001","MASTERY SERIES FLY LINES","MPX TAPER - BUCKSKIN / OPTIC GREEN   ",120760,"*","WF- 7-F      ",null,840309120760,"1","EACH",74.95,37.479999999999997,33.729999999999997,29.98,null,null,null,null,null,null,null,null,null,null,null,null,null,null,null,null,null,37.479999999999997,null,null,null,null,"","",null,0,0,0,0,0,""]
[1,29,6,3,"Clear WF- 4-S","MASTERY SERIES FLY LINES","MPX TAPER - BUCKSKIN / OPTIC GREEN   ",120777,"*","WF- 8-F      ",null,840309120777,"1","EACH",74.95,37.479999999999997,33.729999999999997,29.98,null,null,null,null,null,null,null,null,null,null,null,null,null,null,null,null,null,37.479999999999997,null,null,null,null,"","",null,0,0,0,0,{"$f":"COUNT(AK141:AN141)","v":0},{"$f":"IF($AV141<>0,ROW($AV$11),\"\")","v":""}]
[1,29,7,3,"Clear WF- 5-S","MASTERY SERIES FLY LINES","MPX TAPER - BUCKSKIN / OPTIC GREEN   ",120784,"*","WF- 9-F      ",null,840309120784,"1","EACH",74.95,37.479999999999997,33.729999999999997,29.98,null,null,null,null,null,null,null,null,null,null,null,null,null,null,null,null,null,37.479999999999997,null,null,null,null,"","",null,0,0,0,0,{"$f":"COUNT(AK142:AN142)","v":0},{"$f":"IF($AV142<>0,ROW($AV$11),\"\")","v":""}]
[1,30,null,2,"Clear WF- 6-S","MASTERY SERIES FLY LINES","  EXPERT DISTANCE - MIST GREEN","EXPERT DISTANCE TAPER - MIST GREEN",null,null,null,null,null,null,null,null,null,null,null,null,null,null,null,null,null,null,null,null,null,null,null,null,null,null,null,null,null,null,null,null,"",""]
[1,30,1,3,"Clear WF- 7-S","MASTERY SERIES FLY LINES","  EXPERT DISTANCE - MIST GREEN",112680,"*","WF- 5-F      ",null,840309112680,"1","EACH",74.95,37.479999999999997,33.729999999999997,29.98,null,null,null,null,null,null,null,null,null,null,null,null,null,null,null,null,null,{"$f":"IF(OR(ISBLANK($L144),$AW$3=0),\" - \",OFFSET(O144,0,$AW$3,1,1))","v":37.479999999999997},null,null,null,null,"","",null,{"$f":"IF(LEN($AJ144)>0,$AJ144*AK144,\"\")","v":0},0,0,0,{"$f":"COUNT(AK144:AN144)","v":0},{"$f":"IF($AV144<>0,ROW($AV$11),\"\")","v":""}]
[1,30,2,3,"Clear WF- 8-S","MASTERY SERIES FLY LINES","  EXPERT DISTANCE - MIST GREEN",112697,"*","WF- 6-F      ",null,840309112697,"1","EACH",74.95,37.479999999999997,33.729999999999997,29.98,null,null,null,null,null,null,null,null,null,null,null,null,null,null,null,null,null,{"$f":"IF(OR(ISBLANK($L145),$AW$3=0),\" - \",OFFSET(O145,0,$AW$3,1,1))","v":37.479999999999997},null,null,null,null,"","",null,0,0,0,0,{"$f":"COUNT(AK145:AN145)","v":0},{"$f":"IF($AV145<>0,ROW($AV$11),\"\")","v":""}]
[1,30,3,3,"\u0001","MASTERY SERIES FLY LINES","  EXPERT DISTANCE - MIST GREEN",112703,"*","WF- 7-F      ",null,840309112703,"1","EACH",74.95,37.479999999999997,33.729999999999997,29.98,null,null,null,null,null,null,null,null,null,null,null,null,null,null,null,null,null,{"$f":"IF(OR(ISBLANK($L146),$AW$3=0),\" - \",OFFSET(O146,0,$AW$3,1,1))","v":37.479999999999997},null,null,null,null,"","",null,0,0,0,0,{"$f":"COUNT(AK146:AN146)","v":0},{"$f":"IF($AV146<>0,ROW($AV$11),\"\")","v":""}]
[1,30,4,3,"Blue WF- 5-S","MASTERY SERIES FLY LINES","  EXPERT DISTANCE - MIST GREEN",112710,"*","WF- 8-F      ",null,840309112710,"1","EACH",74.95,37.479999999999997,33.729999999999997,29.98,null,null,null,null,null,null,null,null,null,null,null,null,null,null,null,null,null,{"$f":"IF(OR(ISBLANK($L147),$AW$3=0),\" - \",OFFSET(O147,0,$AW$3,1,1))","v":37.479999999999997},null,null,null,null,"","",null,0,0,0,0,{"$f":"COUNT(AK147:AN147)","v":0},{"$f":"IF($AV147<>0,ROW($AV$11),\"\")","v":""}]
[1,31,null,2,"Blue WF- 6-S","MASTERY SERIES FLY LINES","  EXPERT DISTANCE - ORANGE","EXPERT DISTANCE TAPER- ORANGE",null,null,null,null,null,null,null,null,null,null,null,null,null,null,null,null,null,null,null,null,null,null,null,null,null,null,null,null,null,null,null,null,"",""]
[1,31,1,3,"Blue WF- 7-S","MASTERY SERIES FLY LINES","  EXPERT DISTANCE - ORANGE",112659,"*","WF- 5-F 120 ft Competition      ",null,840309112659,"1","EACH",84.95,42.48,38.229999999999997,33.979999999999997,null,null,null,null,null,null,null,null,null,null,null,null,null,null,null,null,null,{"$f":"IF(OR(ISBLANK($L149),$AW$3=0),\" - \",OFFSET(O149,0,$AW$3,1,1))","v":42.48},null,null,null,null,"","",null,0,0,0,0,{"$f":"COUNT(AK149:AN149)","v":0},{"$f":"IF($AV149<>0,ROW($AV$11),\"\")","v":""}]
[1,31,2,3,"\u0001","MASTERY SERIES FLY LINES","  EXPERT DISTANCE - ORANGE",112666,"*","WF- 6-F 120 ft Competition      ",null,840309112666,"1","EACH",84.95,42.48,38.229999999999997,33.979999999999997,null,null,null,null,null,null,null,null,null,null,null,null,null,null,null,null,null,{"$f":"IF(OR(ISBLANK($L150),$AW$3=0),\" - \",OFFSET(O150,0,$AW$3,1,1))","v":42.48},null,null,null,null,"","",null,0,0,0,0,{"$f":"COUNT(AK150:AN150)","v":0},{"$f":"IF($AV150<>0,ROW($AV$11),\"\")","v":""}]
[1,31,3,3,"Midnight WF- 5-S","MASTERY SERIES FLY LINES","  EXPERT DISTANCE - ORANGE",112673,"*","WF- 7-F 120 ft Competition      ",null,840309112673,"1","EACH",84.95,42.48,38.229999999999997,33.979999999999997,null,null,null,null,null,null,null,null,null,null,null,null,null,null,null,null,null,{"$f":"IF(OR(ISBLANK($L151),$AW$3=0),\" - \",OFFSET(O151,0,$AW$3,1,1))","v":42.48},null,null,null,null,{"$f":"IF($AV151=0,\"\",SUM(AK151:AN151))","v":""},{"$f":"IF($AV151>0,SUM(AR151:AU151),\"\")","v":""},null,0,0,0,0,{"$f":"COUNT(AK151:AN151)","v":0},{"$f":"IF($AV151<>0,ROW($AV$11),\"\")","v":""}]
[1,32,null,2,"Midnight WF- 6-S","MASTERY SERIES FLY LINES","ANADRO TAPER - GREEN / YELLOW","ANADRO TAPER - GREEN / YELLOW   *NEW*",null,null,null,null,null,null,null,null,null,null,null,null,null,null,null,null,null,null,null,null,null,null,null,null,null,null,null,null,null,null,null,null,"",""]
[1,32,1,3,"Midnight WF- 7-S","MASTERY SERIES FLY LINES","ANADRO TAPER - GREEN / YELLOW",123815,"*","WF- 5-F      ",null,840309123815,"1","EACH",74.95,null,null,null,null,null,null,null,null,null,null,null,null,null,null,null,null,null,null,null,null,{"$f":"IF(OR(ISBLANK($L153),$AW$3=0),\" - \",OFFSET(O153,0,$AW$3,1,1))","v":0},null,null,null,null,"","",null,0,0,0,0,{"$f":"COUNT(AK153:AN153)","v":0},{"$f":"IF($AV153<>0,ROW($AV$11),\"\")","v":""}]
[1,32,2,3,"Midnight WF- 8-S","MASTERY SERIES FLY LINES","ANADRO TAPER - GREEN / YELLOW",123822,"*","WF- 6-F      ",null,840309123822,"1","EACH",74.95,39.975000000000001,35.979999999999997,31.98,null,null,null,null,null,null,null,null,null,null,null,null,null,null,null,null,null,{"$f":"IF(OR(ISBLANK($L154),$AW$3=0),\" - \",OFFSET(O154,0,$AW$3,1,1))","v":39.975000000000001},null,null,null,null,"","",null,0,0,0,0,{"$f":"COUNT(AK154:AN154)","v":0},{"$f":"IF($AV154<>0,ROW($AV$11),\"\")","v":""}]
[1,32,3,3,"Midnight WF- 9-S","MASTERY SERIES FLY LINES","ANADRO TAPER - GREEN / YELLOW",123839,"*","WF- 7-F      ",null,840309123839,"1","EACH",74.95,39.979999999999997,35.979999999999997,31.98,null,null,null,null,null,null,null,null,null,null,null,null,null,null,null,null,null,{"$f":"IF(OR(ISBLANK($L155),$AW$3=0),\" - \",OFFSET(O155,0,$AW$3,1,1))","v":39.979999999999997},null,null,null,null,"","",null,0,0,0,0,{"$f":"COUNT(AK155:AN155)","v":0},{"$f":"IF($AV155<>0,ROW($AV$11),\"\")","v":""}]
[1,32,4,3,"\u0001","MASTERY SERIES FLY LINES","ANADRO TAPER - GREEN / YELLOW",123846,"*","WF- 8-F      ",null,840309123846,"1","EACH",74.95,39.979999999999997,35.979999999999997,31.98,null,null,null,null,null,null,null,null,null,null,null,null,null,null,null,null,null,{"$f":"IF(OR(ISBLANK($L156),$AW$3=0),\" - \",OFFSET(O156,0,$AW$3,1,1))","v":39.979999999999997},null,null,null,null,"","",null,0,0,0,0,{"$f":"COUNT(AK156:AN156)","v":0},{"$f":"IF($AV156<>0,ROW($AV$11),\"\")","v":""}]
[1,32,5,3,"Midnight WF- 6-S","MASTERY SERIES FLY LINES","ANADRO TAPER - GREEN / YELLOW",123853,"*","WF- 9-F      ",null,840309123853,"1","EACH",74.95,39.979999999999997,35.979999999999997,31.98,null,null,null,null,null,null,null,null,null,null,null,null,null,null,null,null,null,{"$f":"IF(OR(ISBLANK($L157),$AW$3=0),\" - \",OFFSET(O157,0,$AW$3,1,1))","v":39.979999999999997},null,null,null,null,"","",null,0,0,0,0,{"$f":"COUNT(AK157:AN157)","v":0},{"$f":"IF($AV157<>0,ROW($AV$11),\"\")","v":""}]
[1,33,null,2,"Midnight WF- 7-S","MASTERY SERIES FLY LINES","  VPT (VERSATILE PRESENTATION TAPER) WITH SHARKTIP & LOOP - WILLOW/ORANGE/WILLOW ","VPT (VERSATILE PRESENTATION TAPER) WITH SHARKTIP WILLOW / ORANGE / WILLOW",null,null,null,null,null,null,null,null,null,null,null,null,null,null,null,null,null,null,null,null,null,null,null,null,null,null,null,null,null,null,null,null,"",""]
[1,33,1,3,"Midnight WF- 8-S","MASTERY SERIES FLY LINES","  VPT (VERSATILE PRESENTATION TAPER) WITH SHARKTIP & LOOP - WILLOW/ORANGE/WILLOW ",120456,"*","WF- 2-F      ",null,"840309120456","1","EACH",84.95,42.48,38.229999999999997,33.979999999999997,null,null,null,null,null,null,null,null,null,null,null,null,null,null,null,null,null,{"$f":"IF(OR(ISBLANK($L159),$AW$3=0),\" - \",OFFSET(O159,0,$AW$3,1,1))","v":42.48},null,null,null,null,"","",null,0,0,0,0,{"$f":"COUNT(AK159:AN159)","v":0},{"$f":"IF($AV159<>0,ROW($AV$11),\"\")","v":""}]
[1,33,2,3,"Midnight WF- 9-S","MASTERY SERIES FLY LINES","  VPT (VERSATILE PRESENTATION TAPER) WITH SHARKTIP & LOOP - WILLOW/ORANGE/WILLOW ",120463,"*","WF- 3-F      ",null,"840309120463","1","EACH",84.95,42.48,38.229999999999997,33.979999999999997,null,null,null,null,null,null,null,null,null,null,null,null,null,null,null,null,null,{"$f":"IF(OR(ISBLANK($L160),$AW$3=0),\" - \",OFFSET(O160,0,$AW$3,1,1))","v":42.48},null,null,null,null,"","",null,{"$f":"IF(LEN($AJ160)>0,$AJ160*AK160,\"\")","v":0},0,0,0,{"$f":"COUNT(AK160:AN160)","v":0},{"$f":"IF($AV160<>0,ROW($AV$11),\"\")","v":""}]
[1,33,3,3,"Midnight WF- 5-S","MASTERY SERIES FLY LINES","  VPT (VERSATILE PRESENTATION TAPER) WITH SHARKTIP & LOOP - WILLOW/ORANGE/WILLOW ",120470,"*","WF- 4-F      ",null,"840309120470","1","EACH",84.95,42.48,38.229999999999997,33.979999999999997,null,null,null,null,null,null,null,null,null,null,null,null,null,null,null,null,null,{"$f":"IF(OR(ISBLANK($L161),$AW$3=0),\" - \",OFFSET(O161,0,$AW$3,1,1))","v":42.48},null,null,null,null,"","",null,0,0,0,0,{"$f":"COUNT(AK161:AN161)","v":0},{"$f":"IF($AV161<>0,ROW($AV$11),\"\")","v":""}]
[1,33,4,3,"\u0001","MASTERY SERIES FLY LINES","  VPT (VERSATILE PRESENTATION TAPER) WITH SHARKTIP & LOOP - WILLOW/ORANGE/WILLOW ",120487,"*","WF- 5-F      ",null,"840309120487","1","EACH",84.95,42.48,38.229999999999997,33.979999999999997,null,null,null,null,null,null,null,null,null,null,null,null,null,null,null,null,null,{"$f":"IF(OR(ISBLANK($L162),$AW$3=0),\" - \",OFFSET(O162,0,$AW$3,1,1))","v":42.48},null,null,null,null,"","",null,0,0,0,0,{"$f":"COUNT(AK162:AN162)","v":0},{"$f":"IF($AV162<>0,ROW($AV$11),\"\")","v":""}]
[1,33,5,3,"Midnight WF- 7-S","MASTERY SERIES FLY LINES","  VPT (VERSATILE PRESENTATION TAPER) WITH SHARKTIP & LOOP - WILLOW/ORANGE/WILLOW ",120494,"*","WF- 6-F      ",null,"840309120494","1","EACH",84.95,42.48,38.229999999999997,33.979999999999997,null,null,null,null,null,null,null,null,null,null,null,null,null,null,null,null,null,{"$f":"IF(OR(ISBLANK($L163),$AW$3=0),\" - \",OFFSET(O163,0,$AW$3,1,1))","v":42.48},null,null,null,null,"","",null,0,0,0,0,{"$f":"COUNT(AK163:AN163)","v":0},{"$f":"IF($AV163<>0,ROW($AV$11),\"\")","v":""}]
[1,34,null,2,"Midnight WF- 8-S","MASTERY SERIES FLY LINES","SBT (SHORT BELLY TAPER) WITH LOOP - WILLOW/ORANGE/WILLOW","SBT (SHORT BELLY TAPER) - WILLOW / ORANGE / WILLOW",null,null,null,null,null,null,null,null,null,null,null,null,null,null,null,null,null,null,null,null,null,null,null,null,null,null,null,null,null,null,null,null,"",""]
[1,34,1,3,"Midnight WF- 9-S","MASTERY SERIES FLY LINES","SBT (SHORT BELLY TAPER) WITH LOOP - WILLOW/ORANGE/WILLOW",117807,"*","WF- 2-F      ",null,"840309117807","1","EACH",74.95,37.479999999999997,33.729999999999997,29.98,null,null,null,null,null,null,null,null,null,null,null,null,null,null,null,null,null,{"$f":"IF(OR(ISBLANK($L165),$AW$3=0),\" - \",OFFSET(O165,0,$AW$3,1,1))","v":37.479999999999997},null,null,null,null,"","",null,0,0,0,0,{"$f":"COUNT(AK165:AN165)","v":0},{"$f":"IF($AV165<>0,ROW($AV$11),\"\")","v":""}]
[1,34,2,3,"Midnight WF- 5-S","MASTERY SERIES FLY LINES","SBT (SHORT BELLY TAPER) WITH LOOP - WILLOW/ORANGE/WILLOW",117814,"*","WF- 3-F      ",null,"840309117814","1","EACH",74.95,37.479999999999997,33.729999999999997,29.98,null,null,null,null,null,null,null,null,null,null,null,null,null,null,null,null,null,37.479999999999997,null,null,null,null,"","",null,0,0,0,0,{"$f":"COUNT(AK166:AN166)","v":0},{"$f":"IF($AV166<>0,ROW($AV$11),\"\")","v":""}]
[1,34,3,3,"Midnight WF- 6-S","MASTERY SERIES FLY LINES","SBT (SHORT BELLY TAPER) WITH LOOP - WILLOW/ORANGE/WILLOW",117821,"*","WF- 4-F      ",null,"840309117821","1","EACH",74.95,37.479999999999997,33.729999999999997,29.98,null,null,null,null,null,null,null,null,null,null,null,null,null,null,null,null,null,37.479999999999997,null,null,null,null,"","",null,0,0,0,0,{"$f":"COUNT(AK167:AN167)","v":0},{"$f":"IF($AV167<>0,ROW($AV$11),\"\")","v":""}]
[1,34,4,3,"\u0001","MASTERY SERIES FLY LINES","SBT (SHORT BELLY TAPER) WITH LOOP - WILLOW/ORANGE/WILLOW",117838,"*","WF- 5-F      ",null,"840309117838","1","EACH",74.95,37.479999999999997,33.729999999999997,29.98,null,null,null,null,null,null,null,null,null,null,null,null,null,null,null,null,null,37.479999999999997,null,null,null,null,"","",null,0,0,0,0,{"$f":"COUNT(AK168:AN168)","v":0},{"$f":"IF($AV168<>0,ROW($AV$11),\"\")","v":""}]
[1,34,5,3,"Yellow WF- 6-F","MASTERY SERIES FLY LINES","SBT (SHORT BELLY TAPER) WITH LOOP - WILLOW/ORANGE/WILLOW",117845,"*","WF- 6-F      ",null,"840309117845","1","EACH",74.95,37.479999999999997,33.729999999999997,29.98,null,null,null,null,null,null,null,null,null,null,null,null,null,null,null,null,null,37.479999999999997,null,null,null,null,"","",null,0,0,0,0,{"$f":"COUNT(AK169:AN169)","v":0},{"$f":"IF($AV169<>0,ROW($AV$11),\"\")","v":""}]
[1,34,6,3,null,"MASTERY SERIES FLY LINES","SBT (SHORT BELLY TAPER) WITH LOOP - WILLOW/ORANGE/WILLOW",117852,"*","WF- 7-F      ",null,840309117852,1,"EACH",74.95,37.479999999999997,33.729999999999997,29.98,null,null,null,null,null,null,null,null,null,null,null,null,null,null,null,null,null,37.479999999999997,null,null,null,null,"","",null,{"$f":"IF(LEN($AJ170)>0,$AJ170*AK170,\"\")","v":0},{"$f":"IF(LEN($AJ170)>0,$AJ170*AL170,\"\")","v":0},{"$f":"IF(LEN($AJ170)>0,$AJ170*AM170,\"\")","v":0},{"$f":"IF(LEN($AJ170)>0,$AJ170*AN170,\"\")","v":0},{"$f":"COUNT(AK170:AN170)","v":0},""]
[1,34,7,3,null,"MASTERY SERIES FLY LINES","SBT (SHORT BELLY TAPER) WITH LOOP - WILLOW/ORANGE/WILLOW",117869,"*","WF- 8-F      ",null,840309117869,1,"EACH",74.95,37.479999999999997,33.729999999999997,29.98,null,null,null,null,null,null,null,null,null,null,null,null,null,null,null,null,null,37.479999999999997,null,null,null,null,"","",null,0,0,0,0,0,""]
[1,35,null,2,"Yellow WF- 7-F","MASTERY SERIES FLY LINES","TITAN TAPER - BLUE / GREEN","TITAN TAPER - BLUE / GREEN   NEW*",null,null,null,null,null,null,null,null,null,null,null,null,null,null,null,null,null,null,null,null,null,null,null,null,null,null,null,null,null,null,null,null,{"$f":"IF($AV172=0,\"\",SUM(AK172:AN172))","v":""},{"$f":"IF($AV172>0,SUM(AR172:AU172),\"\")","v":""}]
[1,35,1,3,"Yellow WF- 8-F","MASTERY SERIES FLY LINES","TITAN TAPER - BLUE / GREEN",120913,"*","WF- 6-F      ",null,840309120913,"1","EACH",79.95,39.979999999999997,35.979999999999997,31.98,null,null,null,null,null,null,null,null,null,null,null,null,null,null,null,null,null,{"$f":"IF(OR(ISBLANK($L173),$AW$3=0),\" - \",OFFSET(O173,0,$AW$3,1,1))","v":39.979999999999997},null,null,null,null,"","",null,{"$f":"IF(LEN($AJ173)>0,$AJ173*AK173,\"\")","v":0},{"$f":"IF(LEN($AJ173)>0,$AJ173*AL173,\"\")","v":0},{"$f":"IF(LEN($AJ173)>0,$AJ173*AM173,\"\")","v":0},{"$f":"IF(LEN($AJ173)>0,$AJ173*AN173,\"\")","v":0},{"$f":"COUNT(AK173:AN173)","v":0},""]
[1,35,2,3,"Yellow WF- 9-F","MASTERY SERIES FLY LINES","TITAN TAPER - BLUE / GREEN",120920,"*","WF- 7-F      ",null,840309120920,"1","EACH",79.95,39.979999999999997,35.979999999999997,31.98,null,null,null,null,null,null,null,null,null,null,null,null,null,null,null,null,null,39.979999999999997,null,null,null,null,"","",null,0,0,0,0,0,""]
[1,35,3,3,"Yellow WF- 10-F","MASTERY SERIES FLY LINES","TITAN TAPER - BLUE / GREEN",120937,"*","WF- 8-F      ",null,840309120937,"1","EACH",79.95,39.979999999999997,35.979999999999997,31.98,null,null,null,null,null,null,null,null,null,null,null,null,null,null,null,null,null,39.979999999999997,null,null,null,null,"","",null,0,0,0,0,0,""]
[1,35,4,3,"Yellow WF-11-F","MASTERY SERIES FLY LINES","TITAN TAPER - BLUE / GREEN",120944,"*","WF- 9-F      ",null,840309120944,"1","EACH",79.95,39.979999999999997,35.979999999999997,31.98,null,null,null,null,null,null,null,null,null,null,null,null,null,null,null,null,null,39.979999999999997,null,null,null,null,"","",null,0,0,0,0,0,""]
[1,35,5,3,"Yellow WF- 12-F","MASTERY SERIES FLY LINES","TITAN TAPER - BLUE / GREEN",120951,"*","WF-10-F       ",null,840309120951,"1","EACH",79.95,39.979999999999997,35.979999999999997,31.98,null,null,null,null,null,null,null,null,null,null,null,null,null,null,null,null,null,39.979999999999997,null,null,null,null,"","",null,0,0,0,0,0,""]
[1,36,null,2,"Yellow WF- 7-F","MASTERY SERIES FLY LINES","SALTWATER TAPER - SUNRISE / LIGHT BLUE","SALTWATER TAPER - SUNRISE / LIGHT BLUE   *NEW*",null,null,null,null,null,null,null,null,null,null,null,null,null,null,null,null,null,null,null,null,null,null,null,null,null,null,null,null,null,null,null,null,"",""]
[1,36,1,3,"Yellow WF- 8-F","MASTERY SERIES FLY LINES","SALTWATER TAPER - SUNRISE / LIGHT BLUE",121163,"*","WF- 7-F   ",null,840309121163,"1","EACH",79.95,39.979999999999997,35.979999999999997,31.98,null,null,null,null,null,null,null,null,null,null,null,null,null,null,null,null,null,{"$f":"IF(OR(ISBLANK($L179),$AW$3=0),\" - \",OFFSET(O179,0,$AW$3,1,1))","v":39.979999999999997},null,null,null,null,"","",null,0,0,0,0,0,""]
[1,36,2,3,"Yellow WF- 9-F","MASTERY SERIES FLY LINES","SALTWATER TAPER - SUNRISE / LIGHT BLUE",121170,"*","WF- 8-F       ",null,840309121170,"1","EACH",79.95,39.979999999999997,35.979999999999997,31.98,null,null,null,null,null,null,null,null,null,null,null,null,null,null,null,null,null,39.979999999999997,null,null,null,null,"","",null,0,0,0,0,0,""]
[1,36,3,3,"Yellow WF- 10-F","MASTERY SERIES FLY LINES","SALTWATER TAPER - SUNRISE / LIGHT BLUE",121187,"*","WF- 9-F      ",null,840309121187,"1","EACH",79.95,39.979999999999997,35.979999999999997,31.98,null,null,null,null,null,null,null,null,null,null,null,null,null,null,null,null,null,39.979999999999997,null,null,null,null,"","",null,0,0,0,0,0,""]
[1,36,4,3,"Yellow WF-11-F","MASTERY SERIES FLY LINES","SALTWATER TAPER - SUNRISE / LIGHT BLUE",121194,"*","WF-10-F       ",null,840309121194,"1","EACH",79.95,39.979999999999997,35.979999999999997,31.98,null,null,null,null,null,null,null,null,null,null,null,null,null,null,null,null,null,39.979999999999997,null,null,null,null,"","",null,0,0,0,0,0,""]
[1,36,5,3,"Yellow WF- 12-F","MASTERY SERIES FLY LINES","SALTWATER TAPER - SUNRISE / LIGHT BLUE",121200,"*","WF-11-F     ",null,840309121200,"1","EACH",79.95,39.979999999999997,35.979999999999997,31.98,null,null,null,null,null,null,null,null,null,null,null,null,null,null,null,null,null,39.979999999999997,null,null,null,null,"","",null,0,0,0,0,0,""]
[1,36,6,3,"\u0001","MASTERY SERIES FLY LINES","SALTWATER TAPER - SUNRISE / LIGHT BLUE",121217,"*","WF-12-F     ",null,840309121217,"1","EACH",79.95,39.979999999999997,35.979999999999997,31.98,null,null,null,null,null,null,null,null,null,null,null,null,null,null,null,null,null,39.979999999999997,null,null,null,null,"","",null,{"$f":"IF(LEN($AJ184)>0,$AJ184*AK184,\"\")","v":0},0,0,0,0,""]
[1,37,null,2,"Yellow WF- 7-F","MASTERY SERIES FLY LINES","GRAND SLAM TAPER - LIGHT BLUE / AQUA","GRAND SLAM TAPER - LIGHT BLUE / AQUA   *NEW*",null,null,null,null,null,null,null,null,null,null,null,null,null,null,null,null,null,null,null,null,null,null,null,null,null,null,null,null,null,null,null,null,{"$f":"IF($AV185=0,\"\",SUM(AK185:AN185))","v":""},{"$f":"IF($AV185>0,SUM(AR185:AU185),\"\")","v":""}]
[1,37,1,3,"Yellow WF- 8-F","MASTERY SERIES FLY LINES","GRAND SLAM TAPER - LIGHT BLUE / AQUA",120968,"*","WF- 6-F   ",null,840309120968,"1","EACH",79.95,39.979999999999997,35.979999999999997,31.98,null,null,null,null,null,null,null,null,null,null,null,null,null,null,null,null,null,{"$f":"IF(OR(ISBLANK($L186),$AW$3=0),\" - \",OFFSET(O186,0,$AW$3,1,1))","v":39.979999999999997},null,null,null,null,{"$f":"IF($AV186=0,\"\",SUM(AK186:AN186))","v":""},{"$f":"IF($AV186>0,SUM(AR186:AU186),\"\")","v":""},null,{"$f":"IF(LEN($AJ186)>0,$AJ186*AK186,\"\")","v":0},{"$f":"IF(LEN($AJ186)>0,$AJ186*AL186,\"\")","v":0},{"$f":"IF(LEN($AJ186)>0,$AJ186*AM186,\"\")","v":0},{"$f":"IF(LEN($AJ186)>0,$AJ186*AN186,\"\")","v":0},{"$f":"COUNT(AK186:AN186)","v":0},""]
[1,37,2,3,"Yellow WF- 8-F","MASTERY SERIES FLY LINES","GRAND SLAM TAPER - LIGHT BLUE / AQUA",120975,"*","WF- 7-F   ",null,840309120975,"1","EACH",79.95,39.979999999999997,35.979999999999997,31.98,null,null,null,null,null,null,null,null,null,null,null,null,null,null,null,null,null,{"$f":"IF(OR(ISBLANK($L187),$AW$3=0),\" - \",OFFSET(O187,0,$AW$3,1,1))","v":39.979999999999997},null,null,null,null,"","",null,{"$f":"IF(LEN($AJ187)>0,$AJ187*AK187,\"\")","v":0},{"$f":"IF(LEN($AJ187)>0,$AJ187*AL187,\"\")","v":0},{"$f":"IF(LEN($AJ187)>0,$AJ187*AM187,\"\")","v":0},{"$f":"IF(LEN($AJ187)>0,$AJ187*AN187,\"\")","v":0},{"$f":"COUNT(AK187:AN187)","v":0},""]
[1,37,3,3,"Yellow WF- 9-F","MASTERY SERIES FLY LINES","GRAND SLAM TAPER - LIGHT BLUE / AQUA",120982,"*","WF- 8-F       ",null,840309120982,"1","EACH",79.95,39.979999999999997,35.979999999999997,31.98,null,null,null,null,null,null,null,null,null,null,null,null,null,null,null,null,null,39.979999999999997,null,null,null,null,"","",null,0,0,0,0,0,""]
[1,37,4,3,"Yellow WF- 10-F","MASTERY SERIES FLY LINES","GRAND SLAM TAPER - LIGHT BLUE / AQUA",120999,"*","WF- 9-F      ",null,840309120999,"1","EACH",79.95,39.979999999999997,35.979999999999997,31.98,null,null,null,null,null,null,null,null,null,null,null,null,null,null,null,null,null,39.979999999999997,null,null,null,null,"","",null,0,0,0,0,0,""]
[1,37,5,3,"Yellow WF-11-F","MASTERY SERIES FLY LINES","GRAND SLAM TAPER - LIGHT BLUE / AQUA",121002,"*","WF-10-F       ",null,840309121002,"1","EACH",79.95,39.979999999999997,35.979999999999997,31.98,null,null,null,null,null,null,null,null,null,null,null,null,null,null,null,null,null,39.979999999999997,null,null,null,null,"","",null,0,0,0,0,0,""]
[1,37,6,3,"Yellow WF- 12-F","MASTERY SERIES FLY LINES","GRAND SLAM TAPER - LIGHT BLUE / AQUA",121019,"*","WF-11-F     ",null,840309121019,"1","EACH",79.95,39.979999999999997,35.979999999999997,31.98,null,null,null,null,null,null,null,null,null,null,null,null,null,null,null,null,null,39.979999999999997,null,null,null,null,"","",null,0,0,0,0,0,""]
[1,37,7,3,"\u0001","MASTERY SERIES FLY LINES","GRAND SLAM TAPER - LIGHT BLUE / AQUA",121026,"*","WF-12-F     ",null,840309121026,"1","EACH",79.95,39.979999999999997,35.979999999999997,31.98,null,null,null,null,null,null,null,null,null,null,null,null,null,null,null,null,null,39.979999999999997,null,null,null,null,"","",null,0,0,0,0,0,""]
[1,38,null,2,"Light Blue WF-6-F","MASTERY SERIES FLY LINES","BONEFISH TAPER - FLOATING WITH LOOPS - LIGHT BLUE / IVORY","BONEFISH TAPER - FLOATING WITH LOOPS - LIGHT BLUE / IVORY   *NEW*",null,null,null,null,null,null,null,null,null,null,null,null,null,null,null,null,null,null,null,null,null,null,null,null,null,null,null,null,null,null,null,null,"",""]
[1,38,1,3,"Light Blue WF-7-F","MASTERY SERIES FLY LINES","BONEFISH TAPER - FLOATING WITH LOOPS - LIGHT BLUE / IVORY",121118,"*","WF- 5-F      ",null,840309121118,"1","EACH",79.95,39.979999999999997,35.979999999999997,31.98,null,null,null,null,null,null,null,null,null,null,null,null,null,null,null,null,null,{"$f":"IF(OR(ISBLANK($L194),$AW$3=0),\" - \",OFFSET(O194,0,$AW$3,1,1))","v":39.979999999999997},null,null,null,null,"","",null,{"$f":"IF(LEN($AJ194)>0,$AJ194*AK194,\"\")","v":0},0,0,0,{"$f":"COUNT(AK194:AN194)","v":0},{"$f":"IF($AV194<>0,ROW($AV$11),\"\")","v":""}]
[1,38,2,3,"Light Blue WF-8-F","MASTERY SERIES FLY LINES","BONEFISH TAPER - FLOATING WITH LOOPS - LIGHT BLUE / IVORY",121125,"*","WF- 6-F      ",null,840309121125,"1","EACH",79.95,39.979999999999997,35.979999999999997,31.98,null,null,null,null,null,null,null,null,null,null,null,null,null,null,null,null,null,{"$f":"IF(OR(ISBLANK($L195),$AW$3=0),\" - \",OFFSET(O195,0,$AW$3,1,1))","v":39.979999999999997},null,null,null,null,"","",null,0,0,0,0,0,""]
[1,38,3,3,"Light Blue WF-9-F","MASTERY SERIES FLY LINES","BONEFISH TAPER - FLOATING WITH LOOPS - LIGHT BLUE / IVORY",121132,"*","WF- 7-F      ",null,840309121132,"1","EACH",79.95,39.979999999999997,35.979999999999997,31.98,null,null,null,null,null,null,null,null,null,null,null,null,null,null,null,null,null,{"$f":"IF(OR(ISBLANK($L196),$AW$3=0),\" - \",OFFSET(O196,0,$AW$3,1,1))","v":39.979999999999997},null,null,null,null,"","",null,0,0,0,0,0,""]
[1,38,4,3,"Light Blue WF-10-F","MASTERY SERIES FLY LINES","BONEFISH TAPER - FLOATING WITH LOOPS - LIGHT BLUE / IVORY",121149,"*","WF- 8-F      ",null,840309121149,"1","EACH",79.95,39.979999999999997,35.979999999999997,31.98,null,null,null,null,null,null,null,null,null,null,null,null,null,null,null,null,null,{"$f":"IF(OR(ISBLANK($L197),$AW$3=0),\" - \",OFFSET(O197,0,$AW$3,1,1))","v":39.979999999999997},null,null,null,null,"","",null,0,0,0,0,0,""]
[1,38,5,3,"Light Blue WF-11-F","MASTERY SERIES FLY LINES","BONEFISH TAPER - FLOATING WITH LOOPS - LIGHT BLUE / IVORY",121156,"*","WF- 9-F      ",null,840309121156,"1","EACH",79.95,39.979999999999997,35.979999999999997,31.98,null,null,null,null,null,null,null,null,null,null,null,null,null,null,null,null,null,{"$f":"IF(OR(ISBLANK($L198),$AW$3=0),\" - \",OFFSET(O198,0,$AW$3,1,1))","v":39.979999999999997},null,null,null,null,"","",null,0,0,0,0,0,""]
[1,39,null,2,"Light Blue WF-12-F","MASTERY SERIES FLY LINES","TARPON TAPER - FLOATING WITH REAR LOOP - SAND / SURF","TARPON TAPER - FLOATING WITH REAR LOOP - SAND / SURF   *NEW*",null,null,null,null,null,null,null,null,null,null,null,null,null,null,null,null,null,null,null,null,null,null,null,null,null,null,null,null,null,null,null,null,"",""]
[1,39,1,3,"\u0001","MASTERY SERIES FLY LINES","TARPON TAPER - FLOATING WITH REAR LOOP - SAND / SURF",121347,"*","WF-10-F      ",null,840309121347,"1","EACH",79.95,39.979999999999997,35.979999999999997,31.98,null,null,null,null,null,null,null,null,null,null,null,null,null,null,null,null,null,{"$f":"IF(OR(ISBLANK($L200),$AW$3=0),\" - \",OFFSET(O200,0,$AW$3,1,1))","v":39.979999999999997},null,null,null,null,"","",null,0,0,0,0,0,{"$f":"IF($AV200<>0,ROW($AV$11),\"\")","v":""}]
[1,39,2,3,"Horizon/Clear WF- 7-F/S","MASTERY SERIES FLY LINES","TARPON TAPER - FLOATING WITH REAR LOOP - SAND / SURF",121354,"*","WF-11-F      ",null,840309121354,"1","EACH",79.95,39.979999999999997,35.979999999999997,31.98,null,null,null,null,null,null,null,null,null,null,null,null,null,null,null,null,null,{"$f":"IF(OR(ISBLANK($L201),$AW$3=0),\" - \",OFFSET(O201,0,$AW$3,1,1))","v":39.979999999999997},null,null,null,null,"","",null,0,0,0,0,0,""]
[1,39,3,3,"Horizon/Clear WF- 8-F/S","MASTERY SERIES FLY LINES","TARPON TAPER - FLOATING WITH REAR LOOP - SAND / SURF",121361,"*","WF-12-F      ",null,840309121361,"1","EACH",79.95,39.979999999999997,35.979999999999997,31.98,null,null,null,null,null,null,null,null,null,null,null,null,null,null,null,null,null,{"$f":"IF(OR(ISBLANK($L202),$AW$3=0),\" - \",OFFSET(O202,0,$AW$3,1,1))","v":39.979999999999997},null,null,null,null,"","",null,0,0,0,0,0,""]
[1,40,null,2,"Horizon/Clear WF-10-F/S","MASTERY SERIES FLY LINES","REDFISH TAPER - FLOATING WITH LOOPS - AQUA / MIST GREEN  ","REDFISH TAPER - FLOATING WITH LOOPS - AQUA / MIST GREEN   *NEW*",null,null,null,null,null,null,null,null,null,null,null,null,null,null,null,null,null,null,null,null,null,null,null,null,null,null,null,null,null,null,null,null,"",""]
[1,40,1,3,"Horizon/Clear WF-11-F/S","MASTERY SERIES FLY LINES","REDFISH TAPER - FLOATING WITH LOOPS - AQUA / MIST GREEN  ",121064,"*","WF- 6-F      ",null,840309121064,"1","EACH",79.95,39.979999999999997,35.979999999999997,31.98,null,null,null,null,null,null,null,null,null,null,null,null,null,null,null,null,null,{"$f":"IF(OR(ISBLANK($L204),$AW$3=0),\" - \",OFFSET(O204,0,$AW$3,1,1))","v":39.979999999999997},null,null,null,null,"","",null,0,0,0,0,0,""]
[1,40,2,3,"Horizon/Clear WF-12-F/S","MASTERY SERIES FLY LINES","REDFISH TAPER - FLOATING WITH LOOPS - AQUA / MIST GREEN  ",121071,"*","WF- 7-F      ",null,840309121071,"1","EACH",79.95,39.979999999999997,35.979999999999997,31.98,null,null,null,null,null,null,null,null,null,null,null,null,null,null,null,null,null,{"$f":"IF(OR(ISBLANK($L205),$AW$3=0),\" - \",OFFSET(O205,0,$AW$3,1,1))","v":39.979999999999997},null,null,null,null,"","",null,0,0,0,0,0,""]
[1,40,3,3,"\u0001","MASTERY SERIES FLY LINES","REDFISH TAPER - FLOATING WITH LOOPS - AQUA / MIST GREEN  ",121088,"*","WF- 8-F      ",null,840309121088,"1","EACH",79.95,39.979999999999997,35.979999999999997,31.98,null,null,null,null,null,null,null,null,null,null,null,null,null,null,null,null,null,{"$f":"IF(OR(ISBLANK($L206),$AW$3=0),\" - \",OFFSET(O206,0,$AW$3,1,1))","v":39.979999999999997},null,null,null,null,"","",null,0,0,0,0,0,""]
[1,40,4,3,"LtGray/DkGray 250 Grain","MASTERY SERIES FLY LINES","REDFISH TAPER - FLOATING WITH LOOPS - AQUA / MIST GREEN  ",121095,"*","WF- 9-F      ",null,840309121095,"1","EACH",79.95,39.979999999999997,35.979999999999997,31.98,null,null,null,null,null,null,null,null,null,null,null,null,null,null,null,null,null,{"$f":"IF(OR(ISBLANK($L207),$AW$3=0),\" - \",OFFSET(O207,0,$AW$3,1,1))","v":39.979999999999997},null,null,null,null,"","",null,0,0,0,0,{"$f":"COUNT(AK207:AN207)","v":0},{"$f":"IF($AV207<>0,ROW($AV$11),\"\")","v":""}]
[1,40,5,3,"LtGray/DkGray 350 Grain","MASTERY SERIES FLY LINES","REDFISH TAPER - FLOATING WITH LOOPS - AQUA / MIST GREEN  ",121101,"*","WF-10-F      ",null,840309121101,"1","EACH",79.95,39.979999999999997,35.979999999999997,31.98,null,null,null,null,null,null,null,null,null,null,null,null,null,null,null,null,null,{"$f":"IF(OR(ISBLANK($L208),$AW$3=0),\" - \",OFFSET(O208,0,$AW$3,1,1))","v":39.979999999999997},null,null,null,null,"","",null,0,0,0,0,{"$f":"COUNT(AK208:AN208)","v":0},{"$f":"IF($AV208<>0,ROW($AV$11),\"\")","v":""}]
[1,41,null,2,"\u0001","MASTERY SERIES FLY LINES","COLDWATER REDFISH TAPER - FLOATING WITH LOOPS - AQUA / SAND","COLDWATER REDFISH TAPER - FLOATING WITH LOOPS - AQUA / SAND   *NEW*",null,null,null,null,null,null,null,null,null,null,null,null,null,null,null,null,null,null,null,null,null,null,null,null,null,null,null,null,null,null,null,null,"",""]
[1,41,1,3,"Clear WF-10-S","MASTERY SERIES FLY LINES","COLDWATER REDFISH TAPER - FLOATING WITH LOOPS - AQUA / SAND",121033,"*","WF- 7-F      ",null,840309121033,"1","EACH",79.95,39.979999999999997,35.979999999999997,31.98,null,null,null,null,null,null,null,null,null,null,null,null,null,null,null,null,null,{"$f":"IF(OR(ISBLANK($L210),$AW$3=0),\" - \",OFFSET(O210,0,$AW$3,1,1))","v":39.979999999999997},null,null,null,null,"","",null,{"$f":"IF(LEN($AJ210)>0,$AJ210*AK210,\"\")","v":0},0,0,0,{"$f":"COUNT(AK210:AN210)","v":0},{"$f":"IF($AV210<>0,ROW($AV$11),\"\")","v":""}]
[1,41,2,3,"Clear WF-11-S","MASTERY SERIES FLY LINES","COLDWATER REDFISH TAPER - FLOATING WITH LOOPS - AQUA / SAND",121040,"*","WF- 8-F      ",null,840309121040,"1","EACH",79.95,39.979999999999997,35.979999999999997,31.98,null,null,null,null,null,null,null,null,null,null,null,null,null,null,null,null,null,{"$f":"IF(OR(ISBLANK($L211),$AW$3=0),\" - \",OFFSET(O211,0,$AW$3,1,1))","v":39.979999999999997},null,null,null,null,"","",null,0,0,0,0,{"$f":"COUNT(AK211:AN211)","v":0},{"$f":"IF($AV211<>0,ROW($AV$11),\"\")","v":""}]
[1,41,3,3,"Clear WF-12-S","MASTERY SERIES FLY LINES","COLDWATER REDFISH TAPER - FLOATING WITH LOOPS - AQUA / SAND",121057,"*","WF- 9-F      ",null,840309121057,"1","EACH",79.95,39.979999999999997,35.979999999999997,31.98,null,null,null,null,null,null,null,null,null,null,null,null,null,null,null,null,null,{"$f":"IF(OR(ISBLANK($L212),$AW$3=0),\" - \",OFFSET(O212,0,$AW$3,1,1))","v":39.979999999999997},null,null,null,null,"","",null,0,0,0,0,{"$f":"COUNT(AK212:AN212)","v":0},{"$f":"IF($AV212<>0,ROW($AV$11),\"\")","v":""}]
[1,42,null,2,"Clear WF-13-S","MASTERY SERIES FLY LINES","HERITAGE ULTRA PRESENTATION TAPER - MINT GREEN","HERITAGE ULTRA PRESENTATION TAPER - MINT GREEN   *NEW*",null,null,null,null,null,null,null,null,null,null,null,null,null,null,null,null,null,null,null,null,null,null,null,null,null,null,null,null,null,null,null,null,"",""]
[1,42,1,3,"\u0001","MASTERY SERIES FLY LINES","HERITAGE ULTRA PRESENTATION TAPER - MINT GREEN",121378,"*","WF- 3-F      ",null,840309121378,"1","EACH",49.95,24.975000000000001,22.477500000000003,19.980000000000004,null,null,null,null,null,null,null,null,null,null,null,null,null,null,null,null,null,{"$f":"IF(OR(ISBLANK($L214),$AW$3=0),\" - \",OFFSET(O214,0,$AW$3,1,1))","v":24.975000000000001},null,null,null,null,"","",null,0,0,0,0,{"$f":"COUNT(AK214:AN214)","v":0},{"$f":"IF($AV214<>0,ROW($AV$11),\"\")","v":""}]
[1,42,2,3,"Red/Dk Gray 150 gr/5-6 wt","MASTERY SERIES FLY LINES","HERITAGE ULTRA PRESENTATION TAPER - MINT GREEN",121385,"*","WF- 4-F      ",null,840309121385,"1","EACH",49.95,24.975000000000001,22.477500000000003,19.980000000000004,null,null,null,null,null,null,null,null,null,null,null,null,null,null,null,null,null,24.975000000000001,null,null,null,null,"","",null,0,0,0,0,0,""]
[1,42,3,3,"Yellow/Dk Gray 200 gr/6-7 wt","MASTERY SERIES FLY LINES","HERITAGE ULTRA PRESENTATION TAPER - MINT GREEN",121392,"*","WF- 5-F      ",null,840309121392,"1","EACH",49.95,24.975000000000001,22.477500000000003,19.980000000000004,null,null,null,null,null,null,null,null,null,null,null,null,null,null,null,null,null,24.975000000000001,null,null,null,null,"","",null,0,0,0,0,0,""]
[1,42,4,3,"Sur/Dk Gray 250 gr/7-8 wt","MASTERY SERIES FLY LINES","HERITAGE ULTRA PRESENTATION TAPER - MINT GREEN",121408,"*","WF- 6-F      ",null,840309121408,"1","EACH",49.95,24.975000000000001,22.477500000000003,19.980000000000004,null,null,null,null,null,null,null,null,null,null,null,null,null,null,null,null,null,24.975000000000001,null,null,null,null,"","",null,0,0,0,0,0,""]
[1,0,null,1,null,"SONAR SINK TIP & SINKING FLY LINES",null,"SONAR SINK TIP & SINKING FLY LINES - Workbook Pages 36-43",null,null,null,null,null,null,null,null,null,null,null,null,null,null,null,null,null,null,null,null,null,null,null,null,null,null,null,null,null,null,null,null,"",""]
[1,43,null,2,"Blue/Dk Gray 400 gr/9-12 wt","MASTERY SERIES FLY LINES","SONAR SINK TIP TYPE III - SAND / DARK GREEN","SONAR SINK TIP TYPE III - SAND / DARK GREEN",null,null,null,null,null,null,null,null,null,null,null,null,null,null,null,null,null,null,null,null,null,null,null,null,null,null,null,null,null,null,null,null,"",""]
[1,43,1,3,"Red/Dk Gray 450 gr/10-12 wt","MASTERY SERIES FLY LINES","SONAR SINK TIP TYPE III - SAND / DARK GREEN",121538,"*","WF- 5-F/S      ",null,840309121538,"1","EACH",79.95,39.979999999999997,35.979999999999997,31.98,null,null,null,null,null,null,null,null,null,null,null,null,null,null,null,null,null,{"$f":"IF(OR(ISBLANK($L220),$AW$3=0),\" - \",OFFSET(O220,0,$AW$3,1,1))","v":39.979999999999997},null,null,null,null,"","",null,0,0,0,0,0,""]
[1,43,2,3,"\u0001","MASTERY SERIES FLY LINES","SONAR SINK TIP TYPE III - SAND / DARK GREEN",121545,"*","WF- 6-F/S      ",null,840309121545,"1","EACH",79.95,39.979999999999997,35.979999999999997,31.98,null,null,null,null,null,null,null,null,null,null,null,null,null,null,null,null,null,39.979999999999997,null,null,null,null,"","",null,0,0,0,0,0,""]
[1,43,3,3,"Pale Ylw/Horiz WF- 6-F","MASTERY SERIES FLY LINES","SONAR SINK TIP TYPE III - SAND / DARK GREEN",121552,"*","WF- 7-F/S      ",null,840309121552,"1","EACH",79.95,39.979999999999997,35.979999999999997,31.98,null,null,null,null,null,null,null,null,null,null,null,null,null,null,null,null,null,39.979999999999997,null,null,null,null,"","",null,0,0,0,0,0,""]
[1,43,4,3,"Pale Ylw/Horiz WF- 7-F","MASTERY SERIES FLY LINES","SONAR SINK TIP TYPE III - SAND / DARK GREEN",121569,"*","WF- 8-F/S      ",null,840309121569,"1","EACH",79.95,39.979999999999997,35.979999999999997,31.98,null,null,null,null,null,null,null,null,null,null,null,null,null,null,null,null,null,39.979999999999997,null,null,null,null,"","",null,0,0,0,0,0,""]
[1,43,5,3,"Pale Ylw/Horiz WF- 8-F","MASTERY SERIES FLY LINES","SONAR SINK TIP TYPE III - SAND / DARK GREEN",121576,"*","WF- 9-F/S      ",null,840309121576,"1","EACH",79.95,39.979999999999997,35.979999999999997,31.98,null,null,null,null,null,null,null,null,null,null,null,null,null,null,null,null,null,39.979999999999997,null,null,null,null,"","",null,0,0,0,0,0,""]
[1,44,null,null,"Blue/Dk Gray 400 gr/9-12 wt","MASTERY SERIES FLY LINES","SONAR SINK TIP TYPE IV - SAND / CHARCOAL ","SONAR SINK TIP TYPE IV - SAND / CHARCOAL   *NEW*",null,null,null,null,null,null,null,null,null,null,null,null,null,null,null,null,null,null,null,null,null,null,null,null,null,null,null,null,null,null,null,null,{"$f":"IF($AV225=0,\"\",SUM(AK225:AN225))","v":""},{"$f":"IF($AV225>0,SUM(AR225:AU225),\"\")","v":""}]
[1,44,1,3,"Red/Dk Gray 450 gr/10-12 wt","MASTERY SERIES FLY LINES","SONAR SINK TIP TYPE IV - SAND / CHARCOAL ",121583,"*","WF- 5-F/S      ",null,840309121583,"1","EACH",79.95,39.979999999999997,35.979999999999997,31.98,null,null,null,null,null,null,null,null,null,null,null,null,null,null,null,null,null,{"$f":"IF(OR(ISBLANK($L226),$AW$3=0),\" - \",OFFSET(O226,0,$AW$3,1,1))","v":39.979999999999997},null,null,null,null,"","",null,{"$f":"IF(LEN($AJ226)>0,$AJ226*AK226,\"\")","v":0},{"$f":"IF(LEN($AJ226)>0,$AJ226*AL226,\"\")","v":0},{"$f":"IF(LEN($AJ226)>0,$AJ226*AM226,\"\")","v":0},{"$f":"IF(LEN($AJ226)>0,$AJ226*AN226,\"\")","v":0},{"$f":"COUNT(AK226:AN226)","v":0},""]
[1,44,2,3,"\u0001","MASTERY SERIES FLY LINES","SONAR SINK TIP TYPE IV - SAND / CHARCOAL ",121590,"*","WF- 6-F/S      ",null,840309121590,"1","EACH",79.95,39.979999999999997,35.979999999999997,31.98,null,null,null,null,null,null,null,null,null,null,null,null,null,null,null,null,null,39.979999999999997,null,null,null,null,"","",null,0,0,0,0,0,""]
[1,44,3,3,"Pale Ylw/Horiz WF- 6-F","MASTERY SERIES FLY LINES","SONAR SINK TIP TYPE IV - SAND / CHARCOAL ",121606,"*","WF- 7-F/S      ",null,840309121606,"1","EACH",79.95,39.979999999999997,35.979999999999997,31.98,null,null,null,null,null,null,null,null,null,null,null,null,null,null,null,null,null,39.979999999999997,null,null,null,null,"","",null,0,0,0,0,0,""]
[1,44,4,3,"Pale Ylw/Horiz WF- 7-F","MASTERY SERIES FLY LINES","SONAR SINK TIP TYPE IV - SAND / CHARCOAL ",121613,"*","WF- 8-F/S      ",null,840309121613,"1","EACH",79.95,39.979999999999997,35.979999999999997,31.98,null,null,null,null,null,null,null,null,null,null,null,null,null,null,null,null,null,39.979999999999997,null,null,null,null,"","",null,0,0,0,0,0,""]
[1,44,5,3,"Pale Ylw/Horiz WF- 8-F","MASTERY SERIES FLY LINES","SONAR SINK TIP TYPE IV - SAND / CHARCOAL ",121620,"*","WF- 9-F/S      ",null,840309121620,"1","EACH",79.95,39.979999999999997,35.979999999999997,31.98,null,null,null,null,null,null,null,null,null,null,null,null,null,null,null,null,null,39.979999999999997,null,null,null,null,"","",null,0,0,0,0,0,""]
[1,45,null,2,"Pale Ylw/Horiz WF- 9-F","MASTERY SERIES FLY LINES","SONAR SINK TIP TYPE V -  SAND / BLACK","SONAR SINK TIP TYPE V -  SAND / BLACK   *NEW*",null,null,null,null,null,null,null,null,null,null,null,null,null,null,null,null,null,null,null,null,null,null,null,null,null,null,null," - ",null,null,null,null,"",""]
[1,45,1,3,"Pale Ylw/Horiz WF- 10-F","MASTERY SERIES FLY LINES","SONAR SINK TIP TYPE V -  SAND / BLACK",121637,"*","WF- 5-F/S      ",null,840309121637,"1","EACH",79.95,39.979999999999997,35.979999999999997,31.98,null,null,null,null,null,null,null,null,null,null,null,null,null,null,null,null,null,39.979999999999997,null,null,null,null,"","",null,{"$f":"IF(LEN($AJ232)>0,$AJ232*AK232,\"\")","v":0},0,0,0,{"$f":"COUNT(AK232:AN232)","v":0},{"$f":"IF($AV232<>0,ROW($AV$11),\"\")","v":""}]
[1,45,2,3,"Pale Ylw/Horiz WF- 11-F","MASTERY SERIES FLY LINES","SONAR SINK TIP TYPE V -  SAND / BLACK",121644,"*","WF- 6-F/S      ",null,840309121644,"1","EACH",79.95,39.979999999999997,35.979999999999997,31.98,null,null,null,null,null,null,null,null,null,null,null,null,null,null,null,null,null,39.979999999999997,null,null,null,null,"","",null,0,0,0,0,0,""]
[1,45,3,3,"Pale Ylw/Horiz WF- 12-F","MASTERY SERIES FLY LINES","SONAR SINK TIP TYPE V -  SAND / BLACK",121651,"*","WF- 7-F/S      ",null,840309121651,"1","EACH",79.95,39.979999999999997,35.979999999999997,31.98,null,null,null,null,null,null,null,null,null,null,null,null,null,null,null,null,null,39.979999999999997,null,null,null,null,"","",null,0,0,0,0,0,""]
[1,45,4,3,"Pale Ylw/Horiz WF- 13-F","MASTERY SERIES FLY LINES","SONAR SINK TIP TYPE V -  SAND / BLACK",121668,"*","WF- 8-F/S      ",null,840309121668,"1","EACH",79.95,39.979999999999997,35.979999999999997,31.98,null,null,null,null,null,null,null,null,null,null,null,null,null,null,null,null,null,39.979999999999997,null,null,null,null,{"$f":"IF($AV235=0,\"\",SUM(AK235:AN235))","v":""},{"$f":"IF($AV235>0,SUM(AR235:AU235),\"\")","v":""},null,0,0,0,0,0,""]
[1,45,5,3,"Pale Ylw/Horiz WF- 14-F","MASTERY SERIES FLY LINES","SONAR SINK TIP TYPE V -  SAND / BLACK",121675,"*","WF- 9-F/S      ",null,840309121675,"1","EACH",79.95,39.979999999999997,35.979999999999997,31.98,null,null,null,null,null,null,null,null,null,null,null,null,null,null,null,null,null,39.979999999999997,null,null,null,null,"","",null,0,0,0,0,0,""]
[1,46,null,2,"Horizon WF-10-F","MASTERY SERIES FLY LINES","SONAR SINK 25 (COLD)","SONAR SINK 25 (COLD)   ",null,null,null,null,null,null,null,null,null,null,null,null,null,null,null,null,null,null,null,null,null,null,null,null,null,null,null,null,null,null,null,null,"",""]
[1,46,1,3,"Horizon WF-11-F","MASTERY SERIES FLY LINES","SONAR SINK 25 (COLD)",121477,"*","150 Grain/4-5 wt - Chartreuse / Charcoal     ",null,840309121477,"1","EACH",79.95,39.979999999999997,35.979999999999997,31.98,null,null,null,null,null,null,null,null,null,null,null,null,null,null,null,null,null,{"$f":"IF(OR(ISBLANK($L238),$AW$3=0),\" - \",OFFSET(O238,0,$AW$3,1,1))","v":39.979999999999997},null,null,null,null,"","",null,{"$f":"IF(LEN($AJ238)>0,$AJ238*AK238,\"\")","v":0},0,0,0,{"$f":"COUNT(AK238:AN238)","v":0},{"$f":"IF($AV238<>0,ROW($AV$11),\"\")","v":""}]
[1,46,2,3,"Horizon WF-12-F","MASTERY SERIES FLY LINES","SONAR SINK 25 (COLD)",121484,"*","200 Grain/6-7 wt - Yellow / Charcoal     ",null,840309121484,"1","EACH",79.95,39.979999999999997,35.979999999999997,31.98,null,null,null,null,null,null,null,null,null,null,null,null,null,null,null,null,null,39.979999999999997,null,null,null,null,"","",null,0,0,0,0,0,""]
[1,46,3,3,"Horizon WF-13-F","MASTERY SERIES FLY LINES","SONAR SINK 25 (COLD)",121491,"*","250 Grain/7-8 wt - White / White ",null,840309121491,"1","EACH",79.95,39.979999999999997,35.979999999999997,31.98,null,null,null,null,null,null,null,null,null,null,null,null,null,null,null,null,null,39.979999999999997,null,null,null,null,"","",null,0,0,0,0,0,""]
[1,46,4,3,"\u0001","MASTERY SERIES FLY LINES","SONAR SINK 25 (COLD)",121507,"*","300 Grain/8-9 wt -Green / Charcoal",null,840309121507,"1","EACH",79.95,39.979999999999997,35.979999999999997,31.98,null,null,null,null,null,null,null,null,null,null,null,null,null,null,null,null,null,39.979999999999997,null,null,null,null,"","",null,0,0,0,0,0,""]
[1,46,5,3,"Dark Horizon WF- 6-F","MASTERY SERIES FLY LINES","SONAR SINK 25 (COLD)",121514,"*","350 Grain/9-10 wt - Orange / Charcoal",null,840309121514,"1","EACH",79.95,39.979999999999997,35.979999999999997,31.98,null,null,null,null,null,null,null,null,null,null,null,null,null,null,null,null,null,39.979999999999997,null,null,null,null,"","",null,0,0,0,0,0,""]
[1,46,6,3,"Dark Horizon WF- 6-F","MASTERY SERIES FLY LINES","SONAR SINK 25 (COLD)",121521,"*","400 Grain/10-11 wt - Surf / Charcoal",null,840309121521,"1","EACH",79.95,39.979999999999997,35.979999999999997,31.98,null,null,null,null,null,null,null,null,null,null,null,null,null,null,null,null,null,{"$f":"IF(OR(ISBLANK($L243),$AW$3=0),\" - \",OFFSET(O243,0,$AW$3,1,1))","v":39.979999999999997},null,null,null,null,{"$f":"IF($AV243=0,\"\",SUM(AK243:AN243))","v":""},{"$f":"IF($AV243>0,SUM(AR243:AU243),\"\")","v":""},null,{"$f":"IF(LEN($AJ243)>0,$AJ243*AK243,\"\")","v":0},{"$f":"IF(LEN($AJ243)>0,$AJ243*AL243,\"\")","v":0},{"$f":"IF(LEN($AJ243)>0,$AJ243*AM243,\"\")","v":0},{"$f":"IF(LEN($AJ243)>0,$AJ243*AN243,\"\")","v":0},{"$f":"COUNT(AK243:AN243)","v":0},""]
[1,46,7,3,"Dark Horizon WF- 7-F","MASTERY SERIES FLY LINES","SONAR SINK 25 (COLD)",121897,"*","450 Grain/11-13 wt -Red / Charcoal",null,840309121897,"1","EACH",79.95,39.979999999999997,35.979999999999997,31.98,null,null,null,null,null,null,null,null,null,null,null,null,null,null,null,null,null,39.979999999999997,null,null,null,null,"","",null,0,0,0,0,0,""]
[1,47,null,2,"Horizon WF-10-F","MASTERY SERIES FLY LINES","SONAR SINK 30 (WARM)","SONAR SINK 30 (WARM)   *NEW*",null,null,null,null,null,null,null,null,null,null,null,null,null,null,null,null,null,null,null,null,null,null,null,null,null,null,null,null,null,null,null,null,{"$f":"IF($AV245=0,\"\",SUM(AK245:AN245))","v":""},{"$f":"IF($AV245>0,SUM(AR245:AU245),\"\")","v":""}]
[1,47,1,3,"Horizon WF-11-F","MASTERY SERIES FLY LINES","SONAR SINK 30 (WARM)",121415,"*","150 Grain/5-6 wt Fast Sink - Red / Black",null,840309121415,"1","EACH",79.95,39.979999999999997,35.979999999999997,31.98,null,null,null,null,null,null,null,null,null,null,null,null,null,null,null,null,null,{"$f":"IF(OR(ISBLANK($L246),$AW$3=0),\" - \",OFFSET(O246,0,$AW$3,1,1))","v":39.979999999999997},null,null,null,null,"","",null,{"$f":"IF(LEN($AJ246)>0,$AJ246*AK246,\"\")","v":0},{"$f":"IF(LEN($AJ246)>0,$AJ246*AL246,\"\")","v":0},{"$f":"IF(LEN($AJ246)>0,$AJ246*AM246,\"\")","v":0},{"$f":"IF(LEN($AJ246)>0,$AJ246*AN246,\"\")","v":0},{"$f":"COUNT(AK246:AN246)","v":0},""]
[1,47,2,3,"Horizon WF-12-F","MASTERY SERIES FLY LINES","SONAR SINK 30 (WARM)",121422,"*","200 Grain/6-7 wt Fast Sink - Yellow / Black  ",null,840309121422,"1","EACH",79.95,39.979999999999997,35.979999999999997,31.98,null,null,null,null,null,null,null,null,null,null,null,null,null,null,null,null,null,39.979999999999997,null,null,null,null,"","",null,0,0,0,0,0,""]
[1,47,3,3,"Horizon WF-13-F","MASTERY SERIES FLY LINES","SONAR SINK 30 (WARM)",121439,"*","250 Grain/7-8 wt Fast Sink - Surf / Black",null,840309121439,"1","EACH",79.95,39.979999999999997,35.979999999999997,31.98,null,null,null,null,null,null,null,null,null,null,null,null,null,null,null,null,null,39.979999999999997,null,null,null,null,"","",null,0,0,0,0,0,""]
[1,47,4,3,"\u0001","MASTERY SERIES FLY LINES","SONAR SINK 30 (WARM)",121446,"*","300 Grain/8-9 wt Fast Sink - Green / Black  ",null,840309121446,"1","EACH",79.95,39.979999999999997,35.979999999999997,31.98,null,null,null,null,null,null,null,null,null,null,null,null,null,null,null,null,null,39.979999999999997,null,null,null,null,"","",null,0,0,0,0,0,""]
[1,47,5,3,"Dark Horizon WF- 6-F","MASTERY SERIES FLY LINES","SONAR SINK 30 (WARM)",121453,"*","350 Grain/9-10 wt Fast Sink - Orange / Black   ",null,840309121453,"1","EACH",79.95,39.979999999999997,35.979999999999997,31.98,null,null,null,null,null,null,null,null,null,null,null,null,null,null,null,null,null,39.979999999999997,null,null,null,null,"","",null,0,0,0,0,0,""]
[1,47,6,3,"Dark Horizon WF- 6-F","MASTERY SERIES FLY LINES","SONAR SINK 30 (WARM)",121460,"*","400 Grain/9-12 wt Fast Sink - Surf / Black  ",null,840309121460,"1","EACH",79.95,39.979999999999997,35.979999999999997,31.98,null,null,null,null,null,null,null,null,null,null,null,null,null,null,null,null,null,39.979999999999997,null,null,null,null,"","",null,0,0,0,0,0,""]
[1,47,7,3,"Dark Horizon WF- 7-F","MASTERY SERIES FLY LINES","SONAR SINK 30 (WARM)",121880,"*","450 Grain/10-13 wt Fast Sink - Red / Black",null,840309121880,"1","EACH",79.95,39.979999999999997,35.979999999999997,31.98,null,null,null,null,null,null,null,null,null,null,null,null,null,null,null,null,null,39.979999999999997,null,null,null,null,"","",null,0,0,0,0,0,""]
[1,47,null,2,"Horizon WF-10-F","MASTERY SERIES FLY LINES","SONAR SINK 30 (WARM)","SONAR SINK 30 (COLD)   *NEW*",null,null,null,null,null,null,null,null,null,null,null,null,null,null,null,null,null,null,null,null,null,null,null,null,null,null,null,null,null,null,null,null,{"$f":"IF($AV253=0,\"\",SUM(AK253:AN253))","v":""},{"$f":"IF($AV253>0,SUM(AR253:AU253),\"\")","v":""}]
[1,47.5,1,3,"Horizon WF-11-F","MASTERY SERIES FLY LINES","SONAR SINK 30 (WARM)",125604,"*","150 Grain/5-6 wt Fast Sink - Red / Black",null,840309125604,"1","EACH",79.95,39.979999999999997,35.979999999999997,31.98,null,null,null,null,null,null,null,null,null,null,null,null,null,null,null,null,null,{"$f":"IF(OR(ISBLANK($L254),$AW$3=0),\" - \",OFFSET(O254,0,$AW$3,1,1))","v":39.979999999999997},null,null,null,null,"","",null,{"$f":"IF(LEN($AJ254)>0,$AJ254*AK254,\"\")","v":0},{"$f":"IF(LEN($AJ254)>0,$AJ254*AL254,\"\")","v":0},{"$f":"IF(LEN($AJ254)>0,$AJ254*AM254,\"\")","v":0},{"$f":"IF(LEN($AJ254)>0,$AJ254*AN254,\"\")","v":0},{"$f":"COUNT(AK254:AN254)","v":0},""]
[1,47.5,2,3,"Horizon WF-12-F","MASTERY SERIES FLY LINES","SONAR SINK 30 (WARM)",125611,"*","200 Grain/6-7 wt Fast Sink - Yellow / Black  ",null,840309125611,"1","EACH",79.95,39.979999999999997,35.979999999999997,31.98,null,null,null,null,null,null,null,null,null,null,null,null,null,null,null,null,null,39.979999999999997,null,null,null,null,"","",null,0,0,0,0,0,""]
[1,47.5,3,3,"Horizon WF-13-F","MASTERY SERIES FLY LINES","SONAR SINK 30 (WARM)",125628,"*","250 Grain/7-8 wt Fast Sink - Surf / Black",null,840309125628,"1","EACH",79.95,39.979999999999997,35.979999999999997,31.98,null,null,null,null,null,null,null,null,null,null,null,null,null,null,null,null,null,39.979999999999997,null,null,null,null,"","",null,0,0,0,0,0,""]
[1,47.5,4,3,"\u0001","MASTERY SERIES FLY LINES","SONAR SINK 30 (WARM)",125635,"*","300 Grain/8-9 wt Fast Sink - Green / Black  ",null,840309125635,"1","EACH",79.95,39.979999999999997,35.979999999999997,31.98,null,null,null,null,null,null,null,null,null,null,null,null,null,null,null,null,null,39.979999999999997,null,null,null,null,"","",null,0,0,0,0,0,""]
[1,47.5,5,3,"Dark Horizon WF- 6-F","MASTERY SERIES FLY LINES","SONAR SINK 30 (WARM)",125642,"*","350 Grain/9-10 wt Fast Sink - Orange / Black   ",null,840309125642,"1","EACH",79.95,39.979999999999997,35.979999999999997,31.98,null,null,null,null,null,null,null,null,null,null,null,null,null,null,null,null,null,39.979999999999997,null,null,null,null,"","",null,0,0,0,0,0,""]
[1,47.5,6,3,"Dark Horizon WF- 6-F","MASTERY SERIES FLY LINES","SONAR SINK 30 (WARM)",125659,"*","400 Grain/9-12 wt Fast Sink - Surf / Black  ",null,840309125659,"1","EACH",79.95,39.979999999999997,35.979999999999997,31.98,null,null,null,null,null,null,null,null,null,null,null,null,null,null,null,null,null,39.979999999999997,null,null,null,null,"","",null,0,0,0,0,0,""]
[1,47.5,7,3,"Dark Horizon WF- 7-F","MASTERY SERIES FLY LINES","SONAR SINK 30 (WARM)",125666,"*","450 Grain/10-13 wt Fast Sink - Red / Black",null,840309125666,"1","EACH",79.95,39.979999999999997,35.979999999999997,31.98,null,null,null,null,null,null,null,null,null,null,null,null,null,null,null,null,null,39.979999999999997,null,null,null,null,"","",null,0,0,0,0,0,""]
[1,48,null,2,"Horizon WF-10-F","MASTERY SERIES FLY LINES","SONAR SINK 30 CLEAR TIP","SONAR SINK 30 CLEAR TIP   *NEW*",null,null,null,null,null,null,null,null,null,null,null,null,null,null,null,null,null,null,null,null,null,null,null,null,null,null,null,null,null,null,null,null,{"$f":"IF($AV261=0,\"\",SUM(AK261:AN261))","v":""},{"$f":"IF($AV261>0,SUM(AR261:AU261),\"\")","v":""}]
[1,48,1,3,"Horizon WF-11-F","MASTERY SERIES FLY LINES","SONAR SINK 30 CLEAR TIP",103985,"*","150 Grain/5-6 wt Intermediate Sink - Red / Clear      ",null,840309103985,"1","EACH",79.95,39.979999999999997,35.979999999999997,31.98,null,null,null,null,null,null,null,null,null,null,null,null,null,null,null,null,null,{"$f":"IF(OR(ISBLANK($L262),$AW$3=0),\" - \",OFFSET(O262,0,$AW$3,1,1))","v":39.979999999999997},null,null,null,null,"","",null,{"$f":"IF(LEN($AJ262)>0,$AJ262*AK262,\"\")","v":0},{"$f":"IF(LEN($AJ262)>0,$AJ262*AL262,\"\")","v":0},{"$f":"IF(LEN($AJ262)>0,$AJ262*AM262,\"\")","v":0},{"$f":"IF(LEN($AJ262)>0,$AJ262*AN262,\"\")","v":0},{"$f":"COUNT(AK262:AN262)","v":0},""]
[1,48,2,3,"Horizon WF-12-F","MASTERY SERIES FLY LINES","SONAR SINK 30 CLEAR TIP",103992,"*","200 Grain/6-7 wt Intermediate Sink - Yellow / Clear      ",null,840309103992,"1","EACH",79.95,39.979999999999997,35.979999999999997,31.98,null,null,null,null,null,null,null,null,null,null,null,null,null,null,null,null,null,39.979999999999997,null,null,null,null,"","",null,0,0,0,0,0,""]
[1,48,3,3,"Horizon WF-13-F","MASTERY SERIES FLY LINES","SONAR SINK 30 CLEAR TIP",104005,"*","250 Grain/7-8 wt Intermediate Sink - Surf / Clear      ",null,840309104005,"1","EACH",79.95,39.979999999999997,35.979999999999997,31.98,null,null,null,null,null,null,null,null,null,null,null,null,null,null,null,null,null,39.979999999999997,null,null,null,null,"","",null,0,0,0,0,0,""]
[1,48,4,3,"\u0001","MASTERY SERIES FLY LINES","SONAR SINK 30 CLEAR TIP",104012,"*","300 Grain/8-9 wt Intermediate Sink - Green / Clear      ",null,840309104012,"1","EACH",79.95,39.979999999999997,35.979999999999997,31.98,null,null,null,null,null,null,null,null,null,null,null,null,null,null,null,null,null,39.979999999999997,null,null,null,null,"","",null,0,0,0,0,0,""]
[1,48,5,3,"Dark Horizon WF- 6-F","MASTERY SERIES FLY LINES","SONAR SINK 30 CLEAR TIP",104029,"*","350 Grain/9-10 wt Intermediate Sink - Orange / Clear      ",null,840309104029,"1","EACH",79.95,39.979999999999997,35.979999999999997,31.98,null,null,null,null,null,null,null,null,null,null,null,null,null,null,null,null,null,39.979999999999997,null,null,null,null,"","",null,0,0,0,0,0,""]
[1,48,6,3,"Dark Horizon WF- 6-F","MASTERY SERIES FLY LINES","SONAR SINK 30 CLEAR TIP",104036,"*","400 Grain/9-12 wt Intermediate Sink - Blue / Clear      ",null,840309104036,"1","EACH",79.95,39.979999999999997,35.979999999999997,31.98,null,null,null,null,null,null,null,null,null,null,null,null,null,null,null,null,null,39.979999999999997,null,null,null,null,"","",null,0,0,0,0,0,""]
[1,48,7,3,"Dark Horizon WF- 7-F","MASTERY SERIES FLY LINES","SONAR SINK 30 CLEAR TIP",103480,"*","450 Grain/10-13 wt  Intermediate Sink - Red / Clear",null,840309103480,"1","EACH",79.95,39.979999999999997,35.979999999999997,31.98,null,null,null,null,null,null,null,null,null,null,null,null,null,null,null,null,null,39.979999999999997,null,null,null,null,"","",null,0,0,0,0,0,""]
[1,49,null,2,"Horizon WF-10-F","MASTERY SERIES FLY LINES","SONAR CUSTOM TIP - SURF / DK GRAY","SONAR CUSTOM TIP - SURF / DK GRAY   *NEW*",null,null,null,null,null,null,null,null,null,null,null,null,null,null,null,null,null,null,null,null,null,null,null,null,null,null,null,null,null,null,null,null,{"$f":"IF($AV269=0,\"\",SUM(AK269:AN269))","v":""},{"$f":"IF($AV269>0,SUM(AR269:AU269),\"\")","v":""}]
[1,49,1,3,"Horizon WF-11-F","MASTERY SERIES FLY LINES","SONAR CUSTOM TIP - SURF / DK GRAY",103978,"*","Custom Tip",null,840309103978,"1","EACH",79.95,39.979999999999997,35.979999999999997,31.98,null,null,null,null,null,null,null,null,null,null,null,null,null,null,null,null,null,{"$f":"IF(OR(ISBLANK($L270),$AW$3=0),\" - \",OFFSET(O270,0,$AW$3,1,1))","v":39.979999999999997},null,null,null,null,"","",null,{"$f":"IF(LEN($AJ270)>0,$AJ270*AK270,\"\")","v":0},{"$f":"IF(LEN($AJ270)>0,$AJ270*AL270,\"\")","v":0},{"$f":"IF(LEN($AJ270)>0,$AJ270*AM270,\"\")","v":0},{"$f":"IF(LEN($AJ270)>0,$AJ270*AN270,\"\")","v":0},{"$f":"COUNT(AK270:AN270)","v":0},""]
[1,50,null,2,"Horizon WF-10-F","MASTERY SERIES FLY LINES","SONAR SALTWATER HOVER - SUNRISE / SURF ","SONAR SALTWATER HOVER - SUNRISE / SURF   *NEW*",null,null,null,null,null,null,null,null,null,null,null,null,null,null,null,null,null,null,null,null,null,null,null,null,null,null,null,null,null,null,null,null,"",""]
[1,50,1,3,"Horizon WF-11-F","MASTERY SERIES FLY LINES","SONAR SALTWATER HOVER - SUNRISE / SURF ",121224,"*","WF- 7-F/H    ",null,840309121224,"1","EACH",79.95,39.979999999999997,35.979999999999997,31.98,null,null,null,null,null,null,null,null,null,null,null,null,null,null,null,null,null,{"$f":"IF(OR(ISBLANK($L272),$AW$3=0),\" - \",OFFSET(O272,0,$AW$3,1,1))","v":39.979999999999997},null,null,null,null,"","",null,{"$f":"IF(LEN($AJ272)>0,$AJ272*AK272,\"\")","v":0},{"$f":"IF(LEN($AJ272)>0,$AJ272*AL272,\"\")","v":0},{"$f":"IF(LEN($AJ272)>0,$AJ272*AM272,\"\")","v":0},{"$f":"IF(LEN($AJ272)>0,$AJ272*AN272,\"\")","v":0},{"$f":"COUNT(AK272:AN272)","v":0},""]
[1,50,2,3,"Horizon WF-12-F","MASTERY SERIES FLY LINES","SONAR SALTWATER HOVER - SUNRISE / SURF ",121231,"*","WF- 8-F/H    ",null,840309121231,"1","EACH",79.95,39.979999999999997,35.979999999999997,31.98,null,null,null,null,null,null,null,null,null,null,null,null,null,null,null,null,null,39.979999999999997,null,null,null,null,"","",null,0,0,0,0,0,""]
[1,50,3,3,"Horizon WF-13-F","MASTERY SERIES FLY LINES","SONAR SALTWATER HOVER - SUNRISE / SURF ",121248,"*","WF- 9-F/H       ",null,840309121248,"1","EACH",79.95,39.979999999999997,35.979999999999997,31.98,null,null,null,null,null,null,null,null,null,null,null,null,null,null,null,null,null,39.979999999999997,null,null,null,null,"","",null,0,0,0,0,0,""]
[1,50,4,3,"\u0001","MASTERY SERIES FLY LINES","SONAR SALTWATER HOVER - SUNRISE / SURF ",121255,"*","WF-10-F/H          ",null,840309121255,"1","EACH",79.95,39.979999999999997,35.979999999999997,31.98,null,null,null,null,null,null,null,null,null,null,null,null,null,null,null,null,null,39.979999999999997,null,null,null,null,"","",null,0,0,0,0,0,""]
[1,50,5,3,"Dark Horizon WF- 6-F","MASTERY SERIES FLY LINES","SONAR SALTWATER HOVER - SUNRISE / SURF ",121262,"*","WF-11-F/H          ",null,840309121262,"1","EACH",79.95,39.979999999999997,35.979999999999997,31.98,null,null,null,null,null,null,null,null,null,null,null,null,null,null,null,null,null,39.979999999999997,null,null,null,null,"","",null,0,0,0,0,0,""]
[1,50,6,3,"Dark Horizon WF- 6-F","MASTERY SERIES FLY LINES","SONAR SALTWATER HOVER - SUNRISE / SURF ",121279,"*","WF-12-F/H        ",null,840309121279,"1","EACH",79.95,39.979999999999997,35.979999999999997,31.98,null,null,null,null,null,null,null,null,null,null,null,null,null,null,null,null,null,39.979999999999997,null,null,null,null,"","",null,0,0,0,0,0,""]
[1,51,null,2,"Horizon WF-10-F","MASTERY SERIES FLY LINES","SONAR SALTWATER INTERMEDIATE - SUNRISE / CLEAR ","SONAR SALTWATER INTERMEDIATE - SUNRISE / CLEAR   *NEW*",null,null,null,null,null,null,null,null,null,null,null,null,null,null,null,null,null,null,null,null,null,null,null,null,null,null,null,null,null,null,null,null,{"$f":"IF($AV278=0,\"\",SUM(AK278:AN278))","v":""},{"$f":"IF($AV278>0,SUM(AR278:AU278),\"\")","v":""}]
[1,51,1,3,"Horizon WF-11-F","MASTERY SERIES FLY LINES","SONAR SALTWATER INTERMEDIATE - SUNRISE / CLEAR ",121286,"*","WF- 7-I      ",null,840309121286,"1","EACH",79.95,39.979999999999997,35.979999999999997,31.98,null,null,null,null,null,null,null,null,null,null,null,null,null,null,null,null,null,{"$f":"IF(OR(ISBLANK($L279),$AW$3=0),\" - \",OFFSET(O279,0,$AW$3,1,1))","v":39.979999999999997},null,null,null,null,"","",null,{"$f":"IF(LEN($AJ279)>0,$AJ279*AK279,\"\")","v":0},{"$f":"IF(LEN($AJ279)>0,$AJ279*AL279,\"\")","v":0},{"$f":"IF(LEN($AJ279)>0,$AJ279*AM279,\"\")","v":0},{"$f":"IF(LEN($AJ279)>0,$AJ279*AN279,\"\")","v":0},{"$f":"COUNT(AK279:AN279)","v":0},""]
[1,51,2,3,"Horizon WF-12-F","MASTERY SERIES FLY LINES","SONAR SALTWATER INTERMEDIATE - SUNRISE / CLEAR ",121293,"*","WF- 8-I  ",null,840309121293,"1","EACH",79.95,39.979999999999997,35.979999999999997,31.98,null,null,null,null,null,null,null,null,null,null,null,null,null,null,null,null,null,39.979999999999997,null,null,null,null,"","",null,0,0,0,0,0,""]
[1,51,3,3,"Horizon WF-13-F","MASTERY SERIES FLY LINES","SONAR SALTWATER INTERMEDIATE - SUNRISE / CLEAR ",121309,"*","WF- 9-I     ",null,840309121309,"1","EACH",79.95,39.979999999999997,35.979999999999997,31.98,null,null,null,null,null,null,null,null,null,null,null,null,null,null,null,null,null,39.979999999999997,null,null,null,null,"","",null,0,0,0,0,0,""]
[1,51,4,3,"\u0001","MASTERY SERIES FLY LINES","SONAR SALTWATER INTERMEDIATE - SUNRISE / CLEAR ",121316,"*","WF-10-I      ",null,840309121316,"1","EACH",79.95,39.979999999999997,35.979999999999997,31.98,null,null,null,null,null,null,null,null,null,null,null,null,null,null,null,null,null,39.979999999999997,null,null,null,null,"","",null,0,0,0,0,0,""]
[1,51,5,3,"Dark Horizon WF- 6-F","MASTERY SERIES FLY LINES","SONAR SALTWATER INTERMEDIATE - SUNRISE / CLEAR ",121323,"*","WF-11-I      ",null,840309121323,"1","EACH",79.95,39.979999999999997,35.979999999999997,31.98,null,null,null,null,null,null,null,null,null,null,null,null,null,null,null,null,null,39.979999999999997,null,null,null,null,"","",null,0,0,0,0,0,""]
[1,51,6,3,"Dark Horizon WF- 6-F","MASTERY SERIES FLY LINES","SONAR SALTWATER INTERMEDIATE - SUNRISE / CLEAR ",121330,"*","WF-12-I     ",null,840309121330,"1","EACH",79.95,39.979999999999997,35.979999999999997,31.98,null,null,null,null,null,null,null,null,null,null,null,null,null,null,null,null,null,39.979999999999997,null,null,null,null,"","",null,0,0,0,0,0,""]
[1,52,null,2,"Horizon WF-10-F","MASTERY SERIES FLY LINES","SONAR TITAN TAPER INTERMEDIATE - LILY PAD / TURTLE GRASS (TEXTURED)","SONAR TITAN TAPER INTERMEDIATE - LILY PAD / TURTLE GRASS (TEXTURED)",null,null,null,null,null,null,null,null,null,null,null,null,null,null,null,null,null,null,null,null,null,null,null,null,null,null,null,null,null,null,null,null,{"$f":"IF($AV285=0,\"\",SUM(AK285:AN285))","v":""},{"$f":"IF($AV285>0,SUM(AR285:AU285),\"\")","v":""}]
[1,52,1,3,"Horizon WF-11-F","MASTERY SERIES FLY LINES","SONAR TITAN TAPER INTERMEDIATE - LILY PAD / TURTLE GRASS (TEXTURED)",104456,"*","WF- 6-I     ",null,840309104456,"1","EACH",84.95,42.48,38.229999999999997,33.979999999999997,null,null,null,null,null,null,null,null,null,null,null,null,null,null,null,null,null,{"$f":"IF(OR(ISBLANK($L286),$AW$3=0),\" - \",OFFSET(O286,0,$AW$3,1,1))","v":42.48},null,null,null,null,"","",null,{"$f":"IF(LEN($AJ286)>0,$AJ286*AK286,\"\")","v":0},{"$f":"IF(LEN($AJ286)>0,$AJ286*AL286,\"\")","v":0},{"$f":"IF(LEN($AJ286)>0,$AJ286*AM286,\"\")","v":0},{"$f":"IF(LEN($AJ286)>0,$AJ286*AN286,\"\")","v":0},{"$f":"COUNT(AK286:AN286)","v":0},""]
[1,52,2,3,"Horizon WF-12-F","MASTERY SERIES FLY LINES","SONAR TITAN TAPER INTERMEDIATE - LILY PAD / TURTLE GRASS (TEXTURED)",104463,"*","WF- 7-I      ",null,840309104463,"1","EACH",84.95,42.48,38.229999999999997,33.979999999999997,null,null,null,null,null,null,null,null,null,null,null,null,null,null,null,null,null,42.48,null,null,null,null,"","",null,0,0,0,0,0,""]
[1,52,3,3,"Horizon WF-13-F","MASTERY SERIES FLY LINES","SONAR TITAN TAPER INTERMEDIATE - LILY PAD / TURTLE GRASS (TEXTURED)",104470,"*","WF- 8-I      ",null,840309104470,"1","EACH",84.95,42.48,38.229999999999997,33.979999999999997,null,null,null,null,null,null,null,null,null,null,null,null,null,null,null,null,null,42.48,null,null,null,null,"","",null,0,0,0,0,0,""]
[1,52,4,3,"\u0001","MASTERY SERIES FLY LINES","SONAR TITAN TAPER INTERMEDIATE - LILY PAD / TURTLE GRASS (TEXTURED)",104487,"*","WF- 9-I      ",null,840309104487,"1","EACH",84.95,42.48,38.229999999999997,33.979999999999997,null,null,null,null,null,null,null,null,null,null,null,null,null,null,null,null,null,42.48,null,null,null,null,"","",null,0,0,0,0,0,""]
[1,52,5,3,"Dark Horizon WF- 6-F","MASTERY SERIES FLY LINES","SONAR TITAN TAPER INTERMEDIATE - LILY PAD / TURTLE GRASS (TEXTURED)",104494,"*","WF-10-I     ",null,840309104494,"1","EACH",84.95,42.48,38.229999999999997,33.979999999999997,null,null,null,null,null,null,null,null,null,null,null,null,null,null,null,null,null,42.48,null,null,null,null,"","",null,0,0,0,0,0,""]
[1,52,6,3,"Dark Horizon WF- 6-F","MASTERY SERIES FLY LINES","SONAR TITAN TAPER INTERMEDIATE - LILY PAD / TURTLE GRASS (TEXTURED)",104500,"*","WF-11-I      ",null,840309104500,"1","EACH",84.95,42.48,38.229999999999997,33.979999999999997,null,null,null,null,null,null,null,null,null,null,null,null,null,null,null,null,null,42.48,null,null,null,null,"","",null,0,0,0,0,0,""]
[1,53,null,2,"Horizon WF-10-F","MASTERY SERIES FLY LINES","SONAR TITAN TAPER CLEAR TIP - GRASS / SKY BLUE / CLEAR (TEXTURED)","SONAR TITAN TAPER CLEAR TIP - GRASS / SKY BLUE / CLEAR (TEXTURED)   *NEW*",null,null,null,null,null,null,null,null,null,null,null,null,null,null,null,null,null,null,null,null,null,null,null,null,null,null,null,null,null,null,null,null,{"$f":"IF($AV292=0,\"\",SUM(AK292:AN292))","v":""},{"$f":"IF($AV292>0,SUM(AR292:AU292),\"\")","v":""}]
[1,53,1,3,"Horizon WF-11-F","MASTERY SERIES FLY LINES","SONAR TITAN TAPER CLEAR TIP - GRASS / SKY BLUE / CLEAR (TEXTURED)",121682,"*","WF-6-F/S  TEXTURED",null,840309121682,"1","EACH",84.95,42.48,38.229999999999997,33.979999999999997,null,null,null,null,null,null,null,null,null,null,null,null,null,null,null,null,null,{"$f":"IF(OR(ISBLANK($L293),$AW$3=0),\" - \",OFFSET(O293,0,$AW$3,1,1))","v":42.48},null,null,null,null,"","",null,{"$f":"IF(LEN($AJ293)>0,$AJ293*AK293,\"\")","v":0},{"$f":"IF(LEN($AJ293)>0,$AJ293*AL293,\"\")","v":0},{"$f":"IF(LEN($AJ293)>0,$AJ293*AM293,\"\")","v":0},{"$f":"IF(LEN($AJ293)>0,$AJ293*AN293,\"\")","v":0},{"$f":"COUNT(AK293:AN293)","v":0},""]
[1,53,2,3,"Horizon WF-12-F","MASTERY SERIES FLY LINES","SONAR TITAN TAPER CLEAR TIP - GRASS / SKY BLUE / CLEAR (TEXTURED)",121699,"*","WF-7-F/S  TEXTURED",null,840309121699,"1","EACH",84.95,42.48,38.229999999999997,33.979999999999997,null,null,null,null,null,null,null,null,null,null,null,null,null,null,null,null,null,42.48,null,null,null,null,"","",null,0,0,0,0,0,""]
[1,53,3,3,"Horizon WF-13-F","MASTERY SERIES FLY LINES","SONAR TITAN TAPER CLEAR TIP - GRASS / SKY BLUE / CLEAR (TEXTURED)",121705,"*","WF-8-F/S  TEXTURED",null,840309121705,"1","EACH",84.95,42.48,38.229999999999997,33.979999999999997,null,null,null,null,null,null,null,null,null,null,null,null,null,null,null,null,null,42.48,null,null,null,null,"","",null,0,0,0,0,0,""]
[1,53,4,3,"\u0001","MASTERY SERIES FLY LINES","SONAR TITAN TAPER CLEAR TIP - GRASS / SKY BLUE / CLEAR (TEXTURED)",121712,"*","WF-9-F/S  TEXTURED",null,840309121712,"1","EACH",84.95,42.48,38.229999999999997,33.979999999999997,null,null,null,null,null,null,null,null,null,null,null,null,null,null,null,null,null,42.48,null,null,null,null,"","",null,0,0,0,0,0,""]
[1,53,5,3,"Dark Horizon WF- 6-F","MASTERY SERIES FLY LINES","SONAR TITAN TAPER CLEAR TIP - GRASS / SKY BLUE / CLEAR (TEXTURED)",102834,"*","WF-10-F/S  TEXTURED",null,840309102834,"1","EACH",84.95,42.48,38.229999999999997,33.979999999999997,null,null,null,null,null,null,null,null,null,null,null,null,null,null,null,null,null,42.48,null,null,null,null,"","",null,0,0,0,0,0,""]
[1,53,6,3,"Dark Horizon WF- 6-F","MASTERY SERIES FLY LINES","SONAR TITAN TAPER CLEAR TIP - GRASS / SKY BLUE / CLEAR (TEXTURED)",103398,"*","WF-11-F/S  TEXTURED",null,840309103398,"1","EACH",84.95,42.48,38.229999999999997,33.979999999999997,null,null,null,null,null,null,null,null,null,null,null,null,null,null,null,null,null,42.48,null,null,null,null,"","",null,0,0,0,0,0,""]
[1,54,null,2,"Horizon WF-10-F","MASTERY SERIES FLY LINES","SONAR TITAN TAPER INTERMEDIATE / SINK 3 / SINK 5 - PALE GREEN / OLIVE / CHARCOAL (TEXTURED)","SONAR TITAN TAPER INTERMEDIATE / SINK 3 / SINK 5 - PALE GREEN / OLIVE / CHARCOAL (TEXTURED)   *NEW*",null,null,null,null,null,null,null,null,null,null,null,null,null,null,null,null,null,null,null,null,null,null,null,null,null,null,null,null,null,null,null,null,{"$f":"IF($AV299=0,\"\",SUM(AK299:AN299))","v":""},{"$f":"IF($AV299>0,SUM(AR299:AU299),\"\")","v":""}]
[1,54,1,3,"Horizon WF-11-F","MASTERY SERIES FLY LINES","SONAR TITAN TAPER INTERMEDIATE / SINK 3 / SINK 5 - PALE GREEN / OLIVE / CHARCOAL (TEXTURED)",103916,"*","WF-6-S TEXTURED",null,840309103916,"1","EACH",84.95,42.48,38.229999999999997,33.979999999999997,null,null,null,null,null,null,null,null,null,null,null,null,null,null,null,null,null,{"$f":"IF(OR(ISBLANK($L300),$AW$3=0),\" - \",OFFSET(O300,0,$AW$3,1,1))","v":42.48},null,null,null,null,"","",null,{"$f":"IF(LEN($AJ300)>0,$AJ300*AK300,\"\")","v":0},{"$f":"IF(LEN($AJ300)>0,$AJ300*AL300,\"\")","v":0},{"$f":"IF(LEN($AJ300)>0,$AJ300*AM300,\"\")","v":0},{"$f":"IF(LEN($AJ300)>0,$AJ300*AN300,\"\")","v":0},{"$f":"COUNT(AK300:AN300)","v":0},""]
[1,54,2,3,"Horizon WF-12-F","MASTERY SERIES FLY LINES","SONAR TITAN TAPER INTERMEDIATE / SINK 3 / SINK 5 - PALE GREEN / OLIVE / CHARCOAL (TEXTURED)",103923,"*","WF-7-S TEXTURED",null,840309103923,"1","EACH",84.95,42.48,38.229999999999997,33.979999999999997,null,null,null,null,null,null,null,null,null,null,null,null,null,null,null,null,null,42.48,null,null,null,null,"","",null,0,0,0,0,0,""]
[1,54,3,3,"Horizon WF-13-F","MASTERY SERIES FLY LINES","SONAR TITAN TAPER INTERMEDIATE / SINK 3 / SINK 5 - PALE GREEN / OLIVE / CHARCOAL (TEXTURED)",103930,"*","WF-8-S TEXTURED",null,840309103930,"1","EACH",84.95,42.48,38.229999999999997,33.979999999999997,null,null,null,null,null,null,null,null,null,null,null,null,null,null,null,null,null,42.48,null,null,null,null,"","",null,0,0,0,0,0,""]
[1,54,4,3,"\u0001","MASTERY SERIES FLY LINES","SONAR TITAN TAPER INTERMEDIATE / SINK 3 / SINK 5 - PALE GREEN / OLIVE / CHARCOAL (TEXTURED)",103947,"*","WF-9-S TEXTURED",null,840309103947,"1","EACH",84.95,42.48,38.229999999999997,33.979999999999997,null,null,null,null,null,null,null,null,null,null,null,null,null,null,null,null,null,42.48,null,null,null,null,"","",null,0,0,0,0,0,""]
[1,54,5,3,"Dark Horizon WF- 6-F","MASTERY SERIES FLY LINES","SONAR TITAN TAPER INTERMEDIATE / SINK 3 / SINK 5 - PALE GREEN / OLIVE / CHARCOAL (TEXTURED)",103954,"*","WF-10-S TEXTURED",null,840309103954,"1","EACH",84.95,42.48,38.229999999999997,33.979999999999997,null,null,null,null,null,null,null,null,null,null,null,null,null,null,null,null,null,42.48,null,null,null,null,"","",null,0,0,0,0,0,""]
[1,54,6,3,"Dark Horizon WF- 6-F","MASTERY SERIES FLY LINES","SONAR TITAN TAPER INTERMEDIATE / SINK 3 / SINK 5 - PALE GREEN / OLIVE / CHARCOAL (TEXTURED)",103961,"*","WF-11-S TEXTURED",null,840309103961,"1","EACH",84.95,42.48,38.229999999999997,33.979999999999997,null,null,null,null,null,null,null,null,null,null,null,null,null,null,null,null,null,42.48,null,null,null,null,"","",null,0,0,0,0,0,""]
[1,55,null,2,"Horizon WF-10-F","MASTERY SERIES FLY LINES","SONAR TITAN BIG WATER TAPER -INTERMEDIATE - CONCH TAN / SURF (100LB. CORE)","SONAR TITAN BIG WATER TAPER -INTERMEDIATE - CONCH TAN / SURF (100LB. CORE)   *NEW*",null,null,null,null,null,null,null,null,null,null,null,null,null,null,null,null,null,null,null,null,null,null,null,null,null,null,null,null,null,null,null,null,{"$f":"IF($AV306=0,\"\",SUM(AK306:AN306))","v":""},{"$f":"IF($AV306>0,SUM(AR306:AU306),\"\")","v":""}]
[1,55,1,3,"Horizon WF-11-F","MASTERY SERIES FLY LINES","SONAR TITAN BIG WATER TAPER -INTERMEDIATE - CONCH TAN / SURF (100LB. CORE)",121781,"*","WF-350-I/F 100LB",null,840309121781,"1","EACH",89.95,44.975000000000001,40.477499999999999,35.980000000000004,null,null,null,null,null,null,null,null,null,null,null,null,null,null,null,null,null,{"$f":"IF(OR(ISBLANK($L307),$AW$3=0),\" - \",OFFSET(O307,0,$AW$3,1,1))","v":44.975000000000001},null,null,null,null,"","",null,{"$f":"IF(LEN($AJ307)>0,$AJ307*AK307,\"\")","v":0},{"$f":"IF(LEN($AJ307)>0,$AJ307*AL307,\"\")","v":0},{"$f":"IF(LEN($AJ307)>0,$AJ307*AM307,\"\")","v":0},{"$f":"IF(LEN($AJ307)>0,$AJ307*AN307,\"\")","v":0},{"$f":"COUNT(AK307:AN307)","v":0},""]
[1,55,2,3,"Horizon WF-12-F","MASTERY SERIES FLY LINES","SONAR TITAN BIG WATER TAPER -INTERMEDIATE - CONCH TAN / SURF (100LB. CORE)",121798,"*","WF-450-I/F 100LB",null,840309121798,"1","EACH",89.95,44.975000000000001,40.477499999999999,35.980000000000004,null,null,null,null,null,null,null,null,null,null,null,null,null,null,null,null,null,44.975000000000001,null,null,null,null,"","",null,0,0,0,0,0,""]
[1,55.5,null,2,"Horizon WF-10-F","MASTERY SERIES FLY LINES","SONAR TITAN BIG WATER TAPER - SINK 6+ - SURF / BLACK (100LB. CORE)","SONAR TITAN BIG WATER TAPER - SINK 6+ - SURF / BLACK (100LB. CORE)   *NEW*",null,null,null,null,null,null,null,null,null,null,null,null,null,null,null,null,null,null,null,null,null,null,null,null,null,null,null,null,null,null,null,null,"",""]
[1,55.5,1,3,"Horizon WF-11-F","MASTERY SERIES FLY LINES","SONAR TITAN BIG WATER TAPER - SINK 6+ - SURF / BLACK (100LB. CORE)",121804,"*","WF - 500-S 100LB",null,840309121804,"1","EACH",89.95,44.975000000000001,40.477499999999999,35.980000000000004,null,null,null,null,null,null,null,null,null,null,null,null,null,null,null,null,null,{"$f":"IF(OR(ISBLANK($L310),$AW$3=0),\" - \",OFFSET(O310,0,$AW$3,1,1))","v":44.975000000000001},null,null,null,null,"","",null,{"$f":"IF(LEN($AJ310)>0,$AJ310*AK310,\"\")","v":0},{"$f":"IF(LEN($AJ310)>0,$AJ310*AL310,\"\")","v":0},{"$f":"IF(LEN($AJ310)>0,$AJ310*AM310,\"\")","v":0},{"$f":"IF(LEN($AJ310)>0,$AJ310*AN310,\"\")","v":0},{"$f":"COUNT(AK310:AN310)","v":0},""]
[1,55.5,2,3,"Horizon WF-12-F","MASTERY SERIES FLY LINES","SONAR TITAN BIG WATER TAPER - SINK 6+ - SURF / BLACK (100LB. CORE)",121811,"*","WF - 600-S 100LB",null,840309121811,"1","EACH",89.95,44.975000000000001,40.477499999999999,35.980000000000004,null,null,null,null,null,null,null,null,null,null,null,null,null,null,null,null,null,44.975000000000001,null,null,null,null,"","",null,0,0,0,0,0,""]
[1,55.5,3,3,"Horizon WF-13-F","MASTERY SERIES FLY LINES","SONAR TITAN BIG WATER TAPER - SINK 6+ - SURF / BLACK (100LB. CORE)",121828,"*","WF - 700-S 100LB",null,840309121828,"1","EACH",89.95,44.975000000000001,40.477499999999999,35.980000000000004,null,null,null,null,null,null,null,null,null,null,null,null,null,null,null,null,null,44.975000000000001,null,null,null,null,"","",null,0,0,0,0,0,""]
[1,0,null,1,null,"SONAR STILLWATER / LAKE FLY LINES",null,"SONAR STILLWATER / LAKE FLY LINES - Workbook Pages 36-43",null,null,null,null,null,null,null,null,null,null,null,null,null,null,null,null,null,null,null,null,null,null,null,null,null,null,null,null,null,null,null,null,{"$f":"IF($AV313=0,\"\",SUM(AK313:AN313))","v":""},""]
[1,56,null,2,"Dark Horizon WF- 8-F","MASTERY SERIES FLY LINES","SONAR HOVER - OPTIC GREEN / PALE GREEN","SONAR HOVER - OPTIC GREEN / PALE GREEN   *NEW*",null,null,null,null,null,null,null,null,null,null,null,null,null,null,null,null,null,null,null,null,null,null,null,null,null,null,null,null,null,null,null,null,"",""]
[1,56,1,3,"Dark Horizon WF- 9-F","MASTERY SERIES FLY LINES","SONAR HOVER - OPTIC GREEN / PALE GREEN",103862,"*","WF- 5-F/H   ",null,840309103862,"1","EACH",74.94,37.47,33.72,29.98,null,null,null,null,null,null,null,null,null,null,null,null,null,null,null,null,null,{"$f":"IF(OR(ISBLANK($L315),$AW$3=0),\" - \",OFFSET(O315,0,$AW$3,1,1))","v":37.47},null,null,null,null,"","",null,0,0,0,0,0,""]
[1,56,2,3,"Dark Horizon WF-10-F","MASTERY SERIES FLY LINES","SONAR HOVER - OPTIC GREEN / PALE GREEN",103879,"*","WF- 6-F/H      ",null,840309103879,"1","EACH",74.94,37.47,33.72,29.98,null,null,null,null,null,null,null,null,null,null,null,null,null,null,null,null,null,{"$f":"IF(OR(ISBLANK($L316),$AW$3=0),\" - \",OFFSET(O316,0,$AW$3,1,1))","v":37.47},null,null,null,null,"","",null,0,0,0,0,0,""]
[1,56,3,3,"\u0001","MASTERY SERIES FLY LINES","SONAR HOVER - OPTIC GREEN / PALE GREEN",103886,"*","WF- 7-F/H     ",null,840309103886,"1","EACH",74.94,37.47,33.72,29.98,null,null,null,null,null,null,null,null,null,null,null,null,null,null,null,null,null,{"$f":"IF(OR(ISBLANK($L317),$AW$3=0),\" - \",OFFSET(O317,0,$AW$3,1,1))","v":37.47},null,null,null,null,"","",null,0,0,0,0,0,""]
[1,56,4,3,"Dark Horizon WF- 7-F","MASTERY SERIES FLY LINES","SONAR HOVER - OPTIC GREEN / PALE GREEN",103893,"*","WF- 8-F/H      ",null,840309103893,"1","EACH",74.94,37.47,33.72,29.98,null,null,null,null,null,null,null,null,null,null,null,null,null,null,null,null,null,{"$f":"IF(OR(ISBLANK($L318),$AW$3=0),\" - \",OFFSET(O318,0,$AW$3,1,1))","v":37.47},null,null,null,null,{"$f":"IF($AV318=0,\"\",SUM(AK318:AN318))","v":""},{"$f":"IF($AV318>0,SUM(AR318:AU318),\"\")","v":""},null,{"$f":"IF(LEN($AJ318)>0,$AJ318*AK318,\"\")","v":0},{"$f":"IF(LEN($AJ318)>0,$AJ318*AL318,\"\")","v":0},{"$f":"IF(LEN($AJ318)>0,$AJ318*AM318,\"\")","v":0},{"$f":"IF(LEN($AJ318)>0,$AJ318*AN318,\"\")","v":0},{"$f":"COUNT(AK318:AN318)","v":0},{"$f":"IF($AV318<>0,ROW($AV$11),\"\")","v":""}]
[1,56,5,3,"Dark Horizon WF- 7-F","MASTERY SERIES FLY LINES","SONAR HOVER - OPTIC GREEN / PALE GREEN",103909,"*","WF- 9-F/H     ",null,840309103909,"1","EACH",74.94,37.47,33.72,29.98,null,null,null,null,null,null,null,null,null,null,null,null,null,null,null,null,null,{"$f":"IF(OR(ISBLANK($L319),$AW$3=0),\" - \",OFFSET(O319,0,$AW$3,1,1))","v":37.47},null,null,null,null,"","",null,0,0,0,0,{"$f":"COUNT(AK319:AN319)","v":0},{"$f":"IF($AV319<>0,ROW($AV$11),\"\")","v":""}]
[1,57,null,2,"Dark Horizon WF- 8-F","MASTERY SERIES FLY LINES","SONAR STILLWATER - CLEAR","SONAR STILLWATER - CLEAR   *NEW*",null,null,null,null,null,null,null,null,null,null,null,null,null,null,null,null,null,null,null,null,null,null,null,null,null,null,null,null,null,null,null,null,"",""]
[1,57,1,3,"Dark Horizon WF- 9-F","MASTERY SERIES FLY LINES","SONAR STILLWATER - CLEAR"," 112116","*","WF- 4-S      ",null,840309112116,"1","EACH",74.95,37.479999999999997,33.729999999999997,29.98,null,null,null,null,null,null,null,null,null,null,null,null,null,null,null,null,null,{"$f":"IF(OR(ISBLANK($L321),$AW$3=0),\" - \",OFFSET(O321,0,$AW$3,1,1))","v":37.479999999999997},null,null,null,null,"","",null,0,0,0,0,{"$f":"COUNT(AK321:AN321)","v":0},{"$f":"IF($AV321<>0,ROW($AV$11),\"\")","v":""}]
[1,57,2,3,"\u0001","MASTERY SERIES FLY LINES","SONAR STILLWATER - CLEAR"," 112123","*","WF- 5-S      ",null,840309112123,"1","EACH",74.95,37.479999999999997,33.729999999999997,29.98,null,null,null,null,null,null,null,null,null,null,null,null,null,null,null,null,null,{"$f":"IF(OR(ISBLANK($L322),$AW$3=0),\" - \",OFFSET(O322,0,$AW$3,1,1))","v":37.479999999999997},null,null,null,null,"","",null,0,0,0,0,{"$f":"COUNT(AK322:AN322)","v":0},{"$f":"IF($AV322<>0,ROW($AV$11),\"\")","v":""}]
[1,57,3,3,"Yellow/Dk Gray 200 Grain 6-7 wt","MASTERY SERIES FLY LINES","SONAR STILLWATER - CLEAR"," 112130","*","WF- 6-S      ",null,840309112130,"1","EACH",74.95,37.479999999999997,33.729999999999997,29.98,null,null,null,null,null,null,null,null,null,null,null,null,null,null,null,null,null,{"$f":"IF(OR(ISBLANK($L323),$AW$3=0),\" - \",OFFSET(O323,0,$AW$3,1,1))","v":37.479999999999997},null,null,null,null,"","",null,0,0,0,0,0,""]
[1,57,4,3,"Surf/Dk Gray 250 Grain 7-8 wt","MASTERY SERIES FLY LINES","SONAR STILLWATER - CLEAR"," 112147","*","WF- 7-S      ",null,840309112147,"1","EACH",74.95,37.479999999999997,33.729999999999997,29.98,null,null,null,null,null,null,null,null,null,null,null,null,null,null,null,null,null,{"$f":"IF(OR(ISBLANK($L324),$AW$3=0),\" - \",OFFSET(O324,0,$AW$3,1,1))","v":37.479999999999997},null,null,null,null,"","",null,0,0,0,0,0,""]
[1,57,5,3,"Green/Dk Gray 300 Grain 8-9 wt","MASTERY SERIES FLY LINES","SONAR STILLWATER - CLEAR"," 112154","*","WF- 8-S      ",null,840309112154,"1","EACH",74.95,37.479999999999997,33.729999999999997,29.98,null,null,null,null,null,null,null,null,null,null,null,null,null,null,null,null,null,{"$f":"IF(OR(ISBLANK($L325),$AW$3=0),\" - \",OFFSET(O325,0,$AW$3,1,1))","v":37.479999999999997},null,null,null,null,"","",null,{"$f":"IF(LEN($AJ325)>0,$AJ325*AK325,\"\")","v":0},0,0,0,0,""]
[1,58,null,2,"\u0001","MASTERY SERIES FLY LINES","  UNIFORM SINK PLUS - II - BLUE/BLUE","SONAR UNIFORM SINK PLUS - II - BLUE / BLUE   *NEW*",null,null,null,null,null,null,null,null,null,null,null,null,null,null,null,null,null,null,null,null,null,null,null,null,null,null,null,null,null,null,null,null,"",""]
[1,58,1,3,"Mist Green WF- 5-F","MASTERY SERIES FLY LINES","  UNIFORM SINK PLUS - II - BLUE/BLUE",112857,"*","WF- 5-S      ",null,840309112857,"1","EACH",79.95,39.979999999999997,35.979999999999997,31.98,null,null,null,null,null,null,null,null,null,null,null,null,null,null,null,null,null,{"$f":"IF(OR(ISBLANK($L327),$AW$3=0),\" - \",OFFSET(O327,0,$AW$3,1,1))","v":39.979999999999997},null,null,null,null,"","",null,{"$f":"IF(LEN($AJ327)>0,$AJ327*AK327,\"\")","v":0},0,0,0,{"$f":"COUNT(AK327:AN327)","v":0},{"$f":"IF($AV327<>0,ROW($AV$11),\"\")","v":""}]
[1,58,2,3,"Mist Green WF- 6-F","MASTERY SERIES FLY LINES","  UNIFORM SINK PLUS - II - BLUE/BLUE",112864,"*","WF- 6-S      ",null,840309112864,"1","EACH",79.95,39.979999999999997,35.979999999999997,31.98,null,null,null,null,null,null,null,null,null,null,null,null,null,null,null,null,null,{"$f":"IF(OR(ISBLANK($L328),$AW$3=0),\" - \",OFFSET(O328,0,$AW$3,1,1))","v":39.979999999999997},null,null,null,null,"","",null,0,0,0,0,{"$f":"COUNT(AK328:AN328)","v":0},{"$f":"IF($AV328<>0,ROW($AV$11),\"\")","v":""}]
[1,58,3,3,"Mist Green WF- 7-F","MASTERY SERIES FLY LINES","  UNIFORM SINK PLUS - II - BLUE/BLUE",112871,"*","WF- 7-S      ",null,840309112871,"1","EACH",79.95,39.979999999999997,35.979999999999997,31.98,null,null,null,null,null,null,null,null,null,null,null,null,null,null,null,null,null,{"$f":"IF(OR(ISBLANK($L329),$AW$3=0),\" - \",OFFSET(O329,0,$AW$3,1,1))","v":39.979999999999997},null,null,null,null,"","",null,0,0,0,0,{"$f":"COUNT(AK329:AN329)","v":0},{"$f":"IF($AV329<>0,ROW($AV$11),\"\")","v":""}]
[1,59,null,2,"\u0001","MASTERY SERIES FLY LINES","  UNIFORM SINK PLUS - III - BLUE/DK BLUE","SONAR UNIFORM SINK PLUS - III - BLUE / BLUE   *NEW*",null,null,null,null,null,null,null,null,null,null,null,null,null,null,null,null,null,null,null,null,null,null,null,null,null,null,null,null,null,null,null,null,"",""]
[1,59,1,3,"Red/Gray 150 Grain","MASTERY SERIES FLY LINES","  UNIFORM SINK PLUS - III - BLUE/DK BLUE",112888,"*","WF- 5-S      ",null,840309112888,"1","EACH",79.95,39.979999999999997,35.979999999999997,31.98,null,null,null,null,null,null,null,null,null,null,null,null,null,null,null,null,null,{"$f":"IF(OR(ISBLANK($L331),$AW$3=0),\" - \",OFFSET(O331,0,$AW$3,1,1))","v":39.979999999999997},null,null,null,null,"","",null,{"$f":"IF(LEN($AJ331)>0,$AJ331*AK331,\"\")","v":0},0,0,0,{"$f":"COUNT(AK331:AN331)","v":0},{"$f":"IF($AV331<>0,ROW($AV$11),\"\")","v":""}]
[1,59,2,3,"Yellow/Dk Gray 200 Grain, 6-7 wt","MASTERY SERIES FLY LINES","  UNIFORM SINK PLUS - III - BLUE/DK BLUE",112895,"*","WF- 6-S      ",null,840309112895,"1","EACH",79.95,39.979999999999997,35.979999999999997,31.98,null,null,null,null,null,null,null,null,null,null,null,null,null,null,null,null,null,{"$f":"IF(OR(ISBLANK($L332),$AW$3=0),\" - \",OFFSET(O332,0,$AW$3,1,1))","v":39.979999999999997},null,null,null,null,"","",null,0,0,0,0,0,""]
[1,59,3,3,"Surf/Dark Gray 250 Grain, 7-8 wt","MASTERY SERIES FLY LINES","  UNIFORM SINK PLUS - III - BLUE/DK BLUE",112901,"*","WF- 7-S      ",null,840309112901,"1","EACH",79.95,39.979999999999997,35.979999999999997,31.98,null,null,null,null,null,null,null,null,null,null,null,null,null,null,null,null,null,{"$f":"IF(OR(ISBLANK($L333),$AW$3=0),\" - \",OFFSET(O333,0,$AW$3,1,1))","v":39.979999999999997},null,null,null,null,"","",null,0,0,0,0,0,""]
[1,60,null,2,"Blue/Dark Gray 400 Grain, 9-12 wt","MASTERY SERIES FLY LINES","  UNIFORM SINK PLUS - IV - BLUE/DK GRAY","SONAR UNIFORM SINK PLUS - IV - BLUE / GRAY   *NEW*",null,null,null,null,null,null,null,null,null,null,null,null,null,null,null,null,null,null,null,null,null,null,null,null,null,null,null,null,null,null,null,null,"",""]
[1,60,1,3,"Red/Dark Gray 450 Grain, 10-13 wt","MASTERY SERIES FLY LINES","  UNIFORM SINK PLUS - IV - BLUE/DK GRAY",112918,"*","WF- 5-S      ",null,840309112918,"1","EACH",79.95,39.979999999999997,35.979999999999997,31.98,null,null,null,null,null,null,null,null,null,null,null,null,null,null,null,null,null,{"$f":"IF(OR(ISBLANK($L335),$AW$3=0),\" - \",OFFSET(O335,0,$AW$3,1,1))","v":39.979999999999997},null,null,null,null,"","",null,0,0,0,0,0,""]
[1,60,2,3,"\u0001","MASTERY SERIES FLY LINES","  UNIFORM SINK PLUS - IV - BLUE/DK GRAY",112925,"*","WF- 6-S      ",null,840309112925,"1","EACH",79.95,39.979999999999997,35.979999999999997,31.98,null,null,null,null,null,null,null,null,null,null,null,null,null,null,null,null,null,{"$f":"IF(OR(ISBLANK($L336),$AW$3=0),\" - \",OFFSET(O336,0,$AW$3,1,1))","v":39.979999999999997},null,null,null,null,"","",null,0,0,0,0,0,""]
[1,60,3,3,"Red/Clear 150 Grain","MASTERY SERIES FLY LINES","  UNIFORM SINK PLUS - IV - BLUE/DK GRAY",112932,"*","WF- 7-S      ",null,840309112932,"1","EACH",79.95,39.979999999999997,35.979999999999997,31.98,null,null,null,null,null,null,null,null,null,null,null,null,null,null,null,null,null,{"$f":"IF(OR(ISBLANK($L337),$AW$3=0),\" - \",OFFSET(O337,0,$AW$3,1,1))","v":39.979999999999997},null,null,null,null,"","",null,0,0,0,0,0,""]
[1,61,null,2,"Green/Clear 300 Grain, 8-9 wt","MASTERY SERIES FLY LINES","  UNIFORM SINK PLUS - V - BLUE/BLACK","SONAR UNIFORM SINK PLUS - V - BLUE / BLACK   *NEW*",null,null,null,null,null,null,null,null,null,null,null,null,null,null,null,null,null,null,null,null,null,null,null,null,null,null,null,null,null,null,null,null,"","",null,"","","","",0,""]
[1,61,1,3,"Orange/Clear 350 Grain, 9-10 wt","MASTERY SERIES FLY LINES","  UNIFORM SINK PLUS - V - BLUE/BLACK",112949,"*","WF- 5-S      ",null,840309112949,"1","EACH",79.95,39.979999999999997,35.979999999999997,31.98,null,null,null,null,null,null,null,null,null,null,null,null,null,null,null,null,null,{"$f":"IF(OR(ISBLANK($L339),$AW$3=0),\" - \",OFFSET(O339,0,$AW$3,1,1))","v":39.979999999999997},null,null,null,null,"","",null,0,0,0,0,0,""]
[1,61,2,3,"Blue/Clear 400 Grain, 9-12 wt","MASTERY SERIES FLY LINES","  UNIFORM SINK PLUS - V - BLUE/BLACK",112956,"*","WF- 6-S      ",null,840309112956,"1","EACH",79.95,39.979999999999997,35.979999999999997,31.98,null,null,null,null,null,null,null,null,null,null,null,null,null,null,null,null,null,{"$f":"IF(OR(ISBLANK($L340),$AW$3=0),\" - \",OFFSET(O340,0,$AW$3,1,1))","v":39.979999999999997},null,null,null,null,"","",null,0,0,0,0,0,""]
[1,61,3,3,"\u0001","MASTERY SERIES FLY LINES","  UNIFORM SINK PLUS - V - BLUE/BLACK",112963,"*","WF- 7-S      ",null,840309112963,"1","EACH",79.95,39.979999999999997,35.979999999999997,31.98,null,null,null,null,null,null,null,null,null,null,null,null,null,null,null,null,null,{"$f":"IF(OR(ISBLANK($L341),$AW$3=0),\" - \",OFFSET(O341,0,$AW$3,1,1))","v":39.979999999999997},null,null,null,null,"","",null,0,0,0,0,0,""]
[2,0,null,1,null,"SCIENTIFIC ANGLERS FLY LINES",null,"FREQUENCY SERIES FLY LINES - Workbook pages 16-20",null,null,null,null,null,null,null,null,null,null,null,null,null,null,null,null,null,null,null,null,null,null,null,null,null,null,null,null,null,null,null,null,{"$f":"IF($AV342=0,\"\",SUM(AK342:AN342))","v":""},{"$f":"IF($AV342>0,SUM(AR342:AU342),\"\")","v":""},null,{"$f":"IF(LEN($AJ342)>0,$AJ342*AK342,\"\")","v":""},"","","",{"$f":"COUNT(AK342:AN342)","v":0},{"$f":"IF($AV342<>0,ROW($AV$11),\"\")","v":""}]
[2,62,null,2,"\u0001","SCIENTIFIC ANGLERS FLY LINES","  FREQUENCY - TROUT WITH LOOP - BUCKSKIN  ","FREQUENCY - TROUT WITH LOOP - BUCKSKIN",null,null,null,null,null,null,null,null,null,null,null,null,null,null,null,null,null,null,null,null,null,null,null,null,null,null,null,null,null,null,null,null,"",""]
[2,62,1,3,"Wlw/Org/Willow WF- 2-F","SCIENTIFIC ANGLERS FLY LINES","  FREQUENCY - TROUT WITH LOOP - BUCKSKIN  ",117166,"*","WF- 3-F      ",null,"840309117166","1","EACH",49.95,27.48,24.98,22.48,null,null,null,null,null,null,null,null,null,null,null,null,null,null,null,null,null,{"$f":"IF(OR(ISBLANK($L344),$AW$3=0),\" - \",OFFSET(O344,0,$AW$3,1,1))","v":27.48},null,null,null,null,"","",null,{"$f":"IF(LEN($AJ344)>0,$AJ344*AK344,\"\")","v":0},0,0,0,{"$f":"COUNT(AK344:AN344)","v":0},{"$f":"IF($AV344<>0,ROW($AV$11),\"\")","v":""}]
[2,62,2,3,"Wlw/Org/Willow WF- 3-F","SCIENTIFIC ANGLERS FLY LINES","  FREQUENCY - TROUT WITH LOOP - BUCKSKIN  ",117173,"*","WF- 4-F      ",null,"840309117173","1","EACH",49.95,27.48,24.98,22.48,null,null,null,null,null,null,null,null,null,null,null,null,null,null,null,null,null,{"$f":"IF(OR(ISBLANK($L345),$AW$3=0),\" - \",OFFSET(O345,0,$AW$3,1,1))","v":27.48},null,null,null,null,"","",null,0,0,0,0,0,""]
[2,62,3,3,"Wlw/Org/Willow WF- 4-F","SCIENTIFIC ANGLERS FLY LINES","  FREQUENCY - TROUT WITH LOOP - BUCKSKIN  ",117180,"*","WF- 5-F      ",null,"840309117180","1","EACH",49.95,27.48,24.98,22.48,null,null,null,null,null,null,null,null,null,null,null,null,null,null,null,null,null,{"$f":"IF(OR(ISBLANK($L346),$AW$3=0),\" - \",OFFSET(O346,0,$AW$3,1,1))","v":27.48},null,null,null,null,"","",null,0,0,0,0,0,""]
[2,62,4,3,"Wlw/Org/Willow WF- 5-F","SCIENTIFIC ANGLERS FLY LINES","  FREQUENCY - TROUT WITH LOOP - BUCKSKIN  ",117197,"*","WF- 6-F      ",null,"840309117197","1","EACH",49.95,27.48,24.98,22.48,null,null,null,null,null,null,null,null,null,null,null,null,null,null,null,null,null,{"$f":"IF(OR(ISBLANK($L347),$AW$3=0),\" - \",OFFSET(O347,0,$AW$3,1,1))","v":27.48},null,null,null,null,"","",null,0,0,0,0,0,""]
[2,62,5,3,null,"SCIENTIFIC ANGLERS FLY LINES","  FREQUENCY - TROUT WITH LOOP - BUCKSKIN  ",120388,"*","WF- 7-F   *NEW*      ",null,840309120388,"1","EACH",49.95,27.48,24.98,22.48,null,null,null,null,null,null,null,null,null,null,null,null,null,null,null,null,null,27.48,null,null,null,null,{"$f":"IF($AV348=0,\"\",SUM(AK348:AN348))","v":""},{"$f":"IF($AV348>0,SUM(AR348:AU348),\"\")","v":""},null,{"$f":"IF(LEN($AJ348)>0,$AJ348*AK348,\"\")","v":0},{"$f":"IF(LEN($AJ348)>0,$AJ348*AL348,\"\")","v":0},{"$f":"IF(LEN($AJ348)>0,$AJ348*AM348,\"\")","v":0},{"$f":"IF(LEN($AJ348)>0,$AJ348*AN348,\"\")","v":0},{"$f":"COUNT(AK348:AN348)","v":0}]
[2,62,6,3,null,"SCIENTIFIC ANGLERS FLY LINES","  FREQUENCY - TROUT WITH LOOP - BUCKSKIN  ",121866,"*","WF- 8-F   *NEW*     ",null,840309121866,"1","EACH",49.95,27.48,24.98,22.48,null,null,null,null,null,null,null,null,null,null,null,null,null,null,null,null,null,27.48,null,null,null,null,"","",null,0,0,0,0,0]
[2,62,7,3,null,"SCIENTIFIC ANGLERS FLY LINES","  FREQUENCY - TROUT WITH LOOP - BUCKSKIN  ",121873,"*","WF- 9-F   *NEW*   ",null,840309121873,"1","EACH",49.95,27.48,24.98,22.48,null,null,null,null,null,null,null,null,null,null,null,null,null,null,null,null,null,27.48,null,null,null,null,"","",null,0,0,0,0,0]
[2,63,null,2,"Wlw/Org/Willow WF- 6-F","SCIENTIFIC ANGLERS FLY LINES","  FREQUENCY - BOOST WITH LOOP - WILLOW ","FREQUENCY - BOOST WITH LOOP - WILLOW",null,null,null,null,null,null,null,null,null,null,null,null,null,null,null,null,null,null,null,null,null,null,null,null,null,null,null,null,null,null,null,null,"","",null,"","","","",0,""]
[2,63,1,3,"\u0001","SCIENTIFIC ANGLERS FLY LINES","  FREQUENCY - BOOST WITH LOOP - WILLOW ",117128,null,"WF- 3-F      ",null,"840309117128","1","EACH",49.95,27.48,24.98,22.48,null,null,null,null,null,null,null,null,null,null,null,null,null,null,null,null,null,{"$f":"IF(OR(ISBLANK($L352),$AW$3=0),\" - \",OFFSET(O352,0,$AW$3,1,1))","v":27.48},null,null,null,null,"","",null,0,0,0,0,0,""]
[2,63,2,3,"Pale/Optic Grn WF-5-F/I","SCIENTIFIC ANGLERS FLY LINES","  FREQUENCY - BOOST WITH LOOP - WILLOW ",117135,null,"WF- 4-F      ",null,"840309117135","1","EACH",49.95,27.48,24.98,22.48,null,null,null,null,null,null,null,null,null,null,null,null,null,null,null,null,null,27.48,null,null,null,null,"","",null,0,0,0,0,0,""]
[2,63,3,3,"Pale/Optic Grn WF-6-F/I","SCIENTIFIC ANGLERS FLY LINES","  FREQUENCY - BOOST WITH LOOP - WILLOW ",117142,null,"WF- 5-F      ",null,"840309117142","1","EACH",49.95,27.48,24.98,22.48,null,null,null,null,null,null,null,null,null,null,null,null,null,null,null,null,null,27.48,null,null,null,null,"","",null,0,0,0,0,0,""]
[2,63,4,3,"Pale/Optic Grn WF-7-F/I","SCIENTIFIC ANGLERS FLY LINES","  FREQUENCY - BOOST WITH LOOP - WILLOW ",117159,null,"WF- 6-F      ",null,"840309117159","1","EACH",49.95,27.48,24.98,22.48,null,null,null,null,null,null,null,null,null,null,null,null,null,null,null,null,null,27.48,null,null,null,null,"","",null,{"$f":"IF(LEN($AJ355)>0,$AJ355*AK355,\"\")","v":0},{"$f":"IF(LEN($AJ355)>0,$AJ355*AL355,\"\")","v":0},{"$f":"IF(LEN($AJ355)>0,$AJ355*AM355,\"\")","v":0},{"$f":"IF(LEN($AJ355)>0,$AJ355*AN355,\"\")","v":0},0,""]
[2,63,5,3,null,"SCIENTIFIC ANGLERS FLY LINES","  FREQUENCY - BOOST WITH LOOP - WILLOW ",119979,null,"WF- 7-F   *NEW*      ",null,840309119979,"1","EACH",49.95,27.48,24.98,22.48,null,null,null,null,null,null,null,null,null,null,null,null,null,null,null,null,null,27.48,null,null,null,null,{"$f":"IF($AV356=0,\"\",SUM(AK356:AN356))","v":""},{"$f":"IF($AV356>0,SUM(AR356:AU356),\"\")","v":""},null,{"$f":"IF(LEN($AJ356)>0,$AJ356*AK356,\"\")","v":0},{"$f":"IF(LEN($AJ356)>0,$AJ356*AL356,\"\")","v":0},{"$f":"IF(LEN($AJ356)>0,$AJ356*AM356,\"\")","v":0},{"$f":"IF(LEN($AJ356)>0,$AJ356*AN356,\"\")","v":0},0,""]
[2,63,6,3,null,"SCIENTIFIC ANGLERS FLY LINES","  FREQUENCY - BOOST WITH LOOP - WILLOW ",119986,null,"WF- 8-F   *NEW*     ",null,840309119986,"1","EACH",49.95,27.48,24.98,22.48,null,null,null,null,null,null,null,null,null,null,null,null,null,null,null,null,null,27.48,null,null,null,null,"","",null,0,0,0,0,0,""]
[2,63,7,3,null,"SCIENTIFIC ANGLERS FLY LINES","  FREQUENCY - BOOST WITH LOOP - WILLOW ",119993,null,"WF- 9-F   *NEW* ",null,840309119993,"1","EACH",49.95,27.48,24.98,22.48,null,null,null,null,null,null,null,null,null,null,null,null,null,null,null,null,null,27.48,null,null,null,null,"","",null,{"$f":"IF(LEN($AJ358)>0,$AJ358*AK358,\"\")","v":0},{"$f":"IF(LEN($AJ358)>0,$AJ358*AL358,\"\")","v":0},{"$f":"IF(LEN($AJ358)>0,$AJ358*AM358,\"\")","v":0},{"$f":"IF(LEN($AJ358)>0,$AJ358*AN358,\"\")","v":0},0,""]
[2,64,null,2,"Pale/Optic Grn WF-8-F/I","SCIENTIFIC ANGLERS FLY LINES","  FREQUENCY - MAGNUM WITH LOOP - OPTIC GREEN  ","FREQUENCY - MAGNUM WITH LOOP - MIST GREEN",null,null,null,null,null,null,null,null,null,null,null,null,null,null,null,null,null,null,null,null,null,null,null,null,null,null,null,null,null,null,null,null,"",""]
[2,64,1,3,"\u0001","SCIENTIFIC ANGLERS FLY LINES","  FREQUENCY - MAGNUM WITH LOOP - OPTIC GREEN  ",117203,null,"WF- 5-F   ",null,"840309117203","1","EACH",49.95,27.48,24.98,22.48,null,null,null,null,null,null,null,null,null,null,null,null,null,null,null,null,null,{"$f":"IF(OR(ISBLANK($L360),$AW$3=0),\" - \",OFFSET(O360,0,$AW$3,1,1))","v":27.48},null,null,null,null,"","",null,0,0,0,0,{"$f":"COUNT(AK360:AN360)","v":0},{"$f":"IF($AV360<>0,ROW($AV$11),\"\")","v":""}]
[2,64,2,3,"\u0001","SCIENTIFIC ANGLERS FLY LINES","  FREQUENCY - MAGNUM WITH LOOP - OPTIC GREEN  ",117210,null,"WF- 6-F   ",null,"840309117210","1","EACH",49.95,27.48,24.98,22.48,null,null,null,null,null,null,null,null,null,null,null,null,null,null,null,null,null,{"$f":"IF(OR(ISBLANK($L361),$AW$3=0),\" - \",OFFSET(O361,0,$AW$3,1,1))","v":27.48},null,null,null,null,"","",null,0,0,0,0,0,""]
[2,64,3,3,"Orange 280 Grain","SCIENTIFIC ANGLERS FLY LINES","  FREQUENCY - MAGNUM WITH LOOP - OPTIC GREEN  ",117227,null,"WF- 7-F       ",null,"840309117227","1","EACH",49.95,27.48,24.98,22.48,null,null,null,null,null,null,null,null,null,null,null,null,null,null,null,null,null,{"$f":"IF(OR(ISBLANK($L362),$AW$3=0),\" - \",OFFSET(O362,0,$AW$3,1,1))","v":27.48},null,null,null,null,"","",null,0,0,0,0,0,""]
[2,64,4,3,"Orange 320 Grain","SCIENTIFIC ANGLERS FLY LINES","  FREQUENCY - MAGNUM WITH LOOP - OPTIC GREEN  ",117234,null,"WF- 8-F     ",null,"840309117234","1","EACH",49.95,27.48,24.98,22.48,null,null,null,null,null,null,null,null,null,null,null,null,null,null,null,null,null,{"$f":"IF(OR(ISBLANK($L363),$AW$3=0),\" - \",OFFSET(O363,0,$AW$3,1,1))","v":27.48},null,null,null,null,{"$f":"IF($AV363=0,\"\",SUM(AK363:AN363))","v":""},{"$f":"IF($AV363>0,SUM(AR363:AU363),\"\")","v":""},null,{"$f":"IF(LEN($AJ363)>0,$AJ363*AK363,\"\")","v":0},{"$f":"IF(LEN($AJ363)>0,$AJ363*AL363,\"\")","v":0},{"$f":"IF(LEN($AJ363)>0,$AJ363*AM363,\"\")","v":0},{"$f":"IF(LEN($AJ363)>0,$AJ363*AN363,\"\")","v":0},{"$f":"COUNT(AK363:AN363)","v":0},""]
[2,64,5,3,"Orange 320 Grain","SCIENTIFIC ANGLERS FLY LINES","  FREQUENCY - MAGNUM WITH LOOP - OPTIC GREEN  ",123860,null,"WF- 9-F   *NEW*",null,840309123860,"1","EACH",49.95,27.48,24.98,22.48,null,null,null,null,null,null,null,null,null,null,null,null,null,null,null,null,null,{"$f":"IF(OR(ISBLANK($L364),$AW$3=0),\" - \",OFFSET(O364,0,$AW$3,1,1))","v":27.48},null,null,null,null,"","",null,0,0,0,0,0,""]
[2,65,null,2,"Orange 360 Grain","SCIENTIFIC ANGLERS FLY LINES","FREQUENCY - SINK TIP TYPE III - OPTIC YELLOW/DK GREEN","FREQUENCY - SINK TIP TYPE III - YELLOW / GREEN",null,null,null,null,null,null,null,null,null,null,null,null,null,null,null,null,null,null,null,null,null,null,null,null,null,null,null,null,null,null,null,null,"",""]
[2,65,1,3,"Orange 400 Grain","SCIENTIFIC ANGLERS FLY LINES","FREQUENCY - SINK TIP TYPE III - OPTIC YELLOW/DK GREEN",117241,null,"WF- 5-F/S      ",null,"840309117241","1","EACH",49.95,27.48,24.98,22.48,null,null,null,null,null,null,null,null,null,null,null,null,null,null,null,null,null,{"$f":"IF(OR(ISBLANK($L366),$AW$3=0),\" - \",OFFSET(O366,0,$AW$3,1,1))","v":27.48},null,null,null,null,"","",null,0,0,0,0,0,""]
[2,65,2,3,"Orange 440 Grain","SCIENTIFIC ANGLERS FLY LINES","FREQUENCY - SINK TIP TYPE III - OPTIC YELLOW/DK GREEN",117258,null,"WF- 6-F/S      ",null,"840309117258","1","EACH",49.95,27.48,24.98,22.48,null,null,null,null,null,null,null,null,null,null,null,null,null,null,null,null,null,{"$f":"IF(OR(ISBLANK($L367),$AW$3=0),\" - \",OFFSET(O367,0,$AW$3,1,1))","v":27.48},null,null,null,null,"","",null,{"$f":"IF(LEN($AJ367)>0,$AJ367*AK367,\"\")","v":0},0,0,0,0,""]
[2,65,3,3,"Orange 480 Grain","SCIENTIFIC ANGLERS FLY LINES","FREQUENCY - SINK TIP TYPE III - OPTIC YELLOW/DK GREEN",117265,null,"WF- 7-F/S      ",null,"840309117265","1","EACH",49.95,27.48,24.98,22.48,null,null,null,null,null,null,null,null,null,null,null,null,null,null,null,null,null,{"$f":"IF(OR(ISBLANK($L368),$AW$3=0),\" - \",OFFSET(O368,0,$AW$3,1,1))","v":27.48},null,null,null,null,"","",null,0,0,0,0,0,""]
[2,65,4,3,"Orange 520 Grain","SCIENTIFIC ANGLERS FLY LINES","FREQUENCY - SINK TIP TYPE III - OPTIC YELLOW/DK GREEN",117272,null,"WF- 8-F/S      ",null,"840309117272","1","EACH",49.95,27.48,24.98,22.48,null,null,null,null,null,null,null,null,null,null,null,null,null,null,null,null,null,{"$f":"IF(OR(ISBLANK($L369),$AW$3=0),\" - \",OFFSET(O369,0,$AW$3,1,1))","v":27.48},null,null,null,null,{"$f":"IF($AV369=0,\"\",SUM(AK369:AN369))","v":""},{"$f":"IF($AV369>0,SUM(AR369:AU369),\"\")","v":""},null,{"$f":"IF(LEN($AJ369)>0,$AJ369*AK369,\"\")","v":0},{"$f":"IF(LEN($AJ369)>0,$AJ369*AL369,\"\")","v":0},{"$f":"IF(LEN($AJ369)>0,$AJ369*AM369,\"\")","v":0},{"$f":"IF(LEN($AJ369)>0,$AJ369*AN369,\"\")","v":0},{"$f":"COUNT(AK369:AN369)","v":0},""]
[2,65,5,3,"Orange 520 Grain","SCIENTIFIC ANGLERS FLY LINES","FREQUENCY - SINK TIP TYPE III - OPTIC YELLOW/DK GREEN",123617,null,"WF-9-F/S   *NEW*",null,840309123617,"1","EACH",49.95,27.48,24.98,22.48,null,null,null,null,null,null,null,null,null,null,null,null,null,null,null,null,null,{"$f":"IF(OR(ISBLANK($L370),$AW$3=0),\" - \",OFFSET(O370,0,$AW$3,1,1))","v":27.48},null,null,null,null,"","",null,0,0,0,0,0,""]
[2,66,null,2,"Orange 560 Grain","SCIENTIFIC ANGLERS FLY LINES","  FREQUENCY - FULL SINKING - INTERMEDIATE/ I - ATMOSPHERE BLUE ","FREQUENCY - FULL SINKING - INTERMEDIATE/ I - ATMOSPHERE BLUE",null,null,null,null,null,null,null,null,null,null,null,null,null,null,null,null,null,null,null,null,null,null,null,null,null,null,null,null,null,null,null,null,"",""]
[2,66,1,3,"Orange 600 Grain","SCIENTIFIC ANGLERS FLY LINES","  FREQUENCY - FULL SINKING - INTERMEDIATE/ I - ATMOSPHERE BLUE ",120555,null,"WF- 5-S      ",null,"840309120555","1","EACH",49.95,27.48,24.98,22.48,null,null,null,null,null,null,null,null,null,null,null,null,null,null,null,null,null,{"$f":"IF(OR(ISBLANK($L372),$AW$3=0),\" - \",OFFSET(O372,0,$AW$3,1,1))","v":27.48},null,null,null,null,"","",null,0,0,0,0,0,""]
[2,66,2,3,"Orange 640 Grain","SCIENTIFIC ANGLERS FLY LINES","  FREQUENCY - FULL SINKING - INTERMEDIATE/ I - ATMOSPHERE BLUE ",120562,null,"WF- 6-S      ",null,"840309120562","1","EACH",49.95,27.48,24.98,22.48,null,null,null,null,null,null,null,null,null,null,null,null,null,null,null,null,null,{"$f":"IF(OR(ISBLANK($L373),$AW$3=0),\" - \",OFFSET(O373,0,$AW$3,1,1))","v":27.48},null,null,null,null,"","",null,0,0,0,0,0,""]
[2,66,3,3,"Orange 680 Grain","SCIENTIFIC ANGLERS FLY LINES","  FREQUENCY - FULL SINKING - INTERMEDIATE/ I - ATMOSPHERE BLUE ",120579,null,"WF- 7-S      ",null,"840309120579","1","EACH",49.95,27.48,24.98,22.48,null,null,null,null,null,null,null,null,null,null,null,null,null,null,null,null,null,{"$f":"IF(OR(ISBLANK($L374),$AW$3=0),\" - \",OFFSET(O374,0,$AW$3,1,1))","v":27.48},null,null,null,null,"","",null,0,0,0,0,0,""]
[2,66,4,3,"Orange 720 Grain","SCIENTIFIC ANGLERS FLY LINES","  FREQUENCY - FULL SINKING - INTERMEDIATE/ I - ATMOSPHERE BLUE ",120586,null,"WF- 8-S      ",null,"840309120586","1","EACH",49.95,27.48,24.98,22.48,null,null,null,null,null,null,null,null,null,null,null,null,null,null,null,null,null,{"$f":"IF(OR(ISBLANK($L375),$AW$3=0),\" - \",OFFSET(O375,0,$AW$3,1,1))","v":27.48},null,null,null,null,"","",null,0,0,0,0,0,""]
[2,66,5,3,"Orange 720 Grain","SCIENTIFIC ANGLERS FLY LINES","  FREQUENCY - FULL SINKING - INTERMEDIATE/ I - ATMOSPHERE BLUE ",103497,null,"WF-9-S   *NEW*",null,840309103497,"1","EACH",49.95,27.48,24.98,22.48,null,null,null,null,null,null,null,null,null,null,null,null,null,null,null,null,null,{"$f":"IF(OR(ISBLANK($L376),$AW$3=0),\" - \",OFFSET(O376,0,$AW$3,1,1))","v":27.48},null,null,null,null,{"$f":"IF($AV376=0,\"\",SUM(AK376:AN376))","v":""},{"$f":"IF($AV376>0,SUM(AR376:AU376),\"\")","v":""},null,{"$f":"IF(LEN($AJ376)>0,$AJ376*AK376,\"\")","v":0},{"$f":"IF(LEN($AJ376)>0,$AJ376*AL376,\"\")","v":0},{"$f":"IF(LEN($AJ376)>0,$AJ376*AM376,\"\")","v":0},{"$f":"IF(LEN($AJ376)>0,$AJ376*AN376,\"\")","v":0},{"$f":"COUNT(AK376:AN376)","v":0},""]
[2,67,null,2,"Orange 760 Grain","SCIENTIFIC ANGLERS FLY LINES","FREQUENCY - FULL SINKING - TYPE III - DK GRAY","FREQUENCY - FULL SINKING - TYPE III - DK GREEN",null,null,null,null,null,null,null,null,null,null,null,null,null,null,null,null,null,null,null,null,null,null,null,null,null,null,null,null,null,null,null,null,"",""]
[2,67,1,3,"Orange 800 Grain","SCIENTIFIC ANGLERS FLY LINES","FREQUENCY - FULL SINKING - TYPE III - DK GRAY",122382,null,"WF- 5-S      ",null,840309122382,"1","EACH",49.95,27.48,24.98,22.48,null,null,null,null,null,null,null,null,null,null,null,null,null,null,null,null,null,{"$f":"IF(OR(ISBLANK($L378),$AW$3=0),\" - \",OFFSET(O378,0,$AW$3,1,1))","v":27.48},null,null,null,null,"","",null,{"$f":"IF(LEN($AJ378)>0,$AJ378*AK378,\"\")","v":0},{"$f":"IF(LEN($AJ378)>0,$AJ378*AL378,\"\")","v":0},{"$f":"IF(LEN($AJ378)>0,$AJ378*AM378,\"\")","v":0},{"$f":"IF(LEN($AJ378)>0,$AJ378*AN378,\"\")","v":0},{"$f":"COUNT(AK378:AN378)","v":0},""]
[2,67,2,3,"\u0001","SCIENTIFIC ANGLERS FLY LINES","FREQUENCY - FULL SINKING - TYPE III - DK GRAY",122399,null,"WF- 6-S      ",null,840309122399,"1","EACH",49.95,27.48,24.98,22.48,null,null,null,null,null,null,null,null,null,null,null,null,null,null,null,null,null,{"$f":"IF(OR(ISBLANK($L379),$AW$3=0),\" - \",OFFSET(O379,0,$AW$3,1,1))","v":27.48},null,null,null,null,"","",null,0,0,0,0,{"$f":"COUNT(AK379:AN379)","v":0},""]
[2,67,3,3,"Blue 400 grain","SCIENTIFIC ANGLERS FLY LINES","FREQUENCY - FULL SINKING - TYPE III - DK GRAY",122405,null,"WF- 7-S      ",null,840309122405,"1","EACH",49.95,27.48,24.98,22.48,null,null,null,null,null,null,null,null,null,null,null,null,null,null,null,null,null,{"$f":"IF(OR(ISBLANK($L380),$AW$3=0),\" - \",OFFSET(O380,0,$AW$3,1,1))","v":27.48},null,null,null,null,"","",null,0,0,0,0,{"$f":"COUNT(AK380:AN380)","v":0},{"$f":"IF($AV380<>0,ROW($AV$11),\"\")","v":""}]
[2,67,4,3,"Blue 440 grain","SCIENTIFIC ANGLERS FLY LINES","FREQUENCY - FULL SINKING - TYPE III - DK GRAY",122412,null,"WF- 8-S      ",null,840309122412,"1","EACH",49.95,27.48,24.98,22.48,null,null,null,null,null,null,null,null,null,null,null,null,null,null,null,null,null,{"$f":"IF(OR(ISBLANK($L381),$AW$3=0),\" - \",OFFSET(O381,0,$AW$3,1,1))","v":27.48},null,null,null,null,{"$f":"IF($AV381=0,\"\",SUM(AK381:AN381))","v":""},{"$f":"IF($AV381>0,SUM(AR381:AU381),\"\")","v":""},null,{"$f":"IF(LEN($AJ381)>0,$AJ381*AK381,\"\")","v":0},{"$f":"IF(LEN($AJ381)>0,$AJ381*AL381,\"\")","v":0},{"$f":"IF(LEN($AJ381)>0,$AJ381*AM381,\"\")","v":0},{"$f":"IF(LEN($AJ381)>0,$AJ381*AN381,\"\")","v":0},{"$f":"COUNT(AK381:AN381)","v":0},""]
[2,67,5,3,"Blue 440 grain","SCIENTIFIC ANGLERS FLY LINES","FREQUENCY - FULL SINKING - TYPE III - DK GRAY",102803,null,"WF-9-S   *NEW*",null,840309102803,"1","EACH",49.95,27.48,24.98,22.48,null,null,null,null,null,null,null,null,null,null,null,null,null,null,null,null,null,{"$f":"IF(OR(ISBLANK($L382),$AW$3=0),\" - \",OFFSET(O382,0,$AW$3,1,1))","v":27.48},null,null,null,null,"","",null,0,0,0,0,0,""]
[2,68,null,2,"Orange 760 Grain","SCIENTIFIC ANGLERS FLY LINES","FREQUENCY - FULL SINKING - TYPE VI - DK GRAY","FREQUENCY - FULL SINKING - TYPE VI - DK GRAY",null,null,null,null,null,null,null,null,null,null,null,null,null,null,null,null,null,null,null,null,null,null,null,null,null,null,null,null,null,null,null,null,"",""]
[2,68,1,3,"Orange 800 Grain","SCIENTIFIC ANGLERS FLY LINES","FREQUENCY - FULL SINKING - TYPE VI - DK GRAY",117289,null,"WF- 5-S      ",null,"840309117289","1","EACH",49.95,27.48,24.98,22.48,null,null,null,null,null,null,null,null,null,null,null,null,null,null,null,null,null,{"$f":"IF(OR(ISBLANK($L384),$AW$3=0),\" - \",OFFSET(O384,0,$AW$3,1,1))","v":27.48},null,null,null,null,"","",null,0,0,0,0,0,""]
[2,68,2,3,"\u0001","SCIENTIFIC ANGLERS FLY LINES","FREQUENCY - FULL SINKING - TYPE VI - DK GRAY",117296,null,"WF- 6-S      ",null,"840309117296","1","EACH",49.95,27.48,24.98,22.48,null,null,null,null,null,null,null,null,null,null,null,null,null,null,null,null,null,{"$f":"IF(OR(ISBLANK($L385),$AW$3=0),\" - \",OFFSET(O385,0,$AW$3,1,1))","v":27.48},null,null,null,null,"","",null,0,0,0,0,{"$f":"COUNT(AK385:AN385)","v":0},""]
[2,68,3,3,"Blue 400 grain","SCIENTIFIC ANGLERS FLY LINES","FREQUENCY - FULL SINKING - TYPE VI - DK GRAY",117302,null,"WF- 7-S      ",null,"840309117302","1","EACH",49.95,27.48,24.98,22.48,null,null,null,null,null,null,null,null,null,null,null,null,null,null,null,null,null,{"$f":"IF(OR(ISBLANK($L386),$AW$3=0),\" - \",OFFSET(O386,0,$AW$3,1,1))","v":27.48},null,null,null,null,"","",null,0,0,0,0,{"$f":"COUNT(AK386:AN386)","v":0},{"$f":"IF($AV386<>0,ROW($AV$11),\"\")","v":""}]
[2,68,4,3,"Blue 440 grain","SCIENTIFIC ANGLERS FLY LINES","FREQUENCY - FULL SINKING - TYPE VI - DK GRAY",111461,null,"WF- 8-S      ",null,840309111461,"1","EACH",49.95,27.48,24.98,22.48,null,null,null,null,null,null,null,null,null,null,null,null,null,null,null,null,null,{"$f":"IF(OR(ISBLANK($L387),$AW$3=0),\" - \",OFFSET(O387,0,$AW$3,1,1))","v":27.48},null,null,null,null,{"$f":"IF($AV387=0,\"\",SUM(AK387:AN387))","v":""},{"$f":"IF($AV387>0,SUM(AR387:AU387),\"\")","v":""},null,{"$f":"IF(LEN($AJ387)>0,$AJ387*AK387,\"\")","v":0},{"$f":"IF(LEN($AJ387)>0,$AJ387*AL387,\"\")","v":0},{"$f":"IF(LEN($AJ387)>0,$AJ387*AM387,\"\")","v":0},{"$f":"IF(LEN($AJ387)>0,$AJ387*AN387,\"\")","v":0},{"$f":"COUNT(AK387:AN387)","v":0},""]
[2,68,5,3,"Blue 440 grain","SCIENTIFIC ANGLERS FLY LINES","FREQUENCY - FULL SINKING - TYPE VI - DK GRAY",130630,null,"WF-9-S   *NEW*",null,840309130630,"1","EACH",49.95,27.48,24.98,22.48,null,null,null,null,null,null,null,null,null,null,null,null,null,null,null,null,null,{"$f":"IF(OR(ISBLANK($L388),$AW$3=0),\" - \",OFFSET(O388,0,$AW$3,1,1))","v":27.48},null,null,null,null,"","",null,0,0,0,0,0,""]
[2,0,null,1,null,"SCIENTIFIC ANGLERS FLY LINES",null,"AIRCEL & WETCEL SERIES FLY LINES - Workbook Pages 52-53",null,null,null,null,null,null,null,null,null,null,null,null,null,null,null,null,null,null,null,null,null,null,null,null,null,null,null,null,null,null,null,null,"",""]
[2,69,null,2,"Blue 560 grain","SCIENTIFIC ANGLERS FLY LINES","  AIR CEL(TM) - SPECIES SPECIFIC SERIES  - FLOATING LINES","AIR CEL(TM) - SPECIES SPECIFIC SERIES  - FLOATING LINES",null,null,null,null,null,null,null,null,null,null,null,null,null,null,null,null,null,null,null,null,null,null,null,null,null,null,null,null,null,null,null,null,"",""]
[2,69,1,3,"Blue 600 grain","SCIENTIFIC ANGLERS FLY LINES","  AIR CEL(TM) - SPECIES SPECIFIC SERIES  - FLOATING LINES",112741,null,"Trout 5-6 - Green      ",null,840309112741,"1","EACH",29.95,16.47,14.98,13.48,null,null,null,null,null,null,null,null,null,null,null,null,null,null,null,null,null,{"$f":"IF(OR(ISBLANK($L391),$AW$3=0),\" - \",OFFSET(O391,0,$AW$3,1,1))","v":16.47},null,null,null,null,"","",null,{"$f":"IF(LEN($AJ391)>0,$AJ391*AK391,\"\")","v":0},0,0,0,0,""]
[2,69,2,3,"Blue 640 grain","SCIENTIFIC ANGLERS FLY LINES","  AIR CEL(TM) - SPECIES SPECIFIC SERIES  - FLOATING LINES",112758,null,"Trout 6-7 - Green      ",null,840309112758,"1","EACH",29.95,16.47,14.98,13.48,null,null,null,null,null,null,null,null,null,null,null,null,null,null,null,null,null,{"$f":"IF(OR(ISBLANK($L392),$AW$3=0),\" - \",OFFSET(O392,0,$AW$3,1,1))","v":16.47},null,null,null,null,"","",null,0,0,0,0,0,""]
[2,69,3,3,"Blue 680 grain","SCIENTIFIC ANGLERS FLY LINES","  AIR CEL(TM) - SPECIES SPECIFIC SERIES  - FLOATING LINES",112734,null,"Panfish - Orange      ",null,840309112734,"1","EACH",29.95,16.47,14.98,13.48,null,null,null,null,null,null,null,null,null,null,null,null,null,null,null,null,null,{"$f":"IF(OR(ISBLANK($L393),$AW$3=0),\" - \",OFFSET(O393,0,$AW$3,1,1))","v":16.47},null,null,null,null,"","",null,0,0,0,0,0,""]
[2,69,4,3,"\u0001","SCIENTIFIC ANGLERS FLY LINES","  AIR CEL(TM) - SPECIES SPECIFIC SERIES  - FLOATING LINES",112727,null,"Bass - Yellow      ",null,840309112727,"1","EACH",29.95,16.47,14.98,13.48,null,null,null,null,null,null,null,null,null,null,null,null,null,null,null,null,null,{"$f":"IF(OR(ISBLANK($L394),$AW$3=0),\" - \",OFFSET(O394,0,$AW$3,1,1))","v":16.47},null,null,null,null,"","",null,0,0,0,0,0,""]
[2,70,null,2,"Orange 400 Grain","SCIENTIFIC ANGLERS FLY LINES","AIR CEL(TM) - FLOATING LINES - YELLOW","AIR CEL(TM) - FLOATING LINES - YELLOW   *NEW*",null,null,null,null,null,null,null,null,null,null,null,null,null,null,null,null,null,null,null,null,null,null,null,null,null,null,null,null,null,null,null,null,"",""]
[2,70,1,3,"Orange 440 Grain","SCIENTIFIC ANGLERS FLY LINES","AIR CEL(TM) - FLOATING LINES - YELLOW",103800,null,"WF- 4-F      ",null,840309103800,"1","EACH",29.95,16.47,14.98,13.48,null,null,null,null,null,null,null,null,null,null,null,null,null,null,null,null,null,{"$f":"IF(OR(ISBLANK($L396),$AW$3=0),\" - \",OFFSET(O396,0,$AW$3,1,1))","v":16.47},null,null,null,null,"","",null,0,0,0,0,0,""]
[2,70,2,3,"Orange 480 Grain","SCIENTIFIC ANGLERS FLY LINES","AIR CEL(TM) - FLOATING LINES - YELLOW",103817,null,"WF- 5-F      ",null,840309103817,"1","EACH",29.95,16.47,14.98,13.48,null,null,null,null,null,null,null,null,null,null,null,null,null,null,null,null,null,16.47,null,null,null,null,"","",null,0,0,0,0,0,""]
[2,70,3,3,"Orange 520 Grain","SCIENTIFIC ANGLERS FLY LINES","AIR CEL(TM) - FLOATING LINES - YELLOW",103824,null,"WF- 6-F      ",null,840309103824,"1","EACH",29.95,16.47,14.98,13.48,null,null,null,null,null,null,null,null,null,null,null,null,null,null,null,null,null,16.47,null,null,null,null,"","",null,0,0,0,0,0,""]
[2,70,4,3,"Orange 560 Grain","SCIENTIFIC ANGLERS FLY LINES","AIR CEL(TM) - FLOATING LINES - YELLOW",103831,null,"WF- 7-F      ",null,840309103831,"1","EACH",29.95,16.47,14.98,13.48,null,null,null,null,null,null,null,null,null,null,null,null,null,null,null,null,null,16.47,null,null,null,null,"","",null,0,0,0,0,0,""]
[2,70,5,3,"Orange 600 Grain","SCIENTIFIC ANGLERS FLY LINES","AIR CEL(TM) - FLOATING LINES - YELLOW",103848,null,"WF- 8-F      ",null,840309103848,"1","EACH",29.95,16.47,14.98,13.48,null,null,null,null,null,null,null,null,null,null,null,null,null,null,null,null,null,16.47,null,null,null,null,"","",null,0,0,0,0,0,""]
[2,70,6,3,"Orange 640 Grain","SCIENTIFIC ANGLERS FLY LINES","AIR CEL(TM) - FLOATING LINES - YELLOW",103855,null,"WF- 9-F      ",null,840309103855,"1","EACH",29.95,16.47,14.98,13.48,null,null,null,null,null,null,null,null,null,null,null,null,null,null,null,null,null,16.47,null,null,null,null,"","",null,0,0,0,0,0,""]
[2,71,8,2,"Orange 680 Grain","SCIENTIFIC ANGLERS FLY LINES","  AIR CEL(TM) - FLOATING LINES - LEVEL - LIGHT GREEN ","AIR CEL(TM) - FLOATING LINES - LEVEL - LIGHT GREEN - Item Stocked but not in Workbook",null,null,null,null,null,null,null,null,null,null,null,null,null,null,null,null,null,null,null,null,null,null,null,null,null,null,null,null,null,null,null,null,"",""]
[2,71,1,3,"\u0001","SCIENTIFIC ANGLERS FLY LINES","  AIR CEL(TM) - FLOATING LINES - LEVEL - LIGHT GREEN ","153143",null,"L- 5-F      ",null,"840309102384","1","EACH",21.95,12.0725,10.975,9.8774999999999995,null,null,null,null,null,null,null,null,null,null,null,null,null,null,null,null,null,{"$f":"IF(OR(ISBLANK($L403),$AW$3=0),\" - \",OFFSET(O403,0,$AW$3,1,1))","v":12.0725},null,null,null,null,"","",null,0,0,0,0,{"$f":"COUNT(AK403:AN403)","v":0},{"$f":"IF($AV403<>0,ROW($AV$11),\"\")","v":""}]
[2,71,2,3,"Blue 320 Grain","SCIENTIFIC ANGLERS FLY LINES","  AIR CEL(TM) - FLOATING LINES - LEVEL - LIGHT GREEN ","153150",null,"L- 6-F      ",null,"840309102391","1","EACH",21.95,12.0725,10.975,9.8774999999999995,null,null,null,null,null,null,null,null,null,null,null,null,null,null,null,null,null,{"$f":"IF(OR(ISBLANK($L404),$AW$3=0),\" - \",OFFSET(O404,0,$AW$3,1,1))","v":12.0725},null,null,null,null,"","",null,0,0,0,0,0,""]
[2,71,3,3,"Blue 360 Grain","SCIENTIFIC ANGLERS FLY LINES","  AIR CEL(TM) - FLOATING LINES - LEVEL - LIGHT GREEN ","153167",null,"L- 7-F      ",null,"840309102360","1","EACH",21.95,12.0725,10.975,9.8774999999999995,null,null,null,null,null,null,null,null,null,null,null,null,null,null,null,null,null,{"$f":"IF(OR(ISBLANK($L405),$AW$3=0),\" - \",OFFSET(O405,0,$AW$3,1,1))","v":12.0725},null,null,null,null,"","",null,0,0,0,0,0,""]
[2,71,4,3,"Blue 400 Grain","SCIENTIFIC ANGLERS FLY LINES","  AIR CEL(TM) - FLOATING LINES - LEVEL - LIGHT GREEN ","153174",null,"L- 8-F      ",null,"840309102377","1","EACH",21.95,12.0725,10.975,9.8774999999999995,null,null,null,null,null,null,null,null,null,null,null,null,null,null,null,null,null,{"$f":"IF(OR(ISBLANK($L406),$AW$3=0),\" - \",OFFSET(O406,0,$AW$3,1,1))","v":12.0725},null,null,null,null,"","",null,0,0,0,0,0,""]
[2,72,null,2,"Blue 440 Grain","SCIENTIFIC ANGLERS FLY LINES","WETCEL GENERAL PURPOSE - SINKING LINES - CLEAR INTERMEDIATE","WETCEL GENERAL PURPOSE - SINKING LINES - CLEAR INTERMEDIATE   *NEW*",null,null,null,null,null,null,null,null,null,null,null,null,null,null,null,null,null,null,null,null,null,null,null,null,null,null,null,null,null,null,null,null,"",""]
[2,72,1,3,"Blue 480 Grain","SCIENTIFIC ANGLERS FLY LINES","WETCEL GENERAL PURPOSE - SINKING LINES - CLEAR INTERMEDIATE",112222,null,"WF- 5-S      ",null,840309112222,"1","EACH",37.950000000000003,20.872500000000002,18.975000000000001,17.077500000000001,null,null,null,null,null,null,null,null,null,null,null,null,null,null,null,null,null,{"$f":"IF(OR(ISBLANK($L408),$AW$3=0),\" - \",OFFSET(O408,0,$AW$3,1,1))","v":20.872500000000002},null,null,null,null,{"$f":"IF($AV408=0,\"\",SUM(AK408:AN408))","v":""},{"$f":"IF($AV408>0,SUM(AR408:AU408),\"\")","v":""},null,{"$f":"IF(LEN($AJ408)>0,$AJ408*AK408,\"\")","v":0},0,0,0,0,""]
[2,72,2,3,"Blue 520 Grain","SCIENTIFIC ANGLERS FLY LINES","WETCEL GENERAL PURPOSE - SINKING LINES - CLEAR INTERMEDIATE",112239,null,"WF- 6-S      ",null,840309112239,"1","EACH",37.950000000000003,20.872500000000002,18.975000000000001,17.077500000000001,null,null,null,null,null,null,null,null,null,null,null,null,null,null,null,null,null,{"$f":"IF(OR(ISBLANK($L409),$AW$3=0),\" - \",OFFSET(O409,0,$AW$3,1,1))","v":20.872500000000002},null,null,null,null,"","",null,0,0,0,0,0,""]
[2,72,3,3,"Blue 280 Grain","SCIENTIFIC ANGLERS FLY LINES","WETCEL GENERAL PURPOSE - SINKING LINES - CLEAR INTERMEDIATE",112246,null,"WF- 7-S      ",null,840309112246,"1","EACH",37.950000000000003,20.872500000000002,18.975000000000001,17.077500000000001,null,null,null,null,null,null,null,null,null,null,null,null,null,null,null,null,null,{"$f":"IF(OR(ISBLANK($L410),$AW$3=0),\" - \",OFFSET(O410,0,$AW$3,1,1))","v":20.872500000000002},null,null,null,null,"","",null,0,0,0,0,0,""]
[2,72,4,3,"Blue 560 Grain","SCIENTIFIC ANGLERS FLY LINES","WETCEL GENERAL PURPOSE - SINKING LINES - CLEAR INTERMEDIATE",112253,null,"WF- 8-S      ",null,840309112253,"1","EACH",37.950000000000003,20.872500000000002,18.975000000000001,17.077500000000001,null,null,null,null,null,null,null,null,null,null,null,null,null,null,null,null,null,{"$f":"IF(OR(ISBLANK($L411),$AW$3=0),\" - \",OFFSET(O411,0,$AW$3,1,1))","v":20.872500000000002},null,null,null,null,"","",null,0,0,0,0,0,""]
[2,73,null,2,"Blue 440 Grain","SCIENTIFIC ANGLERS FLY LINES","WETCEL GENERAL PURPOSE - SINKING LINES - TYPE II - BROWN","WETCEL GENERAL PURPOSE - SINKING LINES - TYPE II - BROWN   *NEW*",null,null,null,null,null,null,null,null,null,null,null,null,null,null,null,null,null,null,null,null,null,null,null,null,null,null,null,null,null,null,null,null,"",""]
[2,73,1,3,"Blue 480 Grain","SCIENTIFIC ANGLERS FLY LINES","WETCEL GENERAL PURPOSE - SINKING LINES - TYPE II - BROWN",112260,null,"WF- 5-S      ",null,840309112260,"1","EACH",37.950000000000003,20.872500000000002,18.975000000000001,17.077500000000001,null,null,null,null,null,null,null,null,null,null,null,null,null,null,null,null,null,{"$f":"IF(OR(ISBLANK($L413),$AW$3=0),\" - \",OFFSET(O413,0,$AW$3,1,1))","v":20.872500000000002},null,null,null,null,{"$f":"IF($AV413=0,\"\",SUM(AK413:AN413))","v":""},{"$f":"IF($AV413>0,SUM(AR413:AU413),\"\")","v":""},null,{"$f":"IF(LEN($AJ413)>0,$AJ413*AK413,\"\")","v":0},{"$f":"IF(LEN($AJ413)>0,$AJ413*AL413,\"\")","v":0},{"$f":"IF(LEN($AJ413)>0,$AJ413*AM413,\"\")","v":0},{"$f":"IF(LEN($AJ413)>0,$AJ413*AN413,\"\")","v":0},{"$f":"COUNT(AK413:AN413)","v":0},""]
[2,73,2,3,"Blue 520 Grain","SCIENTIFIC ANGLERS FLY LINES","WETCEL GENERAL PURPOSE - SINKING LINES - TYPE II - BROWN",112277,null,"WF- 6-S      ",null,840309112277,"1","EACH",37.950000000000003,20.872500000000002,18.975000000000001,17.077500000000001,null,null,null,null,null,null,null,null,null,null,null,null,null,null,null,null,null,{"$f":"IF(OR(ISBLANK($L414),$AW$3=0),\" - \",OFFSET(O414,0,$AW$3,1,1))","v":20.872500000000002},null,null,null,null,"","",null,0,0,0,0,0,""]
[2,73,3,3,"Blue 280 Grain","SCIENTIFIC ANGLERS FLY LINES","WETCEL GENERAL PURPOSE - SINKING LINES - TYPE II - BROWN",112284,null,"WF- 7-S      ",null,840309112284,"1","EACH",37.950000000000003,20.872500000000002,18.975000000000001,17.077500000000001,null,null,null,null,null,null,null,null,null,null,null,null,null,null,null,null,null,{"$f":"IF(OR(ISBLANK($L415),$AW$3=0),\" - \",OFFSET(O415,0,$AW$3,1,1))","v":20.872500000000002},null,null,null,null,"","",null,0,0,0,0,0,""]
[2,73,4,3,"Blue 560 Grain","SCIENTIFIC ANGLERS FLY LINES","WETCEL GENERAL PURPOSE - SINKING LINES - TYPE II - BROWN",112291,null,"WF- 8-S      ",null,840309112291,"1","EACH",37.950000000000003,20.872500000000002,18.975000000000001,17.077500000000001,null,null,null,null,null,null,null,null,null,null,null,null,null,null,null,null,null,{"$f":"IF(OR(ISBLANK($L416),$AW$3=0),\" - \",OFFSET(O416,0,$AW$3,1,1))","v":20.872500000000002},null,null,null,null,"","",null,0,0,0,0,0,""]
[2,74,null,2,"Blue 440 Grain","SCIENTIFIC ANGLERS FLY LINES","WETCEL GENERAL PURPOSE - SINKING LINES - TYPE IV - CHARCOAL","WETCEL GENERAL PURPOSE - SINKING LINES - TYPE IV - CHARCOAL   *NEW*",null,null,null,null,null,null,null,null,null,null,null,null,null,null,null,null,null,null,null,null,null,null,null,null,null,null,null,null,null,null,null,null,"",""]
[2,74,1,3,"Blue 480 Grain","SCIENTIFIC ANGLERS FLY LINES","WETCEL GENERAL PURPOSE - SINKING LINES - TYPE IV - CHARCOAL",112307,null,"WF- 5-S      ",null,840309112307,"1","EACH",37.950000000000003,20.872500000000002,18.975000000000001,17.077500000000001,null,null,null,null,null,null,null,null,null,null,null,null,null,null,null,null,null,{"$f":"IF(OR(ISBLANK($L418),$AW$3=0),\" - \",OFFSET(O418,0,$AW$3,1,1))","v":20.872500000000002},null,null,null,null,{"$f":"IF($AV418=0,\"\",SUM(AK418:AN418))","v":""},{"$f":"IF($AV418>0,SUM(AR418:AU418),\"\")","v":""},null,{"$f":"IF(LEN($AJ418)>0,$AJ418*AK418,\"\")","v":0},{"$f":"IF(LEN($AJ418)>0,$AJ418*AL418,\"\")","v":0},{"$f":"IF(LEN($AJ418)>0,$AJ418*AM418,\"\")","v":0},{"$f":"IF(LEN($AJ418)>0,$AJ418*AN418,\"\")","v":0},{"$f":"COUNT(AK418:AN418)","v":0},""]
[2,74,2,3,"Blue 520 Grain","SCIENTIFIC ANGLERS FLY LINES","WETCEL GENERAL PURPOSE - SINKING LINES - TYPE IV - CHARCOAL",112314,null,"WF- 6-S      ",null,840309112314,"1","EACH",37.950000000000003,20.872500000000002,18.975000000000001,17.077500000000001,null,null,null,null,null,null,null,null,null,null,null,null,null,null,null,null,null,{"$f":"IF(OR(ISBLANK($L419),$AW$3=0),\" - \",OFFSET(O419,0,$AW$3,1,1))","v":20.872500000000002},null,null,null,null,"","",null,0,0,0,0,0,""]
[2,74,3,3,"Blue 280 Grain","SCIENTIFIC ANGLERS FLY LINES","WETCEL GENERAL PURPOSE - SINKING LINES - TYPE IV - CHARCOAL",112321,null,"WF- 7-S      ",null,840309112321,"1","EACH",37.950000000000003,20.872500000000002,18.975000000000001,17.077500000000001,null,null,null,null,null,null,null,null,null,null,null,null,null,null,null,null,null,{"$f":"IF(OR(ISBLANK($L420),$AW$3=0),\" - \",OFFSET(O420,0,$AW$3,1,1))","v":20.872500000000002},null,null,null,null,"","",null,0,0,0,0,0,""]
[2,74,4,3,"Blue 560 Grain","SCIENTIFIC ANGLERS FLY LINES","WETCEL GENERAL PURPOSE - SINKING LINES - TYPE IV - CHARCOAL",112338,null,"WF- 8-S      ",null,840309112338,"1","EACH",37.950000000000003,20.872500000000002,18.975000000000001,17.077500000000001,null,null,null,null,null,null,null,null,null,null,null,null,null,null,null,null,null,{"$f":"IF(OR(ISBLANK($L421),$AW$3=0),\" - \",OFFSET(O421,0,$AW$3,1,1))","v":20.872500000000002},null,null,null,null,"","",null,0,0,0,0,0,""]
[2,75,null,2,"Blue 440 Grain","SCIENTIFIC ANGLERS FLY LINES","WETCEL GENERAL PURPOSE - SINKING LINES - TYPE VI - BLACK","WETCEL GENERAL PURPOSE - SINKING LINES - TYPE VI - BLACK   *NEW*",null,null,null,null,null,null,null,null,null,null,null,null,null,null,null,null,null,null,null,null,null,null,null,null,null,null,null,null,null,null,null,null,"",""]
[2,75,1,3,"Blue 480 Grain","SCIENTIFIC ANGLERS FLY LINES","WETCEL GENERAL PURPOSE - SINKING LINES - TYPE VI - BLACK",112345,null,"WF- 5-S      ",null,840309112345,"1","EACH",37.950000000000003,20.872500000000002,18.975000000000001,17.077500000000001,null,null,null,null,null,null,null,null,null,null,null,null,null,null,null,null,null,{"$f":"IF(OR(ISBLANK($L423),$AW$3=0),\" - \",OFFSET(O423,0,$AW$3,1,1))","v":20.872500000000002},null,null,null,null,{"$f":"IF($AV423=0,\"\",SUM(AK423:AN423))","v":""},{"$f":"IF($AV423>0,SUM(AR423:AU423),\"\")","v":""},null,{"$f":"IF(LEN($AJ423)>0,$AJ423*AK423,\"\")","v":0},{"$f":"IF(LEN($AJ423)>0,$AJ423*AL423,\"\")","v":0},{"$f":"IF(LEN($AJ423)>0,$AJ423*AM423,\"\")","v":0},{"$f":"IF(LEN($AJ423)>0,$AJ423*AN423,\"\")","v":0},{"$f":"COUNT(AK423:AN423)","v":0},""]
[2,75,2,3,"Blue 520 Grain","SCIENTIFIC ANGLERS FLY LINES","WETCEL GENERAL PURPOSE - SINKING LINES - TYPE VI - BLACK",112352,null,"WF- 6-S      ",null,840309112352,"1","EACH",37.950000000000003,20.872500000000002,18.975000000000001,17.077500000000001,null,null,null,null,null,null,null,null,null,null,null,null,null,null,null,null,null,{"$f":"IF(OR(ISBLANK($L424),$AW$3=0),\" - \",OFFSET(O424,0,$AW$3,1,1))","v":20.872500000000002},null,null,null,null,"","",null,0,0,0,0,0,""]
[2,75,3,3,"Blue 280 Grain","SCIENTIFIC ANGLERS FLY LINES","WETCEL GENERAL PURPOSE - SINKING LINES - TYPE VI - BLACK",112369,null,"WF- 7-S      ",null,840309112369,"1","EACH",37.950000000000003,20.872500000000002,18.975000000000001,17.077500000000001,null,null,null,null,null,null,null,null,null,null,null,null,null,null,null,null,null,{"$f":"IF(OR(ISBLANK($L425),$AW$3=0),\" - \",OFFSET(O425,0,$AW$3,1,1))","v":20.872500000000002},null,null,null,null,"","",null,0,0,0,0,0,""]
[2,75,4,3,"Blue 560 Grain","SCIENTIFIC ANGLERS FLY LINES","WETCEL GENERAL PURPOSE - SINKING LINES - TYPE VI - BLACK",112376,null,"WF- 8-S      ",null,840309112376,"1","EACH",37.950000000000003,20.872500000000002,18.975000000000001,17.077500000000001,null,null,null,null,null,null,null,null,null,null,null,null,null,null,null,null,null,{"$f":"IF(OR(ISBLANK($L426),$AW$3=0),\" - \",OFFSET(O426,0,$AW$3,1,1))","v":20.872500000000002},null,null,null,null,"","",null,0,0,0,0,0,""]
[3,0,null,1,null,"TWO HANDED / SWITCH FLY LINES AND TIPS ",null,"TWO HANDED / SWITCH FLY LINES AND TIPS ",null,null,null,null,null,null,null,null,null,null,null,null,null,null,null,null,null,null,null,null,null,null,null,null,null,null,null,null,null,null,null,null,"",""]
[3,76,null,2,"Sunset Or/DGry 520 gr","SPEY FLY LINES AND TIPS","ADAPT (SWITCH) WITH LOOP - WILLOW / PINK / WILLOW","ADAPT (SWITCH) WITH LOOP - WILLOW / PINK / WILLOW",null,null,null,null,null,null,null,null,null,null,null,null,null,null,null,null,null,null,null,null,null,null,null,null,null,null,null,null,null,null,null,null,"",""]
[3,76,1,3,"Sunset Or/DGry 560 gr","SPEY FLY LINES AND TIPS","ADAPT (SWITCH) WITH LOOP - WILLOW / PINK / WILLOW",103404,"*","240 Grain   *NEW*",null,840309103404,"1","EACH",86.95,43.48,39.130000000000003,34.78,null,null,null,null,null,null,null,null,null,null,null,null,null,null,null,null,null,{"$f":"IF(OR(ISBLANK($L429),$AW$3=0),\" - \",OFFSET(O429,0,$AW$3,1,1))","v":43.48},null,null,null,null,{"$f":"IF($AV429=0,\"\",SUM(AK429:AN429))","v":""},{"$f":"IF($AV429>0,SUM(AR429:AU429),\"\")","v":""},null,{"$f":"IF(LEN($AJ429)>0,$AJ429*AK429,\"\")","v":0},{"$f":"IF(LEN($AJ429)>0,$AJ429*AL429,\"\")","v":0},{"$f":"IF(LEN($AJ429)>0,$AJ429*AM429,\"\")","v":0},{"$f":"IF(LEN($AJ429)>0,$AJ429*AN429,\"\")","v":0},{"$f":"COUNT(AK429:AN429)","v":0},{"$f":"IF($AV429<>0,ROW($AV$11),\"\")","v":""}]
[3,76,2,3,"Sunset Or/DGry 560 gr","SPEY FLY LINES AND TIPS","ADAPT (SWITCH) WITH LOOP - WILLOW / PINK / WILLOW",120500,"*","280 Grain      ",null,"840309120500","1","EACH",86.95,43.48,39.130000000000003,34.78,null,null,null,null,null,null,null,null,null,null,null,null,null,null,null,null,null,43.48,null,null,null,null,"","",null,{"$f":"IF(LEN($AJ430)>0,$AJ430*AK430,\"\")","v":0},0,0,0,{"$f":"COUNT(AK430:AN430)","v":0},""]
[3,76,3,3,"Sunset Or/DGry 600 gr","SPEY FLY LINES AND TIPS","ADAPT (SWITCH) WITH LOOP - WILLOW / PINK / WILLOW",120517,"*","320 Grain      ",null,"840309120517","1","EACH",86.95,43.48,39.130000000000003,34.78,null,null,null,null,null,null,null,null,null,null,null,null,null,null,null,null,null,43.48,null,null,null,null,"","",null,0,0,0,0,0,""]
[3,76,4,3,"Sunset Or/DGry 640 gr","SPEY FLY LINES AND TIPS","ADAPT (SWITCH) WITH LOOP - WILLOW / PINK / WILLOW",120524,"*","360 Grain      ",null,"840309120524","1","EACH",86.95,43.48,39.130000000000003,34.78,null,null,null,null,null,null,null,null,null,null,null,null,null,null,null,null,null,43.48,null,null,null,null,"","",null,0,0,0,0,0,""]
[3,76,5,3,"Blue/Black 680 Grain","SPEY FLY LINES AND TIPS","ADAPT (SWITCH) WITH LOOP - WILLOW / PINK / WILLOW",120531,"*","400 Grain      ",null,"840309120531","1","EACH",86.95,43.48,39.130000000000003,34.78,null,null,null,null,null,null,null,null,null,null,null,null,null,null,null,null,null,43.48,null,null,null,null,"","",null,0,0,0,0,0,""]
[3,76,6,3,"\u0001","SPEY FLY LINES AND TIPS","ADAPT (SWITCH) WITH LOOP - WILLOW / PINK / WILLOW",120548,"*","440 Grain      ",null,"840309120548","1","EACH",86.95,43.48,39.130000000000003,34.78,null,null,null,null,null,null,null,null,null,null,null,null,null,null,null,null,null,43.48,null,null,null,null,"","",null,0,0,0,0,0,""]
[3,77,null,2,"Chart/Orange 670 Grain","SPEY FLY LINES AND TIPS","THIRD COAST (TC) SKAGIT EXTREME HEAD WITH LOOPS -HERON /  FIRE GOLD","THIRD COAST (TC) SKAGIT EXTREME HEAD WITH LOOPS -HERON /  FIRE GOLD   *NEW*",null,null,null,null,null,null,null,null,null,null,null,null,null,null,null,null,null,null,null,null,null,null,null,null,null,null,null,null,null,null,null,null,"",""]
[3,77,1,3,"Chart/Orange 790 Grain","SPEY FLY LINES AND TIPS","THIRD COAST (TC) SKAGIT EXTREME HEAD WITH LOOPS -HERON /  FIRE GOLD",121927,"*","320 Grain      ",null,840309121927,"1","EACH",55,27.5,24.75,22,null,null,null,null,null,null,null,null,null,null,null,null,null,null,null,null,null,{"$f":"IF(OR(ISBLANK($L436),$AW$3=0),\" - \",OFFSET(O436,0,$AW$3,1,1))","v":27.5},null,null,null,null,"","",null,{"$f":"IF(LEN($AJ436)>0,$AJ436*AK436,\"\")","v":0},0,0,0,{"$f":"COUNT(AK436:AN436)","v":0},{"$f":"IF($AV436<>0,ROW($AV$11),\"\")","v":""}]
[3,77,2,3,"Chart/Orange 850 Grain","SPEY FLY LINES AND TIPS","THIRD COAST (TC) SKAGIT EXTREME HEAD WITH LOOPS -HERON /  FIRE GOLD",121934,"*","360 Grain      ",null,840309121934,"1","EACH",55,27.5,24.75,22,null,null,null,null,null,null,null,null,null,null,null,null,null,null,null,null,null,27.5,null,null,null,null,"","",null,0,0,0,0,{"$f":"COUNT(AK437:AN437)","v":0},{"$f":"IF($AV437<>0,ROW($AV$11),\"\")","v":""}]
[3,77,3,3,"\u0001","SPEY FLY LINES AND TIPS","THIRD COAST (TC) SKAGIT EXTREME HEAD WITH LOOPS -HERON /  FIRE GOLD",121941,"*","400 Grain      ",null,840309121941,"1","EACH",55,27.5,24.75,22,null,null,null,null,null,null,null,null,null,null,null,null,null,null,null,null,null,27.5,null,null,null,null,"","",null,0,0,0,0,{"$f":"COUNT(AK438:AN438)","v":0},{"$f":"IF($AV438<>0,ROW($AV$11),\"\")","v":""}]
[3,77,4,3,"SunsetOrg/Blue 420 Grain 5/6","SPEY FLY LINES AND TIPS","THIRD COAST (TC) SKAGIT EXTREME HEAD WITH LOOPS -HERON /  FIRE GOLD",121958,"*","440 Grain      ",null,840309121958,"1","EACH",55,27.5,24.75,22,null,null,null,null,null,null,null,null,null,null,null,null,null,null,null,null,null,27.5,null,null,null,null,"","",null,0,0,0,0,0,""]
[3,77,5,3,"SunsetOrg/Blue 470 Grain 6/7","SPEY FLY LINES AND TIPS","THIRD COAST (TC) SKAGIT EXTREME HEAD WITH LOOPS -HERON /  FIRE GOLD",121965,"*","480 Grain      ",null,840309121965,"1","EACH",55,27.5,24.75,22,null,null,null,null,null,null,null,null,null,null,null,null,null,null,null,null,null,27.5,null,null,null,null,"","",null,0,0,0,0,0,""]
[3,77,6,3,"SunsetOrg/Blue 530 Grain 7/8","SPEY FLY LINES AND TIPS","THIRD COAST (TC) SKAGIT EXTREME HEAD WITH LOOPS -HERON /  FIRE GOLD",121972,"*","520 Grain      ",null,840309121972,"1","EACH",55,27.5,24.75,22,null,null,null,null,null,null,null,null,null,null,null,null,null,null,null,null,null,27.5,null,null,null,null,"","",null,0,0,0,0,0,""]
[3,77,7,3,"SunsetOrg/Blue 600 Grain 8/9","SPEY FLY LINES AND TIPS","THIRD COAST (TC) SKAGIT EXTREME HEAD WITH LOOPS -HERON /  FIRE GOLD",121989,"*","560 Grain      ",null,840309121989,"1","EACH",55,27.5,24.75,22,null,null,null,null,null,null,null,null,null,null,null,null,null,null,null,null,null,27.5,null,null,null,null,"","",null,0,0,0,0,0,""]
[3,77,8,3,"SunsetOrg/Blue 680 Grain 9/10, 120 ft","SPEY FLY LINES AND TIPS","THIRD COAST (TC) SKAGIT EXTREME HEAD WITH LOOPS -HERON /  FIRE GOLD",121996,"*","600 Grain      ",null,840309121996,"1","EACH",55,27.5,24.75,22,null,null,null,null,null,null,null,null,null,null,null,null,null,null,null,null,null,27.5,null,null,null,null,"","",null,0,0,0,0,0,""]
[3,77,9,3,"\u0001","SPEY FLY LINES AND TIPS","THIRD COAST (TC) SKAGIT EXTREME HEAD WITH LOOPS -HERON /  FIRE GOLD",122009,"*","640 Grain      ",null,840309122009,"1","EACH",55,27.5,24.75,22,null,null,null,null,null,null,null,null,null,null,null,null,null,null,null,null,null,27.5,null,null,null,null,"","",null,0,0,0,0,0,""]
[3,78,null,2,"\u0001","SPEY FLY LINES AND TIPS","THIRD COAST (TC) SONAR SKAGIT EXTREME INTERMEDIATE HEAD WITH LOOPS - HERON / BLUE","THIRD COAST (TC) SONAR SKAGIT EXTREME INTERMEDIATE HEAD WITH LOOPS - HERON / BLUE  *NEW*",null,null,null,null,null,null,null,null,null,null,null,null,null,null,null,null,null,null,null,null,null,null,null,null,null,null,null,null,null,null,null,null,"",""]
[3,78,1,3," 120 Grain 10 ft","SPEY FLY LINES AND TIPS","THIRD COAST (TC) SONAR SKAGIT EXTREME INTERMEDIATE HEAD WITH LOOPS - HERON / BLUE",123228,"*","400 Grain      ",null,840309123228,"1","EACH",55,27.5,24.75,22,null,null,null,null,null,null,null,null,null,null,null,null,null,null,null,null,null,{"$f":"IF(OR(ISBLANK($L446),$AW$3=0),\" - \",OFFSET(O446,0,$AW$3,1,1))","v":27.5},null,null,null,null,"","",null,{"$f":"IF(LEN($AJ446)>0,$AJ446*AK446,\"\")","v":0},0,0,0,{"$f":"COUNT(AK446:AN446)","v":0},{"$f":"IF($AV446<>0,ROW($AV$11),\"\")","v":""}]
[3,78,2,3," 160 Grain 12 ft","SPEY FLY LINES AND TIPS","THIRD COAST (TC) SONAR SKAGIT EXTREME INTERMEDIATE HEAD WITH LOOPS - HERON / BLUE",123235,"*","460 Grain      ",null,840309123235,"1","EACH",55,27.5,24.75,22,null,null,null,null,null,null,null,null,null,null,null,null,null,null,null,null,null,27.5,null,null,null,null,"","",null,0,0,0,0,0,""]
[3,78,3,3," 200 Grain 15 ft","SPEY FLY LINES AND TIPS","THIRD COAST (TC) SONAR SKAGIT EXTREME INTERMEDIATE HEAD WITH LOOPS - HERON / BLUE",123242,"*","520 Grain      ",null,840309123242,"1","EACH",55,27.5,24.75,22,null,null,null,null,null,null,null,null,null,null,null,null,null,null,null,null,null,27.5,null,null,null,null,"","",null,0,0,0,0,0,""]
[3,78,4,3," 120 Grain 10 ft","SPEY FLY LINES AND TIPS","THIRD COAST (TC) SONAR SKAGIT EXTREME INTERMEDIATE HEAD WITH LOOPS - HERON / BLUE",123259,"*","580 Grain      ",null,840309123259,"1","EACH",55,27.5,24.75,22,null,null,null,null,null,null,null,null,null,null,null,null,null,null,null,null,null,27.5,null,null,null,null,"","",null,0,0,0,0,0,""]
[3,79,null,2," 200 Grain 15 ft","SPEY FLY LINES AND TIPS","THIRD COAST (TC) SKAGIT EXTREME MULTI TIP KIT- HERON /  FIRE GOLD","THIRD COAST (TC) SKAGIT EXTREME MULTI TIP KIT- HERON /  FIRE GOLD   *NEW*",null,null,null,null,null,null,null,null,null,null,null,null,null,null,null,null,null,null,null,null,null,null,null,null,null,null,null,null,null,null,null,null,"",""]
[3,79,1,3,"\u0001","SPEY FLY LINES AND TIPS","THIRD COAST (TC) SKAGIT EXTREME MULTI TIP KIT- HERON /  FIRE GOLD",122184,"*","400 Grain      ",null,840309122184,"1","EACH",145,72.5,65.25,58,null,null,null,null,null,null,null,null,null,null,null,null,null,null,null,null,null,{"$f":"IF(OR(ISBLANK($L451),$AW$3=0),\" - \",OFFSET(O451,0,$AW$3,1,1))","v":72.5},null,null,null,null,"","",null,0,0,0,0,{"$f":"COUNT(AK451:AN451)","v":0},{"$f":"IF($AV451<>0,ROW($AV$11),\"\")","v":""}]
[3,79,2,3,"\u0001","SPEY FLY LINES AND TIPS","THIRD COAST (TC) SKAGIT EXTREME MULTI TIP KIT- HERON /  FIRE GOLD",122191,"*","440 Grain      ",null,840309122191,"1","EACH",145,72.5,65.25,58,null,null,null,null,null,null,null,null,null,null,null,null,null,null,null,null,null,72.5,null,null,null,null,"","",null,0,0,0,0,0,""]
[3,79,3,3,"Buckskin WF- 2-F","SPEY FLY LINES AND TIPS","THIRD COAST (TC) SKAGIT EXTREME MULTI TIP KIT- HERON /  FIRE GOLD",122207,"*","480 Grain      ",null,840309122207,"1","EACH",145,72.5,65.25,58,null,null,null,null,null,null,null,null,null,null,null,null,null,null,null,null,null,72.5,null,null,null,null,"","",null,0,0,0,0,0,""]
[3,79,4,3,"Buckskin WF- 3-F","SPEY FLY LINES AND TIPS","THIRD COAST (TC) SKAGIT EXTREME MULTI TIP KIT- HERON /  FIRE GOLD",122214,"*","520 Grain      ",null,840309122214,"1","EACH",145,72.5,65.25,58,null,null,null,null,null,null,null,null,null,null,null,null,null,null,null,null,null,72.5,null,null,null,null,"","",null,0,0,0,0,0,""]
[3,79,5,3,"Buckskin WF- 4-F","SPEY FLY LINES AND TIPS","THIRD COAST (TC) SKAGIT EXTREME MULTI TIP KIT- HERON /  FIRE GOLD",122266,"*","560 Grain      ",null,840309122266,"1","EACH",145,72.5,65.25,58,null,null,null,null,null,null,null,null,null,null,null,null,null,null,null,null,null,72.5,null,null,null,null,"","",null,0,0,0,0,0,""]
[3,79,6,3,"Buckskin WF- 5-F","SPEY FLY LINES AND TIPS","THIRD COAST (TC) SKAGIT EXTREME MULTI TIP KIT- HERON /  FIRE GOLD",122900,"*","600 Grain      ",null,840309122900,"1","EACH",145,72.5,65.25,58,null,null,null,null,null,null,null,null,null,null,null,null,null,null,null,null,null,72.5,null,null,null,null,"","",null,0,0,0,0,0,""]
[3,79,7,3,"Buckskin WF- 6-F","SPEY FLY LINES AND TIPS","THIRD COAST (TC) SKAGIT EXTREME MULTI TIP KIT- HERON /  FIRE GOLD",123211,"*","640 Grain      ",null,840309123211,"1","EACH",145,72.5,65.25,58,null,null,null,null,null,null,null,null,null,null,null,null,null,null,null,null,null,72.5,null,null,null,null,"","",null,0,0,0,0,0,""]
[3,80,null,2," 200 Grain 15 ft","SPEY FLY LINES AND TIPS","THIRD COAST (TC) SONAR SKAGIT EXTREME MULTI TIP INTERMEDIATE KIT- HERON / BLUE","THIRD COAST (TC) SONAR SKAGIT EXTREME MULTI TIP INTERMEDIATE KIT- HERON / BLUE   *NEW*",null,null,null,null,null,null,null,null,null,null,null,null,null,null,null,null,null,null,null,null,null,null,null,null,null,null,null,null,null,null,null,null,{"$f":"IF($AV458=0,\"\",SUM(AK458:AN458))","v":""},{"$f":"IF($AV458>0,SUM(AR458:AU458),\"\")","v":""}]
[3,80,1,3,"\u0001","SPEY FLY LINES AND TIPS","THIRD COAST (TC) SONAR SKAGIT EXTREME MULTI TIP INTERMEDIATE KIT- HERON / BLUE",122146,"*","400 Grain      ",null,840309122146,"1","EACH",145,72.5,65.25,58,null,null,null,null,null,null,null,null,null,null,null,null,null,null,null,null,null,{"$f":"IF(OR(ISBLANK($L459),$AW$3=0),\" - \",OFFSET(O459,0,$AW$3,1,1))","v":72.5},null,null,null,null,"","",null,{"$f":"IF(LEN($AJ459)>0,$AJ459*AK459,\"\")","v":0},{"$f":"IF(LEN($AJ459)>0,$AJ459*AL459,\"\")","v":0},{"$f":"IF(LEN($AJ459)>0,$AJ459*AM459,\"\")","v":0},{"$f":"IF(LEN($AJ459)>0,$AJ459*AN459,\"\")","v":0},{"$f":"COUNT(AK459:AN459)","v":0},""]
[3,80,2,3,"\u0001","SPEY FLY LINES AND TIPS","THIRD COAST (TC) SONAR SKAGIT EXTREME MULTI TIP INTERMEDIATE KIT- HERON / BLUE",122153,"*","460 Grain      ",null,840309122153,"1","EACH",145,72.5,65.25,58,null,null,null,null,null,null,null,null,null,null,null,null,null,null,null,null,null,72.5,null,null,null,null,"","",null,0,0,0,0,0,""]
[3,80,3,3,"Buckskin WF- 2-F","SPEY FLY LINES AND TIPS","THIRD COAST (TC) SONAR SKAGIT EXTREME MULTI TIP INTERMEDIATE KIT- HERON / BLUE",122160,"*","520 Grain      ",null,840309122160,"1","EACH",145,72.5,65.25,58,null,null,null,null,null,null,null,null,null,null,null,null,null,null,null,null,null,72.5,null,null,null,null,"","",null,0,0,0,0,0,""]
[3,80,4,3,"Buckskin WF- 3-F","SPEY FLY LINES AND TIPS","THIRD COAST (TC) SONAR SKAGIT EXTREME MULTI TIP INTERMEDIATE KIT- HERON / BLUE",122177,"*","560 Grain      ",null,840309122177,"1","EACH",145,72.5,65.25,58,null,null,null,null,null,null,null,null,null,null,null,null,null,null,null,null,null,72.5,null,null,null,null,"","",null,0,0,0,0,0,""]
[3,81,null,2,"Buckskin WF- 8-F","SPEY FLY LINES AND TIPS","ULTIMATE SCANDI TAPER - SINGLE DENSITY FLOATING - ORANGE/ WILLOW   *NEW*","ULTIMATE SCANDI TAPER - SINGLE DENSITY FLOATING - ORANGE/ WILLOW   *NEW*",null,null,null,null,null,null,null,null,null,null,null,null,null,null,null,null,null,null,null,null,null,null,null,null,null,null,null,null,null,null,null,null,"",""]
[3,81,1,3,null,"SPEY FLY LINES AND TIPS","ULTIMATE SCANDI TAPER - SINGLE DENSITY FLOATING - ORANGE/ WILLOW   *NEW*",122238,"*","UST 400 Grain 6/7",null,"840309122238","1","EACH",69.95,34.979999999999997,31.98,27.98,null,null,null,null,null,null,null,null,null,null,null,null,null,null,null,null,null,{"$f":"IF(OR(ISBLANK($L464),$AW$3=0),\" - \",OFFSET(O464,0,$AW$3,1,1))","v":34.979999999999997},null,null,null,null,{"$f":"IF($AV464=0,\"\",SUM(AK464:AN464))","v":""},{"$f":"IF($AV464>0,SUM(AR464:AU464),\"\")","v":""},null,{"$f":"IF(LEN($AJ464)>0,$AJ464*AK464,\"\")","v":0},{"$f":"IF(LEN($AJ464)>0,$AJ464*AL464,\"\")","v":0},{"$f":"IF(LEN($AJ464)>0,$AJ464*AM464,\"\")","v":0},{"$f":"IF(LEN($AJ464)>0,$AJ464*AN464,\"\")","v":0},{"$f":"COUNT(AK464:AN464)","v":0},""]
[3,81,2,3,"Buckskin WF- 9-F","SPEY FLY LINES AND TIPS","ULTIMATE SCANDI TAPER - SINGLE DENSITY FLOATING - ORANGE/ WILLOW   *NEW*",100007,"*","UST 460 Grain 7/8",null,"840309100007","1","EACH",69.95,34.979999999999997,31.98,27.98,null,null,null,null,null,null,null,null,null,null,null,null,null,null,null,null,null,{"$f":"IF(OR(ISBLANK($L465),$AW$3=0),\" - \",OFFSET(O465,0,$AW$3,1,1))","v":34.979999999999997},null,null,null,null,"","",null,{"$f":"IF(LEN($AJ465)>0,$AJ465*AK465,\"\")","v":0},{"$f":"IF(LEN($AJ465)>0,$AJ465*AL465,\"\")","v":0},0,0,0,""]
[3,81,3,3,"\u0001","SPEY FLY LINES AND TIPS","ULTIMATE SCANDI TAPER - SINGLE DENSITY FLOATING - ORANGE/ WILLOW   *NEW*",100014,"*","UST 525 Grain 8/9",null,"840309100014","1","EACH",69.95,34.979999999999997,31.98,27.98,null,null,null,null,null,null,null,null,null,null,null,null,null,null,null,null,null,{"$f":"IF(OR(ISBLANK($L466),$AW$3=0),\" - \",OFFSET(O466,0,$AW$3,1,1))","v":34.979999999999997},null,null,null,null,"","",null,0,0,0,0,0]
[3,81,4,3,"Sunrise WF- 3-F","SPEY FLY LINES AND TIPS","ULTIMATE SCANDI TAPER - SINGLE DENSITY FLOATING - ORANGE/ WILLOW   *NEW*",100021,"*","UST 585 Grain 9/10",null,"840309100021","1","EACH",69.95,34.979999999999997,31.98,27.98,null,null,null,null,null,null,null,null,null,null,null,null,null,null,null,null,null,{"$f":"IF(OR(ISBLANK($L467),$AW$3=0),\" - \",OFFSET(O467,0,$AW$3,1,1))","v":34.979999999999997},null,null,null,null,"","",null,0,0,0,0,0,{"$f":"IF($AV467<>0,ROW($AV$11),\"\")","v":""}]
[3,81,5,3,"Sunrise WF- 4-F","SPEY FLY LINES AND TIPS","ULTIMATE SCANDI TAPER - SINGLE DENSITY FLOATING - ORANGE/ WILLOW   *NEW*",100038,"*","UST 650 Grain 10/11",null,"840309100038","1","EACH",69.95,34.979999999999997,31.98,27.98,null,null,null,null,null,null,null,null,null,null,null,null,null,null,null,null,null,{"$f":"IF(OR(ISBLANK($L468),$AW$3=0),\" - \",OFFSET(O468,0,$AW$3,1,1))","v":34.979999999999997},null,null,null,null,"","",null,0,0,0,0,0,""]
[3,82,null,2,"Sunrise WF- 5-F","SPEY FLY LINES AND TIPS","ULTIMATE SCANDI TAPER - SINGLE DENSITY SINKING SINK5 - BLACK   *NEW*","ULTIMATE SCANDI TAPER - SINGLE DENSITY SINKING SINK5 - BLACK   *NEW*",null,null,null,null,null,null,null,null,null,null,null,null,null,null,null,null,null,null,null,null,null,null,null,null,null,null,null,null,null,null,null,null,"",""]
[3,82,1,3,null,"SPEY FLY LINES AND TIPS","ULTIMATE SCANDI TAPER - SINGLE DENSITY SINKING SINK5 - BLACK   *NEW*",122337,null,"UST 400 Grain 6/7",null,"840309122337","1","EACH",69.95,34.979999999999997,31.98,27.98,null,null,null,null,null,null,null,null,null,null,null,null,null,null,null,null,null,{"$f":"IF(OR(ISBLANK($L470),$AW$3=0),\" - \",OFFSET(O470,0,$AW$3,1,1))","v":34.979999999999997},null,null,null,null,{"$f":"IF($AV470=0,\"\",SUM(AK470:AN470))","v":""},{"$f":"IF($AV470>0,SUM(AR470:AU470),\"\")","v":""},null,{"$f":"IF(LEN($AJ470)>0,$AJ470*AK470,\"\")","v":0},{"$f":"IF(LEN($AJ470)>0,$AJ470*AL470,\"\")","v":0},{"$f":"IF(LEN($AJ470)>0,$AJ470*AM470,\"\")","v":0},{"$f":"IF(LEN($AJ470)>0,$AJ470*AN470,\"\")","v":0},{"$f":"COUNT(AK470:AN470)","v":0},""]
[3,82,2,3,"Sunrise WF- 6-F","SPEY FLY LINES AND TIPS","ULTIMATE SCANDI TAPER - SINGLE DENSITY SINKING SINK5 - BLACK   *NEW*",100403,"*","UST 460 Grain 7/8",null,"840309100403","1","EACH",69.95,34.979999999999997,31.98,27.98,null,null,null,null,null,null,null,null,null,null,null,null,null,null,null,null,null,{"$f":"IF(OR(ISBLANK($L471),$AW$3=0),\" - \",OFFSET(O471,0,$AW$3,1,1))","v":34.979999999999997},null,null,null,null,"","",null,0,0,0,0,0,""]
[3,82,3,3,"Sunrise WF- 7-F","SPEY FLY LINES AND TIPS","ULTIMATE SCANDI TAPER - SINGLE DENSITY SINKING SINK5 - BLACK   *NEW*",100410,"*","UST 525 Grain 8/9",null,"840309100410","1","EACH",69.95,34.979999999999997,31.98,27.98,null,null,null,null,null,null,null,null,null,null,null,null,null,null,null,null,null,{"$f":"IF(OR(ISBLANK($L472),$AW$3=0),\" - \",OFFSET(O472,0,$AW$3,1,1))","v":34.979999999999997},null,null,null,null,"","",null,0,0,0,0,0,""]
[3,82,4,3,"Sunrise WF- 8-F","SPEY FLY LINES AND TIPS","ULTIMATE SCANDI TAPER - SINGLE DENSITY SINKING SINK5 - BLACK   *NEW*",100427,"*","UST 585 Grain 9/10",null,"840309100427","1","EACH",69.95,34.979999999999997,31.98,27.98,null,null,null,null,null,null,null,null,null,null,null,null,null,null,null,null,null,{"$f":"IF(OR(ISBLANK($L473),$AW$3=0),\" - \",OFFSET(O473,0,$AW$3,1,1))","v":34.979999999999997},null,null,null,null,"","",null,0,0,0,0,0,""]
[3,82,5,3,"\u0001","SPEY FLY LINES AND TIPS","ULTIMATE SCANDI TAPER - SINGLE DENSITY SINKING SINK5 - BLACK   *NEW*",100434,"*","UST 650 Grain 10/11",null,"840309100434","1","EACH",69.95,34.979999999999997,31.98,27.98,null,null,null,null,null,null,null,null,null,null,null,null,null,null,null,null,null,{"$f":"IF(OR(ISBLANK($L474),$AW$3=0),\" - \",OFFSET(O474,0,$AW$3,1,1))","v":34.979999999999997},null,null,null,null,"","",null,0,0,0,0,0,""]
[3,83,null,2,"Buckskin DT- 3-F","SPEY FLY LINES AND TIPS","ULTIMATE SCANDI TAPER - DOUBLE DENSITY HOVER/INTERMEDIATE - SURF/ PALE GREEN   *NEW*","ULTIMATE SCANDI TAPER - DOUBLE DENSITY HOVER/INTERMEDIATE - SURF/ PALE GREEN   *NEW*",null,null,null,null,null,null,null,null,null,null,null,null,null,null,null,null,null,null,null,null,null,null,null,null,null,null,null,null,null,null,null,null,"",""]
[3,83,1,3,null,"SPEY FLY LINES AND TIPS","ULTIMATE SCANDI TAPER - DOUBLE DENSITY HOVER/INTERMEDIATE - SURF/ PALE GREEN   *NEW*",122245,"*","UST 400 Grain 6/7",null,"840309122245","1","EACH",69.95,34.979999999999997,31.98,27.98,null,null,null,null,null,null,null,null,null,null,null,null,null,null,null,null,null,{"$f":"IF(OR(ISBLANK($L476),$AW$3=0),\" - \",OFFSET(O476,0,$AW$3,1,1))","v":34.979999999999997},null,null,null,null,{"$f":"IF($AV476=0,\"\",SUM(AK476:AN476))","v":""},{"$f":"IF($AV476>0,SUM(AR476:AU476),\"\")","v":""},null,{"$f":"IF(LEN($AJ476)>0,$AJ476*AK476,\"\")","v":0},{"$f":"IF(LEN($AJ476)>0,$AJ476*AL476,\"\")","v":0},{"$f":"IF(LEN($AJ476)>0,$AJ476*AM476,\"\")","v":0},{"$f":"IF(LEN($AJ476)>0,$AJ476*AN476,\"\")","v":0},{"$f":"COUNT(AK476:AN476)","v":0}]
[3,83,2,3,"Buckskin DT- 4-F","SPEY FLY LINES AND TIPS","ULTIMATE SCANDI TAPER - DOUBLE DENSITY HOVER/INTERMEDIATE - SURF/ PALE GREEN   *NEW*",100045,"*","UST 460 Grain 7/8",null,"840309100045","1","EACH",69.95,34.979999999999997,31.98,27.98,null,null,null,null,null,null,null,null,null,null,null,null,null,null,null,null,null,{"$f":"IF(OR(ISBLANK($L477),$AW$3=0),\" - \",OFFSET(O477,0,$AW$3,1,1))","v":34.979999999999997},null,null,null,null,"","",null,{"$f":"IF(LEN($AJ477)>0,$AJ477*AK477,\"\")","v":0},0,0,0,{"$f":"COUNT(AK477:AN477)","v":0},{"$f":"IF($AV477<>0,ROW($AV$11),\"\")","v":""}]
[3,83,3,3,"Buckskin DT- 5-F","SPEY FLY LINES AND TIPS","ULTIMATE SCANDI TAPER - DOUBLE DENSITY HOVER/INTERMEDIATE - SURF/ PALE GREEN   *NEW*",100052,"*","UST 525 Grain 8/9",null,"840309100052","1","EACH",69.95,34.979999999999997,31.98,27.98,null,null,null,null,null,null,null,null,null,null,null,null,null,null,null,null,null,{"$f":"IF(OR(ISBLANK($L478),$AW$3=0),\" - \",OFFSET(O478,0,$AW$3,1,1))","v":34.979999999999997},null,null,null,null,"","",null,0,0,0,0,{"$f":"COUNT(AK478:AN478)","v":0},{"$f":"IF($AV478<>0,ROW($AV$11),\"\")","v":""}]
[3,83,4,3,"Buckskin DT- 6-F","SPEY FLY LINES AND TIPS","ULTIMATE SCANDI TAPER - DOUBLE DENSITY HOVER/INTERMEDIATE - SURF/ PALE GREEN   *NEW*",100069,"*","UST 585 Grain 9/10",null,"840309100069","1","EACH",69.95,34.979999999999997,31.98,27.98,null,null,null,null,null,null,null,null,null,null,null,null,null,null,null,null,null,{"$f":"IF(OR(ISBLANK($L479),$AW$3=0),\" - \",OFFSET(O479,0,$AW$3,1,1))","v":34.979999999999997},null,null,null,null,"","",null,0,0,0,0,{"$f":"COUNT(AK479:AN479)","v":0},{"$f":"IF($AV479<>0,ROW($AV$11),\"\")","v":""}]
[3,83,5,3,"\u0001","SPEY FLY LINES AND TIPS","ULTIMATE SCANDI TAPER - DOUBLE DENSITY HOVER/INTERMEDIATE - SURF/ PALE GREEN   *NEW*",100076,"*","UST 650 Grain 10/11",null,"840309100076","1","EACH",69.95,34.979999999999997,31.98,27.98,null,null,null,null,null,null,null,null,null,null,null,null,null,null,null,null,null,{"$f":"IF(OR(ISBLANK($L480),$AW$3=0),\" - \",OFFSET(O480,0,$AW$3,1,1))","v":34.979999999999997},null,null,null,null,{"$f":"IF($AV480=0,\"\",SUM(AK480:AN480))","v":""},{"$f":"IF($AV480>0,SUM(AR480:AU480),\"\")","v":""},null,0,0,0,0,{"$f":"COUNT(AK480:AN480)","v":0},{"$f":"IF($AV480<>0,ROW($AV$11),\"\")","v":""}]
[3,84,null,2,"Gray WF- 7-F","SPEY FLY LINES AND TIPS","ULTIMATE SCANDI TAPER - DOUBLE DENSITY S1/S2 - BLUE HERON/ OLIVE   *NEW*","ULTIMATE SCANDI TAPER - DOUBLE DENSITY S1/S2 - BLUE HERON/ OLIVE   *NEW*",null,null,null,null,null,null,null,null,null,null,null,null,null,null,null,null,null,null,null,null,null,null,null,null,null,null,null,null,null,null,null,null,"",""]
[3,84,1,3,null,"SPEY FLY LINES AND TIPS","ULTIMATE SCANDI TAPER - DOUBLE DENSITY S1/S2 - BLUE HERON/ OLIVE   *NEW*",122252,"*","UST 400 Grain 6/7",null,"840309122252","1","EACH",69.95,34.979999999999997,31.98,27.98,null,null,null,null,null,null,null,null,null,null,null,null,null,null,null,null,null,{"$f":"IF(OR(ISBLANK($L482),$AW$3=0),\" - \",OFFSET(O482,0,$AW$3,1,1))","v":34.979999999999997},null,null,null,null,{"$f":"IF($AV482=0,\"\",SUM(AK482:AN482))","v":""},{"$f":"IF($AV482>0,SUM(AR482:AU482),\"\")","v":""},null,{"$f":"IF(LEN($AJ482)>0,$AJ482*AK482,\"\")","v":0},{"$f":"IF(LEN($AJ482)>0,$AJ482*AL482,\"\")","v":0},{"$f":"IF(LEN($AJ482)>0,$AJ482*AM482,\"\")","v":0},{"$f":"IF(LEN($AJ482)>0,$AJ482*AN482,\"\")","v":0},{"$f":"COUNT(AK482:AN482)","v":0},{"$f":"IF($AV482<>0,ROW($AV$11),\"\")","v":""}]
[3,84,2,3,"Gray WF- 8-F","SPEY FLY LINES AND TIPS","ULTIMATE SCANDI TAPER - DOUBLE DENSITY S1/S2 - BLUE HERON/ OLIVE   *NEW*",100083,"*","UST 460 Grain 7/8",null,"840309100083","1","EACH",69.95,34.979999999999997,31.98,27.98,null,null,null,null,null,null,null,null,null,null,null,null,null,null,null,null,null,{"$f":"IF(OR(ISBLANK($L483),$AW$3=0),\" - \",OFFSET(O483,0,$AW$3,1,1))","v":34.979999999999997},null,null,null,null,"","",null,{"$f":"IF(LEN($AJ483)>0,$AJ483*AK483,\"\")","v":0},0,0,0,{"$f":"COUNT(AK483:AN483)","v":0},""]
[3,84,3,3,"Gray WF- 9-F","SPEY FLY LINES AND TIPS","ULTIMATE SCANDI TAPER - DOUBLE DENSITY S1/S2 - BLUE HERON/ OLIVE   *NEW*",100090,"*","UST 525 Grain 8/9",null,"840309100090","1","EACH",69.95,34.979999999999997,31.98,27.98,null,null,null,null,null,null,null,null,null,null,null,null,null,null,null,null,null,{"$f":"IF(OR(ISBLANK($L484),$AW$3=0),\" - \",OFFSET(O484,0,$AW$3,1,1))","v":34.979999999999997},null,null,null,null,"","",null,0,0,0,0,0,""]
[3,84,4,3,"Gray WF-10-F","SPEY FLY LINES AND TIPS","ULTIMATE SCANDI TAPER - DOUBLE DENSITY S1/S2 - BLUE HERON/ OLIVE   *NEW*",100106,"*","UST 585 Grain 9/10",null,"840309100106","1","EACH",69.95,34.979999999999997,31.98,27.98,null,null,null,null,null,null,null,null,null,null,null,null,null,null,null,null,null,{"$f":"IF(OR(ISBLANK($L485),$AW$3=0),\" - \",OFFSET(O485,0,$AW$3,1,1))","v":34.979999999999997},null,null,null,null,"","",null,0,0,0,0,0,""]
[3,84,5,3,"Gray WF-11-F","SPEY FLY LINES AND TIPS","ULTIMATE SCANDI TAPER - DOUBLE DENSITY S1/S2 - BLUE HERON/ OLIVE   *NEW*",100113,"*","UST 650 Grain 10/11",null,"840309100113","1","EACH",69.95,34.979999999999997,31.98,27.98,null,null,null,null,null,null,null,null,null,null,null,null,null,null,null,null,null,{"$f":"IF(OR(ISBLANK($L486),$AW$3=0),\" - \",OFFSET(O486,0,$AW$3,1,1))","v":34.979999999999997},null,null,null,null,"","",null,0,0,0,0,0,""]
[3,85,null,2,"Gray WF-12-F","SPEY FLY LINES AND TIPS","ULTIMATE SCANDI TAPER - DOUBLE DENSITY S2/S3 - OLIVE/ GRAY   *NEW*","ULTIMATE SCANDI TAPER - DOUBLE DENSITY S2/S3 - OLIVE/ GRAY   *NEW*",null,null,null,null,null,null,null,null,null,null,null,null,null,null,null,null,null,null,null,null,null,null,null,null,null,null,null,null,null,null,null,null,"",""]
[3,85,1,3,null,"SPEY FLY LINES AND TIPS","ULTIMATE SCANDI TAPER - DOUBLE DENSITY S2/S3 - OLIVE/ GRAY   *NEW*",122269,"*","UST 400 Grain 6/7",null,"840309122269","1","EACH",69.95,34.979999999999997,31.98,27.98,null,null,null,null,null,null,null,null,null,null,null,null,null,null,null,null,null,{"$f":"IF(OR(ISBLANK($L488),$AW$3=0),\" - \",OFFSET(O488,0,$AW$3,1,1))","v":34.979999999999997},null,null,null,null,{"$f":"IF($AV488=0,\"\",SUM(AK488:AN488))","v":""},{"$f":"IF($AV488>0,SUM(AR488:AU488),\"\")","v":""},null,{"$f":"IF(LEN($AJ488)>0,$AJ488*AK488,\"\")","v":0},{"$f":"IF(LEN($AJ488)>0,$AJ488*AL488,\"\")","v":0},{"$f":"IF(LEN($AJ488)>0,$AJ488*AM488,\"\")","v":0},{"$f":"IF(LEN($AJ488)>0,$AJ488*AN488,\"\")","v":0},{"$f":"COUNT(AK488:AN488)","v":0},{"$f":"IF($AV488<>0,ROW($AV$11),\"\")","v":""}]
[3,85,2,3,"\u0001","SPEY FLY LINES AND TIPS","ULTIMATE SCANDI TAPER - DOUBLE DENSITY S2/S3 - OLIVE/ GRAY   *NEW*",100120,"*","UST 460 Grain 7/8",null,"840309100120","1","EACH",69.95,34.979999999999997,31.98,27.98,null,null,null,null,null,null,null,null,null,null,null,null,null,null,null,null,null,{"$f":"IF(OR(ISBLANK($L489),$AW$3=0),\" - \",OFFSET(O489,0,$AW$3,1,1))","v":34.979999999999997},null,null,null,null,"","",null,0,0,0,0,{"$f":"COUNT(AK489:AN489)","v":0},""]
[3,85,3,3,"Mist Green WF- 3-F","SPEY FLY LINES AND TIPS","ULTIMATE SCANDI TAPER - DOUBLE DENSITY S2/S3 - OLIVE/ GRAY   *NEW*",100137,"*","UST 525 Grain 8/9",null,"840309100137","1","EACH",69.95,34.979999999999997,31.98,27.98,null,null,null,null,null,null,null,null,null,null,null,null,null,null,null,null,null,{"$f":"IF(OR(ISBLANK($L490),$AW$3=0),\" - \",OFFSET(O490,0,$AW$3,1,1))","v":34.979999999999997},null,null,null,null,"","",null,0,0,0,0,0,""]
[3,85,4,3,"Mist Green WF- 4-F","SPEY FLY LINES AND TIPS","ULTIMATE SCANDI TAPER - DOUBLE DENSITY S2/S3 - OLIVE/ GRAY   *NEW*",100144,"*","UST 585 Grain 9/10",null,"840309100144","1","EACH",69.95,34.979999999999997,31.98,27.98,null,null,null,null,null,null,null,null,null,null,null,null,null,null,null,null,null,{"$f":"IF(OR(ISBLANK($L491),$AW$3=0),\" - \",OFFSET(O491,0,$AW$3,1,1))","v":34.979999999999997},null,null,null,null,"","",null,0,0,0,0,0,""]
[3,85,5,3,"Mist Green WF- 5-F","SPEY FLY LINES AND TIPS","ULTIMATE SCANDI TAPER - DOUBLE DENSITY S2/S3 - OLIVE/ GRAY   *NEW*",100151,"*","UST 650 Grain 10/11",null,"840309100151","1","EACH",69.95,34.979999999999997,31.98,27.98,null,null,null,null,null,null,null,null,null,null,null,null,null,null,null,null,null,{"$f":"IF(OR(ISBLANK($L492),$AW$3=0),\" - \",OFFSET(O492,0,$AW$3,1,1))","v":34.979999999999997},null,null,null,null,"","",null,0,0,0,0,0,""]
[3,86,null,2,"Mist Green WF- 6-F","SPEY FLY LINES AND TIPS","ULTIMATE SCANDI TAPER - DOUBLE DENSITY S3/S4 - GRAY/ DARK GRAY   *NEW*","ULTIMATE SCANDI TAPER - DOUBLE DENSITY S3/S4 - GRAY/ DARK GRAY   *NEW*",null,null,null,null,null,null,null,null,null,null,null,null,null,null,null,null,null,null,null,null,null,null,null,null,null,null,null,null,null,null,null,null,"",""]
[3,86,1,3,null,"SPEY FLY LINES AND TIPS","ULTIMATE SCANDI TAPER - DOUBLE DENSITY S3/S4 - GRAY/ DARK GRAY   *NEW*",122276,null,"UST 400 Grain 6/7",null,"840309122276","1","EACH",69.95,34.979999999999997,31.98,27.98,null,null,null,null,null,null,null,null,null,null,null,null,null,null,null,null,null,{"$f":"IF(OR(ISBLANK($L494),$AW$3=0),\" - \",OFFSET(O494,0,$AW$3,1,1))","v":34.979999999999997},null,null,null,null,{"$f":"IF($AV494=0,\"\",SUM(AK494:AN494))","v":""},{"$f":"IF($AV494>0,SUM(AR494:AU494),\"\")","v":""},null,{"$f":"IF(LEN($AJ494)>0,$AJ494*AK494,\"\")","v":0},{"$f":"IF(LEN($AJ494)>0,$AJ494*AL494,\"\")","v":0},{"$f":"IF(LEN($AJ494)>0,$AJ494*AM494,\"\")","v":0},{"$f":"IF(LEN($AJ494)>0,$AJ494*AN494,\"\")","v":0},{"$f":"COUNT(AK494:AN494)","v":0},""]
[3,86,2,3,"Mist Green WF- 7-F","SPEY FLY LINES AND TIPS","ULTIMATE SCANDI TAPER - DOUBLE DENSITY S3/S4 - GRAY/ DARK GRAY   *NEW*",100168,null,"UST 460 Grain 7/8",null,"840309100168","1","EACH",69.95,34.979999999999997,31.98,27.98,null,null,null,null,null,null,null,null,null,null,null,null,null,null,null,null,null,{"$f":"IF(OR(ISBLANK($L495),$AW$3=0),\" - \",OFFSET(O495,0,$AW$3,1,1))","v":34.979999999999997},null,null,null,null,"","",null,0,0,0,0,0,""]
[3,86,3,3,"Mist Green WF- 8-F","SPEY FLY LINES AND TIPS","ULTIMATE SCANDI TAPER - DOUBLE DENSITY S3/S4 - GRAY/ DARK GRAY   *NEW*",100175,null,"UST 525 Grain 8/9",null,"840309100175","1","EACH",69.95,34.979999999999997,31.98,27.98,null,null,null,null,null,null,null,null,null,null,null,null,null,null,null,null,null,{"$f":"IF(OR(ISBLANK($L496),$AW$3=0),\" - \",OFFSET(O496,0,$AW$3,1,1))","v":34.979999999999997},null,null,null,null,"","",null,0,0,0,0,0,""]
[3,86,4,3,"\u0001","SPEY FLY LINES AND TIPS","ULTIMATE SCANDI TAPER - DOUBLE DENSITY S3/S4 - GRAY/ DARK GRAY   *NEW*",100182,null,"UST 585 Grain 9/10",null,"840309100182","1","EACH",69.95,34.979999999999997,31.98,27.98,null,null,null,null,null,null,null,null,null,null,null,null,null,null,null,null,null,{"$f":"IF(OR(ISBLANK($L497),$AW$3=0),\" - \",OFFSET(O497,0,$AW$3,1,1))","v":34.979999999999997},null,null,null,null,"","",null,0,0,0,0,0,""]
[3,86,5,3,"Sand WF- 7-F","SPEY FLY LINES AND TIPS","ULTIMATE SCANDI TAPER - DOUBLE DENSITY S3/S4 - GRAY/ DARK GRAY   *NEW*",100199,null,"UST 650 Grain 10/11",null,"840309100199","1","EACH",69.95,34.979999999999997,31.98,27.98,null,null,null,null,null,null,null,null,null,null,null,null,null,null,null,null,null,{"$f":"IF(OR(ISBLANK($L498),$AW$3=0),\" - \",OFFSET(O498,0,$AW$3,1,1))","v":34.979999999999997},null,null,null,null,"","",null,0,0,0,0,0,""]
[3,87,null,2,"Sand WF- 8-F","SPEY FLY LINES AND TIPS","ULTIMATE SCANDI TAPER - TRIPLE DENSITY FLOATING/ HOVER/ INTERMEDIATE - ORANGE/ SURF/ PALE GREEN   *NEW*","ULTIMATE SCANDI TAPER - TRIPLE DENSITY FLOATING/ HOVER/ INTERMEDIATE - ORANGE/ SURF/ PALE GREEN   *NEW*",null,null,null,null,null,null,null,null,null,null,null,null,null,null,null,null,null,null,null,null,null,null,null,null,null,null,null,null,null,null,null,null,"",""]
[3,87,1,3,null,"SPEY FLY LINES AND TIPS","ULTIMATE SCANDI TAPER - TRIPLE DENSITY FLOATING/ HOVER/ INTERMEDIATE - ORANGE/ SURF/ PALE GREEN   *NEW*",122283,null,"UST 400 Grain 6/7",null,"840309122283","1","EACH",69.95,34.979999999999997,31.98,27.98,null,null,null,null,null,null,null,null,null,null,null,null,null,null,null,null,null,{"$f":"IF(OR(ISBLANK($L500),$AW$3=0),\" - \",OFFSET(O500,0,$AW$3,1,1))","v":34.979999999999997},null,null,null,null,{"$f":"IF($AV500=0,\"\",SUM(AK500:AN500))","v":""},{"$f":"IF($AV500>0,SUM(AR500:AU500),\"\")","v":""},null,{"$f":"IF(LEN($AJ500)>0,$AJ500*AK500,\"\")","v":0},{"$f":"IF(LEN($AJ500)>0,$AJ500*AL500,\"\")","v":0},{"$f":"IF(LEN($AJ500)>0,$AJ500*AM500,\"\")","v":0},{"$f":"IF(LEN($AJ500)>0,$AJ500*AN500,\"\")","v":0},{"$f":"COUNT(AK500:AN500)","v":0},""]
[3,87,2,3,"Sand WF- 9-F","SPEY FLY LINES AND TIPS","ULTIMATE SCANDI TAPER - TRIPLE DENSITY FLOATING/ HOVER/ INTERMEDIATE - ORANGE/ SURF/ PALE GREEN   *NEW*",100205,null,"UST 460 Grain 7/8",null,"840309100205","1","EACH",69.95,34.979999999999997,31.98,27.98,null,null,null,null,null,null,null,null,null,null,null,null,null,null,null,null,null,{"$f":"IF(OR(ISBLANK($L501),$AW$3=0),\" - \",OFFSET(O501,0,$AW$3,1,1))","v":34.979999999999997},null,null,null,null,"","",null,0,0,0,0,0,""]
[3,87,3,3,"Sand WF-10-F","SPEY FLY LINES AND TIPS","ULTIMATE SCANDI TAPER - TRIPLE DENSITY FLOATING/ HOVER/ INTERMEDIATE - ORANGE/ SURF/ PALE GREEN   *NEW*",100212,null,"UST 525 Grain 8/9",null,"840309100212","1","EACH",69.95,34.979999999999997,31.98,27.98,null,null,null,null,null,null,null,null,null,null,null,null,null,null,null,null,null,{"$f":"IF(OR(ISBLANK($L502),$AW$3=0),\" - \",OFFSET(O502,0,$AW$3,1,1))","v":34.979999999999997},null,null,null,null,"","",null,{"$f":"IF(LEN($AJ502)>0,$AJ502*AK502,\"\")","v":0},0,0,0,0,""]
[3,87,4,3,"Sand WF-11-F","SPEY FLY LINES AND TIPS","ULTIMATE SCANDI TAPER - TRIPLE DENSITY FLOATING/ HOVER/ INTERMEDIATE - ORANGE/ SURF/ PALE GREEN   *NEW*",100229,null,"UST 585 Grain 9/10",null,"840309100229","1","EACH",69.95,34.979999999999997,31.98,27.98,null,null,null,null,null,null,null,null,null,null,null,null,null,null,null,null,null,{"$f":"IF(OR(ISBLANK($L503),$AW$3=0),\" - \",OFFSET(O503,0,$AW$3,1,1))","v":34.979999999999997},null,null,null,null,"","",null,0,0,0,0,0,""]
[3,87,5,3,"Sand WF-12-F","SPEY FLY LINES AND TIPS","ULTIMATE SCANDI TAPER - TRIPLE DENSITY FLOATING/ HOVER/ INTERMEDIATE - ORANGE/ SURF/ PALE GREEN   *NEW*",100236,null,"UST 650 Grain 10/11",null,"840309100236","1","EACH",69.95,34.979999999999997,31.98,27.98,null,null,null,null,null,null,null,null,null,null,null,null,null,null,null,null,null,{"$f":"IF(OR(ISBLANK($L504),$AW$3=0),\" - \",OFFSET(O504,0,$AW$3,1,1))","v":34.979999999999997},null,null,null,null,"","",null,0,0,0,0,0,""]
[3,88,null,2,"\u0001","SPEY FLY LINES AND TIPS","ULTIMATE SCANDI TAPER - TRIPLE DENSITY FLOATING/ INTERMEDIATE/ S2 - ORANGE/ PALE GREEN/ OLIVE   *NEW*","ULTIMATE SCANDI TAPER - TRIPLE DENSITY FLOATING/ INTERMEDIATE/ S2 - ORANGE/ PALE GREEN/ OLIVE   *NEW*",null,null,null,null,null,null,null,null,null,null,null,null,null,null,null,null,null,null,null,null,null,null,null,null,null,null,null,null,null,null,null,null,"",""]
[3,88,1,3,null,"SPEY FLY LINES AND TIPS","ULTIMATE SCANDI TAPER - TRIPLE DENSITY FLOATING/ INTERMEDIATE/ S2 - ORANGE/ PALE GREEN/ OLIVE   *NEW*",122290,"*","UST 400 Grain 6/7",null,"840309122290","1","EACH",69.95,34.979999999999997,31.98,27.98,null,null,null,null,null,null,null,null,null,null,null,null,null,null,null,null,null,{"$f":"IF(OR(ISBLANK($L506),$AW$3=0),\" - \",OFFSET(O506,0,$AW$3,1,1))","v":34.979999999999997},null,null,null,null,{"$f":"IF($AV506=0,\"\",SUM(AK506:AN506))","v":""},{"$f":"IF($AV506>0,SUM(AR506:AU506),\"\")","v":""},null,{"$f":"IF(LEN($AJ506)>0,$AJ506*AK506,\"\")","v":0},{"$f":"IF(LEN($AJ506)>0,$AJ506*AL506,\"\")","v":0},{"$f":"IF(LEN($AJ506)>0,$AJ506*AM506,\"\")","v":0},{"$f":"IF(LEN($AJ506)>0,$AJ506*AN506,\"\")","v":0},{"$f":"COUNT(AK506:AN506)","v":0},{"$f":"IF($AV506<>0,ROW($AV$11),\"\")","v":""}]
[3,88,2,3,"Willow WF- 4-F","SPEY FLY LINES AND TIPS","ULTIMATE SCANDI TAPER - TRIPLE DENSITY FLOATING/ INTERMEDIATE/ S2 - ORANGE/ PALE GREEN/ OLIVE   *NEW*",100243,"*","UST 460 Grain 7/8",null,"840309100243","1","EACH",69.95,34.979999999999997,31.98,27.98,null,null,null,null,null,null,null,null,null,null,null,null,null,null,null,null,null,{"$f":"IF(OR(ISBLANK($L507),$AW$3=0),\" - \",OFFSET(O507,0,$AW$3,1,1))","v":34.979999999999997},null,null,null,null,"","",null,{"$f":"IF(LEN($AJ507)>0,$AJ507*AK507,\"\")","v":0},0,0,0,{"$f":"COUNT(AK507:AN507)","v":0},{"$f":"IF($AV507<>0,ROW($AV$11),\"\")","v":""}]
[3,88,3,3,"Willow WF- 5-F","SPEY FLY LINES AND TIPS","ULTIMATE SCANDI TAPER - TRIPLE DENSITY FLOATING/ INTERMEDIATE/ S2 - ORANGE/ PALE GREEN/ OLIVE   *NEW*",100250,"*","UST 525 Grain 8/9",null,"840309100250","1","EACH",69.95,34.979999999999997,31.98,27.98,null,null,null,null,null,null,null,null,null,null,null,null,null,null,null,null,null,{"$f":"IF(OR(ISBLANK($L508),$AW$3=0),\" - \",OFFSET(O508,0,$AW$3,1,1))","v":34.979999999999997},null,null,null,null,"","",null,0,0,0,0,{"$f":"COUNT(AK508:AN508)","v":0},{"$f":"IF($AV508<>0,ROW($AV$11),\"\")","v":""}]
[3,88,4,3,"Willow WF- 6-F","SPEY FLY LINES AND TIPS","ULTIMATE SCANDI TAPER - TRIPLE DENSITY FLOATING/ INTERMEDIATE/ S2 - ORANGE/ PALE GREEN/ OLIVE   *NEW*",100267,"*","UST 585 Grain 9/10",null,"840309100267","1","EACH",69.95,34.979999999999997,31.98,27.98,null,null,null,null,null,null,null,null,null,null,null,null,null,null,null,null,null,{"$f":"IF(OR(ISBLANK($L509),$AW$3=0),\" - \",OFFSET(O509,0,$AW$3,1,1))","v":34.979999999999997},null,null,null,null,"","",null,0,0,0,0,{"$f":"COUNT(AK509:AN509)","v":0},{"$f":"IF($AV509<>0,ROW($AV$11),\"\")","v":""}]
[3,88,5,3,"Willow WF- 7-F","SPEY FLY LINES AND TIPS","ULTIMATE SCANDI TAPER - TRIPLE DENSITY FLOATING/ INTERMEDIATE/ S2 - ORANGE/ PALE GREEN/ OLIVE   *NEW*",100274,"*","UST 650 Grain 10/11",null,"840309100274","1","EACH",69.95,34.979999999999997,31.98,27.98,null,null,null,null,null,null,null,null,null,null,null,null,null,null,null,null,null,{"$f":"IF(OR(ISBLANK($L510),$AW$3=0),\" - \",OFFSET(O510,0,$AW$3,1,1))","v":34.979999999999997},null,null,null,null,"","",null,0,0,0,0,{"$f":"COUNT(AK510:AN510)","v":0},{"$f":"IF($AV510<>0,ROW($AV$11),\"\")","v":""}]
[3,89,null,2,"Willow WF- 8-F","SPEY FLY LINES AND TIPS","ULTIMATE SCANDI TAPER - TRIPLE DENSITY FLOATING/ HOVER/ S3 - ORANGE/ SURF/ GRAY   *NEW*","ULTIMATE SCANDI TAPER - TRIPLE DENSITY FLOATING/ HOVER/ S3 - ORANGE/ SURF/ GRAY   *NEW*",null,null,null,null,null,null,null,null,null,null,null,null,null,null,null,null,null,null,null,null,null,null,null,null,null,null,null,null,null,null,null,null,"",""]
[3,89,1,3,null,"SPEY FLY LINES AND TIPS","ULTIMATE SCANDI TAPER - TRIPLE DENSITY FLOATING/ HOVER/ S3 - ORANGE/ SURF/ GRAY   *NEW*",122306,"*","UST 400 Grain 6/7",null,"840309122306","1","EACH",69.95,34.979999999999997,31.98,27.98,null,null,null,null,null,null,null,null,null,null,null,null,null,null,null,null,null,{"$f":"IF(OR(ISBLANK($L512),$AW$3=0),\" - \",OFFSET(O512,0,$AW$3,1,1))","v":34.979999999999997},null,null,null,null,{"$f":"IF($AV512=0,\"\",SUM(AK512:AN512))","v":""},{"$f":"IF($AV512>0,SUM(AR512:AU512),\"\")","v":""},null,{"$f":"IF(LEN($AJ512)>0,$AJ512*AK512,\"\")","v":0},{"$f":"IF(LEN($AJ512)>0,$AJ512*AL512,\"\")","v":0},{"$f":"IF(LEN($AJ512)>0,$AJ512*AM512,\"\")","v":0},{"$f":"IF(LEN($AJ512)>0,$AJ512*AN512,\"\")","v":0},{"$f":"COUNT(AK512:AN512)","v":0},{"$f":"IF($AV512<>0,ROW($AV$11),\"\")","v":""}]
[3,89,2,2,"\u0001","SPEY FLY LINES AND TIPS","ULTIMATE SCANDI TAPER - TRIPLE DENSITY FLOATING/ HOVER/ S3 - ORANGE/ SURF/ GRAY   *NEW*",100281,"*","UST 460 Grain 7/8",null,"840309100281","1","EACH",69.95,34.979999999999997,31.98,27.98,null,null,null,null,null,null,null,null,null,null,null,null,null,null,null,null,null,{"$f":"IF(OR(ISBLANK($L513),$AW$3=0),\" - \",OFFSET(O513,0,$AW$3,1,1))","v":34.979999999999997},null,null,null,null,"","",null,0,0,0,0,{"$f":"COUNT(AK513:AN513)","v":0},{"$f":"IF($AV513<>0,ROW($AV$11),\"\")","v":""}]
[3,89,3,3,"Green 5-6","SPEY FLY LINES AND TIPS","ULTIMATE SCANDI TAPER - TRIPLE DENSITY FLOATING/ HOVER/ S3 - ORANGE/ SURF/ GRAY   *NEW*",100298,"*","UST 525 Grain 8/9",null,"840309100298","1","EACH",69.95,34.979999999999997,31.98,27.98,null,null,null,null,null,null,null,null,null,null,null,null,null,null,null,null,null,{"$f":"IF(OR(ISBLANK($L514),$AW$3=0),\" - \",OFFSET(O514,0,$AW$3,1,1))","v":34.979999999999997},null,null,null,null,"","",null,0,0,0,0,{"$f":"COUNT(AK514:AN514)","v":0},{"$f":"IF($AV514<>0,ROW($AV$11),\"\")","v":""}]
[3,89,4,3,"Green 6-7","SPEY FLY LINES AND TIPS","ULTIMATE SCANDI TAPER - TRIPLE DENSITY FLOATING/ HOVER/ S3 - ORANGE/ SURF/ GRAY   *NEW*",100304,"*","UST 585 Grain 9/10",null,"840309100304","1","EACH",69.95,34.979999999999997,31.98,27.98,null,null,null,null,null,null,null,null,null,null,null,null,null,null,null,null,null,{"$f":"IF(OR(ISBLANK($L515),$AW$3=0),\" - \",OFFSET(O515,0,$AW$3,1,1))","v":34.979999999999997},null,null,null,null,"","",null,0,0,0,0,{"$f":"COUNT(AK515:AN515)","v":0},{"$f":"IF($AV515<>0,ROW($AV$11),\"\")","v":""}]
[3,89,5,3,"Orange 5-6","SPEY FLY LINES AND TIPS","ULTIMATE SCANDI TAPER - TRIPLE DENSITY FLOATING/ HOVER/ S3 - ORANGE/ SURF/ GRAY   *NEW*",100311,"*","UST 650 Grain 10/11",null,"840309100311","1","EACH",69.95,34.979999999999997,31.98,27.98,null,null,null,null,null,null,null,null,null,null,null,null,null,null,null,null,null,{"$f":"IF(OR(ISBLANK($L516),$AW$3=0),\" - \",OFFSET(O516,0,$AW$3,1,1))","v":34.979999999999997},null,null,null,null,"","",null,0,0,0,0,{"$f":"COUNT(AK516:AN516)","v":0},{"$f":"IF($AV516<>0,ROW($AV$11),\"\")","v":""}]
[3,90,null,2,"White 7-8","SPEY FLY LINES AND TIPS","ULTIMATE SCANDI TAPER - TRIPLE DENSITY INTERMEDIATE/ S2/ S4 - PALE GREEN/ OLIVE/ DARK GRAY   *NEW*","ULTIMATE SCANDI TAPER - TRIPLE DENSITY INTERMEDIATE/ S2/ S4 - PALE GREEN/ OLIVE/ DARK GRAY   *NEW*",null,null,null,null,null,null,null,null,null,null,null,null,null,null,null,null,null,null,null,null,null,null,null,null,null,null,null,null,null,null,null,null,"",""]
[3,90,1,3,null,"SPEY FLY LINES AND TIPS","ULTIMATE SCANDI TAPER - TRIPLE DENSITY INTERMEDIATE/ S2/ S4 - PALE GREEN/ OLIVE/ DARK GRAY   *NEW*",122313,"*","UST 400 Grain 6/7",null,"840309122313","1","EACH",69.95,34.979999999999997,31.98,27.98,null,null,null,null,null,null,null,null,null,null,null,null,null,null,null,null,null,{"$f":"IF(OR(ISBLANK($L518),$AW$3=0),\" - \",OFFSET(O518,0,$AW$3,1,1))","v":34.979999999999997},null,null,null,null,{"$f":"IF($AV518=0,\"\",SUM(AK518:AN518))","v":""},{"$f":"IF($AV518>0,SUM(AR518:AU518),\"\")","v":""},null,{"$f":"IF(LEN($AJ518)>0,$AJ518*AK518,\"\")","v":0},{"$f":"IF(LEN($AJ518)>0,$AJ518*AL518,\"\")","v":0},{"$f":"IF(LEN($AJ518)>0,$AJ518*AM518,\"\")","v":0},{"$f":"IF(LEN($AJ518)>0,$AJ518*AN518,\"\")","v":0},{"$f":"COUNT(AK518:AN518)","v":0},{"$f":"IF($AV518<>0,ROW($AV$11),\"\")","v":""}]
[3,90,2,3,"Yellow 7-8","SPEY FLY LINES AND TIPS","ULTIMATE SCANDI TAPER - TRIPLE DENSITY INTERMEDIATE/ S2/ S4 - PALE GREEN/ OLIVE/ DARK GRAY   *NEW*",100328,"*","UST 460 Grain 7/8",null,"840309100328","1","EACH",69.95,34.979999999999997,31.98,27.98,null,null,null,null,null,null,null,null,null,null,null,null,null,null,null,null,null,{"$f":"IF(OR(ISBLANK($L519),$AW$3=0),\" - \",OFFSET(O519,0,$AW$3,1,1))","v":34.979999999999997},null,null,null,null,{"$f":"IF($AV519=0,\"\",SUM(AK519:AN519))","v":""},{"$f":"IF($AV519>0,SUM(AR519:AU519),\"\")","v":""},null,{"$f":"IF(LEN($AJ519)>0,$AJ519*AK519,\"\")","v":0},0,0,0,{"$f":"COUNT(AK519:AN519)","v":0},{"$f":"IF($AV519<>0,ROW($AV$11),\"\")","v":""}]
[3,90,3,3,"\u0001","SPEY FLY LINES AND TIPS","ULTIMATE SCANDI TAPER - TRIPLE DENSITY INTERMEDIATE/ S2/ S4 - PALE GREEN/ OLIVE/ DARK GRAY   *NEW*",100335,"*","UST 525 Grain 8/9",null,"840309100335","1","EACH",69.95,34.979999999999997,31.98,27.98,null,null,null,null,null,null,null,null,null,null,null,null,null,null,null,null,null,{"$f":"IF(OR(ISBLANK($L520),$AW$3=0),\" - \",OFFSET(O520,0,$AW$3,1,1))","v":34.979999999999997},null,null,null,null,"","",null,0,0,0,0,{"$f":"COUNT(AK520:AN520)","v":0},{"$f":"IF($AV520<>0,ROW($AV$11),\"\")","v":""}]
[3,90,4,3,"Lt. Green WF- 4-F","SPEY FLY LINES AND TIPS","ULTIMATE SCANDI TAPER - TRIPLE DENSITY INTERMEDIATE/ S2/ S4 - PALE GREEN/ OLIVE/ DARK GRAY   *NEW*",100342,"*","UST 585 Grain 9/10",null,"840309100342","1","EACH",69.95,34.979999999999997,31.98,27.98,null,null,null,null,null,null,null,null,null,null,null,null,null,null,null,null,null,{"$f":"IF(OR(ISBLANK($L521),$AW$3=0),\" - \",OFFSET(O521,0,$AW$3,1,1))","v":34.979999999999997},null,null,null,null,"","",null,0,0,0,0,0,""]
[3,90,5,3,"Lt. Green WF- 5-F","SPEY FLY LINES AND TIPS","ULTIMATE SCANDI TAPER - TRIPLE DENSITY INTERMEDIATE/ S2/ S4 - PALE GREEN/ OLIVE/ DARK GRAY   *NEW*",100359,"*","UST 650 Grain 10/11",null,"840309100359","1","EACH",69.95,34.979999999999997,31.98,27.98,null,null,null,null,null,null,null,null,null,null,null,null,null,null,null,null,null,{"$f":"IF(OR(ISBLANK($L522),$AW$3=0),\" - \",OFFSET(O522,0,$AW$3,1,1))","v":34.979999999999997},null,null,null,null,"","",null,0,0,0,0,0,""]
[3,91,null,2,"Lt. Green WF- 6-F","SPEY FLY LINES AND TIPS","ULTIMATE SCANDI TAPER - TRIPLE DENSITY S1/ S3/ S5 - BLUE HERON/ GRAY/ BLACK   *NEW*","ULTIMATE SCANDI TAPER - TRIPLE DENSITY S1/ S3/ S5 - BLUE HERON/ GRAY/ BLACK   *NEW*",null,null,null,null,null,null,null,null,null,null,null,null,null,null,null,null,null,null,null,null,null,null,null,null,null,null,null,null,null,null,null,null,"",""]
[3,91,1,3,null,"SPEY FLY LINES AND TIPS","ULTIMATE SCANDI TAPER - TRIPLE DENSITY S1/ S3/ S5 - BLUE HERON/ GRAY/ BLACK   *NEW*",122320,"*","UST 400 Grain 6/7",null,"840309122320","1","EACH",69.95,34.979999999999997,31.98,27.98,null,null,null,null,null,null,null,null,null,null,null,null,null,null,null,null,null,{"$f":"IF(OR(ISBLANK($L524),$AW$3=0),\" - \",OFFSET(O524,0,$AW$3,1,1))","v":34.979999999999997},null,null,null,null,{"$f":"IF($AV524=0,\"\",SUM(AK524:AN524))","v":""},{"$f":"IF($AV524>0,SUM(AR524:AU524),\"\")","v":""},null,{"$f":"IF(LEN($AJ524)>0,$AJ524*AK524,\"\")","v":0},{"$f":"IF(LEN($AJ524)>0,$AJ524*AL524,\"\")","v":0},{"$f":"IF(LEN($AJ524)>0,$AJ524*AM524,\"\")","v":0},{"$f":"IF(LEN($AJ524)>0,$AJ524*AN524,\"\")","v":0},{"$f":"COUNT(AK524:AN524)","v":0},{"$f":"IF($AV524<>0,ROW($AV$11),\"\")","v":""}]
[3,91,2,3,"Lt. Green WF- 7-F","SPEY FLY LINES AND TIPS","ULTIMATE SCANDI TAPER - TRIPLE DENSITY S1/ S3/ S5 - BLUE HERON/ GRAY/ BLACK   *NEW*",100366,"*","UST 460 Grain 7/8",null,"840309100366","1","EACH",69.95,34.979999999999997,31.98,27.98,null,null,null,null,null,null,null,null,null,null,null,null,null,null,null,null,null,{"$f":"IF(OR(ISBLANK($L525),$AW$3=0),\" - \",OFFSET(O525,0,$AW$3,1,1))","v":34.979999999999997},null,null,null,null,"","",null,0,0,0,0,{"$f":"COUNT(AK525:AN525)","v":0},""]
[3,91,3,3,"Lt. Green WF- 8-F","SPEY FLY LINES AND TIPS","ULTIMATE SCANDI TAPER - TRIPLE DENSITY S1/ S3/ S5 - BLUE HERON/ GRAY/ BLACK   *NEW*",100373,"*","UST 525 Grain 8/9",null,"840309100373","1","EACH",69.95,34.979999999999997,31.98,27.98,null,null,null,null,null,null,null,null,null,null,null,null,null,null,null,null,null,{"$f":"IF(OR(ISBLANK($L526),$AW$3=0),\" - \",OFFSET(O526,0,$AW$3,1,1))","v":34.979999999999997},null,null,null,null,"","",null,{"$f":"IF(LEN($AJ526)>0,$AJ526*AK526,\"\")","v":0},0,0,0,0,""]
[3,91,4,3,"Lt. Green WF- 9-F","SPEY FLY LINES AND TIPS","ULTIMATE SCANDI TAPER - TRIPLE DENSITY S1/ S3/ S5 - BLUE HERON/ GRAY/ BLACK   *NEW*",100380,"*","UST 585 Grain 9/10",null,"840309100380","1","EACH",69.95,34.979999999999997,31.98,27.98,null,null,null,null,null,null,null,null,null,null,null,null,null,null,null,null,null,{"$f":"IF(OR(ISBLANK($L527),$AW$3=0),\" - \",OFFSET(O527,0,$AW$3,1,1))","v":34.979999999999997},null,null,null,null,"","",null,0,0,0,0,0,""]
[3,91,5,3,"\u0001","SPEY FLY LINES AND TIPS","ULTIMATE SCANDI TAPER - TRIPLE DENSITY S1/ S3/ S5 - BLUE HERON/ GRAY/ BLACK   *NEW*",100397,"*","UST 650 Grain 10/11",null,"840309100397","1","EACH",69.95,34.979999999999997,31.98,27.98,null,null,null,null,null,null,null,null,null,null,null,null,null,null,null,null,null,{"$f":"IF(OR(ISBLANK($L528),$AW$3=0),\" - \",OFFSET(O528,0,$AW$3,1,1))","v":34.979999999999997},null,null,null,null,"","",null,0,0,0,0,0,""]
[3,92,null,2,"Lt. Green DT- 4-F","SPEY FLY LINES AND TIPS","ULTIMATE SCANDI TAPER  - 750 & 850 - BLACK   *NEW*","ULTIMATE SCANDI TAPER  - 750 & 850 - BLACK   *NEW*",null,null,null,null,null,null,null,null,null,null,null,null,null,null,null,null,null,null,null,null,null,null,null,null,null,null,null,null,null,null,null,null,"",""]
[3,92,1,3,"Lt. Green DT- 5-F","SPEY FLY LINES AND TIPS","ULTIMATE SCANDI TAPER  - 750 & 850 - BLACK   *NEW*",100441,"*","UST 750 Grain",null,"840309100441","1","EACH",69.95,34.979999999999997,31.98,27.98,null,null,null,null,null,null,null,null,null,null,null,null,null,null,null,null,null,{"$f":"IF(OR(ISBLANK($L530),$AW$3=0),\" - \",OFFSET(O530,0,$AW$3,1,1))","v":34.979999999999997},null,null,null,null,"","",null,{"$f":"IF(LEN($AJ530)>0,$AJ530*AK530,\"\")","v":0},0,0,0,{"$f":"COUNT(AK530:AN530)","v":0},{"$f":"IF($AV530<>0,ROW($AV$11),\"\")","v":""}]
[3,92,2,3,"Lt. Green DT- 6-F","SPEY FLY LINES AND TIPS","ULTIMATE SCANDI TAPER  - 750 & 850 - BLACK   *NEW*",100458,"*","UST 850 Grain",null,"840309100458","1","EACH",69.95,34.979999999999997,31.98,27.98,null,null,null,null,null,null,null,null,null,null,null,null,null,null,null,null,null,{"$f":"IF(OR(ISBLANK($L531),$AW$3=0),\" - \",OFFSET(O531,0,$AW$3,1,1))","v":34.979999999999997},null,null,null,null,"","",null,0,0,0,0,{"$f":"COUNT(AK531:AN531)","v":0},{"$f":"IF($AV531<>0,ROW($AV$11),\"\")","v":""}]
[3,93,null,2,"Yellow WF- 6-F","SPEY FLY LINES AND TIPS","  DISTANCE SPEY WITH LOOP CHARTREUSE/ORANGE","DISTANCE SPEY WITH LOOP CHARTREUSE / ORANGE",null,null,null,null,null,null,null,null,null,null,null,null,null,null,null,null,null,null,null,null,null,null,null,null,null,null,null,null,null,null,null,null,"",""]
[3,93,1,3,"Yellow WF- 7-F","SPEY FLY LINES AND TIPS","  DISTANCE SPEY WITH LOOP CHARTREUSE/ORANGE",113007,"*","670 Grain      ",null,840309113007,"1","EACH",86.95,43.48,39.130000000000003,34.78,null,null,null,null,null,null,null,null,null,null,null,null,null,null,null,null,null,{"$f":"IF(OR(ISBLANK($L533),$AW$3=0),\" - \",OFFSET(O533,0,$AW$3,1,1))","v":43.48},null,null,null,null,"","",null,0,0,0,0,{"$f":"COUNT(AK533:AN533)","v":0},{"$f":"IF($AV533<>0,ROW($AV$11),\"\")","v":""}]
[3,93,2,3,"Yellow WF- 8-F","SPEY FLY LINES AND TIPS","  DISTANCE SPEY WITH LOOP CHARTREUSE/ORANGE",113014,"*","730 Grain      ",null,840309113014,"1","EACH",86.95,43.48,39.130000000000003,34.78,null,null,null,null,null,null,null,null,null,null,null,null,null,null,null,null,null,{"$f":"IF(OR(ISBLANK($L534),$AW$3=0),\" - \",OFFSET(O534,0,$AW$3,1,1))","v":43.48},null,null,null,null,"","",null,0,0,0,0,{"$f":"COUNT(AK534:AN534)","v":0},{"$f":"IF($AV534<>0,ROW($AV$11),\"\")","v":""}]
[3,93,3,3,"\u0001","SPEY FLY LINES AND TIPS","  DISTANCE SPEY WITH LOOP CHARTREUSE/ORANGE",113021,"*","790 Grain",null,840309113021,"1","EACH",86.95,43.48,39.130000000000003,34.78,null,null,null,null,null,null,null,null,null,null,null,null,null,null,null,null,null,{"$f":"IF(OR(ISBLANK($L535),$AW$3=0),\" - \",OFFSET(O535,0,$AW$3,1,1))","v":43.48},null,null,null,null,"","",null,0,0,0,0,{"$f":"COUNT(AK535:AN535)","v":0},{"$f":"IF($AV535<>0,ROW($AV$11),\"\")","v":""}]
[3,93,4,3,"Yellow DT- 5-F","SPEY FLY LINES AND TIPS","  DISTANCE SPEY WITH LOOP CHARTREUSE/ORANGE",113397,"*","850 Grain      ",null,840309113397,"1","EACH",86.95,43.48,39.130000000000003,34.78,null,null,null,null,null,null,null,null,null,null,null,null,null,null,null,null,null,{"$f":"IF(OR(ISBLANK($L536),$AW$3=0),\" - \",OFFSET(O536,0,$AW$3,1,1))","v":43.48},null,null,null,null,"","",null,0,0,0,0,0,""]
[3,94,null,2,"Yellow DT- 6-F","SPEY FLY LINES AND TIPS","  SPEY EVOLUTION TAPER WITH LOOP - SUNSET ORANGE/LIGHT BLUE","SPEY EVOLUTION TAPER WITH LOOP - SUNSET ORANGE / LIGHT BLUE",null,null,null,null,null,null,null,null,null,null,null,null,null,null,null,null,null,null,null,null,null,null,null,null,null,null,null,null,null,null,null,null,"",""]
[3,94,1,3,"\u0001","SPEY FLY LINES AND TIPS","  SPEY EVOLUTION TAPER WITH LOOP - SUNSET ORANGE/LIGHT BLUE",105262,"*","420 Grain/5-6 wt      ",null,840309105262,"1","EACH",86.95,43.48,39.130000000000003,34.78,null,null,null,null,null,null,null,null,null,null,null,null,null,null,null,null,null,{"$f":"IF(OR(ISBLANK($L538),$AW$3=0),\" - \",OFFSET(O538,0,$AW$3,1,1))","v":43.48},null,null,null,null,"","",null,{"$f":"IF(LEN($AJ538)>0,$AJ538*AK538,\"\")","v":0},0,0,0,{"$f":"COUNT(AK538:AN538)","v":0},{"$f":"IF($AV538<>0,ROW($AV$11),\"\")","v":""}]
[3,94,2,3," ","SPEY FLY LINES AND TIPS","  SPEY EVOLUTION TAPER WITH LOOP - SUNSET ORANGE/LIGHT BLUE",105279,"*","470 Grain/6-7 wt      ",null,840309105279,"1","EACH",86.95,43.48,39.130000000000003,34.78,null,null,null,null,null,null,null,null,null,null,null,null,null,null,null,null,null,{"$f":"IF(OR(ISBLANK($L539),$AW$3=0),\" - \",OFFSET(O539,0,$AW$3,1,1))","v":43.48},null,null,null,null,"","",null,0,0,0,0,{"$f":"COUNT(AK539:AN539)","v":0},{"$f":"IF($AV539<>0,ROW($AV$11),\"\")","v":""}]
[3,94,3,3," ","SPEY FLY LINES AND TIPS","  SPEY EVOLUTION TAPER WITH LOOP - SUNSET ORANGE/LIGHT BLUE",112970,"*","530 Grain/7-8 wt      ",null,840309112970,"1","EACH",86.95,43.48,39.130000000000003,34.78,null,null,null,null,null,null,null,null,null,null,null,null,null,null,null,null,null,{"$f":"IF(OR(ISBLANK($L540),$AW$3=0),\" - \",OFFSET(O540,0,$AW$3,1,1))","v":43.48},null,null,null,null,"","",null,0,0,0,0,{"$f":"COUNT(AK540:AN540)","v":0},{"$f":"IF($AV540<>0,ROW($AV$11),\"\")","v":""}]
[3,94,4,3,"\u0001","SPEY FLY LINES AND TIPS","  SPEY EVOLUTION TAPER WITH LOOP - SUNSET ORANGE/LIGHT BLUE",112987,"*","600 Grain/8-9 wt      ",null,840309112987,"1","EACH",86.95,43.48,39.130000000000003,34.78,null,null,null,null,null,null,null,null,null,null,null,null,null,null,null,null,null,{"$f":"IF(OR(ISBLANK($L541),$AW$3=0),\" - \",OFFSET(O541,0,$AW$3,1,1))","v":43.48},null,null,null,null,"","",null,0,0,0,0,{"$f":"COUNT(AK541:AN541)","v":0},{"$f":"IF($AV541<>0,ROW($AV$11),\"\")","v":""}]
[3,94,5,3,"Buckskin/Green WF- 5-F/S","SPEY FLY LINES AND TIPS","  SPEY EVOLUTION TAPER WITH LOOP - SUNSET ORANGE/LIGHT BLUE",112994,"*","680 Grain/9-10 wt      ",null,840309112994,"1","EACH",86.95,43.48,39.130000000000003,34.78,null,null,null,null,null,null,null,null,null,null,null,null,null,null,null,null,null,{"$f":"IF(OR(ISBLANK($L542),$AW$3=0),\" - \",OFFSET(O542,0,$AW$3,1,1))","v":43.48},null,null,null,null,"","",null,0,0,0,0,0,""]
[3,95,null,2,"Buckskin/Green WF- 6-F/S","SPEY FLY LINES AND TIPS","THIRD COAST CUSTOM CUT EXPRESS TIP - DK GRAY","THIRD COAST CUSTOM CUT EXPRESS TIP - DK GRAY   *NEW*",null,null,null,null,null,null,null,null,null,null,null,null,null,null,null,null,null,null,null,null,null,null,null,null,null,null,null,null,null,null,null,null,{"$f":"IF($AV543=0,\"\",SUM(AK543:AN543))","v":""},{"$f":"IF($AV543>0,SUM(AR543:AU543),\"\")","v":""}]
[3,95,1,3,"Buckskin/Green WF- 8-F/S","SPEY FLY LINES AND TIPS","THIRD COAST CUSTOM CUT EXPRESS TIP - DK GRAY",122115,"*","T-12      ",null,840309122115,"1","EACH",49,24.5,22.05,19.600000000000001,null,null,null,null,null,null,null,null,null,null,null,null,null,null,null,null,null,{"$f":"IF(OR(ISBLANK($L544),$AW$3=0),\" - \",OFFSET(O544,0,$AW$3,1,1))","v":24.5},null,null,null,null,"","",null,0,0,0,0,{"$f":"COUNT(AK544:AN544)","v":0},{"$f":"IF($AV544<>0,ROW($AV$11),\"\")","v":""}]
[3,95,2,3,"Buckskin/Green WF- 9-F/S","SPEY FLY LINES AND TIPS","THIRD COAST CUSTOM CUT EXPRESS TIP - DK GRAY",122122,"*","T-14      ",null,840309122122,"1","EACH",49,24.5,22.05,19.600000000000001,null,null,null,null,null,null,null,null,null,null,null,null,null,null,null,null,null,{"$f":"IF(OR(ISBLANK($L545),$AW$3=0),\" - \",OFFSET(O545,0,$AW$3,1,1))","v":24.5},null,null,null,null,"","",null,0,0,0,0,{"$f":"COUNT(AK545:AN545)","v":0},{"$f":"IF($AV545<>0,ROW($AV$11),\"\")","v":""}]
[3,95,3,3,"\u0001","SPEY FLY LINES AND TIPS","THIRD COAST CUSTOM CUT EXPRESS TIP - DK GRAY",122139,"*","T-18      ",null,840309122139,"1","EACH",49,24.5,22.05,19.600000000000001,null,null,null,null,null,null,null,null,null,null,null,null,null,null,null,null,null,{"$f":"IF(OR(ISBLANK($L546),$AW$3=0),\" - \",OFFSET(O546,0,$AW$3,1,1))","v":24.5},null,null,null,null,"","",null,0,0,0,0,{"$f":"COUNT(AK546:AN546)","v":0},{"$f":"IF($AV546<>0,ROW($AV$11),\"\")","v":""}]
[3,96,null,2,"Buckskin/Black WF- 5-F/S","SPEY FLY LINES AND TIPS","THIRD COAST TEXTURED TIP SYSTEM","THIRD COAST TEXTURED TIP SYSTEM   *NEW*",null,null,null,null,null,null,null,null,null,null,null,null,null,null,null,null,null,null,null,null,null,null,null,null,null,null,null,null,null,null,null,null,"",""]
[3,96,1,3,"Buckskin/Black WF- 6-F/S","SPEY FLY LINES AND TIPS","THIRD COAST TEXTURED TIP SYSTEM",122016,"*","TC TEXTURED TIP 10' 120 GRAIN - FLOAT - IVORY / OPTIC GREEN",null,840309122016,"1","EACH",25,12.5,11.25,10,null,null,null,null,null,null,null,null,null,null,null,null,null,null,null,null,null,{"$f":"IF(OR(ISBLANK($L548),$AW$3=0),\" - \",OFFSET(O548,0,$AW$3,1,1))","v":12.5},null,null,null,null,{"$f":"IF($AV548=0,\"\",SUM(AK548:AN548))","v":""},{"$f":"IF($AV548>0,SUM(AR548:AU548),\"\")","v":""},null,{"$f":"IF(LEN($AJ548)>0,$AJ548*AK548,\"\")","v":0},{"$f":"IF(LEN($AJ548)>0,$AJ548*AL548,\"\")","v":0},{"$f":"IF(LEN($AJ548)>0,$AJ548*AM548,\"\")","v":0},{"$f":"IF(LEN($AJ548)>0,$AJ548*AN548,\"\")","v":0},{"$f":"COUNT(AK548:AN548)","v":0},{"$f":"IF($AV548<>0,ROW($AV$11),\"\")","v":""}]
[3,96,2,3,"Buckskin/Black WF- 6-F/S","SPEY FLY LINES AND TIPS","THIRD COAST TEXTURED TIP SYSTEM",122023,"*","TC TEXTURED TIP 10' 120 GRAIN - INTERMEDIATE/S2 - SURF / GREEN",null,840309122023,"1","EACH",25,12.5,11.25,10,null,null,null,null,null,null,null,null,null,null,null,null,null,null,null,null,null,{"$f":"IF(OR(ISBLANK($L549),$AW$3=0),\" - \",OFFSET(O549,0,$AW$3,1,1))","v":12.5},null,null,null,null,"","",null,{"$f":"IF(LEN($AJ549)>0,$AJ549*AK549,\"\")","v":0},{"$f":"IF(LEN($AJ549)>0,$AJ549*AL549,\"\")","v":0},{"$f":"IF(LEN($AJ549)>0,$AJ549*AM549,\"\")","v":0},{"$f":"IF(LEN($AJ549)>0,$AJ549*AN549,\"\")","v":0},{"$f":"COUNT(AK549:AN549)","v":0},""]
[3,96,3,3,"Buckskin/Black WF- 6-F/S","SPEY FLY LINES AND TIPS","THIRD COAST TEXTURED TIP SYSTEM",122030,"*","TC TEXTURED TIP 10' 120 GRAIN - S2/S4 - GREEN / DARK GREEN",null,840309122030,"1","EACH",25,12.5,11.25,10,null,null,null,null,null,null,null,null,null,null,null,null,null,null,null,null,null,{"$f":"IF(OR(ISBLANK($L550),$AW$3=0),\" - \",OFFSET(O550,0,$AW$3,1,1))","v":12.5},null,null,null,null,{"$f":"IF($AV550=0,\"\",SUM(AK550:AN550))","v":""},{"$f":"IF($AV550>0,SUM(AR550:AU550),\"\")","v":""},null,{"$f":"IF(LEN($AJ550)>0,$AJ550*AK550,\"\")","v":0},{"$f":"IF(LEN($AJ550)>0,$AJ550*AL550,\"\")","v":0},{"$f":"IF(LEN($AJ550)>0,$AJ550*AM550,\"\")","v":0},{"$f":"IF(LEN($AJ550)>0,$AJ550*AN550,\"\")","v":0},{"$f":"COUNT(AK550:AN550)","v":0},""]
[3,96,4,3,"Buckskin/Black WF- 6-F/S","SPEY FLY LINES AND TIPS","THIRD COAST TEXTURED TIP SYSTEM",122047,"*","TC TEXTURED TIP 10' 120 GRAIN - S3/S5 - CHARCOAL / DARK BROWN",null,840309122047,"1","EACH",25,12.5,11.25,10,null,null,null,null,null,null,null,null,null,null,null,null,null,null,null,null,null,{"$f":"IF(OR(ISBLANK($L551),$AW$3=0),\" - \",OFFSET(O551,0,$AW$3,1,1))","v":12.5},null,null,null,null,"","",null,{"$f":"IF(LEN($AJ551)>0,$AJ551*AK551,\"\")","v":0},0,0,0,{"$f":"COUNT(AK551:AN551)","v":0},""]
[3,96,5,3,"Buckskin/Black WF- 7-F/S","SPEY FLY LINES AND TIPS","THIRD COAST TEXTURED TIP SYSTEM",122054,"*","TC TEXTURED TIP 10' 120 GRAIN - S7 - BLACK",null,840309122054,"1","EACH",25,12.5,11.25,10,null,null,null,null,null,null,null,null,null,null,null,null,null,null,null,null,null,12.5,null,null,null,null,"","",null,0,0,0,0,0,""]
[3,96,6,3,"Buckskin/Black WF- 8-F/S","SPEY FLY LINES AND TIPS","THIRD COAST TEXTURED TIP SYSTEM",122061,"*","TC TEXTURED TIP 12' 160 GRAIN - FLOAT - IVORY / OPTIC GREEN",null,840309122061,"1","EACH",25,12.5,11.25,10,null,null,null,null,null,null,null,null,null,null,null,null,null,null,null,null,null,12.5,null,null,null,null,"","",null,0,0,0,0,0,""]
[3,96,7,3,"Buckskin/Black WF- 9-F/S","SPEY FLY LINES AND TIPS","THIRD COAST TEXTURED TIP SYSTEM",122078,"*","TC TEXTURED TIP 12' 160 GRAIN - INTERMEDIATE/S2 - SURF / GREEN",null,840309122078,"1","EACH",25,12.5,11.25,10,null,null,null,null,null,null,null,null,null,null,null,null,null,null,null,null,null,12.5,null,null,null,null,"","",null,0,0,0,0,0,""]
[3,96,8,3,"Buckskin/Black WF-10-F/S","SPEY FLY LINES AND TIPS","THIRD COAST TEXTURED TIP SYSTEM",122085,"*","TC TEXTURED TIP 12' 160 GRAIN - S2/S4 - GREEN / DARK GREEN",null,840309122085,"1","EACH",25,12.5,11.25,10,null,null,null,null,null,null,null,null,null,null,null,null,null,null,null,null,null,12.5,null,null,null,null,"","",null,0,0,0,0,0,""]
[3,96,9,3,"\u0001","SPEY FLY LINES AND TIPS","THIRD COAST TEXTURED TIP SYSTEM",122092,"*","TC TEXTURED TIP 12' 160 GRAIN - S3/S5 - CHARCOAL / DARK BROWN",null,840309122092,1,"EACH",25,12.5,11.25,10,null,null,null,null,null,null,null,null,null,null,null,null,null,null,null,null,null,12.5,null,null,null,null,"","",null,0,0,0,0,0,""]
[3,96,10,3,"Op Yellow/Grn WF- 5-F/S","SPEY FLY LINES AND TIPS","THIRD COAST TEXTURED TIP SYSTEM",122108,"*","TC TEXTURED TIP 12' 160 GRAIN - S7 - BLACK",null,840309122108,"1","EACH",25,12.5,11.25,10,null,null,null,null,null,null,null,null,null,null,null,null,null,null,null,null,null,12.5,null,null,null,null,"","",null,0,0,0,0,{"$f":"COUNT(AK557:AN557)","v":0},{"$f":"IF($AV557<>0,ROW($AV$11),\"\")","v":""}]
[3,96,11,3,"Op Yellow/Grn WF- 6-F/S","SPEY FLY LINES AND TIPS","THIRD COAST TEXTURED TIP SYSTEM",102810,"*","THIRD COAST TEXTURED TIP SYSTEM 10' 120 grain KIT",null,840309102810,1,"EACH",125,62.5,56.25,50,null,null,null,null,null,null,null,null,null,null,null,null,null,null,null,null,null,62.5,null,null,null,null,"","",null,0,0,0,0,{"$f":"COUNT(AK558:AN558)","v":0},{"$f":"IF($AV558<>0,ROW($AV$11),\"\")","v":""}]
[3,96,12,3,"Op Yellow/Grn WF- 7-F/S","SPEY FLY LINES AND TIPS","THIRD COAST TEXTURED TIP SYSTEM",103411,"*","THIRD COAST TEXTURED TIP SYSTEM 12' 160 grain KIT",null,840309103411,1,"EACH",125,62.5,56.25,50,null,null,null,null,null,null,null,null,null,null,null,null,null,null,null,null,null,62.5,null,null,null,null,"","",null,0,0,0,0,{"$f":"COUNT(AK559:AN559)","v":0},{"$f":"IF($AV559<>0,ROW($AV$11),\"\")","v":""}]
[3,0,null,1,null,"SHOOTING LINES AND SHOOTING TAPERS",null,"SHOOTING LINES AND SHOOTING TAPERS - Workbook Pages 66-69",null,null,null,null,null,null,null,null,null,null,null,null,null,null,null,null,null,null,null,null,null,null,null,null,null,null,null,null,null,null,null,null,"",""]
[3,97,null,2,"Op Yellow/Grn WF- 9-F/S","SHOOTING LINES AND SHOOTING TAPERS"," TEXTURED SHOOTING LINES  ","TEXTURED SHOOTING LINES",null,null,null,null,null,null,null,null,null,null,null,null,null,null,null,null,null,null,null,null,null,null,null,null,null,null,null,null,null,null,null,null,"",""]
[3,97,1,3,"\u0001","SHOOTING LINES AND SHOOTING TAPERS"," TEXTURED SHOOTING LINES  ",113779,null,".038\" 20# 120 ft Shooting Line with \"Dragon Tail\" With Loop - Floating - Optic Green/ Sunrise Yellow      ",null,840309113779,1,"EACH",59.95,32.979999999999997,29.98,26.98,null,null,null,null,null,null,null,null,null,null,null,null,null,null,null,null,null,{"$f":"IF(OR(ISBLANK($L562),$AW$3=0),\" - \",OFFSET(O562,0,$AW$3,1,1))","v":32.979999999999997},null,null,null,null,"","",null,0,0,0,0,{"$f":"COUNT(AK562:AN562)","v":0},{"$f":"IF($AV562<>0,ROW($AV$11),\"\")","v":""}]
[3,97,2,3,"O Ylw/Dk Gray WF- 5-F/S","SHOOTING LINES AND SHOOTING TAPERS"," TEXTURED SHOOTING LINES  ",113717,null,"Textured .035\" 25# 120 ft Shooting Line With Loop - Floating - Gray/ Orange",null,840309113717,1,"EACH",59.95,32.979999999999997,29.98,26.98,null,null,null,null,null,null,null,null,null,null,null,null,null,null,null,null,null,{"$f":"IF(OR(ISBLANK($L563),$AW$3=0),\" - \",OFFSET(O563,0,$AW$3,1,1))","v":32.979999999999997},null,null,null,null,"","",null,0,0,0,0,0,""]
[3,97,3,3,"O Ylw/Dk Gray WF- 6-F/S","SHOOTING LINES AND SHOOTING TAPERS"," TEXTURED SHOOTING LINES  ",113700,null,"Textured .032\" 20# 120 ft Shooting Line With Loop -  Floating - Gray/ Optic Yellow  ",null,840309113700,1,"EACH",59.95,32.979999999999997,29.98,26.98,null,null,null,null,null,null,null,null,null,null,null,null,null,null,null,null,null,{"$f":"IF(OR(ISBLANK($L564),$AW$3=0),\" - \",OFFSET(O564,0,$AW$3,1,1))","v":32.979999999999997},null,null,null,null,"","",null,0,0,0,0,0,""]
[3,98,null,2,"O Ylw/Dk Gray WF- 7-F/S","SHOOTING LINES AND SHOOTING TAPERS","  FRESHWATER SHOOTING LINES","FRESHWATER SHOOTING LINES",null,null,null,null,null,null,null,null,null,null,null,null,null,null,null,null,null,null,null,null,null,null,null,null,null,null,null,null,null,null,null,null,"","",null,"","","","",0,""]
[3,98,1,3,"O Ylw/Dk Gray WF- 8-F/S","SHOOTING LINES AND SHOOTING TAPERS","  FRESHWATER SHOOTING LINES",113786,"",".030\" 25# 120 ft Monocore™ - Floating - Yellow      ",null,840309113786,"1","EACH",34.950000000000003,19.22,17.48,15.73,null,null,null,null,null,null,null,null,null,null,null,null,null,null,null,null,null,{"$f":"IF(OR(ISBLANK($L566),$AW$3=0),\" - \",OFFSET(O566,0,$AW$3,1,1))","v":19.22},null,null,null,null,"","",null,0,0,0,0,0,""]
[3,98,2,3,"O Ylw/Dk Gray WF- 9-F/S","SHOOTING LINES AND SHOOTING TAPERS","  FRESHWATER SHOOTING LINES",113724,"",".031\" 20# 100 ft - Floating With Loop - Orange      ",null,840309113724,"1","EACH",34.950000000000003,19.22,17.48,15.73,null,null,null,null,null,null,null,null,null,null,null,null,null,null,null,null,null,19.22,null,null,null,null,"","",null,{"$f":"IF(LEN($AJ567)>0,$AJ567*AK567,\"\")","v":0},0,0,0,0,""]
[3,98,3,3,"O Ylw/Dk Gray WF-10-F/S","SHOOTING LINES AND SHOOTING TAPERS","  FRESHWATER SHOOTING LINES",113793,"",".032\" 29# 150 ft Braided PE Mono Shooting Line - Floating - Orange      ",null,840309113793,"1","EACH",34.950000000000003,19.22,17.48,15.73,null,null,null,null,null,null,null,null,null,null,null,null,null,null,null,null,null,19.22,null,null,null,null,"","",null,0,0,0,0,0,""]
[3,98,4,3,"\u0001","SHOOTING LINES AND SHOOTING TAPERS","  FRESHWATER SHOOTING LINES",113731,"",".038\" 30# 100 ft Floating With Loop - Mist Green      ",null,840309113731,"1","EACH",34.950000000000003,19.22,17.48,15.73,null,null,null,null,null,null,null,null,null,null,null,null,null,null,null,null,null,19.22,null,null,null,null,"","",null,0,0,0,0,0,""]
[3,99,null,2,"Blue/Dark Gray 400 Grain/ 9-12 wt","SHOOTING LINES AND SHOOTING TAPERS","  SALTWATER SHOOTING LINES - SAND","SALTWATER SHOOTING LINES - SAND",null,null,null,null,null,null,null,null,null,null,null,null,null,null,null,null,null,null,null,null,null,null,null,null,null,null,null,null,null,null,null,null,"",""]
[3,99,1,3,"\u0001","SHOOTING LINES AND SHOOTING TAPERS","  SALTWATER SHOOTING LINES - SAND",113755,"",".035\" 30# 100 ft - Floating With Loop      ",null,840309113755,"1","EACH",34.950000000000003,19.22,17.48,15.73,null,null,null,null,null,null,null,null,null,null,null,null,null,null,null,null,null,{"$f":"IF(OR(ISBLANK($L571),$AW$3=0),\" - \",OFFSET(O571,0,$AW$3,1,1))","v":19.22},null,null,null,null,"","",null,{"$f":"IF(LEN($AJ571)>0,$AJ571*AK571,\"\")","v":0},0,0,0,{"$f":"COUNT(AK571:AN571)","v":0},{"$f":"IF($AV571<>0,ROW($AV$11),\"\")","v":""}]
[3,99,2,3,"Surf/Dark Gray Cut to length","SHOOTING LINES AND SHOOTING TAPERS","  SALTWATER SHOOTING LINES - SAND",113762,"",".042\" 40# 100 ft - Floating With Loop      ",null,840309113762,"1","EACH",34.950000000000003,19.22,17.48,15.73,null,null,null,null,null,null,null,null,null,null,null,null,null,null,null,null,null,{"$f":"IF(OR(ISBLANK($L572),$AW$3=0),\" - \",OFFSET(O572,0,$AW$3,1,1))","v":19.22},null,null,null,null,"","",null,0,0,0,0,{"$f":"COUNT(AK572:AN572)","v":0},{"$f":"IF($AV572<>0,ROW($AV$11),\"\")","v":""}]
[3,100,null,2,"\u0001","SHOOTING LINES AND SHOOTING TAPERS","  FRESHWATER/SALTWATER SHOOTING LINES - SURF","FRESHWATER/SALTWATER SHOOTING LINES - SURF",null,null,null,null,null,null,null,null,null,null,null,null,null,null,null,null,null,null,null,null,null,null,null,null,null,null,null,null,null,null,null,null,"",""]
[3,100,1,3,"Light Green WF- 4-S","SHOOTING LINES AND SHOOTING TAPERS","  FRESHWATER/SALTWATER SHOOTING LINES - SURF",113748,"",".030\" 25# 100 ft - Intermediate Sinking With Loop      ",null,840309113748,"1","EACH",34.950000000000003,19.22,17.48,15.73,null,null,null,null,null,null,null,null,null,null,null,null,null,null,null,null,null,{"$f":"IF(OR(ISBLANK($L574),$AW$3=0),\" - \",OFFSET(O574,0,$AW$3,1,1))","v":19.22},null,null,null,null,"","",null,{"$f":"IF(LEN($AJ574)>0,$AJ574*AK574,\"\")","v":0},0,0,0,{"$f":"COUNT(AK574:AN574)","v":0},{"$f":"IF($AV574<>0,ROW($AV$11),\"\")","v":""}]
[3,100,2,3,"Light Green WF- 5-S","SHOOTING LINES AND SHOOTING TAPERS","  FRESHWATER/SALTWATER SHOOTING LINES - SURF",104562,null,".035\" 40# 100 ft - Intermediate Sinking With Loop      ",null,840309104562,"1","EACH",34.950000000000003,19.22,17.48,15.73,null,null,null,null,null,null,null,null,null,null,null,null,null,null,null,null,null,{"$f":"IF(OR(ISBLANK($L575),$AW$3=0),\" - \",OFFSET(O575,0,$AW$3,1,1))","v":19.22},null,null,null,null,"","",null,0,0,0,0,0,""]
[3,101,null,2,"Green WF-5-S","SHOOTING LINES AND SHOOTING TAPERS","  SINKING SHOOTING TAPERS WITH LOOP - INTERMEDIATE/I - LIGHT GREEN","SINKING SHOOTING TAPERS WITH LOOP - INTERMEDIATE/I - LIGHT GREEN",null,null,null,null,null,null,null,null,null,null,null,null,null,null,null,null,null,null,null,null,null,null,null,null,null,null,null,null,null,null,null,null,"",""]
[3,101,1,3,"Green WF-6-S","SHOOTING LINES AND SHOOTING TAPERS","  SINKING SHOOTING TAPERS WITH LOOP - INTERMEDIATE/I - LIGHT GREEN",113403,"","ST- 6-S      ",null,840309113403,"1","EACH",34.950000000000003,19.22,17.48,15.73,null,null,null,null,null,null,null,null,null,null,null,null,null,null,null,null,null,{"$f":"IF(OR(ISBLANK($L577),$AW$3=0),\" - \",OFFSET(O577,0,$AW$3,1,1))","v":19.22},null,null,null,null,"","",null,0,0,0,0,0,""]
[3,101,2,3,"Green WF-7-S","SHOOTING LINES AND SHOOTING TAPERS","  SINKING SHOOTING TAPERS WITH LOOP - INTERMEDIATE/I - LIGHT GREEN",113410,"","ST- 7-S      ",null,840309113410,"1","EACH",34.950000000000003,19.22,17.48,15.73,null,null,null,null,null,null,null,null,null,null,null,null,null,null,null,null,null,{"$f":"IF(OR(ISBLANK($L578),$AW$3=0),\" - \",OFFSET(O578,0,$AW$3,1,1))","v":19.22},null,null,null,null,"","",null,0,0,0,0,0,""]
[3,101,3,3,"Green WF-8-S","SHOOTING LINES AND SHOOTING TAPERS","  SINKING SHOOTING TAPERS WITH LOOP - INTERMEDIATE/I - LIGHT GREEN",113427,"","ST- 8-S      ",null,840309113427,"1","EACH",34.950000000000003,19.22,17.48,15.73,null,null,null,null,null,null,null,null,null,null,null,null,null,null,null,null,null,{"$f":"IF(OR(ISBLANK($L579),$AW$3=0),\" - \",OFFSET(O579,0,$AW$3,1,1))","v":19.22},null,null,null,null,"","",null,0,0,0,0,0,""]
[3,101,4,3,"Green WF-9-S","SHOOTING LINES AND SHOOTING TAPERS","  SINKING SHOOTING TAPERS WITH LOOP - INTERMEDIATE/I - LIGHT GREEN",113434,"","ST- 9-S      ",null,840309113434,"1","EACH",34.950000000000003,19.22,17.48,15.73,null,null,null,null,null,null,null,null,null,null,null,null,null,null,null,null,null,{"$f":"IF(OR(ISBLANK($L580),$AW$3=0),\" - \",OFFSET(O580,0,$AW$3,1,1))","v":19.22},null,null,null,null,"","",null,0,0,0,0,0,""]
[3,101,5,3,"\u0001","SHOOTING LINES AND SHOOTING TAPERS","  SINKING SHOOTING TAPERS WITH LOOP - INTERMEDIATE/I - LIGHT GREEN",113441,"","ST-10-S      ",null,840309113441,"1","EACH",34.950000000000003,19.22,17.48,15.73,null,null,null,null,null,null,null,null,null,null,null,null,null,null,null,null,null,{"$f":"IF(OR(ISBLANK($L581),$AW$3=0),\" - \",OFFSET(O581,0,$AW$3,1,1))","v":19.22},null,null,null,null,"","",null,0,0,0,0,0,""]
[3,102,null,2,"Dark Green WF- 5-S","SHOOTING LINES AND SHOOTING TAPERS","  SINKING SHOOTING TAPERS WITH LOOP - TYPE II - GREEN","SINKING SHOOTING TAPERS WITH LOOP - TYPE II - GREEN",null,null,null,null,null,null,null,null,null,null,null,null,null,null,null,null,null,null,null,null,null,null,null,null,null,null,null,null,null,null,null,null,"",""]
[3,102,1,3,"Dark Green WF- 6-S","SHOOTING LINES AND SHOOTING TAPERS","  SINKING SHOOTING TAPERS WITH LOOP - TYPE II - GREEN",113458,"","ST- 6-S      ",null,840309113458,"1","EACH",34.950000000000003,19.22,17.48,15.73,null,null,null,null,null,null,null,null,null,null,null,null,null,null,null,null,null,{"$f":"IF(OR(ISBLANK($L583),$AW$3=0),\" - \",OFFSET(O583,0,$AW$3,1,1))","v":19.22},null,null,null,null,"","",null,{"$f":"IF(LEN($AJ583)>0,$AJ583*AK583,\"\")","v":0},0,0,0,{"$f":"COUNT(AK583:AN583)","v":0},{"$f":"IF($AV583<>0,ROW($AV$11),\"\")","v":""}]
[3,102,2,3,"Dark Green WF- 7-S","SHOOTING LINES AND SHOOTING TAPERS","  SINKING SHOOTING TAPERS WITH LOOP - TYPE II - GREEN",113465,"","ST- 7-S      ",null,840309113465,"1","EACH",34.950000000000003,19.22,17.48,15.73,null,null,null,null,null,null,null,null,null,null,null,null,null,null,null,null,null,{"$f":"IF(OR(ISBLANK($L584),$AW$3=0),\" - \",OFFSET(O584,0,$AW$3,1,1))","v":19.22},null,null,null,null,"","",null,0,0,0,0,0,""]
[3,102,3,3,"Dark Green WF- 8-S","SHOOTING LINES AND SHOOTING TAPERS","  SINKING SHOOTING TAPERS WITH LOOP - TYPE II - GREEN",113472,"","ST- 8-S      ",null,840309113472,"1","EACH",34.950000000000003,19.22,17.48,15.73,null,null,null,null,null,null,null,null,null,null,null,null,null,null,null,null,null,{"$f":"IF(OR(ISBLANK($L585),$AW$3=0),\" - \",OFFSET(O585,0,$AW$3,1,1))","v":19.22},null,null,null,null,"","",null,0,0,0,0,0,""]
[3,102,4,3,"Dark Green WF- 9-S","SHOOTING LINES AND SHOOTING TAPERS","  SINKING SHOOTING TAPERS WITH LOOP - TYPE II - GREEN",113489,"","ST- 9-S      ",null,840309113489,"1","EACH",34.950000000000003,19.22,17.48,15.73,null,null,null,null,null,null,null,null,null,null,null,null,null,null,null,null,null,{"$f":"IF(OR(ISBLANK($L586),$AW$3=0),\" - \",OFFSET(O586,0,$AW$3,1,1))","v":19.22},null,null,null,null,"","",null,0,0,0,0,0,""]
[3,102,5,3,"Dark Green WF-10-S","SHOOTING LINES AND SHOOTING TAPERS","  SINKING SHOOTING TAPERS WITH LOOP - TYPE II - GREEN",113496,"","ST-10-S      ",null,840309113496,"1","EACH",34.950000000000003,19.22,17.48,15.73,null,null,null,null,null,null,null,null,null,null,null,null,null,null,null,null,null,{"$f":"IF(OR(ISBLANK($L587),$AW$3=0),\" - \",OFFSET(O587,0,$AW$3,1,1))","v":19.22},null,null,null,null,"","",null,0,0,0,0,0,""]
[3,103,null,2,"\u0001","SHOOTING LINES AND SHOOTING TAPERS","  SINKING SHOOTING TAPERS WITH LOOP - TYPE III - DARK GREEN","SINKING SHOOTING TAPERS WITH LOOP - TYPE III - DARK GREEN",null,null,null,null,null,null,null,null,null,null,null,null,null,null,null,null,null,null,null,null,null,null,null,null,null,null,null,null,null,null,null,null,"",""]
[3,103,1,3,"Gray WF- 5-S","SHOOTING LINES AND SHOOTING TAPERS","  SINKING SHOOTING TAPERS WITH LOOP - TYPE III - DARK GREEN",113502,"","ST- 6-S      ",null,840309113502,"1","EACH",34.950000000000003,19.22,17.48,15.73,null,null,null,null,null,null,null,null,null,null,null,null,null,null,null,null,null,{"$f":"IF(OR(ISBLANK($L589),$AW$3=0),\" - \",OFFSET(O589,0,$AW$3,1,1))","v":19.22},null,null,null,null,"","",null,{"$f":"IF(LEN($AJ589)>0,$AJ589*AK589,\"\")","v":0},0,0,0,{"$f":"COUNT(AK589:AN589)","v":0},{"$f":"IF($AV589<>0,ROW($AV$11),\"\")","v":""}]
[3,103,2,3,"Gray WF- 6-S","SHOOTING LINES AND SHOOTING TAPERS","  SINKING SHOOTING TAPERS WITH LOOP - TYPE III - DARK GREEN",113519,"","ST- 7-S      ",null,840309113519,"1","EACH",34.950000000000003,19.22,17.48,15.73,null,null,null,null,null,null,null,null,null,null,null,null,null,null,null,null,null,{"$f":"IF(OR(ISBLANK($L590),$AW$3=0),\" - \",OFFSET(O590,0,$AW$3,1,1))","v":19.22},null,null,null,null,"","",null,0,0,0,0,0,""]
[3,103,3,3,"Gray WF- 7-S","SHOOTING LINES AND SHOOTING TAPERS","  SINKING SHOOTING TAPERS WITH LOOP - TYPE III - DARK GREEN",113526,"","ST- 8-S      ",null,840309113526,"1","EACH",34.950000000000003,19.22,17.48,15.73,null,null,null,null,null,null,null,null,null,null,null,null,null,null,null,null,null,{"$f":"IF(OR(ISBLANK($L591),$AW$3=0),\" - \",OFFSET(O591,0,$AW$3,1,1))","v":19.22},null,null,null,null,"","",null,0,0,0,0,0,""]
[3,103,4,3,"Gray WF- 8-S","SHOOTING LINES AND SHOOTING TAPERS","  SINKING SHOOTING TAPERS WITH LOOP - TYPE III - DARK GREEN",113533,"","ST- 9-S      ",null,840309113533,"1","EACH",34.950000000000003,19.22,17.48,15.73,null,null,null,null,null,null,null,null,null,null,null,null,null,null,null,null,null,{"$f":"IF(OR(ISBLANK($L592),$AW$3=0),\" - \",OFFSET(O592,0,$AW$3,1,1))","v":19.22},null,null,null,null,"","",null,0,0,0,0,0,""]
[3,103,5,3,"Gray WF- 9-S","SHOOTING LINES AND SHOOTING TAPERS","  SINKING SHOOTING TAPERS WITH LOOP - TYPE III - DARK GREEN",113540,"","ST-10-S      ",null,840309113540,"1","EACH",34.950000000000003,19.22,17.48,15.73,null,null,null,null,null,null,null,null,null,null,null,null,null,null,null,null,null,{"$f":"IF(OR(ISBLANK($L593),$AW$3=0),\" - \",OFFSET(O593,0,$AW$3,1,1))","v":19.22},null,null,null,null,"","",null,0,0,0,0,0,""]
[3,104,null,2,"Gray WF-10-S","SHOOTING LINES AND SHOOTING TAPERS","  SINKING SHOOTING TAPERS WITH LOOP - TYPE IV - GRAY","SINKING SHOOTING TAPERS WITH LOOP - TYPE IV - GRAY",null,null,null,null,null,null,null,null,null,null,null,null,null,null,null,null,null,null,null,null,null,null,null,null,null,null,null,null,null,null,null,null,"",""]
[3,104,1,3,"\u0001","SHOOTING LINES AND SHOOTING TAPERS","  SINKING SHOOTING TAPERS WITH LOOP - TYPE IV - GRAY",113557,"","ST- 6-S      ",null,840309113557,"1","EACH",34.950000000000003,19.22,17.48,15.73,null,null,null,null,null,null,null,null,null,null,null,null,null,null,null,null,null,{"$f":"IF(OR(ISBLANK($L595),$AW$3=0),\" - \",OFFSET(O595,0,$AW$3,1,1))","v":19.22},null,null,null,null,"","",null,0,0,0,0,{"$f":"COUNT(AK595:AN595)","v":0},{"$f":"IF($AV595<>0,ROW($AV$11),\"\")","v":""}]
[3,104,2,3,"Dark Gray WF- 5-S","SHOOTING LINES AND SHOOTING TAPERS","  SINKING SHOOTING TAPERS WITH LOOP - TYPE IV - GRAY",113564,"","ST- 7-S      ",null,840309113564,"1","EACH",34.950000000000003,19.22,17.48,15.73,null,null,null,null,null,null,null,null,null,null,null,null,null,null,null,null,null,19.22,null,null,null,null,"","",null,0,0,0,0,0,""]
[3,104,3,3,"Dark Gray WF- 6-S","SHOOTING LINES AND SHOOTING TAPERS","  SINKING SHOOTING TAPERS WITH LOOP - TYPE IV - GRAY",113571,"","ST- 8-S      ",null,840309113571,"1","EACH",34.950000000000003,19.22,17.48,15.73,null,null,null,null,null,null,null,null,null,null,null,null,null,null,null,null,null,19.22,null,null,null,null,"","",null,0,0,0,0,0,""]
[3,104,4,3,"Dark Gray WF- 7-F","SHOOTING LINES AND SHOOTING TAPERS","  SINKING SHOOTING TAPERS WITH LOOP - TYPE IV - GRAY",113588,"","ST- 9-S      ",null,840309113588,"1","EACH",34.950000000000003,19.22,17.48,15.73,null,null,null,null,null,null,null,null,null,null,null,null,null,null,null,null,null,19.22,null,null,null,null,"","",null,0,0,0,0,0,""]
[3,104,5,3,"Dark Gray WF- 8-S","SHOOTING LINES AND SHOOTING TAPERS","  SINKING SHOOTING TAPERS WITH LOOP - TYPE IV - GRAY",113595,"","ST-10-S      ",null,840309113595,"1","EACH",34.950000000000003,19.22,17.48,15.73,null,null,null,null,null,null,null,null,null,null,null,null,null,null,null,null,null,19.22,null,null,null,null,"","",null,0,0,0,0,0,""]
[3,104,6,3,"Dark Gray WF- 9-S","SHOOTING LINES AND SHOOTING TAPERS","  SINKING SHOOTING TAPERS WITH LOOP - TYPE IV - GRAY",113601,"","ST-11-S      ",null,840309113601,"1","EACH",34.950000000000003,19.22,17.48,15.73,null,null,null,null,null,null,null,null,null,null,null,null,null,null,null,null,null,19.22,null,null,null,null,"","",null,0,0,0,0,0,""]
[3,105,null,2,"\u0001","SHOOTING LINES AND SHOOTING TAPERS","  SINKING SHOOTING TAPERS WITH LOOP - TYPE VI - DARK GRAY","SINKING SHOOTING TAPERS WITH LOOP - TYPE VI - DARK GRAY",null,null,null,null,null,null,null,null,null,null,null,null,null,null,null,null,null,null,null,null,null,null,null,null,null,null,null,null,null,null,null,null,{"$f":"IF($AV601=0,\"\",SUM(AK601:AN601))","v":""},{"$f":"IF($AV601>0,SUM(AR601:AU601),\"\")","v":""}]
[3,105,1,3,"Green WF- 5-S","SHOOTING LINES AND SHOOTING TAPERS","  SINKING SHOOTING TAPERS WITH LOOP - TYPE VI - DARK GRAY",113618,"","ST- 7-S      ",null,840309113618,"1","EACH",34.950000000000003,19.22,17.48,15.73,null,null,null,null,null,null,null,null,null,null,null,null,null,null,null,null,null,{"$f":"IF(OR(ISBLANK($L602),$AW$3=0),\" - \",OFFSET(O602,0,$AW$3,1,1))","v":19.22},null,null,null,null,"","",null,{"$f":"IF(LEN($AJ602)>0,$AJ602*AK602,\"\")","v":0},0,0,0,{"$f":"COUNT(AK602:AN602)","v":0},{"$f":"IF($AV602<>0,ROW($AV$11),\"\")","v":""}]
[3,105,2,3,"Green WF- 6-S","SHOOTING LINES AND SHOOTING TAPERS","  SINKING SHOOTING TAPERS WITH LOOP - TYPE VI - DARK GRAY",113625,"","ST- 8-S      ",null,840309113625,"1","EACH",34.950000000000003,19.22,17.48,15.73,null,null,null,null,null,null,null,null,null,null,null,null,null,null,null,null,null,{"$f":"IF(OR(ISBLANK($L603),$AW$3=0),\" - \",OFFSET(O603,0,$AW$3,1,1))","v":19.22},null,null,null,null,"","",null,0,0,0,0,{"$f":"COUNT(AK603:AN603)","v":0},{"$f":"IF($AV603<>0,ROW($AV$11),\"\")","v":""}]
[3,105,3,3,"Green WF- 7-S","SHOOTING LINES AND SHOOTING TAPERS","  SINKING SHOOTING TAPERS WITH LOOP - TYPE VI - DARK GRAY",113632,"","ST- 9-S      ",null,840309113632,"1","EACH",34.950000000000003,19.22,17.48,15.73,null,null,null,null,null,null,null,null,null,null,null,null,null,null,null,null,null,{"$f":"IF(OR(ISBLANK($L604),$AW$3=0),\" - \",OFFSET(O604,0,$AW$3,1,1))","v":19.22},null,null,null,null,"","",null,0,0,0,0,{"$f":"COUNT(AK604:AN604)","v":0},{"$f":"IF($AV604<>0,ROW($AV$11),\"\")","v":""}]
[3,105,4,3,"Green WF- 8-S","SHOOTING LINES AND SHOOTING TAPERS","  SINKING SHOOTING TAPERS WITH LOOP - TYPE VI - DARK GRAY",113649,"","ST-10-S      ",null,840309113649,"1","EACH",34.950000000000003,19.22,17.48,15.73,null,null,null,null,null,null,null,null,null,null,null,null,null,null,null,null,null,{"$f":"IF(OR(ISBLANK($L605),$AW$3=0),\" - \",OFFSET(O605,0,$AW$3,1,1))","v":19.22},null,null,null,null,"","",null,0,0,0,0,{"$f":"COUNT(AK605:AN605)","v":0},{"$f":"IF($AV605<>0,ROW($AV$11),\"\")","v":""}]
[3,105,5,3,"\u0001","SHOOTING LINES AND SHOOTING TAPERS","  SINKING SHOOTING TAPERS WITH LOOP - TYPE VI - DARK GRAY",113656,"","ST-11-S      ",null,840309113656,"1","EACH",34.950000000000003,19.22,17.48,15.73,null,null,null,null,null,null,null,null,null,null,null,null,null,null,null,null,null,{"$f":"IF(OR(ISBLANK($L606),$AW$3=0),\" - \",OFFSET(O606,0,$AW$3,1,1))","v":19.22},null,null,null,null,"","",null,0,0,0,0,{"$f":"COUNT(AK606:AN606)","v":0},{"$f":"IF($AV606<>0,ROW($AV$11),\"\")","v":""}]
[3,106,null,2,"\u0001","SHOOTING LINES AND SHOOTING TAPERS","  SINKING SHOOTING TAPERS - DEEP WATER EXPRESS","SINKING SHOOTING TAPERS - DEEP WATER EXPRESS(TM)",null,null,null,null,null,null,null,null,null,null,null,null,null,null,null,null,null,null,null,null,null,null,null,null,null,null,null,null,null,null,null,null,"",""]
[3,106,1,3,"Orange 36 lb","SHOOTING LINES AND SHOOTING TAPERS","  SINKING SHOOTING TAPERS - DEEP WATER EXPRESS",124249,null,"ST-400/9-12 wt - Gray      ",null,840309124249,"1","EACH",54.95,30.222500000000004,27.475000000000001,24.727500000000003,null,null,null,null,null,null,null,null,null,null,null,null,null,null,null,null,null,{"$f":"IF(OR(ISBLANK($L608),$AW$3=0),\" - \",OFFSET(O608,0,$AW$3,1,1))","v":30.222500000000004},null,null,null,null,"","",null,{"$f":"IF(LEN($AJ608)>0,$AJ608*AK608,\"\")","v":0},0,0,0,{"$f":"COUNT(AK608:AN608)","v":0},{"$f":"IF($AV608<>0,ROW($AV$11),\"\")","v":""}]
[3,106,2,3,"Yellow 0.030","SHOOTING LINES AND SHOOTING TAPERS","  SINKING SHOOTING TAPERS - DEEP WATER EXPRESS",124256,null,"ST-550/12-14 wt - Gray      ",null,840309124256,"1","EACH",54.95,30.222500000000004,27.475000000000001,24.727500000000003,null,null,null,null,null,null,null,null,null,null,null,null,null,null,null,null,null,{"$f":"IF(OR(ISBLANK($L609),$AW$3=0),\" - \",OFFSET(O609,0,$AW$3,1,1))","v":30.222500000000004},null,null,null,null,"","",null,0,0,0,0,0,""]
[3,106,3,3,"Orange ","SHOOTING LINES AND SHOOTING TAPERS","  SINKING SHOOTING TAPERS - DEEP WATER EXPRESS",124263,null,"ST-700/14-15 wt - Brown      ",null,840309124263,"1","EACH",54.95,30.222500000000004,27.475000000000001,24.727500000000003,null,null,null,null,null,null,null,null,null,null,null,null,null,null,null,null,null,{"$f":"IF(OR(ISBLANK($L610),$AW$3=0),\" - \",OFFSET(O610,0,$AW$3,1,1))","v":30.222500000000004},null,null,null,null,"","",null,0,0,0,0,0,""]
[3,106,4,3,"Orange .032 in 29# 150 Ft","SHOOTING LINES AND SHOOTING TAPERS","  SINKING SHOOTING TAPERS - DEEP WATER EXPRESS",124270,null,"ST-850/14+ wt - Black      ",null,840309124270,"1","EACH",54.95,30.222500000000004,27.475000000000001,24.727500000000003,null,null,null,null,null,null,null,null,null,null,null,null,null,null,null,null,null,{"$f":"IF(OR(ISBLANK($L611),$AW$3=0),\" - \",OFFSET(O611,0,$AW$3,1,1))","v":30.222500000000004},null,null,null,null,"","",null,0,0,0,0,0,""]
[4,0,null,1,null,"LEADERS, TIPPETS AND BACKING",null,"LEADERS, TIPPETS AND BACKING - Workbook Pages 54-57",null,null,null,null,null,null,null,null,null,null,null,null,null,null,null,null,null,null,null,null,null,null,null,null,null,null,null,null,null,null,null,null,"",""]
[4,300,null,2,"\u0001","LEADERS, TIPPETS AND BACKING","SCIENTIFIC ANGLERS(TM) PREMIUM NYLON LEADERS - 7 1/2'  2 PACK","SCIENTIFIC ANGLERS(TM) PREMIUM NYLON LEADERS - 7 1/2'  2 PACK   *NEW*",null,null,null,null,null,null,null,null,null,null,null,null,null,null,null,null,null,null,null,null,null,null,null,null,null,null,null,null,null,null,null,null,"",""]
[4,300,1,3,"Surf ","LEADERS, TIPPETS AND BACKING","SCIENTIFIC ANGLERS(TM) PREMIUM NYLON LEADERS - 7 1/2'  2 PACK",115834,null,"7 1/2 ft - 0X - Clear   MOQ=6    ",null,840309115834,"6","EACH",7.99,4,3.6,3.2,null,null,null,null,null,null,null,null,null,null,null,null,null,null,null,null,null,{"$f":"IF(OR(ISBLANK($L614),$AW$3=0),\" - \",OFFSET(O614,0,$AW$3,1,1))","v":4},null,null,null,null,"","",null,{"$f":"IF(LEN($AJ614)>0,$AJ614*AK614,\"\")","v":0},{"$f":"IF(LEN($AJ614)>0,$AJ614*AL614,\"\")","v":0},{"$f":"IF(LEN($AJ614)>0,$AJ614*AM614,\"\")","v":0},{"$f":"IF(LEN($AJ614)>0,$AJ614*AN614,\"\")","v":0},{"$f":"COUNT(AK614:AN614)","v":0},{"$f":"IF($AV614<>0,ROW($AV$11),\"\")","v":""}]
[4,300,2,3,"Surf ","LEADERS, TIPPETS AND BACKING","SCIENTIFIC ANGLERS(TM) PREMIUM NYLON LEADERS - 7 1/2'  2 PACK",115841,null,"7 1/2 ft - 1X - Clear   MOQ=6    ",null,840309115841,"6","EACH",7.99,4,3.6,3.2,null,null,null,null,null,null,null,null,null,null,null,null,null,null,null,null,null,4,null,null,null,null,{"$f":"IF($AV615=0,\"\",SUM(AK615:AN615))","v":""},{"$f":"IF($AV615>0,SUM(AR615:AU615),\"\")","v":""},null,{"$f":"IF(LEN($AJ615)>0,$AJ615*AK615,\"\")","v":0},{"$f":"IF(LEN($AJ615)>0,$AJ615*AL615,\"\")","v":0},{"$f":"IF(LEN($AJ615)>0,$AJ615*AM615,\"\")","v":0},{"$f":"IF(LEN($AJ615)>0,$AJ615*AN615,\"\")","v":0},0,""]
[4,300,3,3,"Surf ","LEADERS, TIPPETS AND BACKING","SCIENTIFIC ANGLERS(TM) PREMIUM NYLON LEADERS - 7 1/2'  2 PACK",115858,"","7 1/2 ft - 2X - Clear   MOQ=6    ",null,840309115858,"6","EACH",7.99,4,3.6,3.2,null,null,null,null,null,null,null,null,null,null,null,null,null,null,null,null,null,4,null,null,null,null,"","",null,{"$f":"IF(LEN($AJ616)>0,$AJ616*AK616,\"\")","v":0},0,0,0,0,""]
[4,300,4,3,"Surf ","LEADERS, TIPPETS AND BACKING","SCIENTIFIC ANGLERS(TM) PREMIUM NYLON LEADERS - 7 1/2'  2 PACK",115865,"","7 1/2 ft - 3X - Clear   MOQ=6     ",null,840309115865,"6","EACH",7.99,4,3.6,3.2,null,null,null,null,null,null,null,null,null,null,null,null,null,null,null,null,null,4,null,null,null,null,"","",null,0,0,0,0,0,""]
[4,300,5,3,"\u0001","LEADERS, TIPPETS AND BACKING","SCIENTIFIC ANGLERS(TM) PREMIUM NYLON LEADERS - 7 1/2'  2 PACK",115872,"","7 1/2 ft - 4X - Clear   MOQ=6    ",null,840309115872,"6","EACH",7.99,4,3.6,3.2,null,null,null,null,null,null,null,null,null,null,null,null,null,null,null,null,null,4,null,null,null,null,"","",null,0,0,0,0,0,""]
[4,300,6,3,"Buckskin ST- 6-F","LEADERS, TIPPETS AND BACKING","SCIENTIFIC ANGLERS(TM) PREMIUM NYLON LEADERS - 7 1/2'  2 PACK",115889,"","7 1/2 ft - 5X - Clear   MOQ=6     ",null,840309115889,"6","EACH",7.99,4,3.6,3.2,null,null,null,null,null,null,null,null,null,null,null,null,null,null,null,null,null,4,null,null,null,null,{"$f":"IF($AV619=0,\"\",SUM(AK619:AN619))","v":""},{"$f":"IF($AV619>0,SUM(AR619:AU619),\"\")","v":""},null,{"$f":"IF(LEN($AJ619)>0,$AJ619*AK619,\"\")","v":0},{"$f":"IF(LEN($AJ619)>0,$AJ619*AL619,\"\")","v":0},{"$f":"IF(LEN($AJ619)>0,$AJ619*AM619,\"\")","v":0},{"$f":"IF(LEN($AJ619)>0,$AJ619*AN619,\"\")","v":0},0,""]
[4,300,7,3,"Buckskin ST- 6-F","LEADERS, TIPPETS AND BACKING","SCIENTIFIC ANGLERS(TM) PREMIUM NYLON LEADERS - 7 1/2'  2 PACK",115896,null,"7 1/2 ft - 6X - Clear   MOQ=6     ",null,840309115896,"6","EACH",7.99,4,3.6,3.2,null,null,null,null,null,null,null,null,null,null,null,null,null,null,null,null,null,4,null,null,null,null,"","",null,0,0,0,0,0,""]
[4,301,null,2,"Buckskin ST- 7-F","LEADERS, TIPPETS AND BACKING","SCIENTIFIC ANGLERS(TM) PREMIUM NYLON LEADERS - 9' 2 PACK","SCIENTIFIC ANGLERS(TM) PREMIUM NYLON LEADERS - 9' 2 PACK   *NEW*",null,null,null,null,null,null,null,null,null,null,null,null,null,null,null,null,null,null,null,null,null,null,null,null,null,null,null,null,null,null,null,null,"",""]
[4,301,1,3,"Buckskin ST- 8-F","LEADERS, TIPPETS AND BACKING","SCIENTIFIC ANGLERS(TM) PREMIUM NYLON LEADERS - 9' 2 PACK",113243,null,"9 ft - 20# - Clear   MOQ=6     ",null,840309113243,"6","EACH",7.99,4,3.6,3.2,null,null,null,null,null,null,null,null,null,null,null,null,null,null,null,null,null,{"$f":"IF(OR(ISBLANK($L622),$AW$3=0),\" - \",OFFSET(O622,0,$AW$3,1,1))","v":4},null,null,null,null,{"$f":"IF($AV622=0,\"\",SUM(AK622:AN622))","v":""},{"$f":"IF($AV622>0,SUM(AR622:AU622),\"\")","v":""},null,{"$f":"IF(LEN($AJ622)>0,$AJ622*AK622,\"\")","v":0},{"$f":"IF(LEN($AJ622)>0,$AJ622*AL622,\"\")","v":0},{"$f":"IF(LEN($AJ622)>0,$AJ622*AM622,\"\")","v":0},{"$f":"IF(LEN($AJ622)>0,$AJ622*AN622,\"\")","v":0},{"$f":"COUNT(AK622:AN622)","v":0},{"$f":"IF($AV622<>0,ROW($AV$11),\"\")","v":""}]
[4,301,2,3,"Buckskin ST- 8-F","LEADERS, TIPPETS AND BACKING","SCIENTIFIC ANGLERS(TM) PREMIUM NYLON LEADERS - 9' 2 PACK",113250,null,"9 ft - 18# - Clear   MOQ=6     ",null,840309113250,"6","EACH",7.99,4,3.6,3.2,null,null,null,null,null,null,null,null,null,null,null,null,null,null,null,null,null,{"$f":"IF(OR(ISBLANK($L623),$AW$3=0),\" - \",OFFSET(O623,0,$AW$3,1,1))","v":4},null,null,null,null,"","",null,{"$f":"IF(LEN($AJ623)>0,$AJ623*AK623,\"\")","v":0},{"$f":"IF(LEN($AJ623)>0,$AJ623*AL623,\"\")","v":0},{"$f":"IF(LEN($AJ623)>0,$AJ623*AM623,\"\")","v":0},{"$f":"IF(LEN($AJ623)>0,$AJ623*AN623,\"\")","v":0},{"$f":"COUNT(AK623:AN623)","v":0},{"$f":"IF($AV623<>0,ROW($AV$11),\"\")","v":""}]
[4,301,3,3,"Buckskin ST- 8-F","LEADERS, TIPPETS AND BACKING","SCIENTIFIC ANGLERS(TM) PREMIUM NYLON LEADERS - 9' 2 PACK",113267,null,"9 ft - 16# - Clear   MOQ=6     ",null,840309113267,"6","EACH",7.99,4,3.6,3.2,null,null,null,null,null,null,null,null,null,null,null,null,null,null,null,null,null,{"$f":"IF(OR(ISBLANK($L624),$AW$3=0),\" - \",OFFSET(O624,0,$AW$3,1,1))","v":4},null,null,null,null,{"$f":"IF($AV624=0,\"\",SUM(AK624:AN624))","v":""},{"$f":"IF($AV624>0,SUM(AR624:AU624),\"\")","v":""},null,{"$f":"IF(LEN($AJ624)>0,$AJ624*AK624,\"\")","v":0},{"$f":"IF(LEN($AJ624)>0,$AJ624*AL624,\"\")","v":0},{"$f":"IF(LEN($AJ624)>0,$AJ624*AM624,\"\")","v":0},{"$f":"IF(LEN($AJ624)>0,$AJ624*AN624,\"\")","v":0},{"$f":"COUNT(AK624:AN624)","v":0},{"$f":"IF($AV624<>0,ROW($AV$11),\"\")","v":""}]
[4,301,4,3,"Buckskin ST- 8-F","LEADERS, TIPPETS AND BACKING","SCIENTIFIC ANGLERS(TM) PREMIUM NYLON LEADERS - 9' 2 PACK",115902,"","9 ft - 0X - Clear   MOQ=6     ",null,840309115902,"6","EACH",7.99,4,3.6,3.2,null,null,null,null,null,null,null,null,null,null,null,null,null,null,null,null,null,{"$f":"IF(OR(ISBLANK($L625),$AW$3=0),\" - \",OFFSET(O625,0,$AW$3,1,1))","v":4},null,null,null,null,"","",null,0,0,0,0,{"$f":"COUNT(AK625:AN625)","v":0},{"$f":"IF($AV625<>0,ROW($AV$11),\"\")","v":""}]
[4,301,5,3,"Buckskin ST- 9-F","LEADERS, TIPPETS AND BACKING","SCIENTIFIC ANGLERS(TM) PREMIUM NYLON LEADERS - 9' 2 PACK",115919,"","9 ft - 1X - Clear   MOQ=6     ",null,840309115919,"6","EACH",7.99,4,3.6,3.2,null,null,null,null,null,null,null,null,null,null,null,null,null,null,null,null,null,4,null,null,null,null,"","",null,0,0,0,0,{"$f":"COUNT(AK626:AN626)","v":0},{"$f":"IF($AV626<>0,ROW($AV$11),\"\")","v":""}]
[4,301,6,3,"Buckskin ST-10-F","LEADERS, TIPPETS AND BACKING","SCIENTIFIC ANGLERS(TM) PREMIUM NYLON LEADERS - 9' 2 PACK",115926,"","9 ft - 2X - Clear   MOQ=6     ",null,840309115926,"6","EACH",7.99,4,3.6,3.2,null,null,null,null,null,null,null,null,null,null,null,null,null,null,null,null,null,4,null,null,null,null,"","",null,0,0,0,0,{"$f":"COUNT(AK627:AN627)","v":0},{"$f":"IF($AV627<>0,ROW($AV$11),\"\")","v":""}]
[4,301,7,3,"\u0001","LEADERS, TIPPETS AND BACKING","SCIENTIFIC ANGLERS(TM) PREMIUM NYLON LEADERS - 9' 2 PACK",115933,"","9 ft - 3X - Clear   MOQ=6    ",null,840309115933,"6","EACH",7.99,4,3.6,3.2,null,null,null,null,null,null,null,null,null,null,null,null,null,null,null,null,null,4,null,null,null,null,"","",null,0,0,0,0,0,""]
[4,301,8,3,"Lt. Green ST- 6-S","LEADERS, TIPPETS AND BACKING","SCIENTIFIC ANGLERS(TM) PREMIUM NYLON LEADERS - 9' 2 PACK",115940,"","9 ft - 4X - Clear   MOQ=6    ",null,840309115940,"6","EACH",7.99,4,3.6,3.2,null,null,null,null,null,null,null,null,null,null,null,null,null,null,null,null,null,4,null,null,null,null,"","",null,0,0,0,0,{"$f":"COUNT(AK629:AN629)","v":0},{"$f":"IF($AV629<>0,ROW($AV$11),\"\")","v":""}]
[4,301,9,3,"Lt. Green ST- 7-S","LEADERS, TIPPETS AND BACKING","SCIENTIFIC ANGLERS(TM) PREMIUM NYLON LEADERS - 9' 2 PACK",115957,"","9 ft - 5X - Clear   MOQ=6    ",null,840309115957,"6","EACH",7.99,4,3.6,3.2,null,null,null,null,null,null,null,null,null,null,null,null,null,null,null,null,null,4,null,null,null,null,"","",null,0,0,0,0,{"$f":"COUNT(AK630:AN630)","v":0},{"$f":"IF($AV630<>0,ROW($AV$11),\"\")","v":""}]
[4,301,10,3,"Lt. Green ST- 8-S","LEADERS, TIPPETS AND BACKING","SCIENTIFIC ANGLERS(TM) PREMIUM NYLON LEADERS - 9' 2 PACK",115964,"","9 ft - 6X - Clear   MOQ=6    ",null,840309115964,"6","EACH",7.99,4,3.6,3.2,null,null,null,null,null,null,null,null,null,null,null,null,null,null,null,null,null,4,null,null,null,null,"","",null,0,0,0,0,{"$f":"COUNT(AK631:AN631)","v":0},{"$f":"IF($AV631<>0,ROW($AV$11),\"\")","v":""}]
[4,301,11,3,"Lt. Green ST- 9-S","LEADERS, TIPPETS AND BACKING","SCIENTIFIC ANGLERS(TM) PREMIUM NYLON LEADERS - 9' 2 PACK",115971,"","9 ft - 7X - Clear   MOQ=6     ",null,840309115971,"6","EACH",7.99,4,3.6,3.2,null,null,null,null,null,null,null,null,null,null,null,null,null,null,null,null,null,4,null,null,null,null,"","",null,0,0,0,0,{"$f":"COUNT(AK632:AN632)","v":0},{"$f":"IF($AV632<>0,ROW($AV$11),\"\")","v":""}]
[4,302,null,2,"Lt. Green ST-10-S","LEADERS, TIPPETS AND BACKING","SCIENTIFIC ANGLERS(TM) PREMIUM NYLON LEADERS - 12' 2 PACK ","SCIENTIFIC ANGLERS(TM) PREMIUM NYLON LEADERS - 12' 2 PACK   *NEW*",null,null,null,null,null,null,null,null,null,null,null,null,null,null,null,null,null,null,null,null,null,null,null,null,null,null,null,null,null,null,null,null,"",""]
[4,302,1,3,"\u0001","LEADERS, TIPPETS AND BACKING","SCIENTIFIC ANGLERS(TM) PREMIUM NYLON LEADERS - 12' 2 PACK ",113335,null,"12 ft - 20# - Clear   MOQ=6     ",null,840309113335,"6","EACH",7.99,4,3.6,3.2,null,null,null,null,null,null,null,null,null,null,null,null,null,null,null,null,null,{"$f":"IF(OR(ISBLANK($L634),$AW$3=0),\" - \",OFFSET(O634,0,$AW$3,1,1))","v":4},null,null,null,null,"","",null,{"$f":"IF(LEN($AJ634)>0,$AJ634*AK634,\"\")","v":0},{"$f":"IF(LEN($AJ634)>0,$AJ634*AL634,\"\")","v":0},{"$f":"IF(LEN($AJ634)>0,$AJ634*AM634,\"\")","v":0},{"$f":"IF(LEN($AJ634)>0,$AJ634*AN634,\"\")","v":0},{"$f":"COUNT(AK634:AN634)","v":0},{"$f":"IF($AV634<>0,ROW($AV$11),\"\")","v":""}]
[4,302,2,3,"\u0001","LEADERS, TIPPETS AND BACKING","SCIENTIFIC ANGLERS(TM) PREMIUM NYLON LEADERS - 12' 2 PACK ",113342,null,"12 ft - 18# - Clear   MOQ=6     ",null,840309113342,"6","EACH",7.99,4,3.6,3.2,null,null,null,null,null,null,null,null,null,null,null,null,null,null,null,null,null,4,null,null,null,null,{"$f":"IF($AV635=0,\"\",SUM(AK635:AN635))","v":""},{"$f":"IF($AV635>0,SUM(AR635:AU635),\"\")","v":""},null,{"$f":"IF(LEN($AJ635)>0,$AJ635*AK635,\"\")","v":0},{"$f":"IF(LEN($AJ635)>0,$AJ635*AL635,\"\")","v":0},{"$f":"IF(LEN($AJ635)>0,$AJ635*AM635,\"\")","v":0},{"$f":"IF(LEN($AJ635)>0,$AJ635*AN635,\"\")","v":0},0,""]
[4,302,3,3,"\u0001","LEADERS, TIPPETS AND BACKING","SCIENTIFIC ANGLERS(TM) PREMIUM NYLON LEADERS - 12' 2 PACK ",113359,null,"12 ft - 16# - Clear   MOQ=6     ",null,840309113359,"6","EACH",7.99,4,3.6,3.2,null,null,null,null,null,null,null,null,null,null,null,null,null,null,null,null,null,4,null,null,null,null,"","",null,{"$f":"IF(LEN($AJ636)>0,$AJ636*AK636,\"\")","v":0},{"$f":"IF(LEN($AJ636)>0,$AJ636*AL636,\"\")","v":0},{"$f":"IF(LEN($AJ636)>0,$AJ636*AM636,\"\")","v":0},{"$f":"IF(LEN($AJ636)>0,$AJ636*AN636,\"\")","v":0},0,""]
[4,302,4,3,"\u0001","LEADERS, TIPPETS AND BACKING","SCIENTIFIC ANGLERS(TM) PREMIUM NYLON LEADERS - 12' 2 PACK ",118637,null,"12 ft - 0X - Clear   MOQ=6     ",null,840309118637,"6","EACH",7.99,4,3.6,3.2,null,null,null,null,null,null,null,null,null,null,null,null,null,null,null,null,null,4,null,null,null,null,{"$f":"IF($AV637=0,\"\",SUM(AK637:AN637))","v":""},{"$f":"IF($AV637>0,SUM(AR637:AU637),\"\")","v":""},null,{"$f":"IF(LEN($AJ637)>0,$AJ637*AK637,\"\")","v":0},{"$f":"IF(LEN($AJ637)>0,$AJ637*AL637,\"\")","v":0},{"$f":"IF(LEN($AJ637)>0,$AJ637*AM637,\"\")","v":0},{"$f":"IF(LEN($AJ637)>0,$AJ637*AN637,\"\")","v":0},0,""]
[4,302,5,3,"\u0001","LEADERS, TIPPETS AND BACKING","SCIENTIFIC ANGLERS(TM) PREMIUM NYLON LEADERS - 12' 2 PACK ",118644,null,"12 ft - 1X - Clear   MOQ=6     ",null,840309118644,"6","EACH",7.99,4,3.6,3.2,null,null,null,null,null,null,null,null,null,null,null,null,null,null,null,null,null,4,null,null,null,null,"","",null,{"$f":"IF(LEN($AJ638)>0,$AJ638*AK638,\"\")","v":0},{"$f":"IF(LEN($AJ638)>0,$AJ638*AL638,\"\")","v":0},{"$f":"IF(LEN($AJ638)>0,$AJ638*AM638,\"\")","v":0},{"$f":"IF(LEN($AJ638)>0,$AJ638*AN638,\"\")","v":0},0,""]
[4,302,6,3,"\u0001","LEADERS, TIPPETS AND BACKING","SCIENTIFIC ANGLERS(TM) PREMIUM NYLON LEADERS - 12' 2 PACK ",118651,null,"12 ft - 2X - Clear   MOQ=6     ",null,840309118651,"6","EACH",7.99,4,3.6,3.2,null,null,null,null,null,null,null,null,null,null,null,null,null,null,null,null,null,4,null,null,null,null,{"$f":"IF($AV639=0,\"\",SUM(AK639:AN639))","v":""},{"$f":"IF($AV639>0,SUM(AR639:AU639),\"\")","v":""},null,{"$f":"IF(LEN($AJ639)>0,$AJ639*AK639,\"\")","v":0},{"$f":"IF(LEN($AJ639)>0,$AJ639*AL639,\"\")","v":0},{"$f":"IF(LEN($AJ639)>0,$AJ639*AM639,\"\")","v":0},{"$f":"IF(LEN($AJ639)>0,$AJ639*AN639,\"\")","v":0},0,""]
[4,302,7,3,"\u0001","LEADERS, TIPPETS AND BACKING","SCIENTIFIC ANGLERS(TM) PREMIUM NYLON LEADERS - 12' 2 PACK ",118668,"","12 ft - 3X - Clear   MOQ=6     ",null,840309118668,"6","EACH",7.99,4,3.6,3.2,null,null,null,null,null,null,null,null,null,null,null,null,null,null,null,null,null,4,null,null,null,null,"","",null,0,0,0,0,0,""]
[4,302,8,3,"Green ST- 6-S","LEADERS, TIPPETS AND BACKING","SCIENTIFIC ANGLERS(TM) PREMIUM NYLON LEADERS - 12' 2 PACK ",118675,"","12 ft - 4X - Clear   MOQ=6     ",null,840309118675,"6","EACH",7.99,4,3.6,3.2,null,null,null,null,null,null,null,null,null,null,null,null,null,null,null,null,null,4,null,null,null,null,"","",null,0,0,0,0,0,""]
[4,302,9,3,"Green ST- 7-S","LEADERS, TIPPETS AND BACKING","SCIENTIFIC ANGLERS(TM) PREMIUM NYLON LEADERS - 12' 2 PACK ",118682,"","12 ft - 5X - Clear   MOQ=6     ",null,840309118682,"6","EACH",7.99,4,3.6,3.2,null,null,null,null,null,null,null,null,null,null,null,null,null,null,null,null,null,4,null,null,null,null,"","",null,{"$f":"IF(LEN($AJ642)>0,$AJ642*AK642,\"\")","v":0},0,0,0,0,""]
[4,302,10,3,"Green ST- 8-S","LEADERS, TIPPETS AND BACKING","SCIENTIFIC ANGLERS(TM) PREMIUM NYLON LEADERS - 12' 2 PACK ",118699,"","12 ft - 6X - Clear   MOQ=6      ",null,840309118699,"6","EACH",7.99,4,3.6,3.2,null,null,null,null,null,null,null,null,null,null,null,null,null,null,null,null,null,4,null,null,null,null,"","",null,0,0,0,0,0,""]
[4,303,null,2,"Lt. Green ST-10-S","LEADERS, TIPPETS AND BACKING","SCIENTIFIC ANGLERS(TM) PREMIUM NYLON LEADERS - 15' 2 PACK","SCIENTIFIC ANGLERS(TM) PREMIUM NYLON LEADERS - 15' 2 PACK   *NEW*",null,null,null,null,null,null,null,null,null,null,null,null,null,null,null,null,null,null,null,null,null,null,null,null,null,null,null,null,null,null,null,null,{"$f":"IF($AV644=0,\"\",SUM(AK644:AN644))","v":""},{"$f":"IF($AV644>0,SUM(AR644:AU644),\"\")","v":""}]
[4,303,1,3,"\u0001","LEADERS, TIPPETS AND BACKING","SCIENTIFIC ANGLERS(TM) PREMIUM NYLON LEADERS - 15' 2 PACK",118705,null,"15 ft - 0X - Clear   MOQ=6     ",null,840309118705,"6","EACH",7.99,4,3.6,3.2,null,null,null,null,null,null,null,null,null,null,null,null,null,null,null,null,null,{"$f":"IF(OR(ISBLANK($L645),$AW$3=0),\" - \",OFFSET(O645,0,$AW$3,1,1))","v":4},null,null,null,null,"","",null,{"$f":"IF(LEN($AJ645)>0,$AJ645*AK645,\"\")","v":0},{"$f":"IF(LEN($AJ645)>0,$AJ645*AL645,\"\")","v":0},{"$f":"IF(LEN($AJ645)>0,$AJ645*AM645,\"\")","v":0},{"$f":"IF(LEN($AJ645)>0,$AJ645*AN645,\"\")","v":0},{"$f":"COUNT(AK645:AN645)","v":0},{"$f":"IF($AV645<>0,ROW($AV$11),\"\")","v":""}]
[4,303,2,3,"\u0001","LEADERS, TIPPETS AND BACKING","SCIENTIFIC ANGLERS(TM) PREMIUM NYLON LEADERS - 15' 2 PACK",118712,null,"15 ft - 1X - Clear   MOQ=6     ",null,840309118712,"6","EACH",7.99,4,3.6,3.2,null,null,null,null,null,null,null,null,null,null,null,null,null,null,null,null,null,{"$f":"IF(OR(ISBLANK($L646),$AW$3=0),\" - \",OFFSET(O646,0,$AW$3,1,1))","v":4},null,null,null,null,"","",null,0,0,0,0,{"$f":"COUNT(AK646:AN646)","v":0},{"$f":"IF($AV646<>0,ROW($AV$11),\"\")","v":""}]
[4,303,3,3,"\u0001","LEADERS, TIPPETS AND BACKING","SCIENTIFIC ANGLERS(TM) PREMIUM NYLON LEADERS - 15' 2 PACK",118729,null,"15 ft - 2X - Clear   MOQ=6     ",null,840309118729,"6","EACH",7.99,4,3.6,3.2,null,null,null,null,null,null,null,null,null,null,null,null,null,null,null,null,null,{"$f":"IF(OR(ISBLANK($L647),$AW$3=0),\" - \",OFFSET(O647,0,$AW$3,1,1))","v":4},null,null,null,null,"","",null,0,0,0,0,{"$f":"COUNT(AK647:AN647)","v":0},{"$f":"IF($AV647<>0,ROW($AV$11),\"\")","v":""}]
[4,304,null,2,"Green ST- 9-S","LEADERS, TIPPETS AND BACKING","SCIENTIFIC ANGLERS(TM) PREMIUM FRESHWATER LEADERS - 9' BASS  2 PACK","SCIENTIFIC ANGLERS(TM) PREMIUM FRESHWATER LEADERS - 9' BASS  2 PACK   *NEW*",null,null,null,null,null,null,null,null,null,null,null,null,null,null,null,null,null,null,null,null,null,null,null,null,null,null,null,null,null,null,null,null,"",""]
[4,304,1,3,"Green ST-10-S","LEADERS, TIPPETS AND BACKING","SCIENTIFIC ANGLERS(TM) PREMIUM FRESHWATER LEADERS - 9' BASS  2 PACK",112161,null,"9 ft - 8# - Clear   MOQ=6      ",null,840309112161,"6","EACH",7.99,4,3.6,3.2,null,null,null,null,null,null,null,null,null,null,null,null,null,null,null,null,null,{"$f":"IF(OR(ISBLANK($L649),$AW$3=0),\" - \",OFFSET(O649,0,$AW$3,1,1))","v":4},null,null,null,null,"","",null,0,0,0,0,{"$f":"COUNT(AK649:AN649)","v":0},{"$f":"IF($AV649<>0,ROW($AV$11),\"\")","v":""}]
[4,304,2,3,"\u0001","LEADERS, TIPPETS AND BACKING","SCIENTIFIC ANGLERS(TM) PREMIUM FRESHWATER LEADERS - 9' BASS  2 PACK",112178,null,"9 ft - 10# - Clear   MOQ=6      ",null,840309112178,"6","EACH",7.99,4,3.6,3.2,null,null,null,null,null,null,null,null,null,null,null,null,null,null,null,null,null,4,null,null,null,null,"","",null,0,0,0,0,0,""]
[4,304,3,3,"Dark Green ST- 6-S","LEADERS, TIPPETS AND BACKING","SCIENTIFIC ANGLERS(TM) PREMIUM FRESHWATER LEADERS - 9' BASS  2 PACK",112185,null,"9 ft - 12# - Clear   MOQ=6      ",null,840309112185,"6","EACH",7.99,4,3.6,3.2,null,null,null,null,null,null,null,null,null,null,null,null,null,null,null,null,null,4,null,null,null,null,"","",null,0,0,0,0,0,""]
[4,304,4,3,"Dark Green ST- 7-S","LEADERS, TIPPETS AND BACKING","SCIENTIFIC ANGLERS(TM) PREMIUM FRESHWATER LEADERS - 9' BASS  2 PACK",113175,"","9 ft - 14# - Clear   MOQ=6      ",null,840309113175,"6","EACH",7.99,4,3.6,3.2,null,null,null,null,null,null,null,null,null,null,null,null,null,null,null,null,null,4,null,null,null,null,{"$f":"IF($AV652=0,\"\",SUM(AK652:AN652))","v":""},{"$f":"IF($AV652>0,SUM(AR652:AU652),\"\")","v":""},null,{"$f":"IF(LEN($AJ652)>0,$AJ652*AK652,\"\")","v":0},{"$f":"IF(LEN($AJ652)>0,$AJ652*AL652,\"\")","v":0},{"$f":"IF(LEN($AJ652)>0,$AJ652*AM652,\"\")","v":0},{"$f":"IF(LEN($AJ652)>0,$AJ652*AN652,\"\")","v":0},0,""]
[4,304,5,3,"Dark Green ST- 7-S","LEADERS, TIPPETS AND BACKING","SCIENTIFIC ANGLERS(TM) PREMIUM FRESHWATER LEADERS - 9' BASS  2 PACK",113168,"","9 ft - 16# - Clear   MOQ=6      ",null,840309113168,"6","EACH",7.99,4,3.6,3.2,null,null,null,null,null,null,null,null,null,null,null,null,null,null,null,null,null,4,null,null,null,null,"","",null,0,0,0,0,0,""]
[4,304,6,3,"Dark Green ST- 7-S","LEADERS, TIPPETS AND BACKING","SCIENTIFIC ANGLERS(TM) PREMIUM FRESHWATER LEADERS - 9' BASS  2 PACK",113151,"","9 ft - 18# - Clear   MOQ=6    ",null,840309113151,"6","EACH",7.99,4,3.6,3.2,null,null,null,null,null,null,null,null,null,null,null,null,null,null,null,null,null,4,null,null,null,null,"","",null,0,0,0,0,0,""]
[4,305,null,2,"Dark Green ST- 8-S","LEADERS, TIPPETS AND BACKING","SCIENTIFIC ANGLERS(TM) PREMIUM FRESHWATER LEADERS - 9' ANADROMOUS  2 PACK","SCIENTIFIC ANGLERS(TM) PREMIUM FRESHWATER LEADERS - 9' ANADROMOUS  2 PACK   *NEW*",null,null,null,null,null,null,null,null,null,null,null,null,null,null,null,null,null,null,null,null,null,null,null,null,null,null,null,null,null,null,null,null,"",""]
[4,305,1,3,"Dark Green ST- 9-S","LEADERS, TIPPETS AND BACKING","SCIENTIFIC ANGLERS(TM) PREMIUM FRESHWATER LEADERS - 9' ANADROMOUS  2 PACK",113205,"","9 ft - 14# - Clear   MOQ=6      ",null,840309113205,"6","EACH",7.99,4,3.6,3.2,null,null,null,null,null,null,null,null,null,null,null,null,null,null,null,null,null,{"$f":"IF(OR(ISBLANK($L656),$AW$3=0),\" - \",OFFSET(O656,0,$AW$3,1,1))","v":4},null,null,null,null,"","",null,0,0,0,0,{"$f":"COUNT(AK656:AN656)","v":0},{"$f":"IF($AV656<>0,ROW($AV$11),\"\")","v":""}]
[4,305,2,3,"Dark Green ST-10-S","LEADERS, TIPPETS AND BACKING","SCIENTIFIC ANGLERS(TM) PREMIUM FRESHWATER LEADERS - 9' ANADROMOUS  2 PACK",113199,"","9 ft - 16# - Clear   MOQ=6     ",null,840309113199,"6","EACH",7.99,4,3.6,3.2,null,null,null,null,null,null,null,null,null,null,null,null,null,null,null,null,null,{"$f":"IF(OR(ISBLANK($L657),$AW$3=0),\" - \",OFFSET(O657,0,$AW$3,1,1))","v":4},null,null,null,null,"","",null,0,0,0,0,{"$f":"COUNT(AK657:AN657)","v":0},{"$f":"IF($AV657<>0,ROW($AV$11),\"\")","v":""}]
[4,305,3,3,"\u0001","LEADERS, TIPPETS AND BACKING","SCIENTIFIC ANGLERS(TM) PREMIUM FRESHWATER LEADERS - 9' ANADROMOUS  2 PACK",113182,"","9 ft - 18# - Clear   MOQ=6     ",null,840309113182,"6","EACH",7.99,4,3.6,3.2,null,null,null,null,null,null,null,null,null,null,null,null,null,null,null,null,null,{"$f":"IF(OR(ISBLANK($L658),$AW$3=0),\" - \",OFFSET(O658,0,$AW$3,1,1))","v":4},null,null,null,null,"","",null,0,0,0,0,{"$f":"COUNT(AK658:AN658)","v":0},{"$f":"IF($AV658<>0,ROW($AV$11),\"\")","v":""}]
[4,306,null,2,"\u0001","LEADERS, TIPPETS AND BACKING","SCIENTIFIC ANGLERS(TM) PREMIUM FRESHWATER LEADERS - 12' ANADROMOUS  2 PACK","SCIENTIFIC ANGLERS(TM) PREMIUM FRESHWATER LEADERS - 12' ANADROMOUS  2 PACK   *NEW*",null,null,null,null,null,null,null,null,null,null,null,null,null,null,null,null,null,null,null,null,null,null,null,null,null,null,null,null,null,null,null,null,"",""]
[4,306,1,3,"Dark Gray ST- 7-S","LEADERS, TIPPETS AND BACKING","SCIENTIFIC ANGLERS(TM) PREMIUM FRESHWATER LEADERS - 12' ANADROMOUS  2 PACK",113298,"","12 ft - 14# - Clear   MOQ=6      ",null,840309113298,"6","EACH",7.99,4,3.6,3.2,null,null,null,null,null,null,null,null,null,null,null,null,null,null,null,null,null,{"$f":"IF(OR(ISBLANK($L660),$AW$3=0),\" - \",OFFSET(O660,0,$AW$3,1,1))","v":4},null,null,null,null,"","",null,{"$f":"IF(LEN($AJ660)>0,$AJ660*AK660,\"\")","v":0},0,0,0,{"$f":"COUNT(AK660:AN660)","v":0},{"$f":"IF($AV660<>0,ROW($AV$11),\"\")","v":""}]
[4,306,2,3,"Dark Gray ST- 8-S","LEADERS, TIPPETS AND BACKING","SCIENTIFIC ANGLERS(TM) PREMIUM FRESHWATER LEADERS - 12' ANADROMOUS  2 PACK",113281,"","12 ft - 16# - Clear   MOQ=6   ",null,840309113281,"6","EACH",7.99,4,3.6,3.2,null,null,null,null,null,null,null,null,null,null,null,null,null,null,null,null,null,{"$f":"IF(OR(ISBLANK($L661),$AW$3=0),\" - \",OFFSET(O661,0,$AW$3,1,1))","v":4},null,null,null,null,"","",null,0,0,0,0,{"$f":"COUNT(AK661:AN661)","v":0},{"$f":"IF($AV661<>0,ROW($AV$11),\"\")","v":""}]
[4,306,3,3,"Dark Gray ST- 9-S","LEADERS, TIPPETS AND BACKING","SCIENTIFIC ANGLERS(TM) PREMIUM FRESHWATER LEADERS - 12' ANADROMOUS  2 PACK",113274,"","12 ft - 18# - Clear   MOQ=6      ",null,840309113274,"6","EACH",7.99,4,3.6,3.2,null,null,null,null,null,null,null,null,null,null,null,null,null,null,null,null,null,{"$f":"IF(OR(ISBLANK($L662),$AW$3=0),\" - \",OFFSET(O662,0,$AW$3,1,1))","v":4},null,null,null,null,"","",null,0,0,0,0,{"$f":"COUNT(AK662:AN662)","v":0},{"$f":"IF($AV662<>0,ROW($AV$11),\"\")","v":""}]
[4,307,null,2,"\u0001","LEADERS, TIPPETS AND BACKING","SCIENTIFIC ANGLERS(TM) PREMIUM SALTWATER LEADERS - 9'   2 PACK","SCIENTIFIC ANGLERS(TM) PREMIUM SALTWATER LEADERS - 9'   2 PACK   *NEW*",null,null,null,null,null,null,null,null,null,null,null,null,null,null,null,null,null,null,null,null,null,null,null,null,null,null,null,null,null,null,null,null,{"$f":"IF($AV663=0,\"\",SUM(AK663:AN663))","v":""},{"$f":"IF($AV663>0,SUM(AR663:AU663),\"\")","v":""}]
[4,307,1,3," 7 1/2 ft 2X","LEADERS, TIPPETS AND BACKING","SCIENTIFIC ANGLERS(TM) PREMIUM SALTWATER LEADERS - 9'   2 PACK",112765,null,"9 ft - 8# - Clear   MOQ=6      ",null,840309112765,"6","EACH",7.99,4,3.6,3.2,null,null,null,null,null,null,null,null,null,null,null,null,null,null,null,null,null,{"$f":"IF(OR(ISBLANK($L664),$AW$3=0),\" - \",OFFSET(O664,0,$AW$3,1,1))","v":4},null,null,null,null,{"$f":"IF($AV664=0,\"\",SUM(AK664:AN664))","v":""},{"$f":"IF($AV664>0,SUM(AR664:AU664),\"\")","v":""},null,{"$f":"IF(LEN($AJ664)>0,$AJ664*AK664,\"\")","v":0},{"$f":"IF(LEN($AJ664)>0,$AJ664*AL664,\"\")","v":0},{"$f":"IF(LEN($AJ664)>0,$AJ664*AM664,\"\")","v":0},{"$f":"IF(LEN($AJ664)>0,$AJ664*AN664,\"\")","v":0},{"$f":"COUNT(AK664:AN664)","v":0},{"$f":"IF($AV664<>0,ROW($AV$11),\"\")","v":""}]
[4,307,2,3," 7 1/2 ft 2X","LEADERS, TIPPETS AND BACKING","SCIENTIFIC ANGLERS(TM) PREMIUM SALTWATER LEADERS - 9'   2 PACK",112772,null,"9 ft - 10# - Clear   MOQ=6      ",null,840309112772,"6","EACH",7.99,4,3.6,3.2,null,null,null,null,null,null,null,null,null,null,null,null,null,null,null,null,null,4,null,null,null,null,"","",null,{"$f":"IF(LEN($AJ665)>0,$AJ665*AK665,\"\")","v":0},0,0,0,0,""]
[4,307,3,3," 7 1/2 ft 3X","LEADERS, TIPPETS AND BACKING","SCIENTIFIC ANGLERS(TM) PREMIUM SALTWATER LEADERS - 9'   2 PACK",112789,null,"9 ft - 12# - Clear   MOQ=6      ",null,840309112789,"6","EACH",7.99,4,3.6,3.2,null,null,null,null,null,null,null,null,null,null,null,null,null,null,null,null,null,4,null,null,null,null,"","",null,0,0,0,0,0,""]
[4,307,4,3,"Clear 7 1/2 ft 4X","LEADERS, TIPPETS AND BACKING","SCIENTIFIC ANGLERS(TM) PREMIUM SALTWATER LEADERS - 9'   2 PACK",113236,"","9 ft - 14# - Clear   MOQ=6    ",null,840309113236,"6","EACH",7.99,4,3.6,3.2,null,null,null,null,null,null,null,null,null,null,null,null,null,null,null,null,null,4,null,null,null,null,"","",null,0,0,0,0,0,""]
[4,307,5,3,"Clear 7 1/2 ft 5X","LEADERS, TIPPETS AND BACKING","SCIENTIFIC ANGLERS(TM) PREMIUM SALTWATER LEADERS - 9'   2 PACK",113229,"","9 ft - 16# - Clear   MOQ=6    ",null,840309113229,"6","EACH",7.99,4,3.6,3.2,null,null,null,null,null,null,null,null,null,null,null,null,null,null,null,null,null,4,null,null,null,null,{"$f":"IF($AV668=0,\"\",SUM(AK668:AN668))","v":""},{"$f":"IF($AV668>0,SUM(AR668:AU668),\"\")","v":""},null,{"$f":"IF(LEN($AJ668)>0,$AJ668*AK668,\"\")","v":0},{"$f":"IF(LEN($AJ668)>0,$AJ668*AL668,\"\")","v":0},{"$f":"IF(LEN($AJ668)>0,$AJ668*AM668,\"\")","v":0},{"$f":"IF(LEN($AJ668)>0,$AJ668*AN668,\"\")","v":0},0,""]
[4,307,6,3,"Clear 7 1/2 ft 5X","LEADERS, TIPPETS AND BACKING","SCIENTIFIC ANGLERS(TM) PREMIUM SALTWATER LEADERS - 9'   2 PACK",113212,"","9 ft - 18# - Clear   MOQ=6     ",null,840309113212,"6","EACH",7.99,4,3.6,3.2,null,null,null,null,null,null,null,null,null,null,null,null,null,null,null,null,null,4,null,null,null,null,"","",null,0,0,0,0,0,""]
[4,308,null,2,"\u0001","LEADERS, TIPPETS AND BACKING","SCIENTIFIC ANGLERS(TM) PREMIUM SALTWATER LEADERS - 12'   2 PACK","SCIENTIFIC ANGLERS(TM) PREMIUM SALTWATER LEADERS - 12'   2 PACK   *NEW",null,null,null,null,null,null,null,null,null,null,null,null,null,null,null,null,null,null,null,null,null,null,null,null,null,null,null,null,null,null,null,null,{"$f":"IF($AV670=0,\"\",SUM(AK670:AN670))","v":""},{"$f":"IF($AV670>0,SUM(AR670:AU670),\"\")","v":""}]
[4,308,1,3," 7 1/2 ft 2X","LEADERS, TIPPETS AND BACKING","SCIENTIFIC ANGLERS(TM) PREMIUM SALTWATER LEADERS - 12'   2 PACK",113328,"","12 ft - 14# - Clear   MOQ=6    ",null,840309113328,"6","EACH",7.99,4,3.6,3.2,null,null,null,null,null,null,null,null,null,null,null,null,null,null,null,null,null,{"$f":"IF(OR(ISBLANK($L671),$AW$3=0),\" - \",OFFSET(O671,0,$AW$3,1,1))","v":4},null,null,null,null,"","",null,{"$f":"IF(LEN($AJ671)>0,$AJ671*AK671,\"\")","v":0},{"$f":"IF(LEN($AJ671)>0,$AJ671*AL671,\"\")","v":0},{"$f":"IF(LEN($AJ671)>0,$AJ671*AM671,\"\")","v":0},{"$f":"IF(LEN($AJ671)>0,$AJ671*AN671,\"\")","v":0},{"$f":"COUNT(AK671:AN671)","v":0},{"$f":"IF($AV671<>0,ROW($AV$11),\"\")","v":""}]
[4,308,2,3," 7 1/2 ft 2X","LEADERS, TIPPETS AND BACKING","SCIENTIFIC ANGLERS(TM) PREMIUM SALTWATER LEADERS - 12'   2 PACK",113311,"","12 ft - 16# - Clear   MOQ=6    ",null,840309113311,"6","EACH",7.99,4,3.6,3.2,null,null,null,null,null,null,null,null,null,null,null,null,null,null,null,null,null,{"$f":"IF(OR(ISBLANK($L672),$AW$3=0),\" - \",OFFSET(O672,0,$AW$3,1,1))","v":4},null,null,null,null,"","",null,0,0,0,0,{"$f":"COUNT(AK672:AN672)","v":0},{"$f":"IF($AV672<>0,ROW($AV$11),\"\")","v":""}]
[4,308,3,3," 7 1/2 ft 3X","LEADERS, TIPPETS AND BACKING","SCIENTIFIC ANGLERS(TM) PREMIUM SALTWATER LEADERS - 12'   2 PACK",113304,"","12 ft - 18# - Clear   MOQ=6     ",null,840309113304,"6","EACH",7.99,4,3.6,3.2,null,null,null,null,null,null,null,null,null,null,null,null,null,null,null,null,null,{"$f":"IF(OR(ISBLANK($L673),$AW$3=0),\" - \",OFFSET(O673,0,$AW$3,1,1))","v":4},null,null,null,null,"","",null,0,0,0,0,{"$f":"COUNT(AK673:AN673)","v":0},{"$f":"IF($AV673<>0,ROW($AV$11),\"\")","v":""}]
[4,309,null,2,"\u0001","LEADERS, TIPPETS AND BACKING","SCIENTIFIC ANGLERS(TM) PREMIUM SALTWATER LEADERS - 15'   2 PACK","SCIENTIFIC ANGLERS(TM) PREMIUM SALTWATER LEADERS - 15'   2 PACK   *NEW*",null,null,null,null,null,null,null,null,null,null,null,null,null,null,null,null,null,null,null,null,null,null,null,null,null,null,null,null,null,null,null,null,{"$f":"IF($AV674=0,\"\",SUM(AK674:AN674))","v":""},{"$f":"IF($AV674>0,SUM(AR674:AU674),\"\")","v":""}]
[4,309,1,3," 7 1/2 ft 2X","LEADERS, TIPPETS AND BACKING","SCIENTIFIC ANGLERS(TM) PREMIUM SALTWATER LEADERS - 15'   2 PACK",113380,"","15 ft - 14# - Clear   MOQ=6    ",null,840309113380,"6","EACH",7.99,4,3.6,3.2,null,null,null,null,null,null,null,null,null,null,null,null,null,null,null,null,null,{"$f":"IF(OR(ISBLANK($L675),$AW$3=0),\" - \",OFFSET(O675,0,$AW$3,1,1))","v":4},null,null,null,null,"","",null,{"$f":"IF(LEN($AJ675)>0,$AJ675*AK675,\"\")","v":0},{"$f":"IF(LEN($AJ675)>0,$AJ675*AL675,\"\")","v":0},{"$f":"IF(LEN($AJ675)>0,$AJ675*AM675,\"\")","v":0},{"$f":"IF(LEN($AJ675)>0,$AJ675*AN675,\"\")","v":0},{"$f":"COUNT(AK675:AN675)","v":0},{"$f":"IF($AV675<>0,ROW($AV$11),\"\")","v":""}]
[4,309,2,3," 7 1/2 ft 2X","LEADERS, TIPPETS AND BACKING","SCIENTIFIC ANGLERS(TM) PREMIUM SALTWATER LEADERS - 15'   2 PACK",113373,"","15 ft - 16# - Clear   MOQ=6    ",null,840309113373,"6","EACH",7.99,4,3.6,3.2,null,null,null,null,null,null,null,null,null,null,null,null,null,null,null,null,null,{"$f":"IF(OR(ISBLANK($L676),$AW$3=0),\" - \",OFFSET(O676,0,$AW$3,1,1))","v":4},null,null,null,null,"","",null,0,0,0,0,{"$f":"COUNT(AK676:AN676)","v":0},{"$f":"IF($AV676<>0,ROW($AV$11),\"\")","v":""}]
[4,309,3,3," 7 1/2 ft 3X","LEADERS, TIPPETS AND BACKING","SCIENTIFIC ANGLERS(TM) PREMIUM SALTWATER LEADERS - 15'   2 PACK",113366,"","15 ft - 18# - Clear   MOQ=6     ",null,840309113366,"6","EACH",7.99,4,3.6,3.2,null,null,null,null,null,null,null,null,null,null,null,null,null,null,null,null,null,{"$f":"IF(OR(ISBLANK($L677),$AW$3=0),\" - \",OFFSET(O677,0,$AW$3,1,1))","v":4},null,null,null,null,"","",null,0,0,0,0,{"$f":"COUNT(AK677:AN677)","v":0},{"$f":"IF($AV677<>0,ROW($AV$11),\"\")","v":""}]
[4,310,null,2,"\u0001","LEADERS, TIPPETS AND BACKING","SCIENTIFIC ANGLERS(TM) PREMIUM FLUOROCARBON LEADERS 9' FRESHWATER/SALTWATER 2 PACK","SCIENTIFIC ANGLERS(TM) PREMIUM FLUOROCARBON LEADERS 9' FRESHWATER/SALTWATER 2 PACK   *NEW*",null,null,null,null,null,null,null,null,null,null,null,null,null,null,null,null,null,null,null,null,null,null,null,null,null,null,null,null,null,null,null,null,"",""]
[4,310,1,3,"Clear 9 ft 3X","LEADERS, TIPPETS AND BACKING","SCIENTIFIC ANGLERS(TM) PREMIUM FLUOROCARBON LEADERS 9' FRESHWATER/SALTWATER 2 PACK",118736,"","9 ft Fluorocaron - 0X - Clear   MOQ=6",null,840309118736,"6","EACH",23.95,11.98,10.78,9.58,null,null,null,null,null,null,null,null,null,null,null,null,null,null,null,null,null,{"$f":"IF(OR(ISBLANK($L679),$AW$3=0),\" - \",OFFSET(O679,0,$AW$3,1,1))","v":11.98},null,null,null,null,"","",null,{"$f":"IF(LEN($AJ679)>0,$AJ679*AK679,\"\")","v":0},0,0,0,{"$f":"COUNT(AK679:AN679)","v":0},{"$f":"IF($AV679<>0,ROW($AV$11),\"\")","v":""}]
[4,310,2,3,"Clear 9 ft 4X","LEADERS, TIPPETS AND BACKING","SCIENTIFIC ANGLERS(TM) PREMIUM FLUOROCARBON LEADERS 9' FRESHWATER/SALTWATER 2 PACK",118743,"","9 ft Fluorocaron - 1X - Clear   MOQ=6",null,840309118743,"6","EACH",23.95,11.98,10.78,9.58,null,null,null,null,null,null,null,null,null,null,null,null,null,null,null,null,null,11.98,null,null,null,null,"","",null,0,0,0,0,0,""]
[4,310,3,3,"Clear 9 ft 5X","LEADERS, TIPPETS AND BACKING","SCIENTIFIC ANGLERS(TM) PREMIUM FLUOROCARBON LEADERS 9' FRESHWATER/SALTWATER 2 PACK",118750,"","9 ft Fluorocaron - 2X - Clear   MOQ=6",null,840309118750,"6","EACH",23.95,11.98,10.78,9.58,null,null,null,null,null,null,null,null,null,null,null,null,null,null,null,null,null,11.98,null,null,null,null,"","",null,0,0,0,0,0,""]
[4,310,4,3,"Clear 9 ft 6X","LEADERS, TIPPETS AND BACKING","SCIENTIFIC ANGLERS(TM) PREMIUM FLUOROCARBON LEADERS 9' FRESHWATER/SALTWATER 2 PACK",118767,"","9 ft Fluorocaron - 3X - Clear   MOQ=6",null,840309118767,"6","EACH",23.95,11.98,10.78,9.58,null,null,null,null,null,null,null,null,null,null,null,null,null,null,null,null,null,11.98,null,null,null,null,"","",null,0,0,0,0,0,""]
[4,310,5,3,"Clear 9 ft 7X","LEADERS, TIPPETS AND BACKING","SCIENTIFIC ANGLERS(TM) PREMIUM FLUOROCARBON LEADERS 9' FRESHWATER/SALTWATER 2 PACK",118774,"","9 ft Fluorocaron - 4X - Clear   MOQ=6",null,840309118774,"6","EACH",23.95,11.98,10.78,9.58,null,null,null,null,null,null,null,null,null,null,null,null,null,null,null,null,null,11.98,null,null,null,null,"","",null,0,0,0,0,0,""]
[4,310,6,3,"\u0001","LEADERS, TIPPETS AND BACKING","SCIENTIFIC ANGLERS(TM) PREMIUM FLUOROCARBON LEADERS 9' FRESHWATER/SALTWATER 2 PACK",118781,"","9 ft Fluorocaron - 5X - Clear   MOQ=6",null,840309118781,"6","EACH",23.95,11.98,10.78,9.58,null,null,null,null,null,null,null,null,null,null,null,null,null,null,null,null,null,11.98,null,null,null,null,"","",null,0,0,0,0,0,""]
[4,310,7,3,"Clear 12 ft 3X","LEADERS, TIPPETS AND BACKING","SCIENTIFIC ANGLERS(TM) PREMIUM FLUOROCARBON LEADERS 9' FRESHWATER/SALTWATER 2 PACK",118798,"","9 ft Fluorocaron - 6X - Clear   MOQ=6",null,840309118798,"6","EACH",23.95,11.98,10.78,9.58,null,null,null,null,null,null,null,null,null,null,null,null,null,null,null,null,null,{"$f":"IF(OR(ISBLANK($L685),$AW$3=0),\" - \",OFFSET(O685,0,$AW$3,1,1))","v":11.98},null,null,null,null,{"$f":"IF($AV685=0,\"\",SUM(AK685:AN685))","v":""},{"$f":"IF($AV685>0,SUM(AR685:AU685),\"\")","v":""},null,{"$f":"IF(LEN($AJ685)>0,$AJ685*AK685,\"\")","v":0},{"$f":"IF(LEN($AJ685)>0,$AJ685*AL685,\"\")","v":0},{"$f":"IF(LEN($AJ685)>0,$AJ685*AM685,\"\")","v":0},{"$f":"IF(LEN($AJ685)>0,$AJ685*AN685,\"\")","v":0},{"$f":"COUNT(AK685:AN685)","v":0},{"$f":"IF($AV685<>0,ROW($AV$11),\"\")","v":""}]
[4,310,8,3,"Clear 12 ft 3X","LEADERS, TIPPETS AND BACKING","SCIENTIFIC ANGLERS(TM) PREMIUM FLUOROCARBON LEADERS 9' FRESHWATER/SALTWATER 2 PACK",118804,null,"9 ft Fluorocaron - 7X - Clear   MOQ=6",null,840309118804,"6","EACH",23.95,11.98,10.78,9.58,null,null,null,null,null,null,null,null,null,null,null,null,null,null,null,null,null,11.98,null,null,null,null,"","",null,0,0,0,0,{"$f":"COUNT(AK686:AN686)","v":0},{"$f":"IF($AV686<>0,ROW($AV$11),\"\")","v":""}]
[4,311,null,2,"Clear 12 ft 4X","LEADERS, TIPPETS AND BACKING","SCIENTIFIC ANGLERS(TM) NYLON TIPPET 8X - 0X 30 METER INTERLOCKING SPOOL WITH CUTTER","SCIENTIFIC ANGLERS(TM) NYLON TIPPET 8X - 0X 30 METER INTERLOCKING SPOOL WITH CUTTER   *NEW*",null,null,null,null,null,null,null,null,null,null,null,null,null,null,null,null,null,null,null,null,null,null,null,null,null,null,null,null,null,null,null,null,"",""]
[4,311,1,3,"Clear 12 ft 5X","LEADERS, TIPPETS AND BACKING","SCIENTIFIC ANGLERS(TM) NYLON TIPPET 8X - 0X 30 METER INTERLOCKING SPOOL WITH CUTTER",115278,"","0X - Clear 30 meters      ",null,840309115278,"1","EACH",4.99,2.5,2.25,2,null,null,null,null,null,null,null,null,null,null,null,null,null,null,null,null,null,{"$f":"IF(OR(ISBLANK($L688),$AW$3=0),\" - \",OFFSET(O688,0,$AW$3,1,1))","v":2.5},null,null,null,null,"","",null,0,0,0,0,{"$f":"COUNT(AK688:AN688)","v":0},{"$f":"IF($AV688<>0,ROW($AV$11),\"\")","v":""}]
[4,311,2,3,"Clear 12 ft 6X","LEADERS, TIPPETS AND BACKING","SCIENTIFIC ANGLERS(TM) NYLON TIPPET 8X - 0X 30 METER INTERLOCKING SPOOL WITH CUTTER",115285,"","1X - Clear 30 meters      ",null,840309115285,"1","EACH",4.99,2.5,2.25,2,null,null,null,null,null,null,null,null,null,null,null,null,null,null,null,null,null,2.5,null,null,null,null,"","",null,0,0,0,0,0,""]
[4,311,3,3,"\u0001","LEADERS, TIPPETS AND BACKING","SCIENTIFIC ANGLERS(TM) NYLON TIPPET 8X - 0X 30 METER INTERLOCKING SPOOL WITH CUTTER",115292,"","2X - Clear 30 meters      ",null,840309115292,"1","EACH",4.99,2.5,2.25,2,null,null,null,null,null,null,null,null,null,null,null,null,null,null,null,null,null,2.5,null,null,null,null,"","",null,0,0,0,0,0,""]
[4,311,4,3,"Clear 8# 9 ft","LEADERS, TIPPETS AND BACKING","SCIENTIFIC ANGLERS(TM) NYLON TIPPET 8X - 0X 30 METER INTERLOCKING SPOOL WITH CUTTER",115308,"","3X - Clear 30 meters      ",null,840309115308,"1","EACH",4.99,2.5,2.25,2,null,null,null,null,null,null,null,null,null,null,null,null,null,null,null,null,null,2.5,null,null,null,null,"","",null,0,0,0,0,0,""]
[4,311,5,3,"Clear 10# 9 ft","LEADERS, TIPPETS AND BACKING","SCIENTIFIC ANGLERS(TM) NYLON TIPPET 8X - 0X 30 METER INTERLOCKING SPOOL WITH CUTTER",115315,"","4X - Clear 30 meters      ",null,840309115315,"1","EACH",4.99,2.5,2.25,2,null,null,null,null,null,null,null,null,null,null,null,null,null,null,null,null,null,2.5,null,null,null,null,"","",null,0,0,0,0,0,""]
[4,311,6,3,"Clear 12# 9 ft","LEADERS, TIPPETS AND BACKING","SCIENTIFIC ANGLERS(TM) NYLON TIPPET 8X - 0X 30 METER INTERLOCKING SPOOL WITH CUTTER",115322,"","5X - Clear 30 meters      ",null,840309115322,"1","EACH",4.99,2.5,2.25,2,null,null,null,null,null,null,null,null,null,null,null,null,null,null,null,null,null,2.5,null,null,null,null,"","",null,{"$f":"IF(LEN($AJ693)>0,$AJ693*AK693,\"\")","v":0},0,0,0,0,""]
[4,311,7,3,"Clear 15# 9 ft","LEADERS, TIPPETS AND BACKING","SCIENTIFIC ANGLERS(TM) NYLON TIPPET 8X - 0X 30 METER INTERLOCKING SPOOL WITH CUTTER",115339,"","6X - Clear 30 meters      ",null,840309115339,"1","EACH",4.99,2.5,2.25,2,null,null,null,null,null,null,null,null,null,null,null,null,null,null,null,null,null,2.5,null,null,null,null,"","",null,0,0,0,0,0,""]
[4,311,8,3,"\u0001","LEADERS, TIPPETS AND BACKING","SCIENTIFIC ANGLERS(TM) NYLON TIPPET 8X - 0X 30 METER INTERLOCKING SPOOL WITH CUTTER",115346,"","7X - Clear 30 meters      ",null,840309115346,"1","EACH",4.99,2.5,2.25,2,null,null,null,null,null,null,null,null,null,null,null,null,null,null,null,null,null,2.5,null,null,null,null,"","",null,0,0,0,0,0,""]
[4,311,9,3,"Clear 16# 6 ft","LEADERS, TIPPETS AND BACKING","SCIENTIFIC ANGLERS(TM) NYLON TIPPET 8X - 0X 30 METER INTERLOCKING SPOOL WITH CUTTER",115353,"","8X - Clear 30 meters      ",null,840309115353,"1","EACH",4.99,2.5,2.25,2,null,null,null,null,null,null,null,null,null,null,null,null,null,null,null,null,null,2.5,null,null,null,null,"","",null,0,0,0,0,0,""]
[4,312,null,2,"Clear 12 ft 4X","LEADERS, TIPPETS AND BACKING","SCIENTIFIC ANGLERS(TM)  NYLON TIPPET INTERLOCKING 100 METER GUIDE SPOOL WITH CUTTER ","SCIENTIFIC ANGLERS(TM)  NYLON TIPPET INTERLOCKING 100 METER GUIDE SPOOL WITH CUTTER   *NEW",null,null,null,null,null,null,null,null,null,null,null,null,null,null,null,null,null,null,null,null,null,null,null,null,null,null,null,null,null,null,null,null,{"$f":"IF($AV697=0,\"\",SUM(AK697:AN697))","v":""},{"$f":"IF($AV697>0,SUM(AR697:AU697),\"\")","v":""}]
[4,312,1,3,"Clear 12 ft 5X","LEADERS, TIPPETS AND BACKING","SCIENTIFIC ANGLERS(TM)  NYLON TIPPET INTERLOCKING 100 METER GUIDE SPOOL WITH CUTTER ",115438,null,"Freshwater 0X 100m Guide Spool",null,840309115438,"1","EACH",11.99,5.9950000000000001,5.3955000000000002,4.7960000000000003,null,null,null,null,null,null,null,null,null,null,null,null,null,null,null,null,null,{"$f":"IF(OR(ISBLANK($L698),$AW$3=0),\" - \",OFFSET(O698,0,$AW$3,1,1))","v":5.9950000000000001},null,null,null,null,"","",null,{"$f":"IF(LEN($AJ698)>0,$AJ698*AK698,\"\")","v":0},{"$f":"IF(LEN($AJ698)>0,$AJ698*AL698,\"\")","v":0},{"$f":"IF(LEN($AJ698)>0,$AJ698*AM698,\"\")","v":0},{"$f":"IF(LEN($AJ698)>0,$AJ698*AN698,\"\")","v":0},{"$f":"COUNT(AK698:AN698)","v":0},""]
[4,312,2,3,"Clear 12 ft 6X","LEADERS, TIPPETS AND BACKING","SCIENTIFIC ANGLERS(TM)  NYLON TIPPET INTERLOCKING 100 METER GUIDE SPOOL WITH CUTTER ",115445,null,"Freshwater 1X 100m Guide Spool",null,840309115445,"1","EACH",11.99,5.9950000000000001,5.3955000000000002,4.7960000000000003,null,null,null,null,null,null,null,null,null,null,null,null,null,null,null,null,null,5.9950000000000001,null,null,null,null,"","",null,0,0,0,0,0,""]
[4,312,3,3,"\u0001","LEADERS, TIPPETS AND BACKING","SCIENTIFIC ANGLERS(TM)  NYLON TIPPET INTERLOCKING 100 METER GUIDE SPOOL WITH CUTTER ",115452,null,"Freshwater 2X 100m Guide Spool",null,840309115452,"1","EACH",11.99,5.9950000000000001,5.3955000000000002,4.7960000000000003,null,null,null,null,null,null,null,null,null,null,null,null,null,null,null,null,null,5.9950000000000001,null,null,null,null,"","",null,0,0,0,0,0,""]
[4,312,4,3,"Clear 8# 9 ft","LEADERS, TIPPETS AND BACKING","SCIENTIFIC ANGLERS(TM)  NYLON TIPPET INTERLOCKING 100 METER GUIDE SPOOL WITH CUTTER ",115469,"","Freshwater 3X 100m Guide Spool",null,840309115469,"1","EACH",11.99,5.9950000000000001,5.3955000000000002,4.7960000000000003,null,null,null,null,null,null,null,null,null,null,null,null,null,null,null,null,null,5.9950000000000001,null,null,null,null,"","",null,0,0,0,0,0,""]
[4,312,5,3,"Clear 10# 9 ft","LEADERS, TIPPETS AND BACKING","SCIENTIFIC ANGLERS(TM)  NYLON TIPPET INTERLOCKING 100 METER GUIDE SPOOL WITH CUTTER ",115476,"","Freshwater 4X 100m Guide Spool",null,840309115476,"1","EACH",11.99,5.9950000000000001,5.3955000000000002,4.7960000000000003,null,null,null,null,null,null,null,null,null,null,null,null,null,null,null,null,null,5.9950000000000001,null,null,null,null,"","",null,0,0,0,0,0,""]
[4,312,6,3,"Clear 12# 9 ft","LEADERS, TIPPETS AND BACKING","SCIENTIFIC ANGLERS(TM)  NYLON TIPPET INTERLOCKING 100 METER GUIDE SPOOL WITH CUTTER ",115483,"","Freshwater 5X 100m Guide Spool",null,840309115483,"1","EACH",11.99,5.9950000000000001,5.3955000000000002,4.7960000000000003,null,null,null,null,null,null,null,null,null,null,null,null,null,null,null,null,null,5.9950000000000001,null,null,null,null,"","",null,0,0,0,0,0,""]
[4,312,7,3,"Clear 15# 9 ft","LEADERS, TIPPETS AND BACKING","SCIENTIFIC ANGLERS(TM)  NYLON TIPPET INTERLOCKING 100 METER GUIDE SPOOL WITH CUTTER ",115490,"","Freshwater 6X 100m Guide Spool",null,840309115490,"1","EACH",11.99,5.9950000000000001,5.3955000000000002,4.7960000000000003,null,null,null,null,null,null,null,null,null,null,null,null,null,null,null,null,null,5.9950000000000001,null,null,null,null,"","",null,0,0,0,0,0,""]
[4,312,8,3,"\u0001","LEADERS, TIPPETS AND BACKING","SCIENTIFIC ANGLERS(TM)  NYLON TIPPET INTERLOCKING 100 METER GUIDE SPOOL WITH CUTTER ",115506,null,"Freshwater 7X 100m Guide Spool",null,840309115506,"1","EACH",11.99,5.9950000000000001,5.3955000000000002,4.7960000000000003,null,null,null,null,null,null,null,null,null,null,null,null,null,null,null,null,null,5.9950000000000001,null,null,null,null,"","",null,0,0,0,0,0,""]
[4,313,null,2,"Clear 10# 12 ft","LEADERS, TIPPETS AND BACKING","SCIENTIFIC ANGLERS(TM) PREMIUM NYLON TIPPET","SCIENTIFIC ANGLERS(TM) PREMIUM NYLON TIPPET   *NEW*",null,null,null,null,null,null,null,null,null,null,null,null,null,null,null,null,null,null,null,null,null,null,null,null,null,null,null,null,null,null,null,null,"",""]
[4,313,1,3,"Clear 12# 12 ft","LEADERS, TIPPETS AND BACKING","SCIENTIFIC ANGLERS(TM) PREMIUM NYLON TIPPET",115360,"","20# - Clear 30 meters Cutter Spool      ",null,840309115360,"1","EACH",4.99,2.5,2.25,2,null,null,null,null,null,null,null,null,null,null,null,null,null,null,null,null,null,{"$f":"IF(OR(ISBLANK($L707),$AW$3=0),\" - \",OFFSET(O707,0,$AW$3,1,1))","v":2.5},null,null,null,null,"","",null,{"$f":"IF(LEN($AJ707)>0,$AJ707*AK707,\"\")","v":0},0,0,0,{"$f":"COUNT(AK707:AN707)","v":0},{"$f":"IF($AV707<>0,ROW($AV$11),\"\")","v":""}]
[4,313,2,3,"Clear 16# 12 ft","LEADERS, TIPPETS AND BACKING","SCIENTIFIC ANGLERS(TM) PREMIUM NYLON TIPPET",115377,"","25# - Clear 30 meters Cutter Spool      ",null,840309115377,"1","EACH",4.99,2.5,2.25,2,null,null,null,null,null,null,null,null,null,null,null,null,null,null,null,null,null,2.5,null,null,null,null,"","",null,0,0,0,0,0,""]
[4,313,3,3,"Clear 20# 12 ft","LEADERS, TIPPETS AND BACKING","SCIENTIFIC ANGLERS(TM) PREMIUM NYLON TIPPET",115384,"","35# - Clear 30 meters      ",null,840309115384,"1","EACH",4.99,2.5,2.25,2,null,null,null,null,null,null,null,null,null,null,null,null,null,null,null,null,null,2.5,null,null,null,null,"","",null,0,0,0,0,0,""]
[4,313,4,3,"Clear 22# 12 ft","LEADERS, TIPPETS AND BACKING","SCIENTIFIC ANGLERS(TM) PREMIUM NYLON TIPPET",115391,"","40# - Clear 30 meters      ",null,840309115391,"1","EACH",4.99,2.5,2.25,2,null,null,null,null,null,null,null,null,null,null,null,null,null,null,null,null,null,2.5,null,null,null,null,"","",null,0,0,0,0,0,""]
[4,313,5,3,"\u0001","LEADERS, TIPPETS AND BACKING","SCIENTIFIC ANGLERS(TM) PREMIUM NYLON TIPPET",115407,null,"50# - Clear 30 meters      ",null,840309115407,"1","EACH",4.99,2.5,2.25,2,null,null,null,null,null,null,null,null,null,null,null,null,null,null,null,null,null,2.5,null,null,null,null,"","",null,0,0,0,0,0,""]
[4,313,6,3,"Clear 10# 15 ft","LEADERS, TIPPETS AND BACKING","SCIENTIFIC ANGLERS(TM) PREMIUM NYLON TIPPET",115414,null,"60# - Clear 30 meters      ",null,840309115414,"1","EACH",4.99,2.5,2.25,2,null,null,null,null,null,null,null,null,null,null,null,null,null,null,null,null,null,2.5,null,null,null,null,"","",null,0,0,0,0,0,""]
[4,313,7,3,"Clear 12# 15 ft","LEADERS, TIPPETS AND BACKING","SCIENTIFIC ANGLERS(TM) PREMIUM NYLON TIPPET",115421,null,"65# - Clear 30 meters      ",null,840309115421,"1","EACH",4.99,2.5,2.25,2,null,null,null,null,null,null,null,null,null,null,null,null,null,null,null,null,null,2.5,null,null,null,null,"","",null,0,0,0,0,0,""]
[4,314,null,2,"Clear 20# 15 ft","LEADERS, TIPPETS AND BACKING","SCIENTIFIC ANGLERS(TM) PREMIUM HARD MONO AR TIPPET WITH INTERLOCKING SPOOL WITH CUTTER","SCIENTIFIC ANGLERS(TM) PREMIUM HARD MONO AR TIPPET WITH INTERLOCKING SPOOL WITH CUTTER   *NEW*",null,null,null,null,null,null,null,null,null,null,null,null,null,null,null,null,null,null,null,null,null,null,null,null,null,null,null,null,null,null,null,null,"",""]
[4,314,1,3,"Clear 22# 15 ft","LEADERS, TIPPETS AND BACKING","SCIENTIFIC ANGLERS(TM) PREMIUM HARD MONO AR TIPPET WITH INTERLOCKING SPOOL WITH CUTTER",115780,"","6# - Clear 30 meters Cutter Spool      ",null,840309115780,"1","EACH",4.99,2.5,2.25,2,null,null,null,null,null,null,null,null,null,null,null,null,null,null,null,null,null,{"$f":"IF(OR(ISBLANK($L715),$AW$3=0),\" - \",OFFSET(O715,0,$AW$3,1,1))","v":2.5},null,null,null,null,"","",null,0,0,0,0,0,""]
[4,314,2,3,"\u0001","LEADERS, TIPPETS AND BACKING","SCIENTIFIC ANGLERS(TM) PREMIUM HARD MONO AR TIPPET WITH INTERLOCKING SPOOL WITH CUTTER",115797,"","8# - Clear 30 meters Cutter Spool      ",null,840309115797,"1","EACH",4.99,2.5,2.25,2,null,null,null,null,null,null,null,null,null,null,null,null,null,null,null,null,null,2.5,null,null,null,null,"","",null,0,0,0,0,0,""]
[4,314,3,3,"Clear 10# 8 ft","LEADERS, TIPPETS AND BACKING","SCIENTIFIC ANGLERS(TM) PREMIUM HARD MONO AR TIPPET WITH INTERLOCKING SPOOL WITH CUTTER",115803,"","12# - Clear 30 meters Cutter Spool      ",null,840309115803,"1","EACH",4.99,2.5,2.25,2,null,null,null,null,null,null,null,null,null,null,null,null,null,null,null,null,null,2.5,null,null,null,null,"","",null,0,0,0,0,{"$f":"COUNT(AK717:AN717)","v":0},{"$f":"IF($AV717<>0,ROW($AV$11),\"\")","v":""}]
[4,314,4,3,"Clear 12# 8 ft","LEADERS, TIPPETS AND BACKING","SCIENTIFIC ANGLERS(TM) PREMIUM HARD MONO AR TIPPET WITH INTERLOCKING SPOOL WITH CUTTER",115810,"","16# - Clear 30 meters  Cutter Spool     ",null,840309115810,"1","EACH",4.99,2.5,2.25,2,null,null,null,null,null,null,null,null,null,null,null,null,null,null,null,null,null,2.5,null,null,null,null,"","",null,0,0,0,0,{"$f":"COUNT(AK718:AN718)","v":0},{"$f":"IF($AV718<>0,ROW($AV$11),\"\")","v":""}]
[4,314,5,3,"Clear 16# 8 ft","LEADERS, TIPPETS AND BACKING","SCIENTIFIC ANGLERS(TM) PREMIUM HARD MONO AR TIPPET WITH INTERLOCKING SPOOL WITH CUTTER",115827,"","20# - Clear 30 meters Cutter Spool         ",null,840309115827,"1","EACH",4.99,2.5,2.25,2,null,null,null,null,null,null,null,null,null,null,null,null,null,null,null,null,null,2.5,null,null,null,null,"","",null,0,0,0,0,{"$f":"COUNT(AK719:AN719)","v":0},{"$f":"IF($AV719<>0,ROW($AV$11),\"\")","v":""}]
[4,315,null,2,"\u0001","LEADERS, TIPPETS AND BACKING","SCIENTIFIC ANGLERS(TM) PREMIUM FLUOROCARBON TIPPET  WITH INTERLOCKING SPOOL WITH CUTTER","SCIENTIFIC ANGLERS(TM) PREMIUM FLUOROCARBON TIPPET  WITH INTERLOCKING SPOOL WITH CUTTER   *NEW*",null,null,null,null,null,null,null,null,null,null,null,null,null,null,null,null,null,null,null,null,null,null,null,null,null,null,null,null,null,null,null,null,"",""]
[4,315,1,3,"Clear 10# 9 ft","LEADERS, TIPPETS AND BACKING","SCIENTIFIC ANGLERS(TM) PREMIUM FLUOROCARBON TIPPET  WITH INTERLOCKING SPOOL WITH CUTTER",115513,"","0X - Clear 30 meters      ",null,840309115513,"1","EACH",14.95,7.4749999999999996,6.7275,5.98,null,null,null,null,null,null,null,null,null,null,null,null,null,null,null,null,null,{"$f":"IF(OR(ISBLANK($L721),$AW$3=0),\" - \",OFFSET(O721,0,$AW$3,1,1))","v":7.4749999999999996},null,null,null,null,"","",null,{"$f":"IF(LEN($AJ721)>0,$AJ721*AK721,\"\")","v":0},0,0,0,{"$f":"COUNT(AK721:AN721)","v":0},{"$f":"IF($AV721<>0,ROW($AV$11),\"\")","v":""}]
[4,315,2,3,"Clear 12# 9 ft","LEADERS, TIPPETS AND BACKING","SCIENTIFIC ANGLERS(TM) PREMIUM FLUOROCARBON TIPPET  WITH INTERLOCKING SPOOL WITH CUTTER",115520,"","1X - Clear 30 meters      ",null,840309115520,"1","EACH",14.95,7.4749999999999996,6.7275,5.98,null,null,null,null,null,null,null,null,null,null,null,null,null,null,null,null,null,7.4749999999999996,null,null,null,null,"","",null,0,0,0,0,{"$f":"COUNT(AK722:AN722)","v":0},{"$f":"IF($AV722<>0,ROW($AV$11),\"\")","v":""}]
[4,315,3,3,"Clear 16# 9 ft","LEADERS, TIPPETS AND BACKING","SCIENTIFIC ANGLERS(TM) PREMIUM FLUOROCARBON TIPPET  WITH INTERLOCKING SPOOL WITH CUTTER",115537,"","2X - Clear 30 meters      ",null,840309115537,"1","EACH",14.95,7.4749999999999996,6.7275,5.98,null,null,null,null,null,null,null,null,null,null,null,null,null,null,null,null,null,7.4749999999999996,null,null,null,null,"","",null,0,0,0,0,{"$f":"COUNT(AK723:AN723)","v":0},{"$f":"IF($AV723<>0,ROW($AV$11),\"\")","v":""}]
[4,315,4,3,"Clear 20# 9 ft","LEADERS, TIPPETS AND BACKING","SCIENTIFIC ANGLERS(TM) PREMIUM FLUOROCARBON TIPPET  WITH INTERLOCKING SPOOL WITH CUTTER",115544,"","3X - Clear 30 meters      ",null,840309115544,"1","EACH",14.95,7.4749999999999996,6.7275,5.98,null,null,null,null,null,null,null,null,null,null,null,null,null,null,null,null,null,7.4749999999999996,null,null,null,null,"","",null,0,0,0,0,{"$f":"COUNT(AK724:AN724)","v":0},{"$f":"IF($AV724<>0,ROW($AV$11),\"\")","v":""}]
[4,315,5,3,"\u0001","LEADERS, TIPPETS AND BACKING","SCIENTIFIC ANGLERS(TM) PREMIUM FLUOROCARBON TIPPET  WITH INTERLOCKING SPOOL WITH CUTTER",115551,"","4X - Clear 30 meters      ",null,840309115551,"1","EACH",14.95,7.4749999999999996,6.7275,5.98,null,null,null,null,null,null,null,null,null,null,null,null,null,null,null,null,null,7.4749999999999996,null,null,null,null,"","",null,0,0,0,0,{"$f":"COUNT(AK725:AN725)","v":0},{"$f":"IF($AV725<>0,ROW($AV$11),\"\")","v":""}]
[4,315,6,3,"  12# 9 ft","LEADERS, TIPPETS AND BACKING","SCIENTIFIC ANGLERS(TM) PREMIUM FLUOROCARBON TIPPET  WITH INTERLOCKING SPOOL WITH CUTTER",115568,"","5X - Clear 30 meters      ",null,840309115568,"1","EACH",14.95,7.4749999999999996,6.7275,5.98,null,null,null,null,null,null,null,null,null,null,null,null,null,null,null,null,null,7.4749999999999996,null,null,null,null,"","",null,0,0,0,0,{"$f":"COUNT(AK726:AN726)","v":0},{"$f":"IF($AV726<>0,ROW($AV$11),\"\")","v":""}]
[4,315,7,3," 15# 9 ft","LEADERS, TIPPETS AND BACKING","SCIENTIFIC ANGLERS(TM) PREMIUM FLUOROCARBON TIPPET  WITH INTERLOCKING SPOOL WITH CUTTER",115575,"","6X - Clear 30 meters      ",null,840309115575,"1","EACH",14.95,7.4749999999999996,6.7275,5.98,null,null,null,null,null,null,null,null,null,null,null,null,null,null,null,null,null,7.4749999999999996,null,null,null,null,"","",null,0,0,0,0,0,""]
[4,315,8,3," 20# 9 ft","LEADERS, TIPPETS AND BACKING","SCIENTIFIC ANGLERS(TM) PREMIUM FLUOROCARBON TIPPET  WITH INTERLOCKING SPOOL WITH CUTTER",115582,"","7X - Clear 30 meters      ",null,840309115582,"1","EACH",14.95,7.4749999999999996,6.7275,5.98,null,null,null,null,null,null,null,null,null,null,null,null,null,null,null,null,null,7.4749999999999996,null,null,null,null,"","",null,0,0,0,0,0,""]
[4,316,null,2,"\u0001","LEADERS, TIPPETS AND BACKING","SCIENTIFIC ANGLERS(TM) PREMIUM FLUOROCARBON TIPPET INTERLOCKING 100 METER GUIDE SPOOL","SCIENTIFIC ANGLERS(TM) PREMIUM FLUOROCARBON TIPPET INTERLOCKING 100 METER GUIDE SPOOL   *NEW*",null,null,null,null,null,null,null,null,null,null,null,null,null,null,null,null,null,null,null,null,null,null,null,null,null,null,null,null,null,null,null,null,{"$f":"IF($AV729=0,\"\",SUM(AK729:AN729))","v":""},{"$f":"IF($AV729>0,SUM(AR729:AU729),\"\")","v":""}]
[4,316,1,3,"Clear 10# 9 ft","LEADERS, TIPPETS AND BACKING","SCIENTIFIC ANGLERS(TM) PREMIUM FLUOROCARBON TIPPET INTERLOCKING 100 METER GUIDE SPOOL",115704,null,"Fluorocarbon 0X 100m Guide Spool",null,840309115704,"1","EACH",39.950000000000003,19.975000000000001,17.977500000000003,15.980000000000002,null,null,null,null,null,null,null,null,null,null,null,null,null,null,null,null,null,{"$f":"IF(OR(ISBLANK($L730),$AW$3=0),\" - \",OFFSET(O730,0,$AW$3,1,1))","v":19.975000000000001},null,null,null,null,"","",null,{"$f":"IF(LEN($AJ730)>0,$AJ730*AK730,\"\")","v":0},{"$f":"IF(LEN($AJ730)>0,$AJ730*AL730,\"\")","v":0},{"$f":"IF(LEN($AJ730)>0,$AJ730*AM730,\"\")","v":0},{"$f":"IF(LEN($AJ730)>0,$AJ730*AN730,\"\")","v":0},{"$f":"COUNT(AK730:AN730)","v":0},{"$f":"IF($AV730<>0,ROW($AV$11),\"\")","v":""}]
[4,316,2,3,"Clear 12# 9 ft","LEADERS, TIPPETS AND BACKING","SCIENTIFIC ANGLERS(TM) PREMIUM FLUOROCARBON TIPPET INTERLOCKING 100 METER GUIDE SPOOL",115711,null,"Fluorocarbon 1X 100m Guide Spool",null,840309115711,"1","EACH",39.950000000000003,19.975000000000001,17.977500000000003,15.980000000000002,null,null,null,null,null,null,null,null,null,null,null,null,null,null,null,null,null,19.975000000000001,null,null,null,null,"","",null,0,0,0,0,{"$f":"COUNT(AK731:AN731)","v":0},{"$f":"IF($AV731<>0,ROW($AV$11),\"\")","v":""}]
[4,316,3,3,"Clear 16# 9 ft","LEADERS, TIPPETS AND BACKING","SCIENTIFIC ANGLERS(TM) PREMIUM FLUOROCARBON TIPPET INTERLOCKING 100 METER GUIDE SPOOL",115728,null,"Fluorocarbon 2X 100m Guide Spool",null,840309115728,"1","EACH",39.950000000000003,19.975000000000001,17.977500000000003,15.980000000000002,null,null,null,null,null,null,null,null,null,null,null,null,null,null,null,null,null,19.975000000000001,null,null,null,null,"","",null,0,0,0,0,{"$f":"COUNT(AK732:AN732)","v":0},{"$f":"IF($AV732<>0,ROW($AV$11),\"\")","v":""}]
[4,316,4,3,"Clear 20# 9 ft","LEADERS, TIPPETS AND BACKING","SCIENTIFIC ANGLERS(TM) PREMIUM FLUOROCARBON TIPPET INTERLOCKING 100 METER GUIDE SPOOL",115735,"","Fluorocarbon 3X 100m Guide Spool",null,840309115735,"1","EACH",39.950000000000003,19.975000000000001,17.977500000000003,15.980000000000002,null,null,null,null,null,null,null,null,null,null,null,null,null,null,null,null,null,19.975000000000001,null,null,null,null,"","",null,0,0,0,0,{"$f":"COUNT(AK733:AN733)","v":0},{"$f":"IF($AV733<>0,ROW($AV$11),\"\")","v":""}]
[4,316,5,3,"\u0001","LEADERS, TIPPETS AND BACKING","SCIENTIFIC ANGLERS(TM) PREMIUM FLUOROCARBON TIPPET INTERLOCKING 100 METER GUIDE SPOOL",115742,"","Fluorocarbon 4X 100m Guide Spool",null,840309115742,"1","EACH",39.950000000000003,19.975000000000001,17.977500000000003,15.980000000000002,null,null,null,null,null,null,null,null,null,null,null,null,null,null,null,null,null,19.975000000000001,null,null,null,null,"","",null,0,0,0,0,{"$f":"COUNT(AK734:AN734)","v":0},{"$f":"IF($AV734<>0,ROW($AV$11),\"\")","v":""}]
[4,316,6,3,"  12# 9 ft","LEADERS, TIPPETS AND BACKING","SCIENTIFIC ANGLERS(TM) PREMIUM FLUOROCARBON TIPPET INTERLOCKING 100 METER GUIDE SPOOL",115759,"","Fluorocarbon 5X 100m Guide Spool",null,840309115759,"1","EACH",39.950000000000003,19.975000000000001,17.977500000000003,15.980000000000002,null,null,null,null,null,null,null,null,null,null,null,null,null,null,null,null,null,19.975000000000001,null,null,null,null,"","",null,0,0,0,0,{"$f":"COUNT(AK735:AN735)","v":0},""]
[4,316,7,3," 15# 9 ft","LEADERS, TIPPETS AND BACKING","SCIENTIFIC ANGLERS(TM) PREMIUM FLUOROCARBON TIPPET INTERLOCKING 100 METER GUIDE SPOOL",115766,"","Fluorocarbon 6X 100m Guide Spool",null,840309115766,"1","EACH",39.950000000000003,19.975000000000001,17.977500000000003,15.980000000000002,null,null,null,null,null,null,null,null,null,null,null,null,null,null,null,null,null,19.975000000000001,null,null,null,null,"","",null,0,0,0,0,0,""]
[4,316,8,3," 20# 9 ft","LEADERS, TIPPETS AND BACKING","SCIENTIFIC ANGLERS(TM) PREMIUM FLUOROCARBON TIPPET INTERLOCKING 100 METER GUIDE SPOOL",115773,null,"Fluorocarbon 7X 100m Guide Spool",null,840309115773,"1","EACH",39.950000000000003,19.975000000000001,17.977500000000003,15.980000000000002,null,null,null,null,null,null,null,null,null,null,null,null,null,null,null,null,null,19.975000000000001,null,null,null,null,"","",null,0,0,0,0,0,""]
[4,317,null,2," 0X 9 ft","LEADERS, TIPPETS AND BACKING","  SCIENTIFIC ANGLERS(TM) PREMIUM FLUOROCARBON BIG GAME TIPPET ","SCIENTIFIC ANGLERS(TM) PREMIUM FLUOROCARBON BIG GAME TIPPET    *NEW*",null,null,null,null,null,null,null,null,null,null,null,null,null,null,null,null,null,null,null,null,null,null,null,null,null,null,null,null,null,null,null,null,{"$f":"IF($AV738=0,\"\",SUM(AK738:AN738))","v":""},{"$f":"IF($AV738>0,SUM(AR738:AU738),\"\")","v":""}]
[4,317,1,3," 1X 9 ft","LEADERS, TIPPETS AND BACKING","  SCIENTIFIC ANGLERS(TM) PREMIUM FLUOROCARBON BIG GAME TIPPET ",104548,null,"Big Game 4lb 2kg 30 meters Cutter Spool",null,840309104548,"1","EACH",14.95,7.4749999999999996,6.7275,5.98,null,null,null,null,null,null,null,null,null,null,null,null,null,null,null,null,null,{"$f":"IF(OR(ISBLANK($L739),$AW$3=0),\" - \",OFFSET(O739,0,$AW$3,1,1))","v":7.4749999999999996},null,null,null,null,"","",null,0,0,0,0,0,""]
[4,317,2,3," 2X 9 ft","LEADERS, TIPPETS AND BACKING","  SCIENTIFIC ANGLERS(TM) PREMIUM FLUOROCARBON BIG GAME TIPPET ",115599,null,"Big Game 6lb 3kg 30 meters Cutter Spool",null,840309115599,"1","EACH",14.95,7.4749999999999996,6.7275,5.98,null,null,null,null,null,null,null,null,null,null,null,null,null,null,null,null,null,7.4749999999999996,null,null,null,null,{"$f":"IF($AV740=0,\"\",SUM(AK740:AN740))","v":""},{"$f":"IF($AV740>0,SUM(AR740:AU740),\"\")","v":""},null,{"$f":"IF(LEN($AJ740)>0,$AJ740*AK740,\"\")","v":0},{"$f":"IF(LEN($AJ740)>0,$AJ740*AL740,\"\")","v":0},{"$f":"IF(LEN($AJ740)>0,$AJ740*AM740,\"\")","v":0},{"$f":"IF(LEN($AJ740)>0,$AJ740*AN740,\"\")","v":0},{"$f":"COUNT(AK740:AN740)","v":0},""]
[4,317,3,3," 3X 9 ft","LEADERS, TIPPETS AND BACKING","  SCIENTIFIC ANGLERS(TM) PREMIUM FLUOROCARBON BIG GAME TIPPET ",115605,null,"Big Game 8lb 4kg 30 meters Cutter Spool",null,840309115605,"1","EACH",14.95,7.4749999999999996,6.7275,5.98,null,null,null,null,null,null,null,null,null,null,null,null,null,null,null,null,null,7.4749999999999996,null,null,null,null,"","",null,0,0,0,0,0,""]
[4,317,4,3," 4X 9 ft","LEADERS, TIPPETS AND BACKING","  SCIENTIFIC ANGLERS(TM) PREMIUM FLUOROCARBON BIG GAME TIPPET ",115612,null,"Big Game 12lb 6kg 30 meters Cutter Spool",null,840309115612,"1","EACH",14.95,7.4749999999999996,6.7275,5.98,null,null,null,null,null,null,null,null,null,null,null,null,null,null,null,null,null,7.4749999999999996,null,null,null,null,"","",null,0,0,0,0,0,""]
[4,317,5,3," 5X 9 ft","LEADERS, TIPPETS AND BACKING","  SCIENTIFIC ANGLERS(TM) PREMIUM FLUOROCARBON BIG GAME TIPPET ",115629,null,"Big Game 16lb 8kg 30 meters Cutter Spool",null,840309115629,"1","EACH",14.95,7.4749999999999996,6.7275,5.98,null,null,null,null,null,null,null,null,null,null,null,null,null,null,null,null,null,7.4749999999999996,null,null,null,null,"","",null,0,0,0,0,0,""]
[4,317,6,3," 6X 9 ft","LEADERS, TIPPETS AND BACKING","  SCIENTIFIC ANGLERS(TM) PREMIUM FLUOROCARBON BIG GAME TIPPET ",115636,null,"Big Game 20lb 10kg 30 meters Cutter Spool",null,840309115636,"1","EACH",14.95,7.4749999999999996,6.7275,5.98,null,null,null,null,null,null,null,null,null,null,null,null,null,null,null,null,null,7.4749999999999996,null,null,null,null,"","",null,0,0,0,0,0,""]
[4,318,null,2," 0X 9 ft","LEADERS, TIPPETS AND BACKING"," SCIENTIFIC ANGLERS(TM) PREMIUM FLUOROCARBON TIPPET","SCIENTIFIC ANGLERS(TM) PREMIUM FLUOROCARBON TIPPET   *NEW*",null,null,null,null,null,null,null,null,null,null,null,null,null,null,null,null,null,null,null,null,null,null,null,null,null,null,null,null,null,null,null,null,{"$f":"IF($AV745=0,\"\",SUM(AK745:AN745))","v":""},""]
[4,318,1,3," 1X 9 ft","LEADERS, TIPPETS AND BACKING"," SCIENTIFIC ANGLERS(TM) PREMIUM FLUOROCARBON TIPPET",115643,"","25# - Clear 30 meters Cutter Spool      ",null,840309115643,"1","EACH",24.95,12.475,11.227499999999999,9.98,null,null,null,null,null,null,null,null,null,null,null,null,null,null,null,null,null,{"$f":"IF(OR(ISBLANK($L746),$AW$3=0),\" - \",OFFSET(O746,0,$AW$3,1,1))","v":12.475},null,null,null,null,"","",null,{"$f":"IF(LEN($AJ746)>0,$AJ746*AK746,\"\")","v":0},{"$f":"IF(LEN($AJ746)>0,$AJ746*AL746,\"\")","v":0},{"$f":"IF(LEN($AJ746)>0,$AJ746*AM746,\"\")","v":0},{"$f":"IF(LEN($AJ746)>0,$AJ746*AN746,\"\")","v":0},{"$f":"COUNT(AK746:AN746)","v":0},""]
[4,318,2,3," 2X 9 ft","LEADERS, TIPPETS AND BACKING"," SCIENTIFIC ANGLERS(TM) PREMIUM FLUOROCARBON TIPPET",115650,"","30# - Clear 30 meters      ",null,840309115650,"1","EACH",24.95,12.475,11.227499999999999,9.98,null,null,null,null,null,null,null,null,null,null,null,null,null,null,null,null,null,12.475,null,null,null,null,{"$f":"IF($AV747=0,\"\",SUM(AK747:AN747))","v":""},{"$f":"IF($AV747>0,SUM(AR747:AU747),\"\")","v":""},null,0,0,0,0,0,""]
[4,318,3,3," 3X 9 ft","LEADERS, TIPPETS AND BACKING"," SCIENTIFIC ANGLERS(TM) PREMIUM FLUOROCARBON TIPPET",115667,"","35# - Clear 30 meters      ",null,840309115667,"1","EACH",24.95,12.475,11.227499999999999,9.98,null,null,null,null,null,null,null,null,null,null,null,null,null,null,null,null,null,12.475,null,null,null,null,"","",null,0,0,0,0,0,""]
[4,318,4,3," 4X 9 ft","LEADERS, TIPPETS AND BACKING"," SCIENTIFIC ANGLERS(TM) PREMIUM FLUOROCARBON TIPPET",115674,"","40# - Clear 30 meters      ",null,840309115674,"1","EACH",24.95,12.475,11.227499999999999,9.98,null,null,null,null,null,null,null,null,null,null,null,null,null,null,null,null,null,12.475,null,null,null,null,"","",null,0,0,0,0,0,""]
[4,318,5,3," 5X 9 ft","LEADERS, TIPPETS AND BACKING"," SCIENTIFIC ANGLERS(TM) PREMIUM FLUOROCARBON TIPPET",115681,null,"50# - Clear 30 meters      ",null,840309115681,"1","EACH",24.95,12.475,11.227499999999999,9.98,null,null,null,null,null,null,null,null,null,null,null,null,null,null,null,null,null,12.475,null,null,null,null,"","",null,0,0,0,0,0,""]
[4,318,6,3," 6X 9 ft","LEADERS, TIPPETS AND BACKING"," SCIENTIFIC ANGLERS(TM) PREMIUM FLUOROCARBON TIPPET",115698,null,"60# - Clear 30 meters      ",null,840309115698,"1","EACH",24.95,12.475,11.227499999999999,9.98,null,null,null,null,null,null,null,null,null,null,null,null,null,null,null,null,null,{"$f":"IF(OR(ISBLANK($L751),$AW$3=0),\" - \",OFFSET(O751,0,$AW$3,1,1))","v":12.475},null,null,null,null,{"$f":"IF($AV751=0,\"\",SUM(AK751:AN751))","v":""},{"$f":"IF($AV751>0,SUM(AR751:AU751),\"\")","v":""},null,{"$f":"IF(LEN($AJ751)>0,$AJ751*AK751,\"\")","v":0},{"$f":"IF(LEN($AJ751)>0,$AJ751*AL751,\"\")","v":0},{"$f":"IF(LEN($AJ751)>0,$AJ751*AM751,\"\")","v":0},{"$f":"IF(LEN($AJ751)>0,$AJ751*AN751,\"\")","v":0},{"$f":"COUNT(AK751:AN751)","v":0},""]
[4,318,7,3," 6X 9 ft","LEADERS, TIPPETS AND BACKING"," SCIENTIFIC ANGLERS(TM) PREMIUM FLUOROCARBON TIPPET",104555,null,"80# - Clear 30 meters      ",null,840309104555,"1","EACH",24.95,12.475,11.227499999999999,9.98,null,null,null,null,null,null,null,null,null,null,null,null,null,null,null,null,null,12.475,null,null,null,null,"","",null,0,0,0,0,0,""]
[4,319,null,2,"Clear 4X","LEADERS, TIPPETS AND BACKING","  FLY LINE BACKING - XTS GEL SPUN POLYETHYLENE - YELLOW","FLY LINE BACKING - XTS GEL SPUN POLYETHYLENE - YELLOW",null,null,null,null,null,null,null,null,null,null,null,null,null,null,null,null,null,null,null,null,null,null,null,null,null,null,null,null,null,null,null,null,"","",null,{"$f":"IF(LEN($AJ753)>0,$AJ753*AK753,\"\")","v":""},"","","",0,""]
[4,319,1,3,"Clear 5X","LEADERS, TIPPETS AND BACKING","  FLY LINE BACKING - XTS GEL SPUN POLYETHYLENE - YELLOW","673137","","30# 100 Yd            MOQ=6      ",null,"840309111379","6","EACH",12.95,6.48,5.83,5.2,null,null,null,null,null,null,null,null,null,null,null,null,null,null,null,null,null,{"$f":"IF(OR(ISBLANK($L754),$AW$3=0),\" - \",OFFSET(O754,0,$AW$3,1,1))","v":6.48},null,null,null,null,"","",null,0,0,0,0,0,""]
[4,319,2,3,"Clear 6X","LEADERS, TIPPETS AND BACKING","  FLY LINE BACKING - XTS GEL SPUN POLYETHYLENE - YELLOW","673120","","30# 250 Yd            MOQ=6      ",null,"840309111362","6","EACH",29.95,16.47,14.98,13.48,null,null,null,null,null,null,null,null,null,null,null,null,null,null,null,null,null,16.47,null,null,null,null,"","",null,0,0,0,0,0,""]
[4,319,3,3,"Clear 7X","LEADERS, TIPPETS AND BACKING","  FLY LINE BACKING - XTS GEL SPUN POLYETHYLENE - YELLOW","673113","","30# 500 Yd      ",null,"840309111355","1","EACH",59.95,29.98,26.98,23.98,null,null,null,null,null,null,null,null,null,null,null,null,null,null,null,null,null,29.98,null,null,null,null,"","",null,0,0,0,0,0,""]
[4,319,4,3,"Clear 8X","LEADERS, TIPPETS AND BACKING","  FLY LINE BACKING - XTS GEL SPUN POLYETHYLENE - YELLOW","673106","","30# 1000 Yd      ",null,"840309111348","1","EACH",120.95,60.48,54.43,48.38,null,null,null,null,null,null,null,null,null,null,null,null,null,null,null,null,null,60.48,null,null,null,null,"","",null,0,0,0,0,0,""]
[4,319,5,3,"\u0001","LEADERS, TIPPETS AND BACKING","  FLY LINE BACKING - XTS GEL SPUN POLYETHYLENE - YELLOW","673090","","30# 3000 Yd      ",null,"840309111331","1","EACH",350,175,157.5,140,null,null,null,null,null,null,null,null,null,null,null,null,null,null,null,null,null,175,null,null,null,null,"","",null,0,0,0,0,0,""]
[4,319,6,3," 3X 100 meter","LEADERS, TIPPETS AND BACKING","  FLY LINE BACKING - XTS GEL SPUN POLYETHYLENE - YELLOW","673076","","50# 250 Yd            MOQ=6      ",null,"840309111324","6","EACH",39.950000000000003,19.98,17.98,15.98,null,null,null,null,null,null,null,null,null,null,null,null,null,null,null,null,null,19.98,null,null,null,null,"","",null,0,0,0,0,0,""]
[4,319,7,3," 4X 100 meter","LEADERS, TIPPETS AND BACKING","  FLY LINE BACKING - XTS GEL SPUN POLYETHYLENE - YELLOW","673069","","50# 500 Yd      ",null,"840309111317","1","EACH",89.95,44.98,40.479999999999997,35.979999999999997,null,null,null,null,null,null,null,null,null,null,null,null,null,null,null,null,null,44.98,null,null,null,null,"","",null,0,0,0,0,0,""]
[4,319,8,3," 5X 100 meter","LEADERS, TIPPETS AND BACKING","  FLY LINE BACKING - XTS GEL SPUN POLYETHYLENE - YELLOW","673052","","50# 1000 Yd      ",null,"840309111300","1","EACH",179.95,89.98,80.98,71.98,null,null,null,null,null,null,null,null,null,null,null,null,null,null,null,null,null,89.98,null,null,null,null,"","",null,0,0,0,0,0,""]
[4,319,9,3," 6X 100 meter","LEADERS, TIPPETS AND BACKING","  FLY LINE BACKING - XTS GEL SPUN POLYETHYLENE - YELLOW","673038","","50# 3000 Yd      ",null,"840309111294","1","EACH",499.95,249.98,224.98,199.98,null,null,null,null,null,null,null,null,null,null,null,null,null,null,null,null,null,249.98,null,null,null,null,"","",null,0,0,0,0,0,""]
[4,320,null,2," 3X 100 meter","LEADERS, TIPPETS AND BACKING","  FLY LINE BACKING - DACRON - WHITE","FLY LINE BACKING - DACRON - WHITE",null,null,null,null,null,null,null,null,null,null,null,null,null,null,null,null,null,null,null,null,null,null,null,null,null,null,null,null,null,null,null,null,"",""]
[4,320,1,3," 4X 100 meter","LEADERS, TIPPETS AND BACKING","  FLY LINE BACKING - DACRON - WHITE","545458","","20# 100 yd             MOQ=6      ",null,"840309109437","6","EACH",8.9499999999999993,4.4749999999999996,4.0274999999999999,3.58,null,null,null,null,null,null,null,null,null,null,null,null,null,null,null,null,null,{"$f":"IF(OR(ISBLANK($L764),$AW$3=0),\" - \",OFFSET(O764,0,$AW$3,1,1))","v":4.4749999999999996},null,null,null,null,"","",null,0,0,0,0,0,""]
[4,320,2,3," 5X 100 meter","LEADERS, TIPPETS AND BACKING","  FLY LINE BACKING - DACRON - WHITE","607477","","20# 250 yd             MOQ=6      ",null,"840309109499","6","EACH",20.95,10.475,9.4275000000000002,8.3800000000000008,null,null,null,null,null,null,null,null,null,null,null,null,null,null,null,null,null,10.475,null,null,null,null,"","",null,0,0,0,0,0,""]
[4,320,3,3," 6X 100 meter","LEADERS, TIPPETS AND BACKING","  FLY LINE BACKING - DACRON - WHITE","541184","","20# 1000 yd      ",null,"840309108447","1","EACH",49.95,24.975000000000001,22.477500000000003,19.980000000000004,null,null,null,null,null,null,null,null,null,null,null,null,null,null,null,null,null,24.975000000000001,null,null,null,null,"","",null,0,0,0,0,0,""]
[4,320,4,3,"\u0001","LEADERS, TIPPETS AND BACKING","  FLY LINE BACKING - DACRON - WHITE","541269","","20# 3000 yd      ",null,"840309108461","1","EACH",139.94999999999999,69.974999999999994,62.977499999999999,55.98,null,null,null,null,null,null,null,null,null,null,null,null,null,null,null,null,null,69.974999999999994,null,null,null,null,"","",null,{"$f":"IF(LEN($AJ767)>0,$AJ767*AK767,\"\")","v":0},0,0,0,0,""]
[4,320,5,3,"Clear 14#","LEADERS, TIPPETS AND BACKING","  FLY LINE BACKING - DACRON - WHITE","778450","","20# 5000 yd      ",null,"840309109376","1","EACH",169.95,84.974999999999994,76.477499999999992,67.98,null,null,null,null,null,null,null,null,null,null,null,null,null,null,null,null,null,84.974999999999994,null,null,null,null,"","",null,0,0,0,0,0,""]
[4,320,6,3,"Clear 16#","LEADERS, TIPPETS AND BACKING","  FLY LINE BACKING - DACRON - WHITE","607491","","30# 100 yd             MOQ=6      ",null,"840309109468","6","EACH",9.9499999999999993,4.9749999999999996,4.4775,3.98,null,null,null,null,null,null,null,null,null,null,null,null,null,null,null,null,null,4.9749999999999996,null,null,null,null,"","",null,0,0,0,0,0,""]
[4,320,7,3,"Clear 20#","LEADERS, TIPPETS AND BACKING","  FLY LINE BACKING - DACRON - WHITE","607484","","30# 250 yd             MOQ=6      ",null,"840309109529","6","EACH",22.95,11.475,10.327500000000001,9.18,null,null,null,null,null,null,null,null,null,null,null,null,null,null,null,null,null,11.475,null,null,null,null,"","",null,0,0,0,0,0,""]
[4,320,8,3,"Clear 22#","LEADERS, TIPPETS AND BACKING","  FLY LINE BACKING - DACRON - WHITE","541191","","30# 1000 yd      ",null,"840309108454","1","EACH",59.95,29.975000000000001,26.977500000000003,23.980000000000004,null,null,null,null,null,null,null,null,null,null,null,null,null,null,null,null,null,29.975000000000001,null,null,null,null,"","",null,0,0,0,0,0,""]
[4,320,9,3,"Clear 25#","LEADERS, TIPPETS AND BACKING","  FLY LINE BACKING - DACRON - WHITE","541276","","30# 3000 yd      ",null,"840309108478","1","EACH",159.94999999999999,79.974999999999994,71.977499999999992,63.98,null,null,null,null,null,null,null,null,null,null,null,null,null,null,null,null,null,79.974999999999994,null,null,null,null,"","",null,0,0,0,0,0,""]
[4,320,10,3,"Clear 30#","LEADERS, TIPPETS AND BACKING","  FLY LINE BACKING - DACRON - WHITE","778481","","30# 5000 yd      ",null,"840309109406","1","EACH",179.95,89.974999999999994,80.977499999999992,71.98,null,null,null,null,null,null,null,null,null,null,null,null,null,null,null,null,null,89.974999999999994,null,null,null,null,"","",null,0,0,0,0,0,""]
[4,321,null,2,"Clear 35#","LEADERS, TIPPETS AND BACKING","  FLY LINE BACKING - DACRON - ORANGE","FLY LINE BACKING - DACRON - ORANGE",null,null,null,null,null,null,null,null,null,null,null,null,null,null,null,null,null,null,null,null,null,null,null,null,null,null,null,null,null,null,null,null,"",""]
[4,321,1,3,"Clear 40#","LEADERS, TIPPETS AND BACKING","  FLY LINE BACKING - DACRON - ORANGE","607675","","20# 100 yd               MOQ=6      ",null,"840309109451","6","EACH",8.9499999999999993,4.4749999999999996,4.0274999999999999,3.58,null,null,null,null,null,null,null,null,null,null,null,null,null,null,null,null,null,{"$f":"IF(OR(ISBLANK($L775),$AW$3=0),\" - \",OFFSET(O775,0,$AW$3,1,1))","v":4.4749999999999996},null,null,null,null,"","",null,0,0,0,0,0,""]
[4,321,2,3,"\u0001","LEADERS, TIPPETS AND BACKING","  FLY LINE BACKING - DACRON - ORANGE","607682","","20# 250 yd               MOQ=6      ",null,"840309109512","6","EACH",20.95,10.475,9.4275000000000002,8.3800000000000008,null,null,null,null,null,null,null,null,null,null,null,null,null,null,null,null,null,10.475,null,null,null,null,"","",null,0,0,0,0,0,""]
[4,321,3,3,"Clear 10#","LEADERS, TIPPETS AND BACKING","  FLY LINE BACKING - DACRON - ORANGE","607705","","20# 3000 yd      ",null,"840309108713","1","EACH",139.94999999999999,69.974999999999994,62.977499999999999,55.98,null,null,null,null,null,null,null,null,null,null,null,null,null,null,null,null,null,69.974999999999994,null,null,null,null,"","",null,0,0,0,0,0,""]
[4,321,4,3,"Clear 12#","LEADERS, TIPPETS AND BACKING","  FLY LINE BACKING - DACRON - ORANGE","778474","","20# 5000 yd      ",null,"840309109390","1","EACH",169.95,84.974999999999994,76.477499999999992,67.98,null,null,null,null,null,null,null,null,null,null,null,null,null,null,null,null,null,84.974999999999994,null,null,null,null,"","",null,0,0,0,0,0,""]
[4,321,5,3,"Clear 16 lb","LEADERS, TIPPETS AND BACKING","  FLY LINE BACKING - DACRON - ORANGE","607712","","30# 100 yd               MOQ=6      ",null,"840309109482","6","EACH",9.9499999999999993,4.9749999999999996,4.4775,3.98,null,null,null,null,null,null,null,null,null,null,null,null,null,null,null,null,null,4.9749999999999996,null,null,null,null,"","",null,0,0,0,0,0,""]
[4,321,6,3,"Clear 20#","LEADERS, TIPPETS AND BACKING","  FLY LINE BACKING - DACRON - ORANGE","607729","","30# 250 yd               MOQ=6      ",null,"840309109543","6","EACH",22.95,11.475,10.327500000000001,9.18,null,null,null,null,null,null,null,null,null,null,null,null,null,null,null,null,null,11.475,null,null,null,null,"","",null,0,0,0,0,0,""]
[4,321,7,3,"Clear 25#","LEADERS, TIPPETS AND BACKING","  FLY LINE BACKING - DACRON - ORANGE","607743","","30# 3000 yd      ",null,"840309108720","1","EACH",159.94999999999999,79.974999999999994,71.977499999999992,63.98,null,null,null,null,null,null,null,null,null,null,null,null,null,null,null,null,null,79.974999999999994,null,null,null,null,"","",null,0,0,0,0,0,""]
[4,321,8,3,"Clear 30#","LEADERS, TIPPETS AND BACKING","  FLY LINE BACKING - DACRON - ORANGE","778504","","30# 5000 yd      ",null,"840309109420","1","EACH",179.95,89.974999999999994,80.977499999999992,71.98,null,null,null,null,null,null,null,null,null,null,null,null,null,null,null,null,null,89.974999999999994,null,null,null,null,"","",null,0,0,0,0,0,""]
[4,322,null,2,"\u0001","LEADERS, TIPPETS AND BACKING","  FLY LINE BACKING - DACRON - YELLOW","FLY LINE BACKING - DACRON - YELLOW",null,null,null,null,null,null,null,null,null,null,null,null,null,null,null,null,null,null,null,null,null,null,null,null,null,null,null,null,null,null,null,null,"",""]
[4,322,1,3,"Clear 0X","LEADERS, TIPPETS AND BACKING","  FLY LINE BACKING - DACRON - YELLOW","662766","","20# 100 yd               MOQ=6      ",null,"840309109444","6","EACH",8.9499999999999993,4.4749999999999996,4.0274999999999999,3.58,null,null,null,null,null,null,null,null,null,null,null,null,null,null,null,null,null,{"$f":"IF(OR(ISBLANK($L784),$AW$3=0),\" - \",OFFSET(O784,0,$AW$3,1,1))","v":4.4749999999999996},null,null,null,null,"","",null,{"$f":"IF(LEN($AJ784)>0,$AJ784*AK784,\"\")","v":0},0,0,0,{"$f":"COUNT(AK784:AN784)","v":0},{"$f":"IF($AV784<>0,ROW($AV$11),\"\")","v":""}]
[4,322,2,3,"Clear 1X","LEADERS, TIPPETS AND BACKING","  FLY LINE BACKING - DACRON - YELLOW","704879","","20# 250 yd               MOQ=6      ",null,"840309109505","6","EACH",20.95,10.475,9.4275000000000002,8.3800000000000008,null,null,null,null,null,null,null,null,null,null,null,null,null,null,null,null,null,10.475,null,null,null,null,"","",null,0,0,0,0,0,""]
[4,322,3,3,"Clear 2X","LEADERS, TIPPETS AND BACKING","  FLY LINE BACKING - DACRON - YELLOW","704893","","20# 1000 yd      ",null,"840309108966","1","EACH",54.95,27.475000000000001,24.727500000000003,21.980000000000004,null,null,null,null,null,null,null,null,null,null,null,null,null,null,null,null,null,27.475000000000001,null,null,null,null,"","",null,0,0,0,0,0,""]
[4,322,4,3,"Clear 3X","LEADERS, TIPPETS AND BACKING","  FLY LINE BACKING - DACRON - YELLOW","704916","","20# 3000 yd      ",null,"840309108980","1","EACH",139.94999999999999,69.974999999999994,62.977499999999999,55.98,null,null,null,null,null,null,null,null,null,null,null,null,null,null,null,null,null,69.974999999999994,null,null,null,null,"","",null,0,0,0,0,0,""]
[4,322,5,3,"Clear 4X","LEADERS, TIPPETS AND BACKING","  FLY LINE BACKING - DACRON - YELLOW","778467","","20# 5000 yd      ",null,"840309109383","1","EACH",169.95,84.974999999999994,76.477499999999992,67.98,null,null,null,null,null,null,null,null,null,null,null,null,null,null,null,null,null,84.974999999999994,null,null,null,null,"","",null,0,0,0,0,0,""]
[4,322,6,3,"Clear 5X","LEADERS, TIPPETS AND BACKING","  FLY LINE BACKING - DACRON - YELLOW","662773","","30# 100 yd               MOQ=6      ",null,"840309109475","6","EACH",9.9499999999999993,4.9749999999999996,4.4775,3.98,null,null,null,null,null,null,null,null,null,null,null,null,null,null,null,null,null,4.9749999999999996,null,null,null,null,"","",null,0,0,0,0,0,""]
[4,322,7,3,"Clear 6X","LEADERS, TIPPETS AND BACKING","  FLY LINE BACKING - DACRON - YELLOW","704886","","30# 250 yd               MOQ=6      ",null,"840309109536","6","EACH",22.95,11.475,10.327500000000001,9.18,null,null,null,null,null,null,null,null,null,null,null,null,null,null,null,null,null,11.475,null,null,null,null,"","",null,0,0,0,0,0,""]
[4,322,8,3,"Clear 7X","LEADERS, TIPPETS AND BACKING","  FLY LINE BACKING - DACRON - YELLOW","704909","","30# 1000 yd      ",null,"840309108973","1","EACH",64.95,32.475000000000001,29.227500000000003,25.980000000000004,null,null,null,null,null,null,null,null,null,null,null,null,null,null,null,null,null,32.475000000000001,null,null,null,null,"","",null,0,0,0,0,0,""]
[4,322,9,3,"\u0001","LEADERS, TIPPETS AND BACKING","  FLY LINE BACKING - DACRON - YELLOW","704923","","30# 3000 yd      ",null,"840309108997","1","EACH",159.94999999999999,79.974999999999994,71.977499999999992,63.98,null,null,null,null,null,null,null,null,null,null,null,null,null,null,null,null,null,79.974999999999994,null,null,null,null,"","",null,0,0,0,0,0,""]
[4,322,10,3,"Clear 14# 25 m","LEADERS, TIPPETS AND BACKING","  FLY LINE BACKING - DACRON - YELLOW","778498","","30# 5000 yd      ",null,"840309109413","1","EACH",179.95,89.974999999999994,80.977499999999992,71.98,null,null,null,null,null,null,null,null,null,null,null,null,null,null,null,null,null,89.974999999999994,null,null,null,null,"","",null,0,0,0,0,0,""]
[5,0,null,1,null,"FLY REELS, SPOOLS AND OUTFITS",null,"FLY REELS, SPOOLS AND OUTFITS - Workbook Pages 70-73",null,null,null,null,null,null,null,null,null,null,null,null,null,null,null,null,null,null,null,null,null,null,null,null,null,null,null,null,null,null,null,null,"",""]
[5,400,null,2,"Clear 20# 25 m","FLY REELS, SPOOLS AND OUTFITS","SCIENTIFIC ANGLERS AMPERE VOLTAGE FLY REEL - BLACK NICKEL","SCIENTIFIC ANGLERS AMPERE VOLTAGE FLY REEL - BLACK NICKEL   *NEW*",null,null,null,null,null,null,null,null,null,null,null,null,null,null,null,null,null,null,null,null,null,null,null,null,null,null,null,null,null,null,null,null,"",""]
[5,400,1,3,"Clear 22# 25 m","FLY REELS, SPOOLS AND OUTFITS","SCIENTIFIC ANGLERS AMPERE VOLTAGE FLY REEL - BLACK NICKEL",123969,null,"AMPERE VOLTAGE II -  REEL - BLACK NICKEL",null,840309123969,"1","EACH",205,123,112.75000000000001,102.5,null,null,null,null,null,null,null,null,null,null,null,null,null,null,null,null,null,{"$f":"IF(OR(ISBLANK($L796),$AW$3=0),\" - \",OFFSET(O796,0,$AW$3,1,1))","v":123},null,null,null,null,"","",null,0,0,0,0,0,""]
[5,400,2,3,"Clear 25# 25 m","FLY REELS, SPOOLS AND OUTFITS","SCIENTIFIC ANGLERS AMPERE VOLTAGE FLY REEL - BLACK NICKEL",123938,null,"AMPERE VOLTAGE III - REEL - BLACK NICKEL",null,840309123938,"1","EACH",215,129,118.25000000000001,107.5,null,null,null,null,null,null,null,null,null,null,null,null,null,null,null,null,null,{"$f":"IF(OR(ISBLANK($L797),$AW$3=0),\" - \",OFFSET(O797,0,$AW$3,1,1))","v":129},null,null,null,null,"","",null,0,0,0,0,0,""]
[5,400,3,3,"Clear 30#","FLY REELS, SPOOLS AND OUTFITS","SCIENTIFIC ANGLERS AMPERE VOLTAGE FLY REEL - BLACK NICKEL",123945,null,"AMPERE VOLTAGE IV - REEL - BLACK NICKEL",null,840309123945,"1","EACH",225,135,123.75000000000001,112.5,null,null,null,null,null,null,null,null,null,null,null,null,null,null,null,null,null,{"$f":"IF(OR(ISBLANK($L798),$AW$3=0),\" - \",OFFSET(O798,0,$AW$3,1,1))","v":135},null,null,null,null,{"$f":"IF($AV798=0,\"\",SUM(AK798:AN798))","v":""},{"$f":"IF($AV798>0,SUM(AR798:AU798),\"\")","v":""},null,{"$f":"IF(LEN($AJ798)>0,$AJ798*AK798,\"\")","v":0},{"$f":"IF(LEN($AJ798)>0,$AJ798*AL798,\"\")","v":0},{"$f":"IF(LEN($AJ798)>0,$AJ798*AM798,\"\")","v":0},{"$f":"IF(LEN($AJ798)>0,$AJ798*AN798,\"\")","v":0},{"$f":"COUNT(AK798:AN798)","v":0},""]
[5,400,4,3,"Clear 30#","FLY REELS, SPOOLS AND OUTFITS","SCIENTIFIC ANGLERS AMPERE VOLTAGE FLY REEL - BLACK NICKEL",123952,null,"AMPERE VOLTAGE V -  REEL - BLACK NICKEL",null,840309123952,1,"EACH",235,141,129.25,117.5,null,null,null,null,null,null,null,null,null,null,null,null,null,null,null,null,null,{"$f":"IF(OR(ISBLANK($L799),$AW$3=0),\" - \",OFFSET(O799,0,$AW$3,1,1))","v":141},null,null,null,null,"","",null,0,0,0,0,0,""]
[5,401,null,2,"Clear 35#","FLY REELS, SPOOLS AND OUTFITS","SCIENTIFIC ANGLERS AMPERE VOLTAGE SPARE SPOOL - BLACK NICKEL","SCIENTIFIC ANGLERS AMPERE VOLTAGE SPARE SPOOL - BLACK NICKEL   *NEW*",null,null,null,null,null,null,null,null,null,null,null,null,null,null,null,null,null,null,null,null,null,null,null,null,null,null,null,null,null,null,null,null,"",""]
[5,401,1,3,"Clear 40# 20 m","FLY REELS, SPOOLS AND OUTFITS","SCIENTIFIC ANGLERS AMPERE VOLTAGE SPARE SPOOL - BLACK NICKEL",124058,null,"AMPERE VOLTAGE II - SPOOL",null,840309124058,"1","EACH",130,78,71.5,65,null,null,null,null,null,null,null,null,null,null,null,null,null,null,null,null,null,{"$f":"IF(OR(ISBLANK($L801),$AW$3=0),\" - \",OFFSET(O801,0,$AW$3,1,1))","v":78},null,null,null,null,"","",null,{"$f":"IF(LEN($AJ801)>0,$AJ801*AK801,\"\")","v":0},0,0,0,0,""]
[5,401,2,3,"\u0001","FLY REELS, SPOOLS AND OUTFITS","SCIENTIFIC ANGLERS AMPERE VOLTAGE SPARE SPOOL - BLACK NICKEL",124027,null,"AMPERE VOLTAGE III - SPOOL",null,840309124027,"1","EACH",140,84,77,70,null,null,null,null,null,null,null,null,null,null,null,null,null,null,null,null,null,{"$f":"IF(OR(ISBLANK($L802),$AW$3=0),\" - \",OFFSET(O802,0,$AW$3,1,1))","v":84},null,null,null,null,"","",null,0,0,0,0,0,""]
[5,401,3,3," 10 ft 60 Grains","FLY REELS, SPOOLS AND OUTFITS","SCIENTIFIC ANGLERS AMPERE VOLTAGE SPARE SPOOL - BLACK NICKEL",124034,null,"AMPERE VOLTAGE IV - SPOOL",null,840309124034,"1","EACH",150,90,82.5,75,null,null,null,null,null,null,null,null,null,null,null,null,null,null,null,null,null,{"$f":"IF(OR(ISBLANK($L803),$AW$3=0),\" - \",OFFSET(O803,0,$AW$3,1,1))","v":90},null,null,null,null,{"$f":"IF($AV803=0,\"\",SUM(AK803:AN803))","v":""},{"$f":"IF($AV803>0,SUM(AR803:AU803),\"\")","v":""},null,{"$f":"IF(LEN($AJ803)>0,$AJ803*AK803,\"\")","v":0},{"$f":"IF(LEN($AJ803)>0,$AJ803*AL803,\"\")","v":0},{"$f":"IF(LEN($AJ803)>0,$AJ803*AM803,\"\")","v":0},{"$f":"IF(LEN($AJ803)>0,$AJ803*AN803,\"\")","v":0},{"$f":"COUNT(AK803:AN803)","v":0},{"$f":"IF($AV803<>0,ROW($AV$11),\"\")","v":""}]
[5,401,4,3," 10 ft 60 Grains","FLY REELS, SPOOLS AND OUTFITS","SCIENTIFIC ANGLERS AMPERE VOLTAGE SPARE SPOOL - BLACK NICKEL",124041,null,"AMPERE VOLTAGE V - SPOOL",null,840309124041,1,"EACH",160,96,88,80,null,null,null,null,null,null,null,null,null,null,null,null,null,null,null,null,null,{"$f":"IF(OR(ISBLANK($L804),$AW$3=0),\" - \",OFFSET(O804,0,$AW$3,1,1))","v":96},null,null,null,null,"","",null,0,0,0,0,{"$f":"COUNT(AK804:AN804)","v":0},{"$f":"IF($AV804<>0,ROW($AV$11),\"\")","v":""}]
[5,402,null,2,"Clear 35#","FLY REELS, SPOOLS AND OUTFITS","SCIENTIFIC ANGLERS AMPERE ELECTRON FLY REEL - GLOSS BLACK","SCIENTIFIC ANGLERS AMPERE ELECTRON FLY REEL - GLOSS BLACK   *NEW*",null,null,null,null,null,null,null,null,null,null,null,null,null,null,null,null,null,null,null,null,null,null,null,null,null,null,null,null,null,null,null,null,{"$f":"IF($AV805=0,\"\",SUM(AK805:AN805))","v":""},{"$f":"IF($AV805>0,SUM(AR805:AU805),\"\")","v":""}]
[5,402,1,3,"Clear 40# 20 m","FLY REELS, SPOOLS AND OUTFITS","SCIENTIFIC ANGLERS AMPERE ELECTRON FLY REEL - GLOSS BLACK",123891,null,"AMPERE ELECTRON II -REEL - GLOSS BLACK",null,840309123891,"1","EACH",165,99,90.750000000000014,82.5,null,null,null,null,null,null,null,null,null,null,null,null,null,null,null,null,null,{"$f":"IF(OR(ISBLANK($L806),$AW$3=0),\" - \",OFFSET(O806,0,$AW$3,1,1))","v":99},null,null,null,null,"","",null,{"$f":"IF(LEN($AJ806)>0,$AJ806*AK806,\"\")","v":0},{"$f":"IF(LEN($AJ806)>0,$AJ806*AL806,\"\")","v":0},{"$f":"IF(LEN($AJ806)>0,$AJ806*AM806,\"\")","v":0},{"$f":"IF(LEN($AJ806)>0,$AJ806*AN806,\"\")","v":0},{"$f":"COUNT(AK806:AN806)","v":0},{"$f":"IF($AV806<>0,ROW($AV$11),\"\")","v":""}]
[5,402,2,3,"\u0001","FLY REELS, SPOOLS AND OUTFITS","SCIENTIFIC ANGLERS AMPERE ELECTRON FLY REEL - GLOSS BLACK",123907,null,"AMPERE ELECTRON III - REEL - GLOSS BLACK",null,840309123907,"1","EACH",175,105,96.250000000000014,87.5,null,null,null,null,null,null,null,null,null,null,null,null,null,null,null,null,null,{"$f":"IF(OR(ISBLANK($L807),$AW$3=0),\" - \",OFFSET(O807,0,$AW$3,1,1))","v":105},null,null,null,null,"","",null,0,0,0,0,0,""]
[5,402,3,3," 10 ft 60 Grains","FLY REELS, SPOOLS AND OUTFITS","SCIENTIFIC ANGLERS AMPERE ELECTRON FLY REEL - GLOSS BLACK",123914,null,"AMPERE ELECTRON IV -REEL - GLOSS BLACK",null,840309123914,"1","EACH",185,111,101.75000000000001,92.5,null,null,null,null,null,null,null,null,null,null,null,null,null,null,null,null,null,{"$f":"IF(OR(ISBLANK($L808),$AW$3=0),\" - \",OFFSET(O808,0,$AW$3,1,1))","v":111},null,null,null,null,"","",null,0,0,0,0,{"$f":"COUNT(AK808:AN808)","v":0},{"$f":"IF($AV808<>0,ROW($AV$11),\"\")","v":""}]
[5,403,null,2,"Clear 35#","FLY REELS, SPOOLS AND OUTFITS","SCIENTIFIC ANGLERS AMPERE ELECTRON SPARE SPOOL - GLOSS BLACK","SCIENTIFIC ANGLERS AMPERE ELECTRON SPARE SPOOL - GLOSS BLACK   *NEW*",null,null,null,null,null,null,null,null,null,null,null,null,null,null,null,null,null,null,null,null,null,null,null,null,null,null,null,null,null,null,null,null,{"$f":"IF($AV809=0,\"\",SUM(AK809:AN809))","v":""},{"$f":"IF($AV809>0,SUM(AR809:AU809),\"\")","v":""}]
[5,403,1,3,"Clear 40# 20 m","FLY REELS, SPOOLS AND OUTFITS","SCIENTIFIC ANGLERS AMPERE ELECTRON SPARE SPOOL - GLOSS BLACK",123990,null,"AMPERE ELECTRON II -  SPOOL - GLOSS BLACK",null,840309123990,"1","EACH",90,54,49.500000000000007,45,null,null,null,null,null,null,null,null,null,null,null,null,null,null,null,null,null,{"$f":"IF(OR(ISBLANK($L810),$AW$3=0),\" - \",OFFSET(O810,0,$AW$3,1,1))","v":54},null,null,null,null,"","",null,{"$f":"IF(LEN($AJ810)>0,$AJ810*AK810,\"\")","v":0},{"$f":"IF(LEN($AJ810)>0,$AJ810*AL810,\"\")","v":0},{"$f":"IF(LEN($AJ810)>0,$AJ810*AM810,\"\")","v":0},{"$f":"IF(LEN($AJ810)>0,$AJ810*AN810,\"\")","v":0},{"$f":"COUNT(AK810:AN810)","v":0},""]
[5,403,2,3,"\u0001","FLY REELS, SPOOLS AND OUTFITS","SCIENTIFIC ANGLERS AMPERE ELECTRON SPARE SPOOL - GLOSS BLACK",124003,null,"AMPERE ELECTRON III -SPOOL - GLOSS BLACK",null,840309124003,"1","EACH",95,57,52.250000000000007,47.5,null,null,null,null,null,null,null,null,null,null,null,null,null,null,null,null,null,{"$f":"IF(OR(ISBLANK($L811),$AW$3=0),\" - \",OFFSET(O811,0,$AW$3,1,1))","v":57},null,null,null,null,"","",null,0,0,0,0,0,""]
[5,403,3,3," 10 ft 60 Grains","FLY REELS, SPOOLS AND OUTFITS","SCIENTIFIC ANGLERS AMPERE ELECTRON SPARE SPOOL - GLOSS BLACK",124010,null,"AMPERE ELECTRON IV -SPOOL - GLOSS BLACK",null,840309124010,"1","EACH",100,60,55.000000000000007,50,null,null,null,null,null,null,null,null,null,null,null,null,null,null,null,null,null,{"$f":"IF(OR(ISBLANK($L812),$AW$3=0),\" - \",OFFSET(O812,0,$AW$3,1,1))","v":60},null,null,null,null,"","",null,0,0,0,0,{"$f":"COUNT(AK812:AN812)","v":0},{"$f":"IF($AV812<>0,ROW($AV$11),\"\")","v":""}]
[5,404,null,2,"Clear 35#","FLY REELS, SPOOLS AND OUTFITS","SCIENTIFIC ANGLERS AMPRERE FLY REEL - BLACK","SCIENTIFIC ANGLERS AMPRERE FLY REEL - BLACK   *NEW*",null,null,null,null,null,null,null,null,null,null,null,null,null,null,null,null,null,null,null,null,null,null,null,null,null,null,null,null,null,null,null,null,{"$f":"IF($AV813=0,\"\",SUM(AK813:AN813))","v":""},{"$f":"IF($AV813>0,SUM(AR813:AU813),\"\")","v":""}]
[5,404,1,3,"Clear 40# 20 m","FLY REELS, SPOOLS AND OUTFITS","SCIENTIFIC ANGLERS AMPRERE FLY REEL - BLACK",123877,"","AMPERE II - REEL - BLACK",null,840309123877,"1","EACH",89.95,53.97,49.472500000000004,44.975000000000001,null,null,null,null,null,null,null,null,null,null,null,null,null,null,null,null,null,{"$f":"IF(OR(ISBLANK($L814),$AW$3=0),\" - \",OFFSET(O814,0,$AW$3,1,1))","v":53.97},null,null,null,null,"","",null,{"$f":"IF(LEN($AJ814)>0,$AJ814*AK814,\"\")","v":0},{"$f":"IF(LEN($AJ814)>0,$AJ814*AL814,\"\")","v":0},{"$f":"IF(LEN($AJ814)>0,$AJ814*AM814,\"\")","v":0},{"$f":"IF(LEN($AJ814)>0,$AJ814*AN814,\"\")","v":0},{"$f":"COUNT(AK814:AN814)","v":0},{"$f":"IF($AV814<>0,ROW($AV$11),\"\")","v":""}]
[5,404,2,3,"\u0001","FLY REELS, SPOOLS AND OUTFITS","SCIENTIFIC ANGLERS AMPRERE FLY REEL - BLACK",123884,"","AMPERE IV - REEL - BLACK",null,840309123884,"1","EACH",99.95,59.97,54.972500000000004,49.975000000000001,null,null,null,null,null,null,null,null,null,null,null,null,null,null,null,null,null,{"$f":"IF(OR(ISBLANK($L815),$AW$3=0),\" - \",OFFSET(O815,0,$AW$3,1,1))","v":59.97},null,null,null,null,"","",null,0,0,0,0,0,""]
[5,404,null,2,"Clear 35#","FLY REELS, SPOOLS AND OUTFITS","SCIENTIFIC ANGLERS AMPRERE SPARE SPOOL - BLACK","SCIENTIFIC ANGLERS AMPRERE SPARE SPOOL - BLACK   *NEW*",null,null,null,null,null,null,null,null,null,null,null,null,null,null,null,null,null,null,null,null,null,null,null,null,null,null,null,null,null,null,null,null,{"$f":"IF($AV816=0,\"\",SUM(AK816:AN816))","v":""},{"$f":"IF($AV816>0,SUM(AR816:AU816),\"\")","v":""}]
[5,404,1,3,"Clear 40# 20 m","FLY REELS, SPOOLS AND OUTFITS","SCIENTIFIC ANGLERS AMPRERE SPARE SPOOL - BLACK",123976,"","AMPERE II - SPOOL - BLACK",null,840309123976,"1","EACH",54.95,32.97,30.222500000000004,27.475000000000001,null,null,null,null,null,null,null,null,null,null,null,null,null,null,null,null,null,{"$f":"IF(OR(ISBLANK($L817),$AW$3=0),\" - \",OFFSET(O817,0,$AW$3,1,1))","v":32.97},null,null,null,null,"","",null,{"$f":"IF(LEN($AJ817)>0,$AJ817*AK817,\"\")","v":0},{"$f":"IF(LEN($AJ817)>0,$AJ817*AL817,\"\")","v":0},{"$f":"IF(LEN($AJ817)>0,$AJ817*AM817,\"\")","v":0},{"$f":"IF(LEN($AJ817)>0,$AJ817*AN817,\"\")","v":0},{"$f":"COUNT(AK817:AN817)","v":0},""]
[5,404,2,3,"\u0001","FLY REELS, SPOOLS AND OUTFITS","SCIENTIFIC ANGLERS AMPRERE SPARE SPOOL - BLACK",123983,"","AMPERE IV - SPOOL - BLACK",null,840309123983,"1","EACH",59.95,35.97,32.972500000000004,29.975000000000001,null,null,null,null,null,null,null,null,null,null,null,null,null,null,null,null,null,{"$f":"IF(OR(ISBLANK($L818),$AW$3=0),\" - \",OFFSET(O818,0,$AW$3,1,1))","v":35.97},null,null,null,null,"","",null,0,0,0,0,0,""]
[5,405,null,2," 15 ft 90 Grains","FLY REELS, SPOOLS AND OUTFITS","  CONCEPT REEL","CONCEPT REEL   ",null,null,null,null,null,null,null,null,null,null,null,null,null,null,null,null,null,null,null,null,null,null,null,null,null,null,null,null,null,null,null,null,"",""]
[5,405,1,3,"\u0001","FLY REELS, SPOOLS AND OUTFITS","  CONCEPT REEL","777903","","Concept 2 - Disc Drag 58      ",null,"840309112215","1","EACH",33.950000000000003,20.37,18.670000000000002,16.98,null,null,null,null,null,null,null,null,null,null,null,null,null,null,null,null,null,{"$f":"IF(OR(ISBLANK($L820),$AW$3=0),\" - \",OFFSET(O820,0,$AW$3,1,1))","v":20.37},null,null,null,null,"","",null,0,0,0,0,{"$f":"COUNT(AK820:AN820)","v":0},{"$f":"IF($AV820<>0,ROW($AV$11),\"\")","v":""}]
[5,406,null,2,"Yellow 100 yd","FLY REELS, SPOOLS AND OUTFITS","  FLY FISHING OUTFITS","FLY FISHING OUTFITS   *NEW*",null,null,null,null,null,null,null,null,null,null,null,null,null,null,null,null,null,null,null,null,null,null,null,null,null,null,null,null,null,null,null,null,{"$f":"IF($AV821=0,\"\",SUM(AK821:AN821))","v":""},{"$f":"IF($AV821>0,SUM(AR821:AU821),\"\")","v":""}]
[5,406,2,3,"Yellow 250 yd","FLY REELS, SPOOLS AND OUTFITS","  FLY FISHING OUTFITS",120364,"","Species Specific Kit - Bass 7/8wt 4pc  ",null,840309120364,4,"EACH",119.95,71.97,65.972500000000011,59.975000000000001,null,null,null,null,null,null,null,null,null,null,null,null,null,null,null,null,null,{"$f":"IF(OR(ISBLANK($L822),$AW$3=0),\" - \",OFFSET(O822,0,$AW$3,1,1))","v":71.97},null,null,null,null,{"$f":"IF($AV822=0,\"\",SUM(AK822:AN822))","v":""},{"$f":"IF($AV822>0,SUM(AR822:AU822),\"\")","v":""},null,{"$f":"IF(LEN($AJ822)>0,$AJ822*AK822,\"\")","v":0},{"$f":"IF(LEN($AJ822)>0,$AJ822*AL822,\"\")","v":0},{"$f":"IF(LEN($AJ822)>0,$AJ822*AM822,\"\")","v":0},{"$f":"IF(LEN($AJ822)>0,$AJ822*AN822,\"\")","v":0},{"$f":"COUNT(AK822:AN822)","v":0},{"$f":"IF($AV822<>0,ROW($AV$11),\"\")","v":""}]
[5,406,2,3,"Yellow 250 yd","FLY REELS, SPOOLS AND OUTFITS","  FLY FISHING OUTFITS",104579,"","Species Specific Kit - Trout-Bass 6/7 wt 4pc          ",null,840309104579,4,"EACH",119.95,71.97,65.972500000000011,59.975000000000001,null,null,null,null,null,null,null,null,null,null,null,null,null,null,null,null,null,{"$f":"IF(OR(ISBLANK($L823),$AW$3=0),\" - \",OFFSET(O823,0,$AW$3,1,1))","v":71.97},null,null,null,null,"","",null,{"$f":"IF(LEN($AJ823)>0,$AJ823*AK823,\"\")","v":0},0,0,0,{"$f":"COUNT(AK823:AN823)","v":0},""]
[5,406,3,3,"Yellow 500 yd","FLY REELS, SPOOLS AND OUTFITS","  FLY FISHING OUTFITS",103435,"","Species Specific Kit - Panfish 5/6 wt 4pc     ",null,840309103435,4,"EACH",119.95,71.97,65.972500000000011,59.975000000000001,null,null,null,null,null,null,null,null,null,null,null,null,null,null,null,null,null,{"$f":"IF(OR(ISBLANK($L824),$AW$3=0),\" - \",OFFSET(O824,0,$AW$3,1,1))","v":71.97},null,null,null,null,"","",null,0,0,0,0,0,""]
[5,406,4,3,"Yellow 1000 yd","FLY REELS, SPOOLS AND OUTFITS","  FLY FISHING OUTFITS",120371,"","Species Specific Kit - Saltwater 7/8 wt 4pc     ",null,840309120371,4,"EACH",119.95,71.97,65.972500000000011,59.975000000000001,null,null,null,null,null,null,null,null,null,null,null,null,null,null,null,null,null,{"$f":"IF(OR(ISBLANK($L825),$AW$3=0),\" - \",OFFSET(O825,0,$AW$3,1,1))","v":71.97},null,null,null,null,"","",null,0,0,0,0,0,""]
[5,406,5,3,"Yellow 3000 yd","FLY REELS, SPOOLS AND OUTFITS","  FLY FISHING OUTFITS",120357,"","Species Specific Kit - Trout 5/6 wt 4pc     ",null,840309120357,4,"EACH",119.95,71.97,65.972500000000011,59.975000000000001,null,null,null,null,null,null,null,null,null,null,null,null,null,null,null,null,null,{"$f":"IF(OR(ISBLANK($L826),$AW$3=0),\" - \",OFFSET(O826,0,$AW$3,1,1))","v":71.97},null,null,null,null,"","",null,0,0,0,0,0,""]
[5,450,null,2,"Yellow 100 yd","FLY REELS, SPOOLS AND OUTFITS","  AMPERE FLY FISHING OUTFITS","AMPERE FLY FISHING OUTFITS   *NEW*",null,null,null,null,null,null,null,null,null,null,null,null,null,null,null,null,null,null,null,null,null,null,null,null,null,null,null,null,null,null,null,null,{"$f":"IF($AV827=0,\"\",SUM(AK827:AN827))","v":""},{"$f":"IF($AV827>0,SUM(AR827:AU827),\"\")","v":""}]
[5,450,2,3,"Yellow 250 yd","FLY REELS, SPOOLS AND OUTFITS","  FLY FISHING OUTFITS",123624,"","Ampere Outfit - 905-4",null,840309123624,4,"EACH",199.95,119.96999999999998,109.9725,99.974999999999994,null,null,null,null,null,null,null,null,null,null,null,null,null,null,null,null,null,{"$f":"IF(OR(ISBLANK($L828),$AW$3=0),\" - \",OFFSET(O828,0,$AW$3,1,1))","v":119.96999999999998},null,null,null,null,{"$f":"IF($AV828=0,\"\",SUM(AK828:AN828))","v":""},"",null,{"$f":"IF(LEN($AJ828)>0,$AJ828*AK828,\"\")","v":0},{"$f":"IF(LEN($AJ828)>0,$AJ828*AL828,\"\")","v":0},{"$f":"IF(LEN($AJ828)>0,$AJ828*AM828,\"\")","v":0},{"$f":"IF(LEN($AJ828)>0,$AJ828*AN828,\"\")","v":0},{"$f":"COUNT(AK828:AN828)","v":0},""]
[5,450,3,3,"Yellow 250 yd","FLY REELS, SPOOLS AND OUTFITS","  FLY FISHING OUTFITS",123631,"","Ampere Outfit - 906-4",null,840309123631,4,"EACH",199.95,119.96999999999998,109.9725,99.974999999999994,null,null,null,null,null,null,null,null,null,null,null,null,null,null,null,null,null,{"$f":"IF(OR(ISBLANK($L829),$AW$3=0),\" - \",OFFSET(O829,0,$AW$3,1,1))","v":119.96999999999998},null,null,null,null,{"$f":"IF($AV829=0,\"\",SUM(AK829:AN829))","v":""},"",null,0,0,0,0,0,""]
[5,450,4,3,"Yellow 500 yd","FLY REELS, SPOOLS AND OUTFITS","  FLY FISHING OUTFITS",123648,"","Ampere Outfit - 907-4",null,840309123648,4,"EACH",219.95,131.97,120.9725,109.97499999999999,null,null,null,null,null,null,null,null,null,null,null,null,null,null,null,null,null,{"$f":"IF(OR(ISBLANK($L830),$AW$3=0),\" - \",OFFSET(O830,0,$AW$3,1,1))","v":131.97},null,null,null,null,"","",null,0,0,0,0,0,""]
[5,450,5,3,"Yellow 1000 yd","FLY REELS, SPOOLS AND OUTFITS","  FLY FISHING OUTFITS",123655,"","Ampere Outfit - 908-4",null,840309123655,4,"EACH",219.95,131.97,120.9725,109.97499999999999,null,null,null,null,null,null,null,null,null,null,null,null,null,null,null,null,null,{"$f":"IF(OR(ISBLANK($L831),$AW$3=0),\" - \",OFFSET(O831,0,$AW$3,1,1))","v":131.97},null,null,null,null,"","",null,0,0,0,0,0,""]
[5,450,6,3,"Yellow 3000 yd","FLY REELS, SPOOLS AND OUTFITS","  FLY FISHING OUTFITS",123622,"","Ampere Outfit - 909-4",null,840309123622,4,"EACH",229.95,137.97,126.47250000000001,114.97499999999999,null,null,null,null,null,null,null,null,null,null,null,null,null,null,null,null,null,{"$f":"IF(OR(ISBLANK($L832),$AW$3=0),\" - \",OFFSET(O832,0,$AW$3,1,1))","v":137.97},null,null,null,null,"","",null,0,0,0,0,0,""]
[null,450,7,3,"Yellow 3000 yd","FLY REELS, SPOOLS AND OUTFITS","  FLY FISHING OUTFITS",123679,null,"Ampere Outfit - 9010-4",null,840309123679,4,"EACH",229.95,137.97,126.47250000000001,114.97499999999999,null,null,null,null,null,null,null,null,null,null,null,null,null,null,null,null,null,137.97,null,null,null,null,"","",null,{"$f":"IF(LEN($AJ833)>0,$AJ833*AK833,\"\")","v":0},{"$f":"IF(LEN($AJ833)>0,$AJ833*AL833,\"\")","v":0},{"$f":"IF(LEN($AJ833)>0,$AJ833*AM833,\"\")","v":0},{"$f":"IF(LEN($AJ833)>0,$AJ833*AN833,\"\")","v":0},{"$f":"COUNT(AK833:AN833)","v":0}]
[6,0,6,1,null,"FLY BOXES AND FLY FISHING ACCESSORIES",null,"FLY BOXES AND FLY FISHING ACCESSORIES - Workbook pages 74-75",null,null,null,null,null,null,null,null,null,null,null,null,null,null,null,null,null,null,null,null,null,null,null,null,null,null,null,null,null,null,null,null,"",""]
[6,600,null,2,"Yellow 500 yd","FLY REELS, SPOOLS AND OUTFITS","  SCIENTIFIC ANGLERS(TM) WATERPROOF FLY BOXES","SCIENTIFIC ANGLERS(TM) WATERPROOF FLY BOXES",null,null,null,null,null,null,null,null,null,null,null,null,null,null,null,null,null,null,null,null,null,null,null,null,null,null,null,null,null,null,null,null,"",""]
[6,600,1,3,"Yellow 1000 yd","FLY REELS, SPOOLS AND OUTFITS","  SCIENTIFIC ANGLERS(TM) WATERPROOF FLY BOXES","191099","","Compact Nymph 270 Fly Box - Small - Red      ",null,"840309103565","1","EACH",25.95,15.57,14.27,12.98,null,null,null,null,null,null,null,null,null,null,null,null,null,null,null,null,null,{"$f":"IF(OR(ISBLANK($L836),$AW$3=0),\" - \",OFFSET(O836,0,$AW$3,1,1))","v":15.57},null,null,null,null,"","",null,0,0,0,0,0,""]
[6,600,2,3,"Yellow 3000 yd","FLY REELS, SPOOLS AND OUTFITS","  SCIENTIFIC ANGLERS(TM) WATERPROOF FLY BOXES","191037","","Compact 164 Angled Fly Box - Small - Yellow      ",null,"840309103527","1","EACH",24.95,14.97,13.72,12.48,null,null,null,null,null,null,null,null,null,null,null,null,null,null,null,null,null,14.97,null,null,null,null,"","",null,0,0,0,0,0,""]
[6,600,3,3,"\u0001","FLY REELS, SPOOLS AND OUTFITS","  SCIENTIFIC ANGLERS(TM) WATERPROOF FLY BOXES","185098","","Compact 216 Fly Box - Small - Metallic Blue      ",null,"840309113878","1","EACH",24.95,14.97,13.72,12.48,null,null,null,null,null,null,null,null,null,null,null,null,null,null,null,null,null,14.97,null,null,null,null,"","",null,0,0,0,0,0,""]
[6,600,4,3,"White  100 yd 20#","FLY REELS, SPOOLS AND OUTFITS","  SCIENTIFIC ANGLERS(TM) WATERPROOF FLY BOXES","185081","","Max 432 Fly Box - Small - Lime Green      ",null,"840309113861","1","EACH",26.95,16.170000000000002,14.82,13.48,null,null,null,null,null,null,null,null,null,null,null,null,null,null,null,null,null,16.170000000000002,null,null,null,null,"","",null,0,0,0,0,0,""]
[6,600,5,3,"White  250 yd 20#","FLY REELS, SPOOLS AND OUTFITS","  SCIENTIFIC ANGLERS(TM) WATERPROOF FLY BOXES","191051","","Max Nymph/Dry 446 Fly Box - Medium - Red      ",null,"840309103541","1","EACH",28.95,17.37,15.92,14.48,null,null,null,null,null,null,null,null,null,null,null,null,null,null,null,null,null,17.37,null,null,null,null,"","",null,0,0,0,0,0,""]
[6,600,6,3,"White 1000 yd","FLY REELS, SPOOLS AND OUTFITS","  SCIENTIFIC ANGLERS(TM) WATERPROOF FLY BOXES","191044","","Classic 176 Angled Fly Box - Medium - Yellow      ",null,"840309103534","1","EACH",27.95,16.77,15.37,13.98,null,null,null,null,null,null,null,null,null,null,null,null,null,null,null,null,null,16.77,null,null,null,null,"","",null,0,0,0,0,0,""]
[6,600,7,3,"White 3000 yd 20#","FLY REELS, SPOOLS AND OUTFITS","  SCIENTIFIC ANGLERS(TM) WATERPROOF FLY BOXES","191068","","Special Dry 516 Fly Box - Medium - Metallic Green      ",null,"840309103558","1","EACH",29.95,17.97,16.47,14.98,null,null,null,null,null,null,null,null,null,null,null,null,null,null,null,null,null,17.97,null,null,null,null,"","",null,0,0,0,0,0,""]
[6,600,8,3,"White 5000 yd 20#","FLY REELS, SPOOLS AND OUTFITS","  SCIENTIFIC ANGLERS(TM) WATERPROOF FLY BOXES","185722","","Classic 280 Fly Box - Medium - Metallic Blue      ",null,"840309113069","1","EACH",26.95,16.170000000000002,14.82,13.48,null,null,null,null,null,null,null,null,null,null,null,null,null,null,null,null,null,16.170000000000002,null,null,null,null,"","",null,0,0,0,0,0,""]
[6,600,9,3,"White  100 yd 30#","FLY REELS, SPOOLS AND OUTFITS","  SCIENTIFIC ANGLERS(TM) WATERPROOF FLY BOXES","185067","","Max 752 Fly Box - Medium - Lime Green      ",null,"840309113847","1","EACH",32.950000000000003,19.77,18.12,16.48,null,null,null,null,null,null,null,null,null,null,null,null,null,null,null,null,null,19.77,null,null,null,null,"","",null,0,0,0,0,0,""]
[6,600,10,3,"White  250 yd 30#","FLY REELS, SPOOLS AND OUTFITS","  SCIENTIFIC ANGLERS(TM) WATERPROOF FLY BOXES","185715","","Nymph 210 Fly Box - Medium - Orange      ",null,"840309113052","1","EACH",26.95,16.170000000000002,14.82,13.48,null,null,null,null,null,null,null,null,null,null,null,null,null,null,null,null,null,16.170000000000002,null,null,null,null,"","",null,0,0,0,0,0,""]
[6,600,11,3,"White 1000 yd 30#","FLY REELS, SPOOLS AND OUTFITS","  SCIENTIFIC ANGLERS(TM) WATERPROOF FLY BOXES","185074","","Streamer/Saltwater 72 Fly Box - Medium - Light Blue      ",null,"840309113854","1","EACH",26.95,16.170000000000002,14.82,13.48,null,null,null,null,null,null,null,null,null,null,null,null,null,null,null,null,null,16.170000000000002,null,null,null,null,"","",null,{"$f":"IF(LEN($AJ846)>0,$AJ846*AK846,\"\")","v":0},0,0,0,0,""]
[6,600,12,3,"White 3000 yd 30#","FLY REELS, SPOOLS AND OUTFITS","  SCIENTIFIC ANGLERS(TM) WATERPROOF FLY BOXES","185104","","Big Fly 116 Flat Fly Box - Large - Mint Green      ",null,"840309113885","1","EACH",32.950000000000003,19.77,18.12,16.48,null,null,null,null,null,null,null,null,null,null,null,null,null,null,null,null,null,19.77,null,null,null,null,"","",null,0,0,0,0,0,""]
[6,600,13,3,"White 5000 yd 30#","FLY REELS, SPOOLS AND OUTFITS","  SCIENTIFIC ANGLERS(TM) WATERPROOF FLY BOXES","185050","","Big Fly 116 Angled Fly Box - Large - Light Blue      ",null,"840309113830","1","EACH",32.950000000000003,19.77,18.12,16.48,null,null,null,null,null,null,null,null,null,null,null,null,null,null,null,null,null,19.77,null,null,null,null,"","",null,0,0,0,0,0,""]
[6,600,14,3,"\u0001","FLY REELS, SPOOLS AND OUTFITS","  SCIENTIFIC ANGLERS(TM) WATERPROOF FLY BOXES","857063","","System X Waterproof Fly Box - Green     MOQ=6      ",null,"840309110969","6","EACH",22.95,13.77,12.62,11.48,null,null,null,null,null,null,null,null,null,null,null,null,null,null,null,null,null,{"$f":"IF(OR(ISBLANK($L849),$AW$3=0),\" - \",OFFSET(O849,0,$AW$3,1,1))","v":13.77},null,null,null,null,{"$f":"IF($AV849=0,\"\",SUM(AK849:AN849))","v":""},{"$f":"IF($AV849>0,SUM(AR849:AU849),\"\")","v":""},null,{"$f":"IF(LEN($AJ849)>0,$AJ849*AK849,\"\")","v":0},{"$f":"IF(LEN($AJ849)>0,$AJ849*AL849,\"\")","v":0},{"$f":"IF(LEN($AJ849)>0,$AJ849*AM849,\"\")","v":0},{"$f":"IF(LEN($AJ849)>0,$AJ849*AN849,\"\")","v":0},{"$f":"COUNT(AK849:AN849)","v":0},""]
[6,600,15,3,"\u0001","FLY REELS, SPOOLS AND OUTFITS","  SCIENTIFIC ANGLERS(TM) WATERPROOF FLY BOXES",122603,null,"Boat Box    *NEW*",null,840309122603,1,"EACH",49.95,29.97,27.472500000000004,24.975000000000001,null,null,null,null,null,null,null,null,null,null,null,null,null,null,null,null,null,29.97,null,null,null,null,"","",null,0,0,0,0,0,""]
[6,601,null,2,"Orange  100 yd 20#","FLY REELS, SPOOLS AND OUTFITS","  SCIENTIFIC ANGLERS(TM) ACCESSORIES   *NEW*","SCIENTIFIC ANGLERS(TM) ACCESSORIES - Workbook Pages 76-79",null,null,null,null,null,null,null,null,null,null,null,null,null,null,null,null,null,null,null,null,null,null,null,null,null,null,null,null,null,null,null,null,"",""]
[6,601,2,3,"Orange  250 yd 20#","FLY REELS, SPOOLS AND OUTFITS","  SCIENTIFIC ANGLERS(TM) ACCESSORIES   *NEW*",120678,null,"Groove Practice Rod",null,"840309120678","1","EACH",39.950000000000003,23.970000000000002,21.972500000000004,19.975000000000001,null,null,null,null,null,null,null,null,null,null,null,null,null,null,null,null,null,{"$f":"IF(OR(ISBLANK($L852),$AW$3=0),\" - \",OFFSET(O852,0,$AW$3,1,1))","v":23.970000000000002},null,null,null,null,"","",null,{"$f":"IF(LEN($AJ852)>0,$AJ852*AK852,\"\")","v":0},0,0,0,{"$f":"COUNT(AK852:AN852)","v":0},{"$f":"IF($AV852<>0,ROW($AV$11),\"\")","v":""}]
[6,601,3,3,"Orange 3000 yd 20#","FLY REELS, SPOOLS AND OUTFITS","  SCIENTIFIC ANGLERS(TM) ACCESSORIES   *NEW*",120685,null,"Power Jaw Scissor Forcep",null,"840309120685","1","EACH",19.96,11.976000000000001,10.978000000000002,9.98,null,null,null,null,null,null,null,null,null,null,null,null,null,null,null,null,null,11.976000000000001,null,null,null,null,"","",null,0,0,0,0,0,""]
[6,601,4,3,"Orange 5000 yd 20#","FLY REELS, SPOOLS AND OUTFITS","  SCIENTIFIC ANGLERS(TM) ACCESSORIES   *NEW*",120692,null,"Power Jaw Curved Forcep",null,"840309120692","1","EACH",16.95,10.17,9.3224999999999998,8.4749999999999996,null,null,null,null,null,null,null,null,null,null,null,null,null,null,null,null,null,10.17,null,null,null,null,"","",null,0,0,0,0,0,""]
[6,601,5,3,"Orange  100 yd 30#","FLY REELS, SPOOLS AND OUTFITS","  SCIENTIFIC ANGLERS(TM) ACCESSORIES   *NEW*",119870,null,"Zinger - Clip ",null,"840309119870","1","EACH",10.95,6.5699999999999994,6.0225,5.4749999999999996,null,null,null,null,null,null,null,null,null,null,null,null,null,null,null,null,null,6.5699999999999994,null,null,null,null,"","",null,0,0,0,0,0,""]
[6,601,6,3,"Orange  250 yd 30#","FLY REELS, SPOOLS AND OUTFITS","  SCIENTIFIC ANGLERS(TM) ACCESSORIES   *NEW*","775237","","Retractor  Large      ",null,840309109550,1,"EACH",8.9499999999999993,5.3699999999999992,4.9225000000000003,4.4749999999999996,null,null,null,null,null,null,null,null,null,null,null,null,null,null,null,null,null,5.3699999999999992,null,null,null,null,"","",null,0,0,0,0,0,""]
[6,601,7,3,"Orange 3000 yd 30#","FLY REELS, SPOOLS AND OUTFITS","  SCIENTIFIC ANGLERS(TM) ACCESSORIES   *NEW*",120715,null,"Magnetic Net Holder",null,840309120715,1,"EACH",24.95,14.969999999999999,13.7225,12.475,null,null,null,null,null,null,null,null,null,null,null,null,null,null,null,null,null,14.969999999999999,null,null,null,null,"","",null,0,0,0,0,0,""]
[6,601,8,3,"Orange 5000 yd 30#","FLY REELS, SPOOLS AND OUTFITS","  SCIENTIFIC ANGLERS(TM) ACCESSORIES   *NEW*",119887,null,"Lanyard",null,"840309119887",1,"EACH",39.950000000000003,23.970000000000002,21.972500000000004,19.975000000000001,null,null,null,null,null,null,null,null,null,null,null,null,null,null,null,null,null,23.970000000000002,null,null,null,null,"","",null,0,0,0,0,0,""]
[6,601,9,3,"\u0001","FLY REELS, SPOOLS AND OUTFITS","  SCIENTIFIC ANGLERS(TM) ACCESSORIES   *NEW*",124201,null,"Braided Loops - 3 Pack   *NEW*",null,840309124201,1,"EACH",4.95,2.97,2.7225000000000001,2.4750000000000001,null,null,null,null,null,null,null,null,null,null,null,null,null,null,null,null,null,2.97,null,null,null,null,"","",null,0,0,0,0,0,""]
[6,601,10,3,"Yellow  100 yd 20#","FLY REELS, SPOOLS AND OUTFITS","  SCIENTIFIC ANGLERS(TM) ACCESSORIES   *NEW*",103503,null,"Tippet Holder   *NEW*",null,"840309103503 ",1,"EACH",9.9499999999999993,5.97,5.4725000000000001,4.9749999999999996,null,null,null,null,null,null,null,null,null,null,null,null,null,null,null,null,null,5.97,null,null,null,null,"","",null,0,0,0,0,0,""]
[6,601,11,3,"Yellow  250 yd 20#","FLY REELS, SPOOLS AND OUTFITS","  SCIENTIFIC ANGLERS(TM) ACCESSORIES   *NEW*","776772","","Bottoms Up Floatant Holder        MOQ=6      ",null,"840309116244","6","EACH",4.95,2.97,2.7225000000000001,2.4750000000000001,null,null,null,null,null,null,null,null,null,null,null,null,null,null,null,null,null,2.97,null,null,null,null,"","",null,0,0,0,0,0,""]
[6,601,12,3,"Yellow 1000 yd 20#","FLY REELS, SPOOLS AND OUTFITS","  SCIENTIFIC ANGLERS(TM) ACCESSORIES   *NEW*","608207","","Fly Floatant  0.5 oz                    MOQ=12      ",null,"840309108805","12","EACH",5.25,3.15,2.8875000000000002,2.625,null,null,null,null,null,null,null,null,null,null,null,null,null,null,null,null,null,3.15,null,null,null,null,"","",null,0,0,0,0,0,""]
[6,601,13,3,"Yellow 3000 yd 20#","FLY REELS, SPOOLS AND OUTFITS","  SCIENTIFIC ANGLERS(TM) ACCESSORIES   *NEW*",207123,"","Fly Floatant - 25 Pack PDQ      ",null,840309111607,"1","DSPL",119.95,71.97,65.972500000000011,59.975000000000001,null,null,null,null,null,null,null,null,null,null,null,null,null,null,null,null,null,71.97,null,null,null,null,"","",null,0,0,0,0,0,""]
[6,601,14,3,"Yellow 5000 yd 20#","FLY REELS, SPOOLS AND OUTFITS","  SCIENTIFIC ANGLERS(TM) ACCESSORIES   *NEW*","543218","","Fly Line Dressing w/ pad            MOQ=12      ",null,"840309102759","12","EACH",7.25,4.3499999999999996,3.9875000000000003,3.625,null,null,null,null,null,null,null,null,null,null,null,null,null,null,null,null,null,4.3499999999999996,null,null,null,null,"","",null,0,0,0,0,0,""]
[6,601,15,3,"Yellow  100 yd 30#","FLY REELS, SPOOLS AND OUTFITS","  SCIENTIFIC ANGLERS(TM) ACCESSORIES   *NEW*","835306","","Vest Pack Assortment      ",null,"840309102353","6","EACH",17.95,10.77,9.8725000000000005,8.9749999999999996,null,null,null,null,null,null,null,null,null,null,null,null,null,null,null,null,null,10.77,null,null,null,null,"","",null,0,0,0,0,0,""]
[6,602,null,2,"Yellow 1000 yd 30#","FLY REELS, SPOOLS AND OUTFITS","  SIERRA STREAM AND MOUNTAIN™ TOOLS - MADE IN USA","SIERRA STREAM AND MOUNTAIN™ TOOLS - MADE IN USA",null,null,null,null,null,null,null,null,null,null,null,null,null,null,null,null,null,null,null,null,null,null,null,null,null,null,null,null,null,null,null,null,"",""]
[6,602,1,3,"Yellow 3000 yd 30#","FLY REELS, SPOOLS AND OUTFITS","  SIERRA STREAM AND MOUNTAIN™ TOOLS - MADE IN USA","971717","","TIE-FAST Combo Tool - Silver - Made in USA      ",null,"099123971717","1","EACH",18.95,11.37,10.422500000000001,9.4749999999999996,null,null,null,null,null,null,null,null,null,null,null,null,null,null,null,null,null,{"$f":"IF(OR(ISBLANK($L867),$AW$3=0),\" - \",OFFSET(O867,0,$AW$3,1,1))","v":11.37},null,null,null,null,"","",null,{"$f":"IF(LEN($AJ867)>0,$AJ867*AK867,\"\")","v":0},0,0,0,0,""]
[6,602,2,3,"Yellow 5000 yd 30#","FLY REELS, SPOOLS AND OUTFITS","  SIERRA STREAM AND MOUNTAIN™ TOOLS - MADE IN USA","089016","","TIE-FAST Knot Tyer - Silver - Made in USA      ",null,"099123089016","1","EACH",9.9499999999999993,5.97,5.4725000000000001,4.9749999999999996,null,null,null,null,null,null,null,null,null,null,null,null,null,null,null,null,null,{"$f":"IF(OR(ISBLANK($L868),$AW$3=0),\" - \",OFFSET(O868,0,$AW$3,1,1))","v":5.97},null,null,null,null,"","",null,0,0,0,0,0,""]
[6,602,3,3,"\u0001","FLY REELS, SPOOLS AND OUTFITS","  SIERRA STREAM AND MOUNTAIN™ TOOLS - MADE IN USA","941017","","TIE-FAST Line Clipper - Silver - Made in USA      ",null,"099123941017","1","EACH",9.9499999999999993,5.97,5.4725000000000001,4.9749999999999996,null,null,null,null,null,null,null,null,null,null,null,null,null,null,null,null,null,{"$f":"IF(OR(ISBLANK($L869),$AW$3=0),\" - \",OFFSET(O869,0,$AW$3,1,1))","v":5.97},null,null,null,null,"","",null,0,0,0,0,0,""]
[6,603,null,2,"\u0001","FLY REELS, SPOOLS AND OUTFITS","  SCIENTIFIC ANGLERS(TM) DELUXE FLY TYING KIT","  SCIENTIFIC ANGLERS(TM) DELUXE FLY TYING KIT",null,null,null,null,null,null,null,null,null,null,null,null,null,null,null,null,null,null,null,null,null,null,null,null,null,null,null,null,null,null,null,null,"",""]
[6,603,1,3,"Scientific Anglers 34 Reel - Graphite      ","FLY REELS, SPOOLS AND OUTFITS","  SCIENTIFIC ANGLERS(TM) DELUXE FLY TYING KIT","099413","","Deluxe Fly-Tying Kit with DVD      ",null,"840309103596","1","EACH",69.95,44.97,41.222500000000004,37.475000000000001,null,null,null,null,null,null,null,null,null,null,null,null,null,null,null,null,null,{"$f":"IF(OR(ISBLANK($L871),$AW$3=0),\" - \",OFFSET(O871,0,$AW$3,1,1))","v":44.97},null,null,null,null,"","",null,{"$f":"IF(LEN($AJ871)>0,$AJ871*AK871,\"\")","v":0},0,0,0,{"$f":"COUNT(AK871:AN871)","v":0},{"$f":"IF($AV871<>0,ROW($AV$11),\"\")","v":""}]
[6,604,null,2,"Yellow 500 yd","FLY REELS, SPOOLS AND OUTFITS","SCIENTIFIC ANGLERS(TM) CLOTHING","SCIENTIFIC ANGLERS(TM) CLOTHING   *NEW*",null,null,null,null,null,null,null,null,null,null,null,null,null,null,null,null,null,null,null,null,null,null,null,null,null,null,null,null,null,null,null,null,{"$f":"IF($AV872=0,\"\",SUM(AK872:AN872))","v":""},{"$f":"IF($AV872>0,SUM(AR872:AU872),\"\")","v":""}]
[6,604,1,3,"Yellow 1000 yd","FLY REELS, SPOOLS AND OUTFITS","SCIENTIFIC ANGLERS(TM) CLOTHING",124089,null,"Tarpon L/S Casting T - Medium - Columbia Blue",null,840309124089,"1","EACH",49.95,29.97,27.472500000000004,24.975000000000001,null,null,null,null,null,null,null,null,null,null,null,null,null,null,null,null,null,{"$f":"IF(OR(ISBLANK($L873),$AW$3=0),\" - \",OFFSET(O873,0,$AW$3,1,1))","v":29.97},null,null,null,null,"","",null,{"$f":"IF(LEN($AJ873)>0,$AJ873*AK873,\"\")","v":0},{"$f":"IF(LEN($AJ873)>0,$AJ873*AL873,\"\")","v":0},{"$f":"IF(LEN($AJ873)>0,$AJ873*AM873,\"\")","v":0},{"$f":"IF(LEN($AJ873)>0,$AJ873*AN873,\"\")","v":0},{"$f":"COUNT(AK873:AN873)","v":0},{"$f":"IF($AV873<>0,ROW($AV$11),\"\")","v":""}]
[6,604,2,3,"Yellow 3000 yd","FLY REELS, SPOOLS AND OUTFITS","SCIENTIFIC ANGLERS(TM) CLOTHING",124096,null,"Tarpon L/S Casting T - Large - Columbia Blue",null,840309124096,"1","EACH",49.95,29.97,27.472500000000004,24.975000000000001,null,null,null,null,null,null,null,null,null,null,null,null,null,null,null,null,null,29.97,null,null,null,null,"","",null,0,0,0,0,0,""]
[6,604,3,3,"\u0001","FLY REELS, SPOOLS AND OUTFITS","SCIENTIFIC ANGLERS(TM) CLOTHING",124102,null,"Tarpon L/S Casting T - XL - Columbia Blue",null,840309124102,"1","EACH",49.95,29.97,27.472500000000004,24.975000000000001,null,null,null,null,null,null,null,null,null,null,null,null,null,null,null,null,null,29.97,null,null,null,null,"","",null,0,0,0,0,0,""]
[6,604,4,3,"White  100 yd 20#","FLY REELS, SPOOLS AND OUTFITS","SCIENTIFIC ANGLERS(TM) CLOTHING",124119,null,"Tarpon L/S Casting T - XXL - Columbia Blue",null,840309124119,"1","EACH",49.95,29.97,27.472500000000004,24.975000000000001,null,null,null,null,null,null,null,null,null,null,null,null,null,null,null,null,null,29.97,null,null,null,null,"","",null,0,0,0,0,0,""]
[6,604,5,3,"White  250 yd 20#","FLY REELS, SPOOLS AND OUTFITS","SCIENTIFIC ANGLERS(TM) CLOTHING",124126,null,"Smallmouth Bass L/S Casting T - Medium - Athletic Gray",null,840309124126,"1","EACH",49.95,29.97,27.472500000000004,24.975000000000001,null,null,null,null,null,null,null,null,null,null,null,null,null,null,null,null,null,29.97,null,null,null,null,"","",null,0,0,0,0,0,""]
[6,604,6,3,"White 1000 yd","FLY REELS, SPOOLS AND OUTFITS","SCIENTIFIC ANGLERS(TM) CLOTHING",124133,null,"Smallmouth Bass L/S Casting T - Large - Athletic Gray",null,840309124133,"1","EACH",49.95,29.97,27.472500000000004,24.975000000000001,null,null,null,null,null,null,null,null,null,null,null,null,null,null,null,null,null,29.97,null,null,null,null,"","",null,0,0,0,0,0,""]
[6,604,7,3,"White 3000 yd 20#","FLY REELS, SPOOLS AND OUTFITS","SCIENTIFIC ANGLERS(TM) CLOTHING",124140,null,"Smallmouth Bass L/S Casting T - XL - Athletic Gray",null,840309124140,"1","EACH",49.95,29.97,27.472500000000004,24.975000000000001,null,null,null,null,null,null,null,null,null,null,null,null,null,null,null,null,null,29.97,null,null,null,null,"","",null,0,0,0,0,0,""]
[6,604,8,3,"White 5000 yd 20#","FLY REELS, SPOOLS AND OUTFITS","SCIENTIFIC ANGLERS(TM) CLOTHING",124157,null,"Smallmouth Bass L/S Casting T - XXL - Athletic Gray",null,840309124157,"1","EACH",49.95,29.97,27.472500000000004,24.975000000000001,null,null,null,null,null,null,null,null,null,null,null,null,null,null,null,null,null,29.97,null,null,null,null,"","",null,0,0,0,0,0,""]
[6,604,9,3,"White  100 yd 30#","FLY REELS, SPOOLS AND OUTFITS","SCIENTIFIC ANGLERS(TM) CLOTHING",124164,null,"Brook Trout L/S Casting T - Medium - Tan",null,840309124164,"1","EACH",49.95,29.97,27.472500000000004,24.975000000000001,null,null,null,null,null,null,null,null,null,null,null,null,null,null,null,null,null,29.97,null,null,null,null,"","",null,0,0,0,0,0,""]
[6,604,10,3,"White  250 yd 30#","FLY REELS, SPOOLS AND OUTFITS","SCIENTIFIC ANGLERS(TM) CLOTHING",124171,null,"Brook Trout L/S Casting T - Large - Tan",null,840309124171,"1","EACH",49.95,29.97,27.472500000000004,24.975000000000001,null,null,null,null,null,null,null,null,null,null,null,null,null,null,null,null,null,29.97,null,null,null,null,"","",null,0,0,0,0,0,""]
[6,604,11,3,"White 1000 yd 30#","FLY REELS, SPOOLS AND OUTFITS","SCIENTIFIC ANGLERS(TM) CLOTHING",124188,null,"Brook Trout L/S Casting T - XL - Tan",null,840309124188,"1","EACH",49.95,29.97,27.472500000000004,24.975000000000001,null,null,null,null,null,null,null,null,null,null,null,null,null,null,null,null,null,29.97,null,null,null,null,"","",null,0,0,0,0,0,""]
[6,604,12,3,"White 3000 yd 30#","FLY REELS, SPOOLS AND OUTFITS","SCIENTIFIC ANGLERS(TM) CLOTHING",124195,"","Brook Trout L/S Casting T - XXL - Tan",null,840309124195,1,"EACH",49.95,29.97,27.472500000000004,24.975000000000001,null,null,null,null,null,null,null,null,null,null,null,null,null,null,null,null,null,29.97,null,null,null,null,"","",null,0,0,0,0,0,""]

{"sheet":"Search","index":1,"n_rows":7,"n_cols":3,"rows_kept":7,"cut":false,"hidden":false,"merged":[]}
[]
[]
[]
[null,"Product Number",123]
[null,null,{"$f":"\"- OR -\"","v":"- OR -"}]
[null,"Description Keywords"]
[null,null,"Separate multiple keywords with a space between each word."]

{"sheet":"PriceLevels","index":2,"n_rows":4,"n_cols":3,"rows_kept":4,"cut":false,"hidden":true,"merged":[]}
["PriceCol","PriceLevel","RealPriceCol"]
[1,"Level 1",1]
[2,"Level 2",2]
[3,"Level 3",3]